Workbook

Sheet Caratula
B6: GERENCIA DE REGULACIÓN Y ESTUDIOS ECONÓMICOS
B9: MODELO ECONÓMICO DE LA PROPUESTA DE TUUA DE TRANSFERENCIA EN EL AIJCH
B13: 2025

Sheet Índice
B2: Contenido
B4: Propuesta del Ositrán
B6: I. Flujo de Caja descontado
B7: a. Flujo DOM-DOM
B8: b. Flujo INT-INT
B10: II. Demanda del servicio
B11: a. Proyección de demanda
B13: III. Egresos del servicio
B14: a. Costos de operación y mantenimiento - OPEX
B15: b. Base de capital e inversiones - CAPEX
B16: c. CAPEX - Exclusivas
B17: d. CAPEX - Comunes
B18: e. CAPEX - Indirecto
B20: IV. Tasa de descuento
B21: a. Costo Promedio Ponderado del Capital (WACC) al 2024
B22: b. Estimación del beta de la empresa
B23: c. Información referida a la deuda de la empresa
B25: V. Información complementaria
B26: Índices empleados para el WACC
B27: Proyección de OPEX Total del AIJC, 2025-2030
B28: Proyección de OPEX TUUA de Transferencia
B29: Asignación de áreas, por tipo de transferencia
B30: Variación del OPEX 2023 vs. 2025

Sheet Propuesta
B1: Propuesta: TUUA de Transferencia en el AIJC | F1: ÍNDICE
B3: TUUA | C3: Unidad de cobro | D3: Propuesta
D4: Ositrán
B5: DOM-DOM | C5: USD/Pasajero | D5: =+'0. Flujo DOM-DOM'!E6 -> 7.598197757
B6: INT-INT | C6: USD/Pasajero | D6: =+'0. Flujo INT-INT'!E6 -> 12.48576954

Sheet 0. Flujo DOM-DOM
B1: 0. Flujo de Caja: TUUA de Transferencia DOM-DOM en el AIJC | J1: ÍNDICE
B2: Montos expresados en USD
B4: Año | D4: 2024 | E4: 2025 | F4: 2026 | G4: 2027 | H4: 2028 | I4: 2029 | J4: 2030
B5: N° de pasajeros de transferencia DOM-DOM | E5: =+'1. Demanda'!C24 -> 619943.4548 | F5: =+'1. Demanda'!D24 -> 838355 | G5: =+'1. Demanda'!E24 -> 859397 | H5: =+'1. Demanda'!F24 -> 880439 | I5: =+'1. Demanda'!G24 -> 915332 | J5: =+'1. Demanda'!H24 -> 944420
B6: TUUA de Transferencia DOM-DOM | E6: 7.598197757 | F6: =+E6 -> 7.598197757 | G6: =+F6 -> 7.598197757 | H6: 7.598197757 | I6: 7.598197757 | J6: 7.598197757
B7: Ingresos Brutos Totales | E7: =+E5*E6 -> 4710452.968 | F7: =+F5*F6 -> 6369987.081 | G7: 6529868.358 | H7: 6689749.635 | I7: 6954873.55 | J7: 7175889.926
B9: Retribución del Estado | C9: 0.46511 | E9: =-$C$9*E7 -> -2190878.78 | F9: =-$C$9*F7 -> -2962744.691 | G9: -3037107.072 | H9: -3111469.453 | I9: -3234781.237 | J9: -3337578.163
B10: Aporte por Regulación | C10: 0.01 | E10: =-$C$10*E7 -> -47104.52968 | F10: =-$C$10*F7 -> -63699.87081 | G10: -65298.68358 | H10: -66897.49635 | I10: -69548.7355 | J10: -71758.89926
B11: Ingresos netos | E11: =+SUM(E7:E10) -> 2472469.658 | F11: =+SUM(F7:F10) -> 3343542.519 | G11: 3427462.602 | H11: 3511382.686 | I11: 3650543.577 | J11: 3766552.863
B13: Costo Directo | E13: =-'2. OPEX'!C30 -> -311138.2954 | F13: =-'2. OPEX'!D30 -> -406850.6343 | G13: =-'2. OPEX'!E30 -> -406159.2933 | H13: =-'2. OPEX'!F30 -> -405396.6915 | I13: =-'2. OPEX'!G30 -> -408471.7633 | J13: =-'2. OPEX'!H30 -> -409981.545
B14: Costo Indirecto | E14: =-'2. OPEX'!C31 -> -577196.5615 | F14: =-'2. OPEX'!D31 -> -749385.9865 | G14: =-'2. OPEX'!E31 -> -744867.6033 | H14: =-'2. OPEX'!F31 -> -740161.7061 | I14: =-'2. OPEX'!G31 -> -744205.4561 | J14: =-'2. OPEX'!H31 -> -744779.0648
B15: Costo No Imputable | E15: =-'2. OPEX'!C32 -> -276324.7242 | F15: =-'2. OPEX'!D32 -> -350797.3753 | G15: =-'2. OPEX'!E32 -> -342871.0886 | H15: =-'2. OPEX'!F32 -> -335081.9877 | I15: =-'2. OPEX'!G32 -> -330858.6325 | J15: =-'2. OPEX'!H32 -> -325674.0192
B16: Total costos de operación | E16: =+SUM(E13:E15) -> -1164659.581 | F16: =+SUM(F13:F15) -> -1507033.996 | G16: -1493897.985 | H16: -1480640.385 | I16: -1483535.852 | J16: -1480434.629
B18: Net IGV | D18: =+D35 -> -1590363.429 | E18: =+E35 -> 514693.2248 | F18: 897938.5024 | G18: 955422.9083 | H18: 986025.6312 | I18: 1033218.67 | J18: 1073352.342
B19: Pago de IGV | D19: =-D40 -> 0 | E19: =-E40 -> 0 | F19: 0 | G19: -777691.2067 | H19: -986025.6312 | I19: -1033218.67 | J19: -1073352.342
B20: Pago de IR | D20: =+D47 -> 0 | E20: =+E47 -> -219090.2801 | F20: -301372.6077 | G20: -323593.229 | H20: -348762.2491 | I20: -384054.9941 | J20: -414904.6158
B22: Flujo de Caja Operativo | D22: =+D11+D16+SUM(D18:D20) -> -1590363.429 | E22: =+E11+E16+SUM(E18:E20) -> 1603413.022 | F22: =+F11+F16+SUM(F18:F20) -> 2433074.417 | G22: 1787703.09 | H22: 1681980.052 | I22: 1782952.732 | J22: 1871213.618
B24: Base de activos | D24: =-'3. CAPEX'!D103 -> 0
B25: Plan de Inversiones | D25: =-'3. CAPEX'!D104 -> -8835352.382 | E25: =-'3. CAPEX'!E104 -> -899766.9036 | F25: =-'3. CAPEX'!F104 -> -149451.6896 | G25: =-'3. CAPEX'!G104 -> 0 | H25: =-'3. CAPEX'!H104 -> 0 | I25: =-'3. CAPEX'!I104 -> 0 | J25: =-'3. CAPEX'!J104 -> 0
B26: Valor residual | J26: ='3. CAPEX'!J105 -> 6013081.952
B28: Flujo de Caja Económico | D28: =+D22+SUM(D24:D26) -> -10425715.81 | E28: =+E22+SUM(E24:E26) -> 703646.1185 | F28: 2283622.728 | G28: 1787703.09 | H28: 1681980.052 | I28: 1782952.732 | J28: 7884295.57
B30: WACC | C30: =+'4. WACC'!C17 -> 0.103699474
B31: VAN | C31: =+D28+NPV(C30,E28:J28) -> 0
B33: PAGO DE IGV | C33: 0.18 | D33: 2024 | E33: 2025 | F33: 2026 | G33: 2027 | H33: 2028 | I33: 2029 | J33: 2030
B34: Crédito Fiscal Inicial | D34: 0 | E34: =+D39 -> -1590363.429 | F34: =+E39 -> -1075670.204 | G34: =+F39 -> -177731.7015 | H34: 0 | I34: 0 | J34: 0
B35: Net IGV | D35: =+SUM(D36:D38) -> -1590363.429 | E35: =+SUM(E36:E38) -> 514693.2248 | F35: =+SUM(F36:F38) -> 897938.5024 | G35: 955422.9083 | H35: 986025.6312 | I35: 1033218.67 | J35: 1073352.342
B36: IGV Ingresos | D36: =+D7*$C$33 -> 0 | E36: 847881.5342 | F36: 1146597.675 | G36: 1175376.304 | H36: 1204154.934 | I36: 1251877.239 | J36: 1291660.187
B37: IGV Egresos - OPEX | D37: =+(D13+SUM(D14:D15)*0.75)*$C$33 -> 0 | E37: -171230.2667 | F37: -221757.868 | G37: -219953.3962 | H37: -218129.3031 | I37: -218658.5694 | J37: -218307.8444
B38: IGV Egresos - CAPEX | D38: =+D25*$C$33 -> -1590363.429 | E38: =+E25*$C$33 -> -161958.0426 | F38: =+F25*$C$33 -> -26901.30413 | G38: =+G25*$C$33 -> 0 | H38: 0 | I38: 0 | J38: 0
B39: Crédito Fiscal Final | D39: =IF(SUM(D34:D35)<0,SUM(D34:D35),0) -> -1590363.429 | E39: =IF(SUM(E34:E35)<0,SUM(E34:E35),0) -> -1075670.204 | F39: =IF(SUM(F34:F35)<0,SUM(F34:F35),0) -> -177731.7015 | G39: 0 | H39: 0 | I39: 0 | J39: 0
B40: Pago IGV | D40: =IF(SUM(D34:D35)<0,0,SUM(D34:D35)) -> 0 | E40: =IF(SUM(E34:E35)<0,0,SUM(E34:E35)) -> 0 | F40: =IF(SUM(F34:F35)<0,0,SUM(F34:F35)) -> 0 | G40: 777691.2067 | H40: 986025.6312 | I40: 1033218.67 | J40: 1073352.342
B42: Pago de IR | C42: 0.259 | D42: 2024 | E42: 2025 | F42: 2026 | G42: 2027 | H42: 2028 | I42: 2029 | J42: 2030
B43: Ingresos Brutos | E43: =+E7 -> 4710452.968 | F43: =+F7 -> 6369987.081 | G43: 6529868.358 | H43: 6689749.635 | I43: 6954873.55 | J43: 7175889.926
B44: Gastos Operativos + Retribución | E44: =+E16+E9+E10 -> -3402642.891 | F44: =+F16+F9+F10 -> -4533478.558 | G44: -4596303.741 | H44: -4659007.334 | I44: -4787865.824 | J44: -4889771.692
B45: Depreciación y Amortización | E45: =-'3. CAPEX'!I63 -> -461901.66 | F45: =-'3. CAPEX'!J63 -> -672907.7208 | G45: =-'3. CAPEX'!K63 -> -684169.9107 | H45: =-'3. CAPEX'!L63 -> -684169.9107 | I45: =-'3. CAPEX'!M63 -> -684169.9107 | J45: =-'3. CAPEX'!N63 -> -684169.9107
B46: Utilidad Neta | E46: =+SUM(E43:E45) -> 845908.4173 | F46: =+SUM(F43:F45) -> 1163600.802 | G46: 1249394.707 | H46: 1346572.39 | I46: 1482837.815 | J46: 1601948.324
B47: Pago de IR | E47: =-IF(E46<0,0,E46*$C$42) -> -219090.2801 | F47: =-IF(F46<0,0,F46*$C$42) -> -301372.6077 | G47: -323593.229 | H47: -348762.2491 | I47: -384054.9941 | J47: -414904.6158

Sheet 0. Flujo INT-INT
B1: 0. Flujo de Caja: TUUA de Transferencia INT-INT en el AIJC | J1: ÍNDICE
B2: Montos expresados en USD
B4: Año | D4: 2024 | E4: 2025 | F4: 2026 | G4: 2027 | H4: 2028 | I4: 2029 | J4: 2030
B5: N° de pasajeros de transferencia INT-INT | E5: =+'1. Demanda'!C23 -> 1256937.967 | F5: =+'1. Demanda'!D23 -> 2024214 | G5: =+'1. Demanda'!E23 -> 2347254 | H5: =+'1. Demanda'!F23 -> 2564553 | I5: =+'1. Demanda'!G23 -> 2760803 | J5: =+'1. Demanda'!H23 -> 2971410
B6: TUUA de Transferencia INT-INT | E6: 12.48576954 | F6: =+E6 -> 12.48576954 | G6: =+F6 -> 12.48576954 | H6: 12.48576954 | I6: 12.48576954 | J6: 12.48576954
B7: Ingresos Brutos Totales | E7: =+E5*E6 -> 15693837.78 | F7: =+F5*F6 -> 25273869.5 | G7: 29307272.5 | H7: 32020417.73 | I7: 34470750 | J7: 37100340.47
B9: Retribución del Estado | C9: 0.46511 | E9: =-$C$9*E7 -> -7299360.892 | F9: =-$C$9*F7 -> -11755129.44 | G9: -13631105.51 | H9: -14893016.49 | I9: -16032690.53 | J9: -17255739.36
B10: Aporte por Regulación | C10: 0.01 | E10: =-$C$10*E7 -> -156938.3778 | F10: =-$C$10*F7 -> -252738.695 | G10: -293072.725 | H10: -320204.1773 | I10: -344707.5 | J10: -371003.4047
B11: Ingresos netos | E11: =+SUM(E7:E10) -> 8237538.514 | F11: =+SUM(F7:F10) -> 13266001.36 | G11: 15383094.26 | H11: 16807197.06 | I11: 18093351.97 | J11: 19473597.71
B13: Costo Directo | E13: =-'2. OPEX'!C24 -> -851675.945 | F13: =-'2. OPEX'!D24 -> -1242631.276 | G13: =-'2. OPEX'!E24 -> -1343311.976 | H13: =-'2. OPEX'!F24 -> -1400642.412 | I13: =-'2. OPEX'!G24 -> -1445057.085 | J13: =-'2. OPEX'!H24 -> -1493056.928
B14: Costo Indirecto | E14: =-'2. OPEX'!C25 -> -1187016.472 | F14: =-'2. OPEX'!D25 -> -1829150.756 | G14: =-'2. OPEX'!E25 -> -2052207.558 | H14: =-'2. OPEX'!F25 -> -2172648.843 | I14: =-'2. OPEX'!G25 -> -2260847.191 | J14: =-'2. OPEX'!H25 -> -2358731.246
B15: Costo No Imputable | E15: =-'2. OPEX'!C26 -> -564271.4512 | F15: =-'2. OPEX'!D26 -> -851658.8749 | G15: =-'2. OPEX'!E26 -> -940606.4812 | H15: =-'2. OPEX'!F26 -> -979858.3666 | I15: =-'2. OPEX'!G26 -> -1001583.857 | J15: =-'2. OPEX'!H26 -> -1028101.193
B16: Total costos de operación | E16: =+SUM(E13:E15) -> -2602963.868 | F16: =+SUM(F13:F15) -> -3923440.906 | G16: -4336126.015 | H16: -4553149.621 | I16: -4707488.133 | J16: -4879889.367
B18: Net IGV | D18: =+D35 -> -8738348.993 | E18: =+E35 -> 1545276.904 | F18: 3815902.722 | G18: 4629482.998 | H18: 5085971.084 | I18: 5504196.534 | J18: 5952088.658
B19: Pago de IGV | D19: =+D40 -> 0 | E19: =-E40 -> 0 | F19: =-F40 -> 0 | G19: -1252313.632 | H19: -5085971.084 | I19: -5504196.534 | J19: -5952088.658
B20: Pago de IR | D20: =+D47 -> 0 | E20: =+E47 -> -760499.9786 | F20: -1402173.002 | G20: -1826836.757 | H20: -2139470.269 | I20: -2432610.716 | J20: -2745442.443
B22: Flujo de Caja Operativo | D22: =+D11+D16+SUM(D18:D20) -> -8738348.993 | E22: =+E11+E16+SUM(E18:E20) -> 6419351.572 | F22: =+F11+F16+SUM(F18:F20) -> 11756290.18 | G22: 12597300.85 | H22: 10114577.17 | I22: 10953253.12 | J22: 11848265.9
B24: Base de activos | D24: =-'3. CAPEX'!D85 -> 0
B25: Plan de Inversiones | D25: =-'3. CAPEX'!D86 -> -48546383.3 | E25: =-'3. CAPEX'!E86 -> -4943824.206 | F25: =-'3. CAPEX'!F86 -> -821171.4366 | G25: =-'3. CAPEX'!G86 -> 0 | H25: =-'3. CAPEX'!H86 -> 0 | I25: =-'3. CAPEX'!I86 -> 0 | J25: =-'3. CAPEX'!J86 -> 0
B26: Valor residual | J26: ='3. CAPEX'!J87 -> 31710154.68
B28: Flujo de Caja Económico | D28: =+D22+SUM(D24:D26) -> -57284732.29 | E28: =+E22+SUM(E24:E26) -> 1475527.366 | F28: 10935118.74 | G28: 12597300.85 | H28: 10114577.17 | I28: 10953253.12 | J28: 43558420.58
B30: WACC | C30: =+'4. WACC'!C17 -> 0.103699474
B31: VAN | C31: =+D28+NPV(C30,E28:J28) -> 0
B33: PAGO DE IGV | C33: 0.18 | D33: 2024 | E33: 2025 | F33: 2026 | G33: 2027 | H33: 2028 | I33: 2029 | J33: 2030
B34: Crédito Fiscal Inicial | D34: 0 | E34: =+D39 -> -8738348.993 | F34: =+E39 -> -7193072.089 | G34: =+F39 -> -3377169.367 | H34: 0 | I34: 0 | J34: 0
B35: Net IGV | D35: =+SUM(D36:D38) -> -8738348.993 | E35: =+SUM(E36:E38) -> 1545276.904 | F35: =+SUM(F36:F38) -> 3815902.722 | G35: 4629482.998 | H35: 5085971.084 | I35: 5504196.534 | J35: 5952088.658
B36: IGV Ingresos | D36: =+D7*$C$33 -> 0 | E36: 2824890.801 | F36: 4549296.511 | G36: 5275309.049 | H36: 5763675.192 | I36: 6204735.001 | J36: 6678061.284
B37: IGV Egresos - OPEX | D37: =+(D13+SUM(D14:D15)*0.75)*$C$33 -> 0 | E37: -389725.5397 | F37: -585582.9298 | G37: -645826.051 | H37: -677704.1074 | I37: -700538.4667 | J37: -725972.6262
B38: IGV Egresos - CAPEX | D38: =+D25*$C$33 -> -8738348.993 | E38: =+E25*$C$33 -> -889888.3571 | F38: =+F25*$C$33 -> -147810.8586 | G38: =+G25*$C$33 -> 0 | H38: 0 | I38: 0 | J38: 0
B39: Crédito Fiscal Final | D39: =IF(SUM(D34:D35)<0,SUM(D34:D35),0) -> -8738348.993 | E39: =IF(SUM(E34:E35)<0,SUM(E34:E35),0) -> -7193072.089 | F39: =IF(SUM(F34:F35)<0,SUM(F34:F35),0) -> -3377169.367 | G39: 0 | H39: 0 | I39: 0 | J39: 0
B40: Pago IGV | D40: =IF(SUM(D34:D35)<0,0,SUM(D34:D35)) -> 0 | E40: =IF(SUM(E34:E35)<0,0,SUM(E34:E35)) -> 0 | F40: =IF(SUM(F34:F35)<0,0,SUM(F34:F35)) -> 0 | G40: 1252313.632 | H40: 5085971.084 | I40: 5504196.534 | J40: 5952088.658
B42: Pago de IR | C42: 0.259 | D42: 2024 | E42: 2025 | F42: 2026 | G42: 2027 | H42: 2028 | I42: 2029 | J42: 2030
B43: Ingresos Brutos | E43: =+E7 -> 15693837.78 | F43: =+F7 -> 25273869.5 | G43: 29307272.5 | H43: 32020417.73 | I43: 34470750 | J43: 37100340.47
B44: Gastos Operativos + Retribución | E44: =+E16+E9+E10 -> -10059263.14 | F44: -15931309.05 | G44: -18260304.25 | H44: -19766370.29 | I44: -21084886.17 | J44: -22506632.13
B45: Depreciación y Amortización | E45: =-'3. CAPEX'!I42 -> -2698281.293 | F45: =-'3. CAPEX'!J42 -> -3928765.084 | G45: =-'3. CAPEX'!K42 -> -3993544.472 | H45: =-'3. CAPEX'!L42 -> -3993544.472 | I45: =-'3. CAPEX'!M42 -> -3993544.472 | J45: =-'3. CAPEX'!N42 -> -3993544.472
B46: Utilidad Neta | E46: =+SUM(E43:E45) -> 2936293.354 | F46: =+SUM(F43:F45) -> 5413795.373 | G46: 7053423.774 | H46: 8260502.97 | I46: 9392319.365 | J46: 10600163.87
B47: Pago de IR | E47: =-IF(E46<0,0,E46*$C$42) -> -760499.9786 | F47: =-IF(F46<0,0,F46*$C$42) -> -1402173.002 | G47: -1826836.757 | H47: -2139470.269 | I47: -2432610.716 | J47: -2745442.443

Sheet 1. Demanda
B1: 1. PROYECCIÓN DE DEMANDA | H1: ÍNDICE
B3: A. Proyección de tráfico total de pasjeros en el AIJC, por tipo
B5: Tipo de tráfico | C5: 2025 | D5: 2026 | E5: 2027 | F5: 2028 | G5: 2029 | H5: 2030
B6: INT-INT | C6: 1656254 | D6: 2024214 | E6: 2347254 | F6: 2564553 | G6: 2760803 | H6: 2971410
B7: DOM-DOM | C7: 816893 | D7: 838355 | E7: 859397 | F7: 880439 | G7: 915332 | H7: 944420
B8: INT-DOM | C8: 1170065 | D8: 1345893 | E8: 1473976 | F8: 1615552 | G8: 1744712 | H8: 1883779
B9: DOM-INT | C9: 1170065 | D9: 1345893 | E9: 1473976 | F9: 1615552 | G9: 1744712 | H9: 1883779
B10: INT Salidas (sin DOM-INT / INT-INT / Transito INT-INT) | C10: 3297456.5 | D10: 3731793 | E10: 4019935.5 | F10: 4386963 | G10: 4717141.5 | H10: 5071014
B11: INT Llegadas (sin DOM-INT / INT-INT / Transito INT-INT) | C11: 3297456.5 | D11: 3731793 | E11: 4019935.5 | F11: 4386963 | G11: 4717141.5 | H11: 5071014
B12: DOM Salidas (sin INT-DOM / DOM-DOM) | C12: 7326514 | D12: 7373911 | E12: 7464687.5 | F12: 7541971 | G12: 7775739.5 | H12: 7939221.5
B13: DOM Llegadas (sin INT-DOM / DOM-DOM) | C13: 7326514 | D13: 7373911 | E13: 7464687.5 | F13: 7541971 | G13: 7775739.5 | H13: 7939221.5
B14: TOTAL | C14: =+SUM(C6:C13) -> 26061218 | D14: =+SUM(D6:D13) -> 27765763 | E14: 29123849 | F14: 30533964 | G14: 32151321 | H14: 33703859
B16: B. Proyección de tráfico de pasjeros de Transferencia en el AIJC, ajustado por días de operación
C18: 2025 | D18: 2026 | E18: 2027 | F18: 2028 | G18: 2029 | H18: 2030
B19: Días de Operación - Nuevo Terminal | C19: =C20-31-28-29 -> 277 | D19: =D20 -> 365 | E19: =E20 -> 365 | F19: 366 | G19: 365 | H19: 365
B20: Días del Año Calendario | C20: =(365+IF(OR(MOD(C18,400)=0,AND(MOD(C18,4)=0,MOD(C18,100)<>0)),"1", "0")) -> 365 | D20: 365 | E20: 365 | F20: 366 | G20: 365 | H20: =(365+IF(OR(MOD(H18,400)=0,AND(MOD(H18,4)=0,MOD(H18,100)<>0)),"1", "0")) -> 365
B22: Tipo de tráfico | C22: 2025 | D22: 2026 | E22: 2027 | F22: 2028 | G22: 2029 | H22: 2030
B23: INT-INT | C23: =+C6*C19/C20 -> 1256937.967 | D23: =+D6*D19/D20 -> 2024214 | E23: =+E6*E19/E20 -> 2347254 | F23: 2564553 | G23: 2760803 | H23: 2971410
B24: DOM-DOM | C24: =+C7*C19/C20 -> 619943.4548 | D24: =+D7*D19/D20 -> 838355 | E24: =+E7*E19/E20 -> 859397 | F24: 880439 | G24: 915332 | H24: 944420

Sheet 2. OPEX
B1: 2. COSTOS DE OPERACIÓN Y MANTENIMIENTO | H1: ÍNDICE
B3: A. Proyección de OPEX Total, 2025 - 2030
B5: INT-INT | C5: 2025 | D5: 2026 | E5: 2027 | F5: 2028 | G5: 2029 | H5: 2030
B6: Directo | C6: =+SUMIF('2.1 OPEX TUUA'!$C$14:$C$484,'2. OPEX'!$B$6,'2.1 OPEX TUUA'!G14:G484) -> 1122244.476 | D6: =+SUMIF('2.1 OPEX TUUA'!$C$14:$C$484,'2. OPEX'!$B$6,'2.1 OPEX TUUA'!H14:H484) -> 1242631.276 | E6: =+SUMIF('2.1 OPEX TUUA'!$C$14:$C$484,'2. OPEX'!$B$6,'2.1 OPEX TUUA'!I14:I484) -> 1343311.976 | F6: =+SUMIF('2.1 OPEX TUUA'!$C$14:$C$484,'2. OPEX'!$B$6,'2.1 OPEX TUUA'!J14:J484) -> 1400642.412 | G6: =+SUMIF('2.1 OPEX TUUA'!$C$14:$C$484,'2. OPEX'!$B$6,'2.1 OPEX TUUA'!K14:K484) -> 1445057.085 | H6: =+SUMIF('2.1 OPEX TUUA'!$C$14:$C$484,'2. OPEX'!$B$6,'2.1 OPEX TUUA'!L14:L484) -> 1493056.928
B7: Indirectos | C7: =+SUMIF('2.1 OPEX TUUA'!$C$14:$C$484,'2. OPEX'!$B$7,'2.1 OPEX TUUA'!G14:G484) -> 1564119.177 | D7: =+SUMIF('2.1 OPEX TUUA'!$C$14:$C$484,'2. OPEX'!$B$7,'2.1 OPEX TUUA'!H14:H484) -> 1829150.756 | E7: =+SUMIF('2.1 OPEX TUUA'!$C$14:$C$484,'2. OPEX'!$B$7,'2.1 OPEX TUUA'!I14:I484) -> 2052207.558 | F7: =+SUMIF('2.1 OPEX TUUA'!$C$14:$C$484,'2. OPEX'!$B$7,'2.1 OPEX TUUA'!J14:J484) -> 2172648.843 | G7: =+SUMIF('2.1 OPEX TUUA'!$C$14:$C$484,'2. OPEX'!$B$7,'2.1 OPEX TUUA'!K14:K484) -> 2260847.191 | H7: =+SUMIF('2.1 OPEX TUUA'!$C$14:$C$484,'2. OPEX'!$B$7,'2.1 OPEX TUUA'!L14:L484) -> 2358731.246
B8: No Imputables | C8: =+SUMIF('2.1 OPEX TUUA'!$C$14:$C$484,'2. OPEX'!$B$8,'2.1 OPEX TUUA'!G14:G484) -> 743534.5836 | D8: =+SUMIF('2.1 OPEX TUUA'!$C$14:$C$484,'2. OPEX'!$B$8,'2.1 OPEX TUUA'!H14:H484) -> 851658.8749 | E8: =+SUMIF('2.1 OPEX TUUA'!$C$14:$C$484,'2. OPEX'!$B$8,'2.1 OPEX TUUA'!I14:I484) -> 940606.4812 | F8: =+SUMIF('2.1 OPEX TUUA'!$C$14:$C$484,'2. OPEX'!$B$8,'2.1 OPEX TUUA'!J14:J484) -> 979858.3666 | G8: =+SUMIF('2.1 OPEX TUUA'!$C$14:$C$484,'2. OPEX'!$B$8,'2.1 OPEX TUUA'!K14:K484) -> 1001583.857 | H8: =+SUMIF('2.1 OPEX TUUA'!$C$14:$C$484,'2. OPEX'!$B$8,'2.1 OPEX TUUA'!L14:L484) -> 1028101.193
B9: Total | C9: =+SUM(C6:C8) -> 3429898.237 | D9: =+SUM(D6:D8) -> 3923440.906 | E9: 4336126.015 | F9: 4553149.621 | G9: 4707488.133 | H9: 4879889.367
B11: DOM-DOM | C11: 2025 | D11: 2026 | E11: 2027 | F11: 2028 | G11: 2029 | H11: 2030
B12: Directo | C12: =+SUMIF('2.1 OPEX TUUA'!$C$14:$C$484,'2. OPEX'!$B$6,'2.1 OPEX TUUA'!N14:N484) -> 409983.6744 | D12: =+SUMIF('2.1 OPEX TUUA'!$C$14:$C$484,'2. OPEX'!$B$6,'2.1 OPEX TUUA'!O14:O484) -> 406850.6343 | E12: =+SUMIF('2.1 OPEX TUUA'!$C$14:$C$484,'2. OPEX'!$B$6,'2.1 OPEX TUUA'!P14:P484) -> 406159.2933 | F12: =+SUMIF('2.1 OPEX TUUA'!$C$14:$C$484,'2. OPEX'!$B$6,'2.1 OPEX TUUA'!Q14:Q484) -> 405396.6915 | G12: =+SUMIF('2.1 OPEX TUUA'!$C$14:$C$484,'2. OPEX'!$B$6,'2.1 OPEX TUUA'!R14:R484) -> 408471.7633 | H12: =+SUMIF('2.1 OPEX TUUA'!$C$14:$C$484,'2. OPEX'!$B$6,'2.1 OPEX TUUA'!S14:S484) -> 409981.545
B13: Indirectos | C13: =+SUMIF('2.1 OPEX TUUA'!$C$14:$C$484,'2. OPEX'!$B$7,'2.1 OPEX TUUA'!N14:N484) -> 760565.8662 | D13: =+SUMIF('2.1 OPEX TUUA'!$C$14:$C$484,'2. OPEX'!$B$7,'2.1 OPEX TUUA'!O14:O484) -> 749385.9865 | E13: =+SUMIF('2.1 OPEX TUUA'!$C$14:$C$484,'2. OPEX'!$B$7,'2.1 OPEX TUUA'!P14:P484) -> 744867.6033 | F13: =+SUMIF('2.1 OPEX TUUA'!$C$14:$C$484,'2. OPEX'!$B$7,'2.1 OPEX TUUA'!Q14:Q484) -> 740161.7061 | G13: =+SUMIF('2.1 OPEX TUUA'!$C$14:$C$484,'2. OPEX'!$B$7,'2.1 OPEX TUUA'!R14:R484) -> 744205.4561 | H13: =+SUMIF('2.1 OPEX TUUA'!$C$14:$C$484,'2. OPEX'!$B$7,'2.1 OPEX TUUA'!S14:S484) -> 744779.0648
B14: No Imputables | C14: =+SUMIF('2.1 OPEX TUUA'!$C$14:$C$484,'2. OPEX'!$B$8,'2.1 OPEX TUUA'!N14:N484) -> 364110.1961 | D14: =+SUMIF('2.1 OPEX TUUA'!$C$14:$C$484,'2. OPEX'!$B$8,'2.1 OPEX TUUA'!O14:O484) -> 350797.3753 | E14: =+SUMIF('2.1 OPEX TUUA'!$C$14:$C$484,'2. OPEX'!$B$8,'2.1 OPEX TUUA'!P14:P484) -> 342871.0886 | F14: =+SUMIF('2.1 OPEX TUUA'!$C$14:$C$484,'2. OPEX'!$B$8,'2.1 OPEX TUUA'!Q14:Q484) -> 335081.9877 | G14: =+SUMIF('2.1 OPEX TUUA'!$C$14:$C$484,'2. OPEX'!$B$8,'2.1 OPEX TUUA'!R14:R484) -> 330858.6325 | H14: =+SUMIF('2.1 OPEX TUUA'!$C$14:$C$484,'2. OPEX'!$B$8,'2.1 OPEX TUUA'!S14:S484) -> 325674.0192
B15: Total | C15: =+SUM(C12:C14) -> 1534659.737 | D15: =+SUM(D12:D14) -> 1507033.996 | E15: =+SUM(E12:E14) -> 1493897.985 | F15: =+SUM(F12:F14) -> 1480640.385 | G15: =+SUM(G12:G14) -> 1483535.852 | H15: =+SUM(H12:H14) -> 1480434.629
B17: B. Proyección de OPEX Total, 2025 - 2030, ajustado por días de operación
C19: 2025 | D19: 2026 | E19: 2027 | F19: 2028 | G19: 2029 | H19: 2030
B20: Días de Operación - Nuevo Terminal | C20: =+'1. Demanda'!C19 -> 277 | D20: =+'1. Demanda'!D19 -> 365 | E20: =+'1. Demanda'!E19 -> 365 | F20: =+'1. Demanda'!F19 -> 366 | G20: =+'1. Demanda'!G19 -> 365 | H20: =+'1. Demanda'!H19 -> 365
B21: Días del Año Calendario | C21: =+'1. Demanda'!C20 -> 365 | D21: =+'1. Demanda'!D20 -> 365 | E21: =+'1. Demanda'!E20 -> 365 | F21: =+'1. Demanda'!F20 -> 366 | G21: =+'1. Demanda'!G20 -> 365 | H21: =+'1. Demanda'!H20 -> 365
B23: INT-INT | C23: 2025 | D23: 2026 | E23: 2027 | F23: 2028 | G23: 2029 | H23: 2030
B24: Directo | C24: =+C6*C20/C21 -> 851675.945 | D24: 1242631.276 | E24: 1343311.976 | F24: 1400642.412 | G24: 1445057.085 | H24: 1493056.928
B25: Indirectos | C25: =+C7*C20/C21 -> 1187016.472 | D25: 1829150.756 | E25: 2052207.558 | F25: 2172648.843 | G25: 2260847.191 | H25: 2358731.246
B26: No Imputables | C26: =+C8*C20/C21 -> 564271.4512 | D26: 851658.8749 | E26: 940606.4812 | F26: 979858.3666 | G26: 1001583.857 | H26: 1028101.193
B27: Total | C27: =+SUM(C24:C26) -> 2602963.868 | D27: =+SUM(D24:D26) -> 3923440.906 | E27: =+SUM(E24:E26) -> 4336126.015 | F27: =+SUM(F24:F26) -> 4553149.621 | G27: =+SUM(G24:G26) -> 4707488.133 | H27: =+SUM(H24:H26) -> 4879889.367
B29: DOM-DOM | C29: 2025 | D29: 2026 | E29: 2027 | F29: 2028 | G29: 2029 | H29: 2030
B30: Directo | C30: =+C12*C20/C21 -> 311138.2954 | D30: 406850.6343 | E30: 406159.2933 | F30: 405396.6915 | G30: 408471.7633 | H30: 409981.545
B31: Indirectos | C31: =+C13*C20/C21 -> 577196.5615 | D31: 749385.9865 | E31: 744867.6033 | F31: 740161.7061 | G31: 744205.4561 | H31: 744779.0648
B32: No Imputables | C32: =+C14*C20/C21 -> 276324.7242 | D32: 350797.3753 | E32: 342871.0886 | F32: 335081.9877 | G32: 330858.6325 | H32: 325674.0192
B33: Total | C33: =+SUM(C30:C32) -> 1164659.581 | D33: =+SUM(D30:D32) -> 1507033.996 | E33: =+SUM(E30:E32) -> 1493897.985 | F33: =+SUM(F30:F32) -> 1480640.385 | G33: =+SUM(G30:G32) -> 1483535.852 | H33: =+SUM(H30:H32) -> 1480434.629

Sheet 2.1 OPEX TUUA
B1: 2.1. Proyección de OPEX TUUA de Transferencia, por partida de costo | S1: ÍNDICE
B3: A. Ratios: Part% de pasajeros y Asignación de áreas en el AIJC, por tipo de transferencia
G5: 2025 | H5: =+G5+1 -> 2026 | I5: =+H5+1 -> 2027 | J5: 2028 | K5: 2029 | L5: 2030 | N5: 2025 | O5: =+N5+1 -> 2026 | P5: =+O5+1 -> 2027 | Q5: 2028 | R5: 2029 | S5: 2030
B6: Tipo de Transferencia | G6: INT-INT | N6: DOM-DOM
B7: Participación de pasajeros | G7: =+'1. Demanda'!C6/'1. Demanda'!C14 -> 0.06355244026 | H7: =+'1. Demanda'!D6/'1. Demanda'!D14 -> 0.07290323698 | I7: =+'1. Demanda'!E6/'1. Demanda'!E14 -> 0.0805955971 | J7: =+'1. Demanda'!F6/'1. Demanda'!F14 -> 0.08399017566 | K7: =+'1. Demanda'!G6/'1. Demanda'!G14 -> 0.08586903785 | L7: =+'1. Demanda'!H6/'1. Demanda'!H14 -> 0.08816230806 | N7: =+'1. Demanda'!C7/'1. Demanda'!C14 -> 0.03134515816 | O7: =+'1. Demanda'!D7/'1. Demanda'!D14 -> 0.0301938398 | P7: =+'1. Demanda'!E7/'1. Demanda'!E14 -> 0.02950835928 | Q7: =+'1. Demanda'!F7/'1. Demanda'!F14 -> 0.02883474285 | R7: =+'1. Demanda'!G7/'1. Demanda'!G14 -> 0.02846949897 | S7: =+'1. Demanda'!H7/'1. Demanda'!H14 -> 0.02802112363
B8: Ratio de asignación de áreas | G8: =+'5.2 Asignación de Áreas'!$F$4 -> 0.04982455434 | H8: =+'5.2 Asignación de Áreas'!$F$4 -> 0.04982455434 | I8: =+'5.2 Asignación de Áreas'!$F$4 -> 0.04982455434 | J8: =+'5.2 Asignación de Áreas'!$F$4 -> 0.04982455434 | K8: =+'5.2 Asignación de Áreas'!$F$4 -> 0.04982455434 | L8: =+'5.2 Asignación de Áreas'!$F$4 -> 0.04982455434 | N8: =+'5.2 Asignación de Áreas'!$F$5 -> 0.009554273774 | O8: =+'5.2 Asignación de Áreas'!$F$5 -> 0.009554273774 | P8: =+'5.2 Asignación de Áreas'!$F$5 -> 0.009554273774 | Q8: =+'5.2 Asignación de Áreas'!$F$5 -> 0.009554273774 | R8: =+'5.2 Asignación de Áreas'!$F$5 -> 0.009554273774 | S8: =+'5.2 Asignación de Áreas'!$F$5 -> 0.009554273774
B10: B. Proyección del OPEX por tipo de Transferencia, según partida de gasto, 2025-2030
B12: Cuenta | C12: Tipo | D12: Item | E12: Nombre de la cuenta | F12: Driver Asignación | G12: OPEX INT-INT | N12: OPEX DOM-DOM
G13: 2025 | H13: 2026 | I13: 2027 | J13: 2028 | K13: 2029 | L13: 2030 | N13: 2025 | O13: 2026 | P13: 2027 | Q13: 2028 | R13: 2029 | S13: 2030
B14: 6211000001 | C14: Directo | D14: Gastos de Personal | E14: Sueldos del Personal | F14: Pasajero | G14: =+IF(F14="Pasajero",'2.2 OPEX LAP 2023'!I14*'2.1 OPEX TUUA'!$G$7,'2.2 OPEX LAP 2023'!I14*'2.1 OPEX TUUA'!$G$8) -> 33041.15301 | H14: =+IF(F14="Pasajero",'2.2 OPEX LAP 2023'!J14*'2.1 OPEX TUUA'!$H$7,'2.2 OPEX LAP 2023'!J14*'2.1 OPEX TUUA'!$H$8) -> 38757.44044 | I14: =+IF(F14="Pasajero",'2.2 OPEX LAP 2023'!K14*'2.1 OPEX TUUA'!$I$7,'2.2 OPEX LAP 2023'!K14*'2.1 OPEX TUUA'!$I$8) -> 43569.52941 | J14: =+IF(F14="Pasajero",'2.2 OPEX LAP 2023'!L14*'2.1 OPEX TUUA'!$J$7,'2.2 OPEX LAP 2023'!L14*'2.1 OPEX TUUA'!$J$8) -> 46162.62634 | K14: =+IF(F14="Pasajero",'2.2 OPEX LAP 2023'!M14*'2.1 OPEX TUUA'!$K$7,'2.2 OPEX LAP 2023'!M14*'2.1 OPEX TUUA'!$K$8) -> 48057.24828 | L14: =+IF(F14="Pasajero",'2.2 OPEX LAP 2023'!N14*'2.1 OPEX TUUA'!$L$7,'2.2 OPEX LAP 2023'!N14*'2.1 OPEX TUUA'!$L$8) -> 50162.20989 | N14: =+IF(F14="Pasajero",'2.2 OPEX LAP 2023'!I14*'2.1 OPEX TUUA'!$N$7,'2.2 OPEX LAP 2023'!I14*'2.1 OPEX TUUA'!$N$8) -> 16296.46576 | O14: =+IF(F14="Pasajero",'2.2 OPEX LAP 2023'!J14*'2.1 OPEX TUUA'!$O$7,'2.2 OPEX LAP 2023'!J14*'2.1 OPEX TUUA'!$O$8) -> 16051.90656 | P14: =+IF(F14="Pasajero",'2.2 OPEX LAP 2023'!K14*'2.1 OPEX TUUA'!$P$7,'2.2 OPEX LAP 2023'!K14*'2.1 OPEX TUUA'!$P$8) -> 15952.05413 | Q14: =+IF(F14="Pasajero",'2.2 OPEX LAP 2023'!L14*'2.1 OPEX TUUA'!$Q$7,'2.2 OPEX LAP 2023'!L14*'2.1 OPEX TUUA'!$Q$8) -> 15848.13282 | R14: =+IF(F14="Pasajero",'2.2 OPEX LAP 2023'!M14*'2.1 OPEX TUUA'!$R$7,'2.2 OPEX LAP 2023'!M14*'2.1 OPEX TUUA'!$R$8) -> 15933.1677 | S14: =+IF(F14="Pasajero",'2.2 OPEX LAP 2023'!N14*'2.1 OPEX TUUA'!$S$7,'2.2 OPEX LAP 2023'!N14*'2.1 OPEX TUUA'!$S$8) -> 15943.3381 | U14: 33041.15301 | V14: 38757.44044 | W14: 43569.52941 | X14: 46162.62634 | Y14: 48057.24828 | Z14: 50162.20989 | AA14: =+G14-U14 -> 0 | AB14: =+H14-V14 -> 0 | AC14: 0 | AD14: 0 | AE14: 0 | AF14: 0
B15: 6212000001 | C15: Directo | D15: Gastos de Personal | E15: Gratificación Ordinaria | F15: Pasajero | G15: =+IF(F15="Pasajero",'2.2 OPEX LAP 2023'!I15*'2.1 OPEX TUUA'!$G$7,'2.2 OPEX LAP 2023'!I15*'2.1 OPEX TUUA'!$G$8) -> 7068.876829 | H15: =+IF(F15="Pasajero",'2.2 OPEX LAP 2023'!J15*'2.1 OPEX TUUA'!$H$7,'2.2 OPEX LAP 2023'!J15*'2.1 OPEX TUUA'!$H$8) -> 8291.828453 | I15: =+IF(F15="Pasajero",'2.2 OPEX LAP 2023'!K15*'2.1 OPEX TUUA'!$I$7,'2.2 OPEX LAP 2023'!K15*'2.1 OPEX TUUA'!$I$8) -> 9321.334422 | J15: =+IF(F15="Pasajero",'2.2 OPEX LAP 2023'!L15*'2.1 OPEX TUUA'!$J$7,'2.2 OPEX LAP 2023'!L15*'2.1 OPEX TUUA'!$J$8) -> 9876.105704 | K15: =+IF(F15="Pasajero",'2.2 OPEX LAP 2023'!M15*'2.1 OPEX TUUA'!$K$7,'2.2 OPEX LAP 2023'!M15*'2.1 OPEX TUUA'!$K$8) -> 10281.44413 | L15: =+IF(F15="Pasajero",'2.2 OPEX LAP 2023'!N15*'2.1 OPEX TUUA'!$L$7,'2.2 OPEX LAP 2023'!N15*'2.1 OPEX TUUA'!$L$8) -> 10731.78297 | N15: =+IF(F15="Pasajero",'2.2 OPEX LAP 2023'!I15*'2.1 OPEX TUUA'!$N$7,'2.2 OPEX LAP 2023'!I15*'2.1 OPEX TUUA'!$N$8) -> 3486.491806 | O15: =+IF(F15="Pasajero",'2.2 OPEX LAP 2023'!J15*'2.1 OPEX TUUA'!$O$7,'2.2 OPEX LAP 2023'!J15*'2.1 OPEX TUUA'!$O$8) -> 3434.17042 | P15: =+IF(F15="Pasajero",'2.2 OPEX LAP 2023'!K15*'2.1 OPEX TUUA'!$P$7,'2.2 OPEX LAP 2023'!K15*'2.1 OPEX TUUA'!$P$8) -> 3412.807834 | Q15: =+IF(F15="Pasajero",'2.2 OPEX LAP 2023'!L15*'2.1 OPEX TUUA'!$Q$7,'2.2 OPEX LAP 2023'!L15*'2.1 OPEX TUUA'!$Q$8) -> 3390.574743 | R15: =+IF(F15="Pasajero",'2.2 OPEX LAP 2023'!M15*'2.1 OPEX TUUA'!$R$7,'2.2 OPEX LAP 2023'!M15*'2.1 OPEX TUUA'!$R$8) -> 3408.76724 | S15: =+IF(F15="Pasajero",'2.2 OPEX LAP 2023'!N15*'2.1 OPEX TUUA'!$S$7,'2.2 OPEX LAP 2023'!N15*'2.1 OPEX TUUA'!$S$8) -> 3410.943112 | U15: 7068.876829 | V15: 8291.828453 | W15: 9321.334422 | X15: 9876.105704 | Y15: 10281.44413 | Z15: 10731.78297 | AA15: =+G15-U15 -> 0 | AB15: =+H15-V15 -> 0 | AC15: =+I15-W15 -> 0 | AD15: =+J15-X15 -> 0 | AE15: =+K15-Y15 -> 0 | AF15: =+L15-Z15 -> 0
B16: 6213000001 | C16: Directo | D16: Gastos de Personal | E16: Vacaciones | F16: Pasajero | G16: =+IF(F16="Pasajero",'2.2 OPEX LAP 2023'!I16*'2.1 OPEX TUUA'!$G$7,'2.2 OPEX LAP 2023'!I16*'2.1 OPEX TUUA'!$G$8) -> 3254.043246 | H16: =+IF(F16="Pasajero",'2.2 OPEX LAP 2023'!J16*'2.1 OPEX TUUA'!$H$7,'2.2 OPEX LAP 2023'!J16*'2.1 OPEX TUUA'!$H$8) -> 3817.009268 | I16: =+IF(F16="Pasajero",'2.2 OPEX LAP 2023'!K16*'2.1 OPEX TUUA'!$I$7,'2.2 OPEX LAP 2023'!K16*'2.1 OPEX TUUA'!$I$8) -> 4290.925709 | J16: =+IF(F16="Pasajero",'2.2 OPEX LAP 2023'!L16*'2.1 OPEX TUUA'!$J$7,'2.2 OPEX LAP 2023'!L16*'2.1 OPEX TUUA'!$J$8) -> 4546.305706 | K16: =+IF(F16="Pasajero",'2.2 OPEX LAP 2023'!M16*'2.1 OPEX TUUA'!$K$7,'2.2 OPEX LAP 2023'!M16*'2.1 OPEX TUUA'!$K$8) -> 4732.896704 | L16: =+IF(F16="Pasajero",'2.2 OPEX LAP 2023'!N16*'2.1 OPEX TUUA'!$L$7,'2.2 OPEX LAP 2023'!N16*'2.1 OPEX TUUA'!$L$8) -> 4940.202911 | N16: =+IF(F16="Pasajero",'2.2 OPEX LAP 2023'!I16*'2.1 OPEX TUUA'!$N$7,'2.2 OPEX LAP 2023'!I16*'2.1 OPEX TUUA'!$N$8) -> 1604.950176 | O16: =+IF(F16="Pasajero",'2.2 OPEX LAP 2023'!J16*'2.1 OPEX TUUA'!$O$7,'2.2 OPEX LAP 2023'!J16*'2.1 OPEX TUUA'!$O$8) -> 1580.864871 | P16: =+IF(F16="Pasajero",'2.2 OPEX LAP 2023'!K16*'2.1 OPEX TUUA'!$P$7,'2.2 OPEX LAP 2023'!K16*'2.1 OPEX TUUA'!$P$8) -> 1571.03095 | Q16: =+IF(F16="Pasajero",'2.2 OPEX LAP 2023'!L16*'2.1 OPEX TUUA'!$Q$7,'2.2 OPEX LAP 2023'!L16*'2.1 OPEX TUUA'!$Q$8) -> 1560.796306 | R16: =+IF(F16="Pasajero",'2.2 OPEX LAP 2023'!M16*'2.1 OPEX TUUA'!$R$7,'2.2 OPEX LAP 2023'!M16*'2.1 OPEX TUUA'!$R$8) -> 1569.170928 | S16: =+IF(F16="Pasajero",'2.2 OPEX LAP 2023'!N16*'2.1 OPEX TUUA'!$S$7,'2.2 OPEX LAP 2023'!N16*'2.1 OPEX TUUA'!$S$8) -> 1570.172555 | U16: 3254.043246 | V16: 3817.009268 | W16: 4290.925709 | X16: 4546.305706 | Y16: 4732.896704 | Z16: 4940.202911 | AA16: 0 | AB16: 0 | AC16: 0 | AD16: 0 | AE16: 0 | AF16: 0
B17: 6214000001 | C17: Directo | D17: Gastos de Personal | E17: Horas Extras | F17: Pasajero | G17: =+IF(F17="Pasajero",'2.2 OPEX LAP 2023'!I17*'2.1 OPEX TUUA'!$G$7,'2.2 OPEX LAP 2023'!I17*'2.1 OPEX TUUA'!$G$8) -> 475.5451211 | H17: =+IF(F17="Pasajero",'2.2 OPEX LAP 2023'!J17*'2.1 OPEX TUUA'!$H$7,'2.2 OPEX LAP 2023'!J17*'2.1 OPEX TUUA'!$H$8) -> 557.8168443 | I17: =+IF(F17="Pasajero",'2.2 OPEX LAP 2023'!K17*'2.1 OPEX TUUA'!$I$7,'2.2 OPEX LAP 2023'!K17*'2.1 OPEX TUUA'!$I$8) -> 627.0748825 | J17: =+IF(F17="Pasajero",'2.2 OPEX LAP 2023'!L17*'2.1 OPEX TUUA'!$J$7,'2.2 OPEX LAP 2023'!L17*'2.1 OPEX TUUA'!$J$8) -> 664.3960556 | K17: =+IF(F17="Pasajero",'2.2 OPEX LAP 2023'!M17*'2.1 OPEX TUUA'!$K$7,'2.2 OPEX LAP 2023'!M17*'2.1 OPEX TUUA'!$K$8) -> 691.6644206 | L17: =+IF(F17="Pasajero",'2.2 OPEX LAP 2023'!N17*'2.1 OPEX TUUA'!$L$7,'2.2 OPEX LAP 2023'!N17*'2.1 OPEX TUUA'!$L$8) -> 721.9601014 | N17: =+IF(F17="Pasajero",'2.2 OPEX LAP 2023'!I17*'2.1 OPEX TUUA'!$N$7,'2.2 OPEX LAP 2023'!I17*'2.1 OPEX TUUA'!$N$8) -> 234.5470445 | O17: =+IF(F17="Pasajero",'2.2 OPEX LAP 2023'!J17*'2.1 OPEX TUUA'!$O$7,'2.2 OPEX LAP 2023'!J17*'2.1 OPEX TUUA'!$O$8) -> 231.0272237 | P17: =+IF(F17="Pasajero",'2.2 OPEX LAP 2023'!K17*'2.1 OPEX TUUA'!$P$7,'2.2 OPEX LAP 2023'!K17*'2.1 OPEX TUUA'!$P$8) -> 229.5900967 | Q17: =+IF(F17="Pasajero",'2.2 OPEX LAP 2023'!L17*'2.1 OPEX TUUA'!$Q$7,'2.2 OPEX LAP 2023'!L17*'2.1 OPEX TUUA'!$Q$8) -> 228.0944082 | R17: =+IF(F17="Pasajero",'2.2 OPEX LAP 2023'!M17*'2.1 OPEX TUUA'!$R$7,'2.2 OPEX LAP 2023'!M17*'2.1 OPEX TUUA'!$R$8) -> 229.3182735 | S17: =+IF(F17="Pasajero",'2.2 OPEX LAP 2023'!N17*'2.1 OPEX TUUA'!$S$7,'2.2 OPEX LAP 2023'!N17*'2.1 OPEX TUUA'!$S$8) -> 229.4646511 | U17: 475.5451211 | V17: 557.8168443 | W17: 627.0748825 | X17: 664.3960556 | Y17: 691.6644206 | Z17: 721.9601014 | AA17: 0 | AB17: 0 | AC17: 0 | AD17: 0 | AE17: 0 | AF17: 0
B18: 6221000001 | C18: Directo | D18: Gastos de Personal | E18: Otras Remuneraciones | F18: Pasajero | G18: =+IF(F18="Pasajero",'2.2 OPEX LAP 2023'!I18*'2.1 OPEX TUUA'!$G$7,'2.2 OPEX LAP 2023'!I18*'2.1 OPEX TUUA'!$G$8) -> 196.7195383 | H18: =+IF(F18="Pasajero",'2.2 OPEX LAP 2023'!J18*'2.1 OPEX TUUA'!$H$7,'2.2 OPEX LAP 2023'!J18*'2.1 OPEX TUUA'!$H$8) -> 230.7530184 | I18: =+IF(F18="Pasajero",'2.2 OPEX LAP 2023'!K18*'2.1 OPEX TUUA'!$I$7,'2.2 OPEX LAP 2023'!K18*'2.1 OPEX TUUA'!$I$8) -> 259.4031058 | J18: =+IF(F18="Pasajero",'2.2 OPEX LAP 2023'!L18*'2.1 OPEX TUUA'!$J$7,'2.2 OPEX LAP 2023'!L18*'2.1 OPEX TUUA'!$J$8) -> 274.8418174 | K18: =+IF(F18="Pasajero",'2.2 OPEX LAP 2023'!M18*'2.1 OPEX TUUA'!$K$7,'2.2 OPEX LAP 2023'!M18*'2.1 OPEX TUUA'!$K$8) -> 286.1219671 | L18: =+IF(F18="Pasajero",'2.2 OPEX LAP 2023'!N18*'2.1 OPEX TUUA'!$L$7,'2.2 OPEX LAP 2023'!N18*'2.1 OPEX TUUA'!$L$8) -> 298.6544316 | N18: =+IF(F18="Pasajero",'2.2 OPEX LAP 2023'!I18*'2.1 OPEX TUUA'!$N$7,'2.2 OPEX LAP 2023'!I18*'2.1 OPEX TUUA'!$N$8) -> 97.02546457 | O18: =+IF(F18="Pasajero",'2.2 OPEX LAP 2023'!J18*'2.1 OPEX TUUA'!$O$7,'2.2 OPEX LAP 2023'!J18*'2.1 OPEX TUUA'!$O$8) -> 95.56941447 | P18: =+IF(F18="Pasajero",'2.2 OPEX LAP 2023'!K18*'2.1 OPEX TUUA'!$P$7,'2.2 OPEX LAP 2023'!K18*'2.1 OPEX TUUA'!$P$8) -> 94.97491576 | Q18: =+IF(F18="Pasajero",'2.2 OPEX LAP 2023'!L18*'2.1 OPEX TUUA'!$Q$7,'2.2 OPEX LAP 2023'!L18*'2.1 OPEX TUUA'!$Q$8) -> 94.35619183 | R18: =+IF(F18="Pasajero",'2.2 OPEX LAP 2023'!M18*'2.1 OPEX TUUA'!$R$7,'2.2 OPEX LAP 2023'!M18*'2.1 OPEX TUUA'!$R$8) -> 94.86247022 | S18: =+IF(F18="Pasajero",'2.2 OPEX LAP 2023'!N18*'2.1 OPEX TUUA'!$S$7,'2.2 OPEX LAP 2023'!N18*'2.1 OPEX TUUA'!$S$8) -> 94.92302249 | U18: 196.7195383 | V18: 230.7530184 | W18: 259.4031058 | X18: 274.8418174 | Y18: 286.1219671 | Z18: 298.6544316 | AA18: 0 | AB18: 0 | AC18: 0 | AD18: 0 | AE18: 0 | AF18: 0
B19: 6231000001 | C19: Directo | D19: Gastos de Personal | E19: Indemnizaciones al Personal | F19: Pasajero | G19: =+IF(F19="Pasajero",'2.2 OPEX LAP 2023'!I19*'2.1 OPEX TUUA'!$G$7,'2.2 OPEX LAP 2023'!I19*'2.1 OPEX TUUA'!$G$8) -> 0 | H19: =+IF(F19="Pasajero",'2.2 OPEX LAP 2023'!J19*'2.1 OPEX TUUA'!$H$7,'2.2 OPEX LAP 2023'!J19*'2.1 OPEX TUUA'!$H$8) -> 0 | I19: =+IF(F19="Pasajero",'2.2 OPEX LAP 2023'!K19*'2.1 OPEX TUUA'!$I$7,'2.2 OPEX LAP 2023'!K19*'2.1 OPEX TUUA'!$I$8) -> 0 | J19: =+IF(F19="Pasajero",'2.2 OPEX LAP 2023'!L19*'2.1 OPEX TUUA'!$J$7,'2.2 OPEX LAP 2023'!L19*'2.1 OPEX TUUA'!$J$8) -> 0 | K19: =+IF(F19="Pasajero",'2.2 OPEX LAP 2023'!M19*'2.1 OPEX TUUA'!$K$7,'2.2 OPEX LAP 2023'!M19*'2.1 OPEX TUUA'!$K$8) -> 0 | L19: =+IF(F19="Pasajero",'2.2 OPEX LAP 2023'!N19*'2.1 OPEX TUUA'!$L$7,'2.2 OPEX LAP 2023'!N19*'2.1 OPEX TUUA'!$L$8) -> 0 | N19: =+IF(F19="Pasajero",'2.2 OPEX LAP 2023'!I19*'2.1 OPEX TUUA'!$N$7,'2.2 OPEX LAP 2023'!I19*'2.1 OPEX TUUA'!$N$8) -> 0 | O19: =+IF(F19="Pasajero",'2.2 OPEX LAP 2023'!J19*'2.1 OPEX TUUA'!$O$7,'2.2 OPEX LAP 2023'!J19*'2.1 OPEX TUUA'!$O$8) -> 0 | P19: =+IF(F19="Pasajero",'2.2 OPEX LAP 2023'!K19*'2.1 OPEX TUUA'!$P$7,'2.2 OPEX LAP 2023'!K19*'2.1 OPEX TUUA'!$P$8) -> 0 | Q19: =+IF(F19="Pasajero",'2.2 OPEX LAP 2023'!L19*'2.1 OPEX TUUA'!$Q$7,'2.2 OPEX LAP 2023'!L19*'2.1 OPEX TUUA'!$Q$8) -> 0 | R19: =+IF(F19="Pasajero",'2.2 OPEX LAP 2023'!M19*'2.1 OPEX TUUA'!$R$7,'2.2 OPEX LAP 2023'!M19*'2.1 OPEX TUUA'!$R$8) -> 0 | S19: =+IF(F19="Pasajero",'2.2 OPEX LAP 2023'!N19*'2.1 OPEX TUUA'!$S$7,'2.2 OPEX LAP 2023'!N19*'2.1 OPEX TUUA'!$S$8) -> 0 | U19: 0 | V19: 0 | W19: 0 | X19: 0 | Y19: 0 | Z19: 0 | AA19: 0 | AB19: 0 | AC19: 0 | AD19: 0 | AE19: 0 | AF19: 0
B20: 6240000001 | C20: Directo | D20: Gastos de Personal | E20: Capacitación | F20: Pasajero | G20: =+IF(F20="Pasajero",'2.2 OPEX LAP 2023'!I20*'2.1 OPEX TUUA'!$G$7,'2.2 OPEX LAP 2023'!I20*'2.1 OPEX TUUA'!$G$8) -> 422.8401257 | H20: =+IF(F20="Pasajero",'2.2 OPEX LAP 2023'!J20*'2.1 OPEX TUUA'!$H$7,'2.2 OPEX LAP 2023'!J20*'2.1 OPEX TUUA'!$H$8) -> 495.9936169 | I20: =+IF(F20="Pasajero",'2.2 OPEX LAP 2023'!K20*'2.1 OPEX TUUA'!$I$7,'2.2 OPEX LAP 2023'!K20*'2.1 OPEX TUUA'!$I$8) -> 557.5757386 | J20: =+IF(F20="Pasajero",'2.2 OPEX LAP 2023'!L20*'2.1 OPEX TUUA'!$J$7,'2.2 OPEX LAP 2023'!L20*'2.1 OPEX TUUA'!$J$8) -> 590.7605803 | K20: =+IF(F20="Pasajero",'2.2 OPEX LAP 2023'!M20*'2.1 OPEX TUUA'!$K$7,'2.2 OPEX LAP 2023'!M20*'2.1 OPEX TUUA'!$K$8) -> 615.0067735 | L20: =+IF(F20="Pasajero",'2.2 OPEX LAP 2023'!N20*'2.1 OPEX TUUA'!$L$7,'2.2 OPEX LAP 2023'!N20*'2.1 OPEX TUUA'!$L$8) -> 641.944763 | N20: =+IF(F20="Pasajero",'2.2 OPEX LAP 2023'!I20*'2.1 OPEX TUUA'!$N$7,'2.2 OPEX LAP 2023'!I20*'2.1 OPEX TUUA'!$N$8) -> 208.552033 | O20: =+IF(F20="Pasajero",'2.2 OPEX LAP 2023'!J20*'2.1 OPEX TUUA'!$O$7,'2.2 OPEX LAP 2023'!J20*'2.1 OPEX TUUA'!$O$8) -> 205.4223164 | P20: =+IF(F20="Pasajero",'2.2 OPEX LAP 2023'!K20*'2.1 OPEX TUUA'!$P$7,'2.2 OPEX LAP 2023'!K20*'2.1 OPEX TUUA'!$P$8) -> 204.1444671 | Q20: =+IF(F20="Pasajero",'2.2 OPEX LAP 2023'!L20*'2.1 OPEX TUUA'!$Q$7,'2.2 OPEX LAP 2023'!L20*'2.1 OPEX TUUA'!$Q$8) -> 202.8145469 | R20: =+IF(F20="Pasajero",'2.2 OPEX LAP 2023'!M20*'2.1 OPEX TUUA'!$R$7,'2.2 OPEX LAP 2023'!M20*'2.1 OPEX TUUA'!$R$8) -> 203.9027703 | S20: =+IF(F20="Pasajero",'2.2 OPEX LAP 2023'!N20*'2.1 OPEX TUUA'!$S$7,'2.2 OPEX LAP 2023'!N20*'2.1 OPEX TUUA'!$S$8) -> 204.0329248 | U20: 422.8401257 | V20: 495.9936169 | W20: 557.5757386 | X20: 590.7605803 | Y20: 615.0067735 | Z20: 641.944763 | AA20: 0 | AB20: 0 | AC20: 0 | AD20: 0 | AE20: 0 | AF20: 0
B21: 6250000001 | C21: Directo | D21: Gastos de Personal | E21: Gastos de Alimentación | F21: Pasajero | G21: =+IF(F21="Pasajero",'2.2 OPEX LAP 2023'!I21*'2.1 OPEX TUUA'!$G$7,'2.2 OPEX LAP 2023'!I21*'2.1 OPEX TUUA'!$G$8) -> 77.33264142 | H21: =+IF(F21="Pasajero",'2.2 OPEX LAP 2023'!J21*'2.1 OPEX TUUA'!$H$7,'2.2 OPEX LAP 2023'!J21*'2.1 OPEX TUUA'!$H$8) -> 90.71158149 | I21: =+IF(F21="Pasajero",'2.2 OPEX LAP 2023'!K21*'2.1 OPEX TUUA'!$I$7,'2.2 OPEX LAP 2023'!K21*'2.1 OPEX TUUA'!$I$8) -> 101.9742499 | J21: =+IF(F21="Pasajero",'2.2 OPEX LAP 2023'!L21*'2.1 OPEX TUUA'!$J$7,'2.2 OPEX LAP 2023'!L21*'2.1 OPEX TUUA'!$J$8) -> 108.0433794 | K21: =+IF(F21="Pasajero",'2.2 OPEX LAP 2023'!M21*'2.1 OPEX TUUA'!$K$7,'2.2 OPEX LAP 2023'!M21*'2.1 OPEX TUUA'!$K$8) -> 112.4777319 | L21: =+IF(F21="Pasajero",'2.2 OPEX LAP 2023'!N21*'2.1 OPEX TUUA'!$L$7,'2.2 OPEX LAP 2023'!N21*'2.1 OPEX TUUA'!$L$8) -> 117.4043832 | N21: =+IF(F21="Pasajero",'2.2 OPEX LAP 2023'!I21*'2.1 OPEX TUUA'!$N$7,'2.2 OPEX LAP 2023'!I21*'2.1 OPEX TUUA'!$N$8) -> 38.14179072 | O21: =+IF(F21="Pasajero",'2.2 OPEX LAP 2023'!J21*'2.1 OPEX TUUA'!$O$7,'2.2 OPEX LAP 2023'!J21*'2.1 OPEX TUUA'!$O$8) -> 37.56940121 | P21: =+IF(F21="Pasajero",'2.2 OPEX LAP 2023'!K21*'2.1 OPEX TUUA'!$P$7,'2.2 OPEX LAP 2023'!K21*'2.1 OPEX TUUA'!$P$8) -> 37.33569715 | Q21: =+IF(F21="Pasajero",'2.2 OPEX LAP 2023'!L21*'2.1 OPEX TUUA'!$Q$7,'2.2 OPEX LAP 2023'!L21*'2.1 OPEX TUUA'!$Q$8) -> 37.09246988 | R21: =+IF(F21="Pasajero",'2.2 OPEX LAP 2023'!M21*'2.1 OPEX TUUA'!$R$7,'2.2 OPEX LAP 2023'!M21*'2.1 OPEX TUUA'!$R$8) -> 37.29149355 | S21: =+IF(F21="Pasajero",'2.2 OPEX LAP 2023'!N21*'2.1 OPEX TUUA'!$S$7,'2.2 OPEX LAP 2023'!N21*'2.1 OPEX TUUA'!$S$8) -> 37.31529732 | U21: 77.33264142 | V21: 90.71158149 | W21: 101.9742499 | X21: 108.0433794 | Y21: 112.4777319 | Z21: 117.4043832 | AA21: 0 | AB21: 0 | AC21: 0 | AD21: 0 | AE21: 0 | AF21: 0
B22: 6250000003 | C22: Directo | D22: Gastos de Personal | E22: Eventos y atenc. al personal | F22: Pasajero | G22: =+IF(F22="Pasajero",'2.2 OPEX LAP 2023'!I22*'2.1 OPEX TUUA'!$G$7,'2.2 OPEX LAP 2023'!I22*'2.1 OPEX TUUA'!$G$8) -> 606.8967914 | H22: =+IF(F22="Pasajero",'2.2 OPEX LAP 2023'!J22*'2.1 OPEX TUUA'!$H$7,'2.2 OPEX LAP 2023'!J22*'2.1 OPEX TUUA'!$H$8) -> 711.8930213 | I22: =+IF(F22="Pasajero",'2.2 OPEX LAP 2023'!K22*'2.1 OPEX TUUA'!$I$7,'2.2 OPEX LAP 2023'!K22*'2.1 OPEX TUUA'!$I$8) -> 800.2810192 | J22: =+IF(F22="Pasajero",'2.2 OPEX LAP 2023'!L22*'2.1 OPEX TUUA'!$J$7,'2.2 OPEX LAP 2023'!L22*'2.1 OPEX TUUA'!$J$8) -> 847.9107797 | K22: =+IF(F22="Pasajero",'2.2 OPEX LAP 2023'!M22*'2.1 OPEX TUUA'!$K$7,'2.2 OPEX LAP 2023'!M22*'2.1 OPEX TUUA'!$K$8) -> 882.7110173 | L22: =+IF(F22="Pasajero",'2.2 OPEX LAP 2023'!N22*'2.1 OPEX TUUA'!$L$7,'2.2 OPEX LAP 2023'!N22*'2.1 OPEX TUUA'!$L$8) -> 921.3747542 | N22: =+IF(F22="Pasajero",'2.2 OPEX LAP 2023'!I22*'2.1 OPEX TUUA'!$N$7,'2.2 OPEX LAP 2023'!I22*'2.1 OPEX TUUA'!$N$8) -> 299.3319507 | O22: =+IF(F22="Pasajero",'2.2 OPEX LAP 2023'!J22*'2.1 OPEX TUUA'!$O$7,'2.2 OPEX LAP 2023'!J22*'2.1 OPEX TUUA'!$O$8) -> 294.8399102 | P22: =+IF(F22="Pasajero",'2.2 OPEX LAP 2023'!K22*'2.1 OPEX TUUA'!$P$7,'2.2 OPEX LAP 2023'!K22*'2.1 OPEX TUUA'!$P$8) -> 293.0058302 | Q22: =+IF(F22="Pasajero",'2.2 OPEX LAP 2023'!L22*'2.1 OPEX TUUA'!$Q$7,'2.2 OPEX LAP 2023'!L22*'2.1 OPEX TUUA'!$Q$8) -> 291.0970134 | R22: =+IF(F22="Pasajero",'2.2 OPEX LAP 2023'!M22*'2.1 OPEX TUUA'!$R$7,'2.2 OPEX LAP 2023'!M22*'2.1 OPEX TUUA'!$R$8) -> 292.658926 | S22: =+IF(F22="Pasajero",'2.2 OPEX LAP 2023'!N22*'2.1 OPEX TUUA'!$S$7,'2.2 OPEX LAP 2023'!N22*'2.1 OPEX TUUA'!$S$8) -> 292.845735 | U22: 606.8967914 | V22: 711.8930213 | W22: 800.2810192 | X22: 847.9107797 | Y22: 882.7110173 | Z22: 921.3747542 | AA22: 0 | AB22: 0 | AC22: 0 | AD22: 0 | AE22: 0 | AF22: 0
B23: 6250000004 | C23: Directo | D23: Gastos de Personal | E23: Uniformes | F23: Pasajero | G23: =+IF(F23="Pasajero",'2.2 OPEX LAP 2023'!I23*'2.1 OPEX TUUA'!$G$7,'2.2 OPEX LAP 2023'!I23*'2.1 OPEX TUUA'!$G$8) -> 300.437988 | H23: =+IF(F23="Pasajero",'2.2 OPEX LAP 2023'!J23*'2.1 OPEX TUUA'!$H$7,'2.2 OPEX LAP 2023'!J23*'2.1 OPEX TUUA'!$H$8) -> 352.4152871 | I23: =+IF(F23="Pasajero",'2.2 OPEX LAP 2023'!K23*'2.1 OPEX TUUA'!$I$7,'2.2 OPEX LAP 2023'!K23*'2.1 OPEX TUUA'!$I$8) -> 396.1708524 | J23: =+IF(F23="Pasajero",'2.2 OPEX LAP 2023'!L23*'2.1 OPEX TUUA'!$J$7,'2.2 OPEX LAP 2023'!L23*'2.1 OPEX TUUA'!$J$8) -> 419.7494734 | K23: =+IF(F23="Pasajero",'2.2 OPEX LAP 2023'!M23*'2.1 OPEX TUUA'!$K$7,'2.2 OPEX LAP 2023'!M23*'2.1 OPEX TUUA'!$K$8) -> 436.9769716 | L23: =+IF(F23="Pasajero",'2.2 OPEX LAP 2023'!N23*'2.1 OPEX TUUA'!$L$7,'2.2 OPEX LAP 2023'!N23*'2.1 OPEX TUUA'!$L$8) -> 456.1170552 | N23: =+IF(F23="Pasajero",'2.2 OPEX LAP 2023'!I23*'2.1 OPEX TUUA'!$N$7,'2.2 OPEX LAP 2023'!I23*'2.1 OPEX TUUA'!$N$8) -> 148.1811904 | O23: =+IF(F23="Pasajero",'2.2 OPEX LAP 2023'!J23*'2.1 OPEX TUUA'!$O$7,'2.2 OPEX LAP 2023'!J23*'2.1 OPEX TUUA'!$O$8) -> 145.9574521 | P23: =+IF(F23="Pasajero",'2.2 OPEX LAP 2023'!K23*'2.1 OPEX TUUA'!$P$7,'2.2 OPEX LAP 2023'!K23*'2.1 OPEX TUUA'!$P$8) -> 145.0495098 | Q23: =+IF(F23="Pasajero",'2.2 OPEX LAP 2023'!L23*'2.1 OPEX TUUA'!$Q$7,'2.2 OPEX LAP 2023'!L23*'2.1 OPEX TUUA'!$Q$8) -> 144.1045697 | R23: =+IF(F23="Pasajero",'2.2 OPEX LAP 2023'!M23*'2.1 OPEX TUUA'!$R$7,'2.2 OPEX LAP 2023'!M23*'2.1 OPEX TUUA'!$R$8) -> 144.8777784 | S23: =+IF(F23="Pasajero",'2.2 OPEX LAP 2023'!N23*'2.1 OPEX TUUA'!$S$7,'2.2 OPEX LAP 2023'!N23*'2.1 OPEX TUUA'!$S$8) -> 144.9702563 | U23: 300.437988 | V23: 352.4152871 | W23: 396.1708524 | X23: 419.7494734 | Y23: 436.9769716 | Z23: 456.1170552 | AA23: 0 | AB23: 0 | AC23: 0 | AD23: 0 | AE23: 0 | AF23: 0
B24: 6250000005 | C24: Directo | D24: Gastos de Personal | E24: Movilidad | F24: Pasajero | G24: =+IF(F24="Pasajero",'2.2 OPEX LAP 2023'!I24*'2.1 OPEX TUUA'!$G$7,'2.2 OPEX LAP 2023'!I24*'2.1 OPEX TUUA'!$G$8) -> 624.0696204 | H24: =+IF(F24="Pasajero",'2.2 OPEX LAP 2023'!J24*'2.1 OPEX TUUA'!$H$7,'2.2 OPEX LAP 2023'!J24*'2.1 OPEX TUUA'!$H$8) -> 732.036837 | I24: =+IF(F24="Pasajero",'2.2 OPEX LAP 2023'!K24*'2.1 OPEX TUUA'!$I$7,'2.2 OPEX LAP 2023'!K24*'2.1 OPEX TUUA'!$I$8) -> 822.9258729 | J24: =+IF(F24="Pasajero",'2.2 OPEX LAP 2023'!L24*'2.1 OPEX TUUA'!$J$7,'2.2 OPEX LAP 2023'!L24*'2.1 OPEX TUUA'!$J$8) -> 871.9033712 | K24: =+IF(F24="Pasajero",'2.2 OPEX LAP 2023'!M24*'2.1 OPEX TUUA'!$K$7,'2.2 OPEX LAP 2023'!M24*'2.1 OPEX TUUA'!$K$8) -> 907.6883207 | L24: =+IF(F24="Pasajero",'2.2 OPEX LAP 2023'!N24*'2.1 OPEX TUUA'!$L$7,'2.2 OPEX LAP 2023'!N24*'2.1 OPEX TUUA'!$L$8) -> 947.4460917 | N24: =+IF(F24="Pasajero",'2.2 OPEX LAP 2023'!I24*'2.1 OPEX TUUA'!$N$7,'2.2 OPEX LAP 2023'!I24*'2.1 OPEX TUUA'!$N$8) -> 307.8018857 | O24: =+IF(F24="Pasajero",'2.2 OPEX LAP 2023'!J24*'2.1 OPEX TUUA'!$O$7,'2.2 OPEX LAP 2023'!J24*'2.1 OPEX TUUA'!$O$8) -> 303.1827378 | P24: =+IF(F24="Pasajero",'2.2 OPEX LAP 2023'!K24*'2.1 OPEX TUUA'!$P$7,'2.2 OPEX LAP 2023'!K24*'2.1 OPEX TUUA'!$P$8) -> 301.2967605 | Q24: =+IF(F24="Pasajero",'2.2 OPEX LAP 2023'!L24*'2.1 OPEX TUUA'!$Q$7,'2.2 OPEX LAP 2023'!L24*'2.1 OPEX TUUA'!$Q$8) -> 299.3339316 | R24: =+IF(F24="Pasajero",'2.2 OPEX LAP 2023'!M24*'2.1 OPEX TUUA'!$R$7,'2.2 OPEX LAP 2023'!M24*'2.1 OPEX TUUA'!$R$8) -> 300.9400403 | S24: =+IF(F24="Pasajero",'2.2 OPEX LAP 2023'!N24*'2.1 OPEX TUUA'!$S$7,'2.2 OPEX LAP 2023'!N24*'2.1 OPEX TUUA'!$S$8) -> 301.1321352 | U24: 624.0696204 | V24: 732.036837 | W24: 822.9258729 | X24: 871.9033712 | Y24: 907.6883207 | Z24: 947.4460917 | AA24: 0 | AB24: 0 | AC24: 0 | AD24: 0 | AE24: 0 | AF24: 0
B25: 6250000006 | C25: Directo | D25: Gastos de Personal | E25: Examenes medicos | F25: Pasajero | G25: =+IF(F25="Pasajero",'2.2 OPEX LAP 2023'!I25*'2.1 OPEX TUUA'!$G$7,'2.2 OPEX LAP 2023'!I25*'2.1 OPEX TUUA'!$G$8) -> 181.5959175 | H25: =+IF(F25="Pasajero",'2.2 OPEX LAP 2023'!J25*'2.1 OPEX TUUA'!$H$7,'2.2 OPEX LAP 2023'!J25*'2.1 OPEX TUUA'!$H$8) -> 213.0129343 | I25: =+IF(F25="Pasajero",'2.2 OPEX LAP 2023'!K25*'2.1 OPEX TUUA'!$I$7,'2.2 OPEX LAP 2023'!K25*'2.1 OPEX TUUA'!$I$8) -> 239.4604288 | J25: =+IF(F25="Pasajero",'2.2 OPEX LAP 2023'!L25*'2.1 OPEX TUUA'!$J$7,'2.2 OPEX LAP 2023'!L25*'2.1 OPEX TUUA'!$J$8) -> 253.7122261 | K25: =+IF(F25="Pasajero",'2.2 OPEX LAP 2023'!M25*'2.1 OPEX TUUA'!$K$7,'2.2 OPEX LAP 2023'!M25*'2.1 OPEX TUUA'!$K$8) -> 264.1251681 | L25: =+IF(F25="Pasajero",'2.2 OPEX LAP 2023'!N25*'2.1 OPEX TUUA'!$L$7,'2.2 OPEX LAP 2023'!N25*'2.1 OPEX TUUA'!$L$8) -> 275.694148 | N25: =+IF(F25="Pasajero",'2.2 OPEX LAP 2023'!I25*'2.1 OPEX TUUA'!$N$7,'2.2 OPEX LAP 2023'!I25*'2.1 OPEX TUUA'!$N$8) -> 89.5662343 | O25: =+IF(F25="Pasajero",'2.2 OPEX LAP 2023'!J25*'2.1 OPEX TUUA'!$O$7,'2.2 OPEX LAP 2023'!J25*'2.1 OPEX TUUA'!$O$8) -> 88.22212402 | P25: =+IF(F25="Pasajero",'2.2 OPEX LAP 2023'!K25*'2.1 OPEX TUUA'!$P$7,'2.2 OPEX LAP 2023'!K25*'2.1 OPEX TUUA'!$P$8) -> 87.67332983 | Q25: =+IF(F25="Pasajero",'2.2 OPEX LAP 2023'!L25*'2.1 OPEX TUUA'!$Q$7,'2.2 OPEX LAP 2023'!L25*'2.1 OPEX TUUA'!$Q$8) -> 87.10217284 | R25: =+IF(F25="Pasajero",'2.2 OPEX LAP 2023'!M25*'2.1 OPEX TUUA'!$R$7,'2.2 OPEX LAP 2023'!M25*'2.1 OPEX TUUA'!$R$8) -> 87.569529 | S25: =+IF(F25="Pasajero",'2.2 OPEX LAP 2023'!N25*'2.1 OPEX TUUA'!$S$7,'2.2 OPEX LAP 2023'!N25*'2.1 OPEX TUUA'!$S$8) -> 87.62542607 | U25: 181.5959175 | V25: 213.0129343 | W25: 239.4604288 | X25: 253.7122261 | Y25: 264.1251681 | Z25: 275.694148 | AA25: 0 | AB25: 0 | AC25: 0 | AD25: 0 | AE25: 0 | AF25: 0
B26: 6250000007 | C26: Directo | D26: Gastos de Personal | E26: Otros Gastos de Personal | F26: Pasajero | G26: =+IF(F26="Pasajero",'2.2 OPEX LAP 2023'!I26*'2.1 OPEX TUUA'!$G$7,'2.2 OPEX LAP 2023'!I26*'2.1 OPEX TUUA'!$G$8) -> 0 | H26: =+IF(F26="Pasajero",'2.2 OPEX LAP 2023'!J26*'2.1 OPEX TUUA'!$H$7,'2.2 OPEX LAP 2023'!J26*'2.1 OPEX TUUA'!$H$8) -> 0 | I26: =+IF(F26="Pasajero",'2.2 OPEX LAP 2023'!K26*'2.1 OPEX TUUA'!$I$7,'2.2 OPEX LAP 2023'!K26*'2.1 OPEX TUUA'!$I$8) -> 0 | J26: =+IF(F26="Pasajero",'2.2 OPEX LAP 2023'!L26*'2.1 OPEX TUUA'!$J$7,'2.2 OPEX LAP 2023'!L26*'2.1 OPEX TUUA'!$J$8) -> 0 | K26: =+IF(F26="Pasajero",'2.2 OPEX LAP 2023'!M26*'2.1 OPEX TUUA'!$K$7,'2.2 OPEX LAP 2023'!M26*'2.1 OPEX TUUA'!$K$8) -> 0 | L26: =+IF(F26="Pasajero",'2.2 OPEX LAP 2023'!N26*'2.1 OPEX TUUA'!$L$7,'2.2 OPEX LAP 2023'!N26*'2.1 OPEX TUUA'!$L$8) -> 0 | N26: =+IF(F26="Pasajero",'2.2 OPEX LAP 2023'!I26*'2.1 OPEX TUUA'!$N$7,'2.2 OPEX LAP 2023'!I26*'2.1 OPEX TUUA'!$N$8) -> 0 | O26: =+IF(F26="Pasajero",'2.2 OPEX LAP 2023'!J26*'2.1 OPEX TUUA'!$O$7,'2.2 OPEX LAP 2023'!J26*'2.1 OPEX TUUA'!$O$8) -> 0 | P26: =+IF(F26="Pasajero",'2.2 OPEX LAP 2023'!K26*'2.1 OPEX TUUA'!$P$7,'2.2 OPEX LAP 2023'!K26*'2.1 OPEX TUUA'!$P$8) -> 0 | Q26: =+IF(F26="Pasajero",'2.2 OPEX LAP 2023'!L26*'2.1 OPEX TUUA'!$Q$7,'2.2 OPEX LAP 2023'!L26*'2.1 OPEX TUUA'!$Q$8) -> 0 | R26: =+IF(F26="Pasajero",'2.2 OPEX LAP 2023'!M26*'2.1 OPEX TUUA'!$R$7,'2.2 OPEX LAP 2023'!M26*'2.1 OPEX TUUA'!$R$8) -> 0 | S26: =+IF(F26="Pasajero",'2.2 OPEX LAP 2023'!N26*'2.1 OPEX TUUA'!$S$7,'2.2 OPEX LAP 2023'!N26*'2.1 OPEX TUUA'!$S$8) -> 0 | U26: 0 | V26: 0 | W26: 0 | X26: 0 | Y26: 0 | Z26: 0 | AA26: 0 | AB26: 0 | AC26: 0 | AD26: 0 | AE26: 0 | AF26: 0
B27: 6250000008 | C27: Directo | D27: Gastos de Personal | E27: Prácticantes Profesionales | F27: Pasajero | G27: =+IF(F27="Pasajero",'2.2 OPEX LAP 2023'!I27*'2.1 OPEX TUUA'!$G$7,'2.2 OPEX LAP 2023'!I27*'2.1 OPEX TUUA'!$G$8) -> 281.8005192 | H27: =+IF(F27="Pasajero",'2.2 OPEX LAP 2023'!J27*'2.1 OPEX TUUA'!$H$7,'2.2 OPEX LAP 2023'!J27*'2.1 OPEX TUUA'!$H$8) -> 330.5534415 | I27: =+IF(F27="Pasajero",'2.2 OPEX LAP 2023'!K27*'2.1 OPEX TUUA'!$I$7,'2.2 OPEX LAP 2023'!K27*'2.1 OPEX TUUA'!$I$8) -> 371.5946598 | J27: =+IF(F27="Pasajero",'2.2 OPEX LAP 2023'!L27*'2.1 OPEX TUUA'!$J$7,'2.2 OPEX LAP 2023'!L27*'2.1 OPEX TUUA'!$J$8) -> 393.7105969 | K27: =+IF(F27="Pasajero",'2.2 OPEX LAP 2023'!M27*'2.1 OPEX TUUA'!$K$7,'2.2 OPEX LAP 2023'!M27*'2.1 OPEX TUUA'!$K$8) -> 409.8693987 | L27: =+IF(F27="Pasajero",'2.2 OPEX LAP 2023'!N27*'2.1 OPEX TUUA'!$L$7,'2.2 OPEX LAP 2023'!N27*'2.1 OPEX TUUA'!$L$8) -> 427.8221401 | N27: =+IF(F27="Pasajero",'2.2 OPEX LAP 2023'!I27*'2.1 OPEX TUUA'!$N$7,'2.2 OPEX LAP 2023'!I27*'2.1 OPEX TUUA'!$N$8) -> 138.9888698 | O27: =+IF(F27="Pasajero",'2.2 OPEX LAP 2023'!J27*'2.1 OPEX TUUA'!$O$7,'2.2 OPEX LAP 2023'!J27*'2.1 OPEX TUUA'!$O$8) -> 136.9030796 | P27: =+IF(F27="Pasajero",'2.2 OPEX LAP 2023'!K27*'2.1 OPEX TUUA'!$P$7,'2.2 OPEX LAP 2023'!K27*'2.1 OPEX TUUA'!$P$8) -> 136.0514609 | Q27: =+IF(F27="Pasajero",'2.2 OPEX LAP 2023'!L27*'2.1 OPEX TUUA'!$Q$7,'2.2 OPEX LAP 2023'!L27*'2.1 OPEX TUUA'!$Q$8) -> 135.1651396 | R27: =+IF(F27="Pasajero",'2.2 OPEX LAP 2023'!M27*'2.1 OPEX TUUA'!$R$7,'2.2 OPEX LAP 2023'!M27*'2.1 OPEX TUUA'!$R$8) -> 135.8903828 | S27: =+IF(F27="Pasajero",'2.2 OPEX LAP 2023'!N27*'2.1 OPEX TUUA'!$S$7,'2.2 OPEX LAP 2023'!N27*'2.1 OPEX TUUA'!$S$8) -> 135.9771239 | U27: 281.8005192 | V27: 330.5534415 | W27: 371.5946598 | X27: 393.7105969 | Y27: 409.8693987 | Z27: 427.8221401 | AA27: 0 | AB27: 0 | AC27: 0 | AD27: 0 | AE27: 0 | AF27: 0
B28: 6250000009 | C28: Directo | D28: Gastos de Personal | E28: Otros Gastos de Personal Compras | F28: Pasajero | G28: =+IF(F28="Pasajero",'2.2 OPEX LAP 2023'!I28*'2.1 OPEX TUUA'!$G$7,'2.2 OPEX LAP 2023'!I28*'2.1 OPEX TUUA'!$G$8) -> 0 | H28: =+IF(F28="Pasajero",'2.2 OPEX LAP 2023'!J28*'2.1 OPEX TUUA'!$H$7,'2.2 OPEX LAP 2023'!J28*'2.1 OPEX TUUA'!$H$8) -> 0 | I28: =+IF(F28="Pasajero",'2.2 OPEX LAP 2023'!K28*'2.1 OPEX TUUA'!$I$7,'2.2 OPEX LAP 2023'!K28*'2.1 OPEX TUUA'!$I$8) -> 0 | J28: =+IF(F28="Pasajero",'2.2 OPEX LAP 2023'!L28*'2.1 OPEX TUUA'!$J$7,'2.2 OPEX LAP 2023'!L28*'2.1 OPEX TUUA'!$J$8) -> 0 | K28: =+IF(F28="Pasajero",'2.2 OPEX LAP 2023'!M28*'2.1 OPEX TUUA'!$K$7,'2.2 OPEX LAP 2023'!M28*'2.1 OPEX TUUA'!$K$8) -> 0 | L28: =+IF(F28="Pasajero",'2.2 OPEX LAP 2023'!N28*'2.1 OPEX TUUA'!$L$7,'2.2 OPEX LAP 2023'!N28*'2.1 OPEX TUUA'!$L$8) -> 0 | N28: =+IF(F28="Pasajero",'2.2 OPEX LAP 2023'!I28*'2.1 OPEX TUUA'!$N$7,'2.2 OPEX LAP 2023'!I28*'2.1 OPEX TUUA'!$N$8) -> 0 | O28: =+IF(F28="Pasajero",'2.2 OPEX LAP 2023'!J28*'2.1 OPEX TUUA'!$O$7,'2.2 OPEX LAP 2023'!J28*'2.1 OPEX TUUA'!$O$8) -> 0 | P28: =+IF(F28="Pasajero",'2.2 OPEX LAP 2023'!K28*'2.1 OPEX TUUA'!$P$7,'2.2 OPEX LAP 2023'!K28*'2.1 OPEX TUUA'!$P$8) -> 0 | Q28: =+IF(F28="Pasajero",'2.2 OPEX LAP 2023'!L28*'2.1 OPEX TUUA'!$Q$7,'2.2 OPEX LAP 2023'!L28*'2.1 OPEX TUUA'!$Q$8) -> 0 | R28: =+IF(F28="Pasajero",'2.2 OPEX LAP 2023'!M28*'2.1 OPEX TUUA'!$R$7,'2.2 OPEX LAP 2023'!M28*'2.1 OPEX TUUA'!$R$8) -> 0 | S28: =+IF(F28="Pasajero",'2.2 OPEX LAP 2023'!N28*'2.1 OPEX TUUA'!$S$7,'2.2 OPEX LAP 2023'!N28*'2.1 OPEX TUUA'!$S$8) -> 0 | U28: 0 | V28: 0 | W28: 0 | X28: 0 | Y28: 0 | Z28: 0 | AA28: 0 | AB28: 0 | AC28: 0 | AD28: 0 | AE28: 0 | AF28: 0
B29: 6270000001 | C29: Directo | D29: Gastos de Personal | E29: Contribución EPS | F29: Pasajero | G29: =+IF(F29="Pasajero",'2.2 OPEX LAP 2023'!I29*'2.1 OPEX TUUA'!$G$7,'2.2 OPEX LAP 2023'!I29*'2.1 OPEX TUUA'!$G$8) -> 1145.132291 | H29: =+IF(F29="Pasajero",'2.2 OPEX LAP 2023'!J29*'2.1 OPEX TUUA'!$H$7,'2.2 OPEX LAP 2023'!J29*'2.1 OPEX TUUA'!$H$8) -> 1343.245999 | I29: =+IF(F29="Pasajero",'2.2 OPEX LAP 2023'!K29*'2.1 OPEX TUUA'!$I$7,'2.2 OPEX LAP 2023'!K29*'2.1 OPEX TUUA'!$I$8) -> 1510.022215 | J29: =+IF(F29="Pasajero",'2.2 OPEX LAP 2023'!L29*'2.1 OPEX TUUA'!$J$7,'2.2 OPEX LAP 2023'!L29*'2.1 OPEX TUUA'!$J$8) -> 1599.893141 | K29: =+IF(F29="Pasajero",'2.2 OPEX LAP 2023'!M29*'2.1 OPEX TUUA'!$K$7,'2.2 OPEX LAP 2023'!M29*'2.1 OPEX TUUA'!$K$8) -> 1665.55649 | L29: =+IF(F29="Pasajero",'2.2 OPEX LAP 2023'!N29*'2.1 OPEX TUUA'!$L$7,'2.2 OPEX LAP 2023'!N29*'2.1 OPEX TUUA'!$L$8) -> 1738.50974 | N29: =+IF(F29="Pasajero",'2.2 OPEX LAP 2023'!I29*'2.1 OPEX TUUA'!$N$7,'2.2 OPEX LAP 2023'!I29*'2.1 OPEX TUUA'!$N$8) -> 564.7989697 | O29: =+IF(F29="Pasajero",'2.2 OPEX LAP 2023'!J29*'2.1 OPEX TUUA'!$O$7,'2.2 OPEX LAP 2023'!J29*'2.1 OPEX TUUA'!$O$8) -> 556.3230958 | P29: =+IF(F29="Pasajero",'2.2 OPEX LAP 2023'!K29*'2.1 OPEX TUUA'!$P$7,'2.2 OPEX LAP 2023'!K29*'2.1 OPEX TUUA'!$P$8) -> 552.8624347 | Q29: =+IF(F29="Pasajero",'2.2 OPEX LAP 2023'!L29*'2.1 OPEX TUUA'!$Q$7,'2.2 OPEX LAP 2023'!L29*'2.1 OPEX TUUA'!$Q$8) -> 549.2607551 | R29: =+IF(F29="Pasajero",'2.2 OPEX LAP 2023'!M29*'2.1 OPEX TUUA'!$R$7,'2.2 OPEX LAP 2023'!M29*'2.1 OPEX TUUA'!$R$8) -> 552.2078732 | S29: =+IF(F29="Pasajero",'2.2 OPEX LAP 2023'!N29*'2.1 OPEX TUUA'!$S$7,'2.2 OPEX LAP 2023'!N29*'2.1 OPEX TUUA'!$S$8) -> 552.5603566 | U29: 1145.132291 | V29: 1343.245999 | W29: 1510.022215 | X29: 1599.893141 | Y29: 1665.55649 | Z29: 1738.50974 | AA29: 0 | AB29: 0 | AC29: 0 | AD29: 0 | AE29: 0 | AF29: 0
B30: 6270000002 | C30: Directo | D30: Gastos de Personal | E30: Régimen de Prestaciones de Salud - Essalud | F30: Pasajero | G30: =+IF(F30="Pasajero",'2.2 OPEX LAP 2023'!I30*'2.1 OPEX TUUA'!$G$7,'2.2 OPEX LAP 2023'!I30*'2.1 OPEX TUUA'!$G$8) -> 2950.320625 | H30: =+IF(F30="Pasajero",'2.2 OPEX LAP 2023'!J30*'2.1 OPEX TUUA'!$H$7,'2.2 OPEX LAP 2023'!J30*'2.1 OPEX TUUA'!$H$8) -> 3460.741091 | I30: =+IF(F30="Pasajero",'2.2 OPEX LAP 2023'!K30*'2.1 OPEX TUUA'!$I$7,'2.2 OPEX LAP 2023'!K30*'2.1 OPEX TUUA'!$I$8) -> 3890.423595 | J30: =+IF(F30="Pasajero",'2.2 OPEX LAP 2023'!L30*'2.1 OPEX TUUA'!$J$7,'2.2 OPEX LAP 2023'!L30*'2.1 OPEX TUUA'!$J$8) -> 4121.96719 | K30: =+IF(F30="Pasajero",'2.2 OPEX LAP 2023'!M30*'2.1 OPEX TUUA'!$K$7,'2.2 OPEX LAP 2023'!M30*'2.1 OPEX TUUA'!$K$8) -> 4291.142345 | L30: =+IF(F30="Pasajero",'2.2 OPEX LAP 2023'!N30*'2.1 OPEX TUUA'!$L$7,'2.2 OPEX LAP 2023'!N30*'2.1 OPEX TUUA'!$L$8) -> 4479.099214 | N30: =+IF(F30="Pasajero",'2.2 OPEX LAP 2023'!I30*'2.1 OPEX TUUA'!$N$7,'2.2 OPEX LAP 2023'!I30*'2.1 OPEX TUUA'!$N$8) -> 1455.148949 | O30: =+IF(F30="Pasajero",'2.2 OPEX LAP 2023'!J30*'2.1 OPEX TUUA'!$O$7,'2.2 OPEX LAP 2023'!J30*'2.1 OPEX TUUA'!$O$8) -> 1433.311694 | P30: =+IF(F30="Pasajero",'2.2 OPEX LAP 2023'!K30*'2.1 OPEX TUUA'!$P$7,'2.2 OPEX LAP 2023'!K30*'2.1 OPEX TUUA'!$P$8) -> 1424.395641 | Q30: =+IF(F30="Pasajero",'2.2 OPEX LAP 2023'!L30*'2.1 OPEX TUUA'!$Q$7,'2.2 OPEX LAP 2023'!L30*'2.1 OPEX TUUA'!$Q$8) -> 1415.116268 | R30: =+IF(F30="Pasajero",'2.2 OPEX LAP 2023'!M30*'2.1 OPEX TUUA'!$R$7,'2.2 OPEX LAP 2023'!M30*'2.1 OPEX TUUA'!$R$8) -> 1422.709228 | S30: =+IF(F30="Pasajero",'2.2 OPEX LAP 2023'!N30*'2.1 OPEX TUUA'!$S$7,'2.2 OPEX LAP 2023'!N30*'2.1 OPEX TUUA'!$S$8) -> 1423.617367 | U30: 2950.320625 | V30: 3460.741091 | W30: 3890.423595 | X30: 4121.96719 | Y30: 4291.142345 | Z30: 4479.099214 | AA30: 0 | AB30: 0 | AC30: 0 | AD30: 0 | AE30: 0 | AF30: 0
B31: 6270000003 | C31: Directo | D31: Gastos de Personal | E31: Seguro Complementario de Trabajo de Riesgo | F31: Pasajero | G31: =+IF(F31="Pasajero",'2.2 OPEX LAP 2023'!I31*'2.1 OPEX TUUA'!$G$7,'2.2 OPEX LAP 2023'!I31*'2.1 OPEX TUUA'!$G$8) -> 75.16915057 | H31: =+IF(F31="Pasajero",'2.2 OPEX LAP 2023'!J31*'2.1 OPEX TUUA'!$H$7,'2.2 OPEX LAP 2023'!J31*'2.1 OPEX TUUA'!$H$8) -> 88.17379572 | I31: =+IF(F31="Pasajero",'2.2 OPEX LAP 2023'!K31*'2.1 OPEX TUUA'!$I$7,'2.2 OPEX LAP 2023'!K31*'2.1 OPEX TUUA'!$I$8) -> 99.12137496 | J31: =+IF(F31="Pasajero",'2.2 OPEX LAP 2023'!L31*'2.1 OPEX TUUA'!$J$7,'2.2 OPEX LAP 2023'!L31*'2.1 OPEX TUUA'!$J$8) -> 105.0207119 | K31: =+IF(F31="Pasajero",'2.2 OPEX LAP 2023'!M31*'2.1 OPEX TUUA'!$K$7,'2.2 OPEX LAP 2023'!M31*'2.1 OPEX TUUA'!$K$8) -> 109.331007 | L31: =+IF(F31="Pasajero",'2.2 OPEX LAP 2023'!N31*'2.1 OPEX TUUA'!$L$7,'2.2 OPEX LAP 2023'!N31*'2.1 OPEX TUUA'!$L$8) -> 114.1198283 | N31: =+IF(F31="Pasajero",'2.2 OPEX LAP 2023'!I31*'2.1 OPEX TUUA'!$N$7,'2.2 OPEX LAP 2023'!I31*'2.1 OPEX TUUA'!$N$8) -> 37.07471977 | O31: =+IF(F31="Pasajero",'2.2 OPEX LAP 2023'!J31*'2.1 OPEX TUUA'!$O$7,'2.2 OPEX LAP 2023'!J31*'2.1 OPEX TUUA'!$O$8) -> 36.51834367 | P31: =+IF(F31="Pasajero",'2.2 OPEX LAP 2023'!K31*'2.1 OPEX TUUA'!$P$7,'2.2 OPEX LAP 2023'!K31*'2.1 OPEX TUUA'!$P$8) -> 36.29117781 | Q31: =+IF(F31="Pasajero",'2.2 OPEX LAP 2023'!L31*'2.1 OPEX TUUA'!$Q$7,'2.2 OPEX LAP 2023'!L31*'2.1 OPEX TUUA'!$Q$8) -> 36.05475517 | R31: =+IF(F31="Pasajero",'2.2 OPEX LAP 2023'!M31*'2.1 OPEX TUUA'!$R$7,'2.2 OPEX LAP 2023'!M31*'2.1 OPEX TUUA'!$R$8) -> 36.24821087 | S31: =+IF(F31="Pasajero",'2.2 OPEX LAP 2023'!N31*'2.1 OPEX TUUA'!$S$7,'2.2 OPEX LAP 2023'!N31*'2.1 OPEX TUUA'!$S$8) -> 36.2713487 | U31: 75.16915057 | V31: 88.17379572 | W31: 99.12137496 | X31: 105.0207119 | Y31: 109.331007 | Z31: 114.1198283 | AA31: 0 | AB31: 0 | AC31: 0 | AD31: 0 | AE31: 0 | AF31: 0
B32: 6270000004 | C32: Directo | D32: Gastos de Personal | E32: Seguros de vida empleados | F32: Pasajero | G32: =+IF(F32="Pasajero",'2.2 OPEX LAP 2023'!I32*'2.1 OPEX TUUA'!$G$7,'2.2 OPEX LAP 2023'!I32*'2.1 OPEX TUUA'!$G$8) -> 92.21987072 | H32: =+IF(F32="Pasajero",'2.2 OPEX LAP 2023'!J32*'2.1 OPEX TUUA'!$H$7,'2.2 OPEX LAP 2023'!J32*'2.1 OPEX TUUA'!$H$8) -> 108.1743771 | I32: =+IF(F32="Pasajero",'2.2 OPEX LAP 2023'!K32*'2.1 OPEX TUUA'!$I$7,'2.2 OPEX LAP 2023'!K32*'2.1 OPEX TUUA'!$I$8) -> 121.6052106 | J32: =+IF(F32="Pasajero",'2.2 OPEX LAP 2023'!L32*'2.1 OPEX TUUA'!$J$7,'2.2 OPEX LAP 2023'!L32*'2.1 OPEX TUUA'!$J$8) -> 128.8427021 | K32: =+IF(F32="Pasajero",'2.2 OPEX LAP 2023'!M32*'2.1 OPEX TUUA'!$K$7,'2.2 OPEX LAP 2023'!M32*'2.1 OPEX TUUA'!$K$8) -> 134.1307073 | L32: =+IF(F32="Pasajero",'2.2 OPEX LAP 2023'!N32*'2.1 OPEX TUUA'!$L$7,'2.2 OPEX LAP 2023'!N32*'2.1 OPEX TUUA'!$L$8) -> 140.0057834 | N32: =+IF(F32="Pasajero",'2.2 OPEX LAP 2023'!I32*'2.1 OPEX TUUA'!$N$7,'2.2 OPEX LAP 2023'!I32*'2.1 OPEX TUUA'!$N$8) -> 45.48442863 | O32: =+IF(F32="Pasajero",'2.2 OPEX LAP 2023'!J32*'2.1 OPEX TUUA'!$O$7,'2.2 OPEX LAP 2023'!J32*'2.1 OPEX TUUA'!$O$8) -> 44.80184899 | P32: =+IF(F32="Pasajero",'2.2 OPEX LAP 2023'!K32*'2.1 OPEX TUUA'!$P$7,'2.2 OPEX LAP 2023'!K32*'2.1 OPEX TUUA'!$P$8) -> 44.52315479 | Q32: =+IF(F32="Pasajero",'2.2 OPEX LAP 2023'!L32*'2.1 OPEX TUUA'!$Q$7,'2.2 OPEX LAP 2023'!L32*'2.1 OPEX TUUA'!$Q$8) -> 44.23310408 | R32: =+IF(F32="Pasajero",'2.2 OPEX LAP 2023'!M32*'2.1 OPEX TUUA'!$R$7,'2.2 OPEX LAP 2023'!M32*'2.1 OPEX TUUA'!$R$8) -> 44.4704416 | S32: =+IF(F32="Pasajero",'2.2 OPEX LAP 2023'!N32*'2.1 OPEX TUUA'!$S$7,'2.2 OPEX LAP 2023'!N32*'2.1 OPEX TUUA'!$S$8) -> 44.49882781 | U32: 92.21987072 | V32: 108.1743771 | W32: 121.6052106 | X32: 128.8427021 | Y32: 134.1307073 | Z32: 140.0057834 | AA32: 0 | AB32: 0 | AC32: 0 | AD32: 0 | AE32: 0 | AF32: 0
B33: 6270000005 | C33: Directo | D33: Gastos de Personal | E33: Seguros de vida Ley | F33: Pasajero | G33: =+IF(F33="Pasajero",'2.2 OPEX LAP 2023'!I33*'2.1 OPEX TUUA'!$G$7,'2.2 OPEX LAP 2023'!I33*'2.1 OPEX TUUA'!$G$8) -> 170.0333326 | H33: =+IF(F33="Pasajero",'2.2 OPEX LAP 2023'!J33*'2.1 OPEX TUUA'!$H$7,'2.2 OPEX LAP 2023'!J33*'2.1 OPEX TUUA'!$H$8) -> 199.4499634 | I33: =+IF(F33="Pasajero",'2.2 OPEX LAP 2023'!K33*'2.1 OPEX TUUA'!$I$7,'2.2 OPEX LAP 2023'!K33*'2.1 OPEX TUUA'!$I$8) -> 224.2134916 | J33: =+IF(F33="Pasajero",'2.2 OPEX LAP 2023'!L33*'2.1 OPEX TUUA'!$J$7,'2.2 OPEX LAP 2023'!L33*'2.1 OPEX TUUA'!$J$8) -> 237.5578478 | K33: =+IF(F33="Pasajero",'2.2 OPEX LAP 2023'!M33*'2.1 OPEX TUUA'!$K$7,'2.2 OPEX LAP 2023'!M33*'2.1 OPEX TUUA'!$K$8) -> 247.3077763 | L33: =+IF(F33="Pasajero",'2.2 OPEX LAP 2023'!N33*'2.1 OPEX TUUA'!$L$7,'2.2 OPEX LAP 2023'!N33*'2.1 OPEX TUUA'!$L$8) -> 258.1401355 | N33: =+IF(F33="Pasajero",'2.2 OPEX LAP 2023'!I33*'2.1 OPEX TUUA'!$N$7,'2.2 OPEX LAP 2023'!I33*'2.1 OPEX TUUA'!$N$8) -> 83.86336826 | O33: =+IF(F33="Pasajero",'2.2 OPEX LAP 2023'!J33*'2.1 OPEX TUUA'!$O$7,'2.2 OPEX LAP 2023'!J33*'2.1 OPEX TUUA'!$O$8) -> 82.60484023 | P33: =+IF(F33="Pasajero",'2.2 OPEX LAP 2023'!K33*'2.1 OPEX TUUA'!$P$7,'2.2 OPEX LAP 2023'!K33*'2.1 OPEX TUUA'!$P$8) -> 82.0909889 | Q33: =+IF(F33="Pasajero",'2.2 OPEX LAP 2023'!L33*'2.1 OPEX TUUA'!$Q$7,'2.2 OPEX LAP 2023'!L33*'2.1 OPEX TUUA'!$Q$8) -> 81.55619865 | R33: =+IF(F33="Pasajero",'2.2 OPEX LAP 2023'!M33*'2.1 OPEX TUUA'!$R$7,'2.2 OPEX LAP 2023'!M33*'2.1 OPEX TUUA'!$R$8) -> 81.99379728 | S33: =+IF(F33="Pasajero",'2.2 OPEX LAP 2023'!N33*'2.1 OPEX TUUA'!$S$7,'2.2 OPEX LAP 2023'!N33*'2.1 OPEX TUUA'!$S$8) -> 82.04613527 | U33: 170.0333326 | V33: 199.4499634 | W33: 224.2134916 | X33: 237.5578478 | Y33: 247.3077763 | Z33: 258.1401355 | AA33: 0 | AB33: 0 | AC33: 0 | AD33: 0 | AE33: 0 | AF33: 0
B34: 6270000006 | C34: Directo | D34: Gastos de Personal | E34: Aportación EPS | F34: Pasajero | G34: =+IF(F34="Pasajero",'2.2 OPEX LAP 2023'!I34*'2.1 OPEX TUUA'!$G$7,'2.2 OPEX LAP 2023'!I34*'2.1 OPEX TUUA'!$G$8) -> 894.4857626 | H34: =+IF(F34="Pasajero",'2.2 OPEX LAP 2023'!J34*'2.1 OPEX TUUA'!$H$7,'2.2 OPEX LAP 2023'!J34*'2.1 OPEX TUUA'!$H$8) -> 1049.236346 | I34: =+IF(F34="Pasajero",'2.2 OPEX LAP 2023'!K34*'2.1 OPEX TUUA'!$I$7,'2.2 OPEX LAP 2023'!K34*'2.1 OPEX TUUA'!$I$8) -> 1179.508588 | J34: =+IF(F34="Pasajero",'2.2 OPEX LAP 2023'!L34*'2.1 OPEX TUUA'!$J$7,'2.2 OPEX LAP 2023'!L34*'2.1 OPEX TUUA'!$J$8) -> 1249.708568 | K34: =+IF(F34="Pasajero",'2.2 OPEX LAP 2023'!M34*'2.1 OPEX TUUA'!$K$7,'2.2 OPEX LAP 2023'!M34*'2.1 OPEX TUUA'!$K$8) -> 1300.999525 | L34: =+IF(F34="Pasajero",'2.2 OPEX LAP 2023'!N34*'2.1 OPEX TUUA'!$L$7,'2.2 OPEX LAP 2023'!N34*'2.1 OPEX TUUA'!$L$8) -> 1357.98477 | N34: =+IF(F34="Pasajero",'2.2 OPEX LAP 2023'!I34*'2.1 OPEX TUUA'!$N$7,'2.2 OPEX LAP 2023'!I34*'2.1 OPEX TUUA'!$N$8) -> 441.1757847 | O34: =+IF(F34="Pasajero",'2.2 OPEX LAP 2023'!J34*'2.1 OPEX TUUA'!$O$7,'2.2 OPEX LAP 2023'!J34*'2.1 OPEX TUUA'!$O$8) -> 434.5551099 | P34: =+IF(F34="Pasajero",'2.2 OPEX LAP 2023'!K34*'2.1 OPEX TUUA'!$P$7,'2.2 OPEX LAP 2023'!K34*'2.1 OPEX TUUA'!$P$8) -> 431.8519181 | Q34: =+IF(F34="Pasajero",'2.2 OPEX LAP 2023'!L34*'2.1 OPEX TUUA'!$Q$7,'2.2 OPEX LAP 2023'!L34*'2.1 OPEX TUUA'!$Q$8) -> 429.0385741 | R34: =+IF(F34="Pasajero",'2.2 OPEX LAP 2023'!M34*'2.1 OPEX TUUA'!$R$7,'2.2 OPEX LAP 2023'!M34*'2.1 OPEX TUUA'!$R$8) -> 431.3406271 | S34: =+IF(F34="Pasajero",'2.2 OPEX LAP 2023'!N34*'2.1 OPEX TUUA'!$S$7,'2.2 OPEX LAP 2023'!N34*'2.1 OPEX TUUA'!$S$8) -> 431.6159589 | U34: 894.4857626 | V34: 1049.236346 | W34: 1179.508588 | X34: 1249.708568 | Y34: 1300.999525 | Z34: 1357.98477 | AA34: 0 | AB34: 0 | AC34: 0 | AD34: 0 | AE34: 0 | AF34: 0
B35: 6270000007 | C35: Directo | D35: Gastos de Personal | E35: Contribución SENATI | F35: Pasajero | G35: =+IF(F35="Pasajero",'2.2 OPEX LAP 2023'!I35*'2.1 OPEX TUUA'!$G$7,'2.2 OPEX LAP 2023'!I35*'2.1 OPEX TUUA'!$G$8) -> 0.02183671173 | H35: =+IF(F35="Pasajero",'2.2 OPEX LAP 2023'!J35*'2.1 OPEX TUUA'!$H$7,'2.2 OPEX LAP 2023'!J35*'2.1 OPEX TUUA'!$H$8) -> 0.02561457386 | I35: =+IF(F35="Pasajero",'2.2 OPEX LAP 2023'!K35*'2.1 OPEX TUUA'!$I$7,'2.2 OPEX LAP 2023'!K35*'2.1 OPEX TUUA'!$I$8) -> 0.02879485634 | J35: =+IF(F35="Pasajero",'2.2 OPEX LAP 2023'!L35*'2.1 OPEX TUUA'!$J$7,'2.2 OPEX LAP 2023'!L35*'2.1 OPEX TUUA'!$J$8) -> 0.03050861948 | K35: =+IF(F35="Pasajero",'2.2 OPEX LAP 2023'!M35*'2.1 OPEX TUUA'!$K$7,'2.2 OPEX LAP 2023'!M35*'2.1 OPEX TUUA'!$K$8) -> 0.03176076443 | L35: =+IF(F35="Pasajero",'2.2 OPEX LAP 2023'!N35*'2.1 OPEX TUUA'!$L$7,'2.2 OPEX LAP 2023'!N35*'2.1 OPEX TUUA'!$L$8) -> 0.03315192169 | N35: =+IF(F35="Pasajero",'2.2 OPEX LAP 2023'!I35*'2.1 OPEX TUUA'!$N$7,'2.2 OPEX LAP 2023'!I35*'2.1 OPEX TUUA'!$N$8) -> 0.01077024234 | O35: =+IF(F35="Pasajero",'2.2 OPEX LAP 2023'!J35*'2.1 OPEX TUUA'!$O$7,'2.2 OPEX LAP 2023'!J35*'2.1 OPEX TUUA'!$O$8) -> 0.01060861454 | P35: =+IF(F35="Pasajero",'2.2 OPEX LAP 2023'!K35*'2.1 OPEX TUUA'!$P$7,'2.2 OPEX LAP 2023'!K35*'2.1 OPEX TUUA'!$P$8) -> 0.01054262264 | Q35: =+IF(F35="Pasajero",'2.2 OPEX LAP 2023'!L35*'2.1 OPEX TUUA'!$Q$7,'2.2 OPEX LAP 2023'!L35*'2.1 OPEX TUUA'!$Q$8) -> 0.01047394163 | R35: =+IF(F35="Pasajero",'2.2 OPEX LAP 2023'!M35*'2.1 OPEX TUUA'!$R$7,'2.2 OPEX LAP 2023'!M35*'2.1 OPEX TUUA'!$R$8) -> 0.0105301407 | S35: =+IF(F35="Pasajero",'2.2 OPEX LAP 2023'!N35*'2.1 OPEX TUUA'!$S$7,'2.2 OPEX LAP 2023'!N35*'2.1 OPEX TUUA'!$S$8) -> 0.01053686226 | U35: 0.02183671173 | V35: 0.02561457386 | W35: 0.02879485634 | X35: 0.03050861948 | Y35: 0.03176076443 | Z35: 0.03315192169 | AA35: 0 | AB35: 0 | AC35: 0 | AD35: 0 | AE35: 0 | AF35: 0
B36: 6290000001 | C36: Directo | D36: Gastos de Personal | E36: Beneficio social de los trabajadores CTS | F36: Pasajero | G36: =+IF(F36="Pasajero",'2.2 OPEX LAP 2023'!I36*'2.1 OPEX TUUA'!$G$7,'2.2 OPEX LAP 2023'!I36*'2.1 OPEX TUUA'!$G$8) -> 3419.894786 | H36: =+IF(F36="Pasajero",'2.2 OPEX LAP 2023'!J36*'2.1 OPEX TUUA'!$H$7,'2.2 OPEX LAP 2023'!J36*'2.1 OPEX TUUA'!$H$8) -> 4011.553968 | I36: =+IF(F36="Pasajero",'2.2 OPEX LAP 2023'!K36*'2.1 OPEX TUUA'!$I$7,'2.2 OPEX LAP 2023'!K36*'2.1 OPEX TUUA'!$I$8) -> 4509.624904 | J36: =+IF(F36="Pasajero",'2.2 OPEX LAP 2023'!L36*'2.1 OPEX TUUA'!$J$7,'2.2 OPEX LAP 2023'!L36*'2.1 OPEX TUUA'!$J$8) -> 4778.021066 | K36: =+IF(F36="Pasajero",'2.2 OPEX LAP 2023'!M36*'2.1 OPEX TUUA'!$K$7,'2.2 OPEX LAP 2023'!M36*'2.1 OPEX TUUA'!$K$8) -> 4974.122204 | L36: =+IF(F36="Pasajero",'2.2 OPEX LAP 2023'!N36*'2.1 OPEX TUUA'!$L$7,'2.2 OPEX LAP 2023'!N36*'2.1 OPEX TUUA'!$L$8) -> 5191.99436 | N36: =+IF(F36="Pasajero",'2.2 OPEX LAP 2023'!I36*'2.1 OPEX TUUA'!$N$7,'2.2 OPEX LAP 2023'!I36*'2.1 OPEX TUUA'!$N$8) -> 1686.751012 | O36: =+IF(F36="Pasajero",'2.2 OPEX LAP 2023'!J36*'2.1 OPEX TUUA'!$O$7,'2.2 OPEX LAP 2023'!J36*'2.1 OPEX TUUA'!$O$8) -> 1661.438132 | P36: =+IF(F36="Pasajero",'2.2 OPEX LAP 2023'!K36*'2.1 OPEX TUUA'!$P$7,'2.2 OPEX LAP 2023'!K36*'2.1 OPEX TUUA'!$P$8) -> 1651.102997 | Q36: =+IF(F36="Pasajero",'2.2 OPEX LAP 2023'!L36*'2.1 OPEX TUUA'!$Q$7,'2.2 OPEX LAP 2023'!L36*'2.1 OPEX TUUA'!$Q$8) -> 1640.346715 | R36: =+IF(F36="Pasajero",'2.2 OPEX LAP 2023'!M36*'2.1 OPEX TUUA'!$R$7,'2.2 OPEX LAP 2023'!M36*'2.1 OPEX TUUA'!$R$8) -> 1649.148173 | S36: =+IF(F36="Pasajero",'2.2 OPEX LAP 2023'!N36*'2.1 OPEX TUUA'!$S$7,'2.2 OPEX LAP 2023'!N36*'2.1 OPEX TUUA'!$S$8) -> 1650.200852 | U36: 3419.894786 | V36: 4011.553968 | W36: 4509.624904 | X36: 4778.021066 | Y36: 4974.122204 | Z36: 5191.99436 | AA36: 0 | AB36: 0 | AC36: 0 | AD36: 0 | AE36: 0 | AF36: 0
B37: 6310000001 | C37: Directo | D37: Otros Costos | E37: Gasto de viaje y conferencias | F37: Pasajero | G37: =+IF(F37="Pasajero",'2.2 OPEX LAP 2023'!I37*'2.1 OPEX TUUA'!$G$7,'2.2 OPEX LAP 2023'!I37*'2.1 OPEX TUUA'!$G$8) -> 0 | H37: =+IF(F37="Pasajero",'2.2 OPEX LAP 2023'!J37*'2.1 OPEX TUUA'!$H$7,'2.2 OPEX LAP 2023'!J37*'2.1 OPEX TUUA'!$H$8) -> 0 | I37: =+IF(F37="Pasajero",'2.2 OPEX LAP 2023'!K37*'2.1 OPEX TUUA'!$I$7,'2.2 OPEX LAP 2023'!K37*'2.1 OPEX TUUA'!$I$8) -> 0 | J37: =+IF(F37="Pasajero",'2.2 OPEX LAP 2023'!L37*'2.1 OPEX TUUA'!$J$7,'2.2 OPEX LAP 2023'!L37*'2.1 OPEX TUUA'!$J$8) -> 0 | K37: =+IF(F37="Pasajero",'2.2 OPEX LAP 2023'!M37*'2.1 OPEX TUUA'!$K$7,'2.2 OPEX LAP 2023'!M37*'2.1 OPEX TUUA'!$K$8) -> 0 | L37: =+IF(F37="Pasajero",'2.2 OPEX LAP 2023'!N37*'2.1 OPEX TUUA'!$L$7,'2.2 OPEX LAP 2023'!N37*'2.1 OPEX TUUA'!$L$8) -> 0 | N37: =+IF(F37="Pasajero",'2.2 OPEX LAP 2023'!I37*'2.1 OPEX TUUA'!$N$7,'2.2 OPEX LAP 2023'!I37*'2.1 OPEX TUUA'!$N$8) -> 0 | O37: =+IF(F37="Pasajero",'2.2 OPEX LAP 2023'!J37*'2.1 OPEX TUUA'!$O$7,'2.2 OPEX LAP 2023'!J37*'2.1 OPEX TUUA'!$O$8) -> 0 | P37: =+IF(F37="Pasajero",'2.2 OPEX LAP 2023'!K37*'2.1 OPEX TUUA'!$P$7,'2.2 OPEX LAP 2023'!K37*'2.1 OPEX TUUA'!$P$8) -> 0 | Q37: =+IF(F37="Pasajero",'2.2 OPEX LAP 2023'!L37*'2.1 OPEX TUUA'!$Q$7,'2.2 OPEX LAP 2023'!L37*'2.1 OPEX TUUA'!$Q$8) -> 0 | R37: =+IF(F37="Pasajero",'2.2 OPEX LAP 2023'!M37*'2.1 OPEX TUUA'!$R$7,'2.2 OPEX LAP 2023'!M37*'2.1 OPEX TUUA'!$R$8) -> 0 | S37: =+IF(F37="Pasajero",'2.2 OPEX LAP 2023'!N37*'2.1 OPEX TUUA'!$S$7,'2.2 OPEX LAP 2023'!N37*'2.1 OPEX TUUA'!$S$8) -> 0 | U37: 0 | V37: 0 | W37: 0 | X37: 0 | Y37: 0 | Z37: 0 | AA37: 0 | AB37: 0 | AC37: 0 | AD37: 0 | AE37: 0 | AF37: 0
B38: 6311300001 | C38: Directo | D38: Servicios prestados por terceros | E38: Servicio de transporte | F38: Pasajero | G38: =+IF(F38="Pasajero",'2.2 OPEX LAP 2023'!I38*'2.1 OPEX TUUA'!$G$7,'2.2 OPEX LAP 2023'!I38*'2.1 OPEX TUUA'!$G$8) -> 0 | H38: =+IF(F38="Pasajero",'2.2 OPEX LAP 2023'!J38*'2.1 OPEX TUUA'!$H$7,'2.2 OPEX LAP 2023'!J38*'2.1 OPEX TUUA'!$H$8) -> 0 | I38: =+IF(F38="Pasajero",'2.2 OPEX LAP 2023'!K38*'2.1 OPEX TUUA'!$I$7,'2.2 OPEX LAP 2023'!K38*'2.1 OPEX TUUA'!$I$8) -> 0 | J38: =+IF(F38="Pasajero",'2.2 OPEX LAP 2023'!L38*'2.1 OPEX TUUA'!$J$7,'2.2 OPEX LAP 2023'!L38*'2.1 OPEX TUUA'!$J$8) -> 0 | K38: =+IF(F38="Pasajero",'2.2 OPEX LAP 2023'!M38*'2.1 OPEX TUUA'!$K$7,'2.2 OPEX LAP 2023'!M38*'2.1 OPEX TUUA'!$K$8) -> 0 | L38: =+IF(F38="Pasajero",'2.2 OPEX LAP 2023'!N38*'2.1 OPEX TUUA'!$L$7,'2.2 OPEX LAP 2023'!N38*'2.1 OPEX TUUA'!$L$8) -> 0 | N38: =+IF(F38="Pasajero",'2.2 OPEX LAP 2023'!I38*'2.1 OPEX TUUA'!$N$7,'2.2 OPEX LAP 2023'!I38*'2.1 OPEX TUUA'!$N$8) -> 0 | O38: =+IF(F38="Pasajero",'2.2 OPEX LAP 2023'!J38*'2.1 OPEX TUUA'!$O$7,'2.2 OPEX LAP 2023'!J38*'2.1 OPEX TUUA'!$O$8) -> 0 | P38: =+IF(F38="Pasajero",'2.2 OPEX LAP 2023'!K38*'2.1 OPEX TUUA'!$P$7,'2.2 OPEX LAP 2023'!K38*'2.1 OPEX TUUA'!$P$8) -> 0 | Q38: =+IF(F38="Pasajero",'2.2 OPEX LAP 2023'!L38*'2.1 OPEX TUUA'!$Q$7,'2.2 OPEX LAP 2023'!L38*'2.1 OPEX TUUA'!$Q$8) -> 0 | R38: =+IF(F38="Pasajero",'2.2 OPEX LAP 2023'!M38*'2.1 OPEX TUUA'!$R$7,'2.2 OPEX LAP 2023'!M38*'2.1 OPEX TUUA'!$R$8) -> 0 | S38: =+IF(F38="Pasajero",'2.2 OPEX LAP 2023'!N38*'2.1 OPEX TUUA'!$S$7,'2.2 OPEX LAP 2023'!N38*'2.1 OPEX TUUA'!$S$8) -> 0 | U38: 0 | V38: 0 | W38: 0 | X38: 0 | Y38: 0 | Z38: 0 | AA38: 0 | AB38: 0 | AC38: 0 | AD38: 0 | AE38: 0 | AF38: 0
B39: 6311300002 | C39: Directo | D39: Servicios prestados por terceros | E39: Mensajeria | F39: Pasajero | G39: =+IF(F39="Pasajero",'2.2 OPEX LAP 2023'!I39*'2.1 OPEX TUUA'!$G$7,'2.2 OPEX LAP 2023'!I39*'2.1 OPEX TUUA'!$G$8) -> 0 | H39: =+IF(F39="Pasajero",'2.2 OPEX LAP 2023'!J39*'2.1 OPEX TUUA'!$H$7,'2.2 OPEX LAP 2023'!J39*'2.1 OPEX TUUA'!$H$8) -> 0 | I39: =+IF(F39="Pasajero",'2.2 OPEX LAP 2023'!K39*'2.1 OPEX TUUA'!$I$7,'2.2 OPEX LAP 2023'!K39*'2.1 OPEX TUUA'!$I$8) -> 0 | J39: =+IF(F39="Pasajero",'2.2 OPEX LAP 2023'!L39*'2.1 OPEX TUUA'!$J$7,'2.2 OPEX LAP 2023'!L39*'2.1 OPEX TUUA'!$J$8) -> 0 | K39: =+IF(F39="Pasajero",'2.2 OPEX LAP 2023'!M39*'2.1 OPEX TUUA'!$K$7,'2.2 OPEX LAP 2023'!M39*'2.1 OPEX TUUA'!$K$8) -> 0 | L39: =+IF(F39="Pasajero",'2.2 OPEX LAP 2023'!N39*'2.1 OPEX TUUA'!$L$7,'2.2 OPEX LAP 2023'!N39*'2.1 OPEX TUUA'!$L$8) -> 0 | N39: =+IF(F39="Pasajero",'2.2 OPEX LAP 2023'!I39*'2.1 OPEX TUUA'!$N$7,'2.2 OPEX LAP 2023'!I39*'2.1 OPEX TUUA'!$N$8) -> 0 | O39: =+IF(F39="Pasajero",'2.2 OPEX LAP 2023'!J39*'2.1 OPEX TUUA'!$O$7,'2.2 OPEX LAP 2023'!J39*'2.1 OPEX TUUA'!$O$8) -> 0 | P39: =+IF(F39="Pasajero",'2.2 OPEX LAP 2023'!K39*'2.1 OPEX TUUA'!$P$7,'2.2 OPEX LAP 2023'!K39*'2.1 OPEX TUUA'!$P$8) -> 0 | Q39: =+IF(F39="Pasajero",'2.2 OPEX LAP 2023'!L39*'2.1 OPEX TUUA'!$Q$7,'2.2 OPEX LAP 2023'!L39*'2.1 OPEX TUUA'!$Q$8) -> 0 | R39: =+IF(F39="Pasajero",'2.2 OPEX LAP 2023'!M39*'2.1 OPEX TUUA'!$R$7,'2.2 OPEX LAP 2023'!M39*'2.1 OPEX TUUA'!$R$8) -> 0 | S39: =+IF(F39="Pasajero",'2.2 OPEX LAP 2023'!N39*'2.1 OPEX TUUA'!$S$7,'2.2 OPEX LAP 2023'!N39*'2.1 OPEX TUUA'!$S$8) -> 0 | U39: 0 | V39: 0 | W39: 0 | X39: 0 | Y39: 0 | Z39: 0 | AA39: 0 | AB39: 0 | AC39: 0 | AD39: 0 | AE39: 0 | AF39: 0
B40: 6320000001 | C40: Directo | D40: Servicios prestados por terceros | E40: Asesoria y consultoría | F40: Pasajero | G40: =+IF(F40="Pasajero",'2.2 OPEX LAP 2023'!I40*'2.1 OPEX TUUA'!$G$7,'2.2 OPEX LAP 2023'!I40*'2.1 OPEX TUUA'!$G$8) -> 23407.53181 | H40: =+IF(F40="Pasajero",'2.2 OPEX LAP 2023'!J40*'2.1 OPEX TUUA'!$H$7,'2.2 OPEX LAP 2023'!J40*'2.1 OPEX TUUA'!$H$8) -> 27457.1538 | I40: =+IF(F40="Pasajero",'2.2 OPEX LAP 2023'!K40*'2.1 OPEX TUUA'!$I$7,'2.2 OPEX LAP 2023'!K40*'2.1 OPEX TUUA'!$I$8) -> 30866.20934 | J40: =+IF(F40="Pasajero",'2.2 OPEX LAP 2023'!L40*'2.1 OPEX TUUA'!$J$7,'2.2 OPEX LAP 2023'!L40*'2.1 OPEX TUUA'!$J$8) -> 32703.25174 | K40: =+IF(F40="Pasajero",'2.2 OPEX LAP 2023'!M40*'2.1 OPEX TUUA'!$K$7,'2.2 OPEX LAP 2023'!M40*'2.1 OPEX TUUA'!$K$8) -> 34045.46953 | L40: =+IF(F40="Pasajero",'2.2 OPEX LAP 2023'!N40*'2.1 OPEX TUUA'!$L$7,'2.2 OPEX LAP 2023'!N40*'2.1 OPEX TUUA'!$L$8) -> 35536.69944 | N40: =+IF(F40="Pasajero",'2.2 OPEX LAP 2023'!I40*'2.1 OPEX TUUA'!$N$7,'2.2 OPEX LAP 2023'!I40*'2.1 OPEX TUUA'!$N$8) -> 11544.99786 | O40: =+IF(F40="Pasajero",'2.2 OPEX LAP 2023'!J40*'2.1 OPEX TUUA'!$O$7,'2.2 OPEX LAP 2023'!J40*'2.1 OPEX TUUA'!$O$8) -> 11371.74339 | P40: =+IF(F40="Pasajero",'2.2 OPEX LAP 2023'!K40*'2.1 OPEX TUUA'!$P$7,'2.2 OPEX LAP 2023'!K40*'2.1 OPEX TUUA'!$P$8) -> 11301.00437 | Q40: =+IF(F40="Pasajero",'2.2 OPEX LAP 2023'!L40*'2.1 OPEX TUUA'!$Q$7,'2.2 OPEX LAP 2023'!L40*'2.1 OPEX TUUA'!$Q$8) -> 11227.38281 | R40: =+IF(F40="Pasajero",'2.2 OPEX LAP 2023'!M40*'2.1 OPEX TUUA'!$R$7,'2.2 OPEX LAP 2023'!M40*'2.1 OPEX TUUA'!$R$8) -> 11287.62455 | S40: =+IF(F40="Pasajero",'2.2 OPEX LAP 2023'!N40*'2.1 OPEX TUUA'!$S$7,'2.2 OPEX LAP 2023'!N40*'2.1 OPEX TUUA'!$S$8) -> 11294.82962 | U40: 23407.53181 | V40: 27457.1538 | W40: 30866.20934 | X40: 32703.25174 | Y40: 34045.46953 | Z40: 35536.69944 | AA40: 0 | AB40: 0 | AC40: 0 | AD40: 0 | AE40: 0 | AF40: 0
B41: 6320000002 | C41: Directo | D41: Servicios prestados por terceros | E41: Gastos de auditoría externa | F41: Pasajero | G41: =+IF(F41="Pasajero",'2.2 OPEX LAP 2023'!I41*'2.1 OPEX TUUA'!$G$7,'2.2 OPEX LAP 2023'!I41*'2.1 OPEX TUUA'!$G$8) -> 0 | H41: =+IF(F41="Pasajero",'2.2 OPEX LAP 2023'!J41*'2.1 OPEX TUUA'!$H$7,'2.2 OPEX LAP 2023'!J41*'2.1 OPEX TUUA'!$H$8) -> 0 | I41: =+IF(F41="Pasajero",'2.2 OPEX LAP 2023'!K41*'2.1 OPEX TUUA'!$I$7,'2.2 OPEX LAP 2023'!K41*'2.1 OPEX TUUA'!$I$8) -> 0 | J41: =+IF(F41="Pasajero",'2.2 OPEX LAP 2023'!L41*'2.1 OPEX TUUA'!$J$7,'2.2 OPEX LAP 2023'!L41*'2.1 OPEX TUUA'!$J$8) -> 0 | K41: =+IF(F41="Pasajero",'2.2 OPEX LAP 2023'!M41*'2.1 OPEX TUUA'!$K$7,'2.2 OPEX LAP 2023'!M41*'2.1 OPEX TUUA'!$K$8) -> 0 | L41: =+IF(F41="Pasajero",'2.2 OPEX LAP 2023'!N41*'2.1 OPEX TUUA'!$L$7,'2.2 OPEX LAP 2023'!N41*'2.1 OPEX TUUA'!$L$8) -> 0 | N41: =+IF(F41="Pasajero",'2.2 OPEX LAP 2023'!I41*'2.1 OPEX TUUA'!$N$7,'2.2 OPEX LAP 2023'!I41*'2.1 OPEX TUUA'!$N$8) -> 0 | O41: =+IF(F41="Pasajero",'2.2 OPEX LAP 2023'!J41*'2.1 OPEX TUUA'!$O$7,'2.2 OPEX LAP 2023'!J41*'2.1 OPEX TUUA'!$O$8) -> 0 | P41: =+IF(F41="Pasajero",'2.2 OPEX LAP 2023'!K41*'2.1 OPEX TUUA'!$P$7,'2.2 OPEX LAP 2023'!K41*'2.1 OPEX TUUA'!$P$8) -> 0 | Q41: =+IF(F41="Pasajero",'2.2 OPEX LAP 2023'!L41*'2.1 OPEX TUUA'!$Q$7,'2.2 OPEX LAP 2023'!L41*'2.1 OPEX TUUA'!$Q$8) -> 0 | R41: =+IF(F41="Pasajero",'2.2 OPEX LAP 2023'!M41*'2.1 OPEX TUUA'!$R$7,'2.2 OPEX LAP 2023'!M41*'2.1 OPEX TUUA'!$R$8) -> 0 | S41: =+IF(F41="Pasajero",'2.2 OPEX LAP 2023'!N41*'2.1 OPEX TUUA'!$S$7,'2.2 OPEX LAP 2023'!N41*'2.1 OPEX TUUA'!$S$8) -> 0 | U41: 0 | V41: 0 | W41: 0 | X41: 0 | Y41: 0 | Z41: 0 | AA41: 0 | AB41: 0 | AC41: 0 | AD41: 0 | AE41: 0 | AF41: 0
B42: 6320000003 | C42: Directo | D42: Servicios prestados por terceros | E42: Fee del operador | F42: Pasajero | G42: =+IF(F42="Pasajero",'2.2 OPEX LAP 2023'!I42*'2.1 OPEX TUUA'!$G$7,'2.2 OPEX LAP 2023'!I42*'2.1 OPEX TUUA'!$G$8) -> 14241.88808 | H42: =+IF(F42="Pasajero",'2.2 OPEX LAP 2023'!J42*'2.1 OPEX TUUA'!$H$7,'2.2 OPEX LAP 2023'!J42*'2.1 OPEX TUUA'!$H$8) -> 16705.80711 | I42: =+IF(F42="Pasajero",'2.2 OPEX LAP 2023'!K42*'2.1 OPEX TUUA'!$I$7,'2.2 OPEX LAP 2023'!K42*'2.1 OPEX TUUA'!$I$8) -> 18779.98511 | J42: =+IF(F42="Pasajero",'2.2 OPEX LAP 2023'!L42*'2.1 OPEX TUUA'!$J$7,'2.2 OPEX LAP 2023'!L42*'2.1 OPEX TUUA'!$J$8) -> 19897.70023 | K42: =+IF(F42="Pasajero",'2.2 OPEX LAP 2023'!M42*'2.1 OPEX TUUA'!$K$7,'2.2 OPEX LAP 2023'!M42*'2.1 OPEX TUUA'!$K$8) -> 20714.34829 | L42: =+IF(F42="Pasajero",'2.2 OPEX LAP 2023'!N42*'2.1 OPEX TUUA'!$L$7,'2.2 OPEX LAP 2023'!N42*'2.1 OPEX TUUA'!$L$8) -> 21621.66008 | N42: =+IF(F42="Pasajero",'2.2 OPEX LAP 2023'!I42*'2.1 OPEX TUUA'!$N$7,'2.2 OPEX LAP 2023'!I42*'2.1 OPEX TUUA'!$N$8) -> 7024.344502 | O42: =+IF(F42="Pasajero",'2.2 OPEX LAP 2023'!J42*'2.1 OPEX TUUA'!$O$7,'2.2 OPEX LAP 2023'!J42*'2.1 OPEX TUUA'!$O$8) -> 6918.930963 | P42: =+IF(F42="Pasajero",'2.2 OPEX LAP 2023'!K42*'2.1 OPEX TUUA'!$P$7,'2.2 OPEX LAP 2023'!K42*'2.1 OPEX TUUA'!$P$8) -> 6875.891089 | Q42: =+IF(F42="Pasajero",'2.2 OPEX LAP 2023'!L42*'2.1 OPEX TUUA'!$Q$7,'2.2 OPEX LAP 2023'!L42*'2.1 OPEX TUUA'!$Q$8) -> 6831.097385 | R42: =+IF(F42="Pasajero",'2.2 OPEX LAP 2023'!M42*'2.1 OPEX TUUA'!$R$7,'2.2 OPEX LAP 2023'!M42*'2.1 OPEX TUUA'!$R$8) -> 6867.750379 | S42: =+IF(F42="Pasajero",'2.2 OPEX LAP 2023'!N42*'2.1 OPEX TUUA'!$S$7,'2.2 OPEX LAP 2023'!N42*'2.1 OPEX TUUA'!$S$8) -> 6872.134176 | U42: 14241.88808 | V42: 16705.80711 | W42: 18779.98511 | X42: 19897.70023 | Y42: 20714.34829 | Z42: 21621.66008 | AA42: 0 | AB42: 0 | AC42: 0 | AD42: 0 | AE42: 0 | AF42: 0
B43: 6320000004 | C43: Directo | D43: Servicios prestados por terceros | E43: Servicios de Gerencia | F43: Pasajero | G43: =+IF(F43="Pasajero",'2.2 OPEX LAP 2023'!I43*'2.1 OPEX TUUA'!$G$7,'2.2 OPEX LAP 2023'!I43*'2.1 OPEX TUUA'!$G$8) -> 0 | H43: =+IF(F43="Pasajero",'2.2 OPEX LAP 2023'!J43*'2.1 OPEX TUUA'!$H$7,'2.2 OPEX LAP 2023'!J43*'2.1 OPEX TUUA'!$H$8) -> 0 | I43: =+IF(F43="Pasajero",'2.2 OPEX LAP 2023'!K43*'2.1 OPEX TUUA'!$I$7,'2.2 OPEX LAP 2023'!K43*'2.1 OPEX TUUA'!$I$8) -> 0 | J43: =+IF(F43="Pasajero",'2.2 OPEX LAP 2023'!L43*'2.1 OPEX TUUA'!$J$7,'2.2 OPEX LAP 2023'!L43*'2.1 OPEX TUUA'!$J$8) -> 0 | K43: =+IF(F43="Pasajero",'2.2 OPEX LAP 2023'!M43*'2.1 OPEX TUUA'!$K$7,'2.2 OPEX LAP 2023'!M43*'2.1 OPEX TUUA'!$K$8) -> 0 | L43: =+IF(F43="Pasajero",'2.2 OPEX LAP 2023'!N43*'2.1 OPEX TUUA'!$L$7,'2.2 OPEX LAP 2023'!N43*'2.1 OPEX TUUA'!$L$8) -> 0 | N43: =+IF(F43="Pasajero",'2.2 OPEX LAP 2023'!I43*'2.1 OPEX TUUA'!$N$7,'2.2 OPEX LAP 2023'!I43*'2.1 OPEX TUUA'!$N$8) -> 0 | O43: =+IF(F43="Pasajero",'2.2 OPEX LAP 2023'!J43*'2.1 OPEX TUUA'!$O$7,'2.2 OPEX LAP 2023'!J43*'2.1 OPEX TUUA'!$O$8) -> 0 | P43: =+IF(F43="Pasajero",'2.2 OPEX LAP 2023'!K43*'2.1 OPEX TUUA'!$P$7,'2.2 OPEX LAP 2023'!K43*'2.1 OPEX TUUA'!$P$8) -> 0 | Q43: =+IF(F43="Pasajero",'2.2 OPEX LAP 2023'!L43*'2.1 OPEX TUUA'!$Q$7,'2.2 OPEX LAP 2023'!L43*'2.1 OPEX TUUA'!$Q$8) -> 0 | R43: =+IF(F43="Pasajero",'2.2 OPEX LAP 2023'!M43*'2.1 OPEX TUUA'!$R$7,'2.2 OPEX LAP 2023'!M43*'2.1 OPEX TUUA'!$R$8) -> 0 | S43: =+IF(F43="Pasajero",'2.2 OPEX LAP 2023'!N43*'2.1 OPEX TUUA'!$S$7,'2.2 OPEX LAP 2023'!N43*'2.1 OPEX TUUA'!$S$8) -> 0 | U43: 0 | V43: 0 | W43: 0 | X43: 0 | Y43: 0 | Z43: 0 | AA43: 0 | AB43: 0 | AC43: 0 | AD43: 0 | AE43: 0 | AF43: 0
B44: 6320000005 | C44: Directo | D44: Servicios prestados por terceros | E44: Consultoria operador | F44: Pasajero | G44: =+IF(F44="Pasajero",'2.2 OPEX LAP 2023'!I44*'2.1 OPEX TUUA'!$G$7,'2.2 OPEX LAP 2023'!I44*'2.1 OPEX TUUA'!$G$8) -> 0 | H44: =+IF(F44="Pasajero",'2.2 OPEX LAP 2023'!J44*'2.1 OPEX TUUA'!$H$7,'2.2 OPEX LAP 2023'!J44*'2.1 OPEX TUUA'!$H$8) -> 0 | I44: =+IF(F44="Pasajero",'2.2 OPEX LAP 2023'!K44*'2.1 OPEX TUUA'!$I$7,'2.2 OPEX LAP 2023'!K44*'2.1 OPEX TUUA'!$I$8) -> 0 | J44: =+IF(F44="Pasajero",'2.2 OPEX LAP 2023'!L44*'2.1 OPEX TUUA'!$J$7,'2.2 OPEX LAP 2023'!L44*'2.1 OPEX TUUA'!$J$8) -> 0 | K44: =+IF(F44="Pasajero",'2.2 OPEX LAP 2023'!M44*'2.1 OPEX TUUA'!$K$7,'2.2 OPEX LAP 2023'!M44*'2.1 OPEX TUUA'!$K$8) -> 0 | L44: =+IF(F44="Pasajero",'2.2 OPEX LAP 2023'!N44*'2.1 OPEX TUUA'!$L$7,'2.2 OPEX LAP 2023'!N44*'2.1 OPEX TUUA'!$L$8) -> 0 | N44: =+IF(F44="Pasajero",'2.2 OPEX LAP 2023'!I44*'2.1 OPEX TUUA'!$N$7,'2.2 OPEX LAP 2023'!I44*'2.1 OPEX TUUA'!$N$8) -> 0 | O44: =+IF(F44="Pasajero",'2.2 OPEX LAP 2023'!J44*'2.1 OPEX TUUA'!$O$7,'2.2 OPEX LAP 2023'!J44*'2.1 OPEX TUUA'!$O$8) -> 0 | P44: =+IF(F44="Pasajero",'2.2 OPEX LAP 2023'!K44*'2.1 OPEX TUUA'!$P$7,'2.2 OPEX LAP 2023'!K44*'2.1 OPEX TUUA'!$P$8) -> 0 | Q44: =+IF(F44="Pasajero",'2.2 OPEX LAP 2023'!L44*'2.1 OPEX TUUA'!$Q$7,'2.2 OPEX LAP 2023'!L44*'2.1 OPEX TUUA'!$Q$8) -> 0 | R44: =+IF(F44="Pasajero",'2.2 OPEX LAP 2023'!M44*'2.1 OPEX TUUA'!$R$7,'2.2 OPEX LAP 2023'!M44*'2.1 OPEX TUUA'!$R$8) -> 0 | S44: =+IF(F44="Pasajero",'2.2 OPEX LAP 2023'!N44*'2.1 OPEX TUUA'!$S$7,'2.2 OPEX LAP 2023'!N44*'2.1 OPEX TUUA'!$S$8) -> 0 | U44: 0 | V44: 0 | W44: 0 | X44: 0 | Y44: 0 | Z44: 0 | AA44: 0 | AB44: 0 | AC44: 0 | AD44: 0 | AE44: 0 | AF44: 0
B45: 6320000006 | C45: Directo | D45: Servicios prestados por terceros | E45: Serv. Gerencia LAP Proyecto | F45: Pasajero | G45: =+IF(F45="Pasajero",'2.2 OPEX LAP 2023'!I45*'2.1 OPEX TUUA'!$G$7,'2.2 OPEX LAP 2023'!I45*'2.1 OPEX TUUA'!$G$8) -> 0 | H45: =+IF(F45="Pasajero",'2.2 OPEX LAP 2023'!J45*'2.1 OPEX TUUA'!$H$7,'2.2 OPEX LAP 2023'!J45*'2.1 OPEX TUUA'!$H$8) -> 0 | I45: =+IF(F45="Pasajero",'2.2 OPEX LAP 2023'!K45*'2.1 OPEX TUUA'!$I$7,'2.2 OPEX LAP 2023'!K45*'2.1 OPEX TUUA'!$I$8) -> 0 | J45: =+IF(F45="Pasajero",'2.2 OPEX LAP 2023'!L45*'2.1 OPEX TUUA'!$J$7,'2.2 OPEX LAP 2023'!L45*'2.1 OPEX TUUA'!$J$8) -> 0 | K45: =+IF(F45="Pasajero",'2.2 OPEX LAP 2023'!M45*'2.1 OPEX TUUA'!$K$7,'2.2 OPEX LAP 2023'!M45*'2.1 OPEX TUUA'!$K$8) -> 0 | L45: =+IF(F45="Pasajero",'2.2 OPEX LAP 2023'!N45*'2.1 OPEX TUUA'!$L$7,'2.2 OPEX LAP 2023'!N45*'2.1 OPEX TUUA'!$L$8) -> 0 | N45: =+IF(F45="Pasajero",'2.2 OPEX LAP 2023'!I45*'2.1 OPEX TUUA'!$N$7,'2.2 OPEX LAP 2023'!I45*'2.1 OPEX TUUA'!$N$8) -> 0 | O45: =+IF(F45="Pasajero",'2.2 OPEX LAP 2023'!J45*'2.1 OPEX TUUA'!$O$7,'2.2 OPEX LAP 2023'!J45*'2.1 OPEX TUUA'!$O$8) -> 0 | P45: =+IF(F45="Pasajero",'2.2 OPEX LAP 2023'!K45*'2.1 OPEX TUUA'!$P$7,'2.2 OPEX LAP 2023'!K45*'2.1 OPEX TUUA'!$P$8) -> 0 | Q45: =+IF(F45="Pasajero",'2.2 OPEX LAP 2023'!L45*'2.1 OPEX TUUA'!$Q$7,'2.2 OPEX LAP 2023'!L45*'2.1 OPEX TUUA'!$Q$8) -> 0 | R45: =+IF(F45="Pasajero",'2.2 OPEX LAP 2023'!M45*'2.1 OPEX TUUA'!$R$7,'2.2 OPEX LAP 2023'!M45*'2.1 OPEX TUUA'!$R$8) -> 0 | S45: =+IF(F45="Pasajero",'2.2 OPEX LAP 2023'!N45*'2.1 OPEX TUUA'!$S$7,'2.2 OPEX LAP 2023'!N45*'2.1 OPEX TUUA'!$S$8) -> 0 | U45: 0 | V45: 0 | W45: 0 | X45: 0 | Y45: 0 | Z45: 0 | AA45: 0 | AB45: 0 | AC45: 0 | AD45: 0 | AE45: 0 | AF45: 0
B46: 6320000007 | C46: Directo | D46: Outsourcing | E46: Serv.de Guias Aeroportuarios | F46: Pasajero | G46: =+IF(F46="Pasajero",'2.2 OPEX LAP 2023'!I46*'2.1 OPEX TUUA'!$G$7,'2.2 OPEX LAP 2023'!I46*'2.1 OPEX TUUA'!$G$8) -> 92539.96946 | H46: =+IF(F46="Pasajero",'2.2 OPEX LAP 2023'!J46*'2.1 OPEX TUUA'!$H$7,'2.2 OPEX LAP 2023'!J46*'2.1 OPEX TUUA'!$H$8) -> 108549.8546 | I46: =+IF(F46="Pasajero",'2.2 OPEX LAP 2023'!K46*'2.1 OPEX TUUA'!$I$7,'2.2 OPEX LAP 2023'!K46*'2.1 OPEX TUUA'!$I$8) -> 122027.307 | J46: =+IF(F46="Pasajero",'2.2 OPEX LAP 2023'!L46*'2.1 OPEX TUUA'!$J$7,'2.2 OPEX LAP 2023'!L46*'2.1 OPEX TUUA'!$J$8) -> 129289.9201 | K46: =+IF(F46="Pasajero",'2.2 OPEX LAP 2023'!M46*'2.1 OPEX TUUA'!$K$7,'2.2 OPEX LAP 2023'!M46*'2.1 OPEX TUUA'!$K$8) -> 134596.2802 | L46: =+IF(F46="Pasajero",'2.2 OPEX LAP 2023'!N46*'2.1 OPEX TUUA'!$L$7,'2.2 OPEX LAP 2023'!N46*'2.1 OPEX TUUA'!$L$8) -> 140491.7489 | N46: =+IF(F46="Pasajero",'2.2 OPEX LAP 2023'!I46*'2.1 OPEX TUUA'!$N$7,'2.2 OPEX LAP 2023'!I46*'2.1 OPEX TUUA'!$N$8) -> 45642.30684 | O46: =+IF(F46="Pasajero",'2.2 OPEX LAP 2023'!J46*'2.1 OPEX TUUA'!$O$7,'2.2 OPEX LAP 2023'!J46*'2.1 OPEX TUUA'!$O$8) -> 44957.35794 | P46: =+IF(F46="Pasajero",'2.2 OPEX LAP 2023'!K46*'2.1 OPEX TUUA'!$P$7,'2.2 OPEX LAP 2023'!K46*'2.1 OPEX TUUA'!$P$8) -> 44677.69638 | Q46: =+IF(F46="Pasajero",'2.2 OPEX LAP 2023'!L46*'2.1 OPEX TUUA'!$Q$7,'2.2 OPEX LAP 2023'!L46*'2.1 OPEX TUUA'!$Q$8) -> 44386.6389 | R46: =+IF(F46="Pasajero",'2.2 OPEX LAP 2023'!M46*'2.1 OPEX TUUA'!$R$7,'2.2 OPEX LAP 2023'!M46*'2.1 OPEX TUUA'!$R$8) -> 44624.80023 | S46: =+IF(F46="Pasajero",'2.2 OPEX LAP 2023'!N46*'2.1 OPEX TUUA'!$S$7,'2.2 OPEX LAP 2023'!N46*'2.1 OPEX TUUA'!$S$8) -> 44653.28497 | U46: 92539.96946 | V46: 108549.8546 | W46: 122027.307 | X46: 129289.9201 | Y46: 134596.2802 | Z46: 140491.7489 | AA46: 0 | AB46: 0 | AC46: 0 | AD46: 0 | AE46: 0 | AF46: 0
B47: 6329000003 | C47: Directo | D47: Servicios prestados por terceros | E47: Servicio de verificacion de expedientes | F47: Pasajero | G47: =+IF(F47="Pasajero",'2.2 OPEX LAP 2023'!I47*'2.1 OPEX TUUA'!$G$7,'2.2 OPEX LAP 2023'!I47*'2.1 OPEX TUUA'!$G$8) -> 0 | H47: =+IF(F47="Pasajero",'2.2 OPEX LAP 2023'!J47*'2.1 OPEX TUUA'!$H$7,'2.2 OPEX LAP 2023'!J47*'2.1 OPEX TUUA'!$H$8) -> 0 | I47: =+IF(F47="Pasajero",'2.2 OPEX LAP 2023'!K47*'2.1 OPEX TUUA'!$I$7,'2.2 OPEX LAP 2023'!K47*'2.1 OPEX TUUA'!$I$8) -> 0 | J47: =+IF(F47="Pasajero",'2.2 OPEX LAP 2023'!L47*'2.1 OPEX TUUA'!$J$7,'2.2 OPEX LAP 2023'!L47*'2.1 OPEX TUUA'!$J$8) -> 0 | K47: =+IF(F47="Pasajero",'2.2 OPEX LAP 2023'!M47*'2.1 OPEX TUUA'!$K$7,'2.2 OPEX LAP 2023'!M47*'2.1 OPEX TUUA'!$K$8) -> 0 | L47: =+IF(F47="Pasajero",'2.2 OPEX LAP 2023'!N47*'2.1 OPEX TUUA'!$L$7,'2.2 OPEX LAP 2023'!N47*'2.1 OPEX TUUA'!$L$8) -> 0 | N47: =+IF(F47="Pasajero",'2.2 OPEX LAP 2023'!I47*'2.1 OPEX TUUA'!$N$7,'2.2 OPEX LAP 2023'!I47*'2.1 OPEX TUUA'!$N$8) -> 0 | O47: =+IF(F47="Pasajero",'2.2 OPEX LAP 2023'!J47*'2.1 OPEX TUUA'!$O$7,'2.2 OPEX LAP 2023'!J47*'2.1 OPEX TUUA'!$O$8) -> 0 | P47: =+IF(F47="Pasajero",'2.2 OPEX LAP 2023'!K47*'2.1 OPEX TUUA'!$P$7,'2.2 OPEX LAP 2023'!K47*'2.1 OPEX TUUA'!$P$8) -> 0 | Q47: =+IF(F47="Pasajero",'2.2 OPEX LAP 2023'!L47*'2.1 OPEX TUUA'!$Q$7,'2.2 OPEX LAP 2023'!L47*'2.1 OPEX TUUA'!$Q$8) -> 0 | R47: =+IF(F47="Pasajero",'2.2 OPEX LAP 2023'!M47*'2.1 OPEX TUUA'!$R$7,'2.2 OPEX LAP 2023'!M47*'2.1 OPEX TUUA'!$R$8) -> 0 | S47: =+IF(F47="Pasajero",'2.2 OPEX LAP 2023'!N47*'2.1 OPEX TUUA'!$S$7,'2.2 OPEX LAP 2023'!N47*'2.1 OPEX TUUA'!$S$8) -> 0 | U47: 0 | V47: 0 | W47: 0 | X47: 0 | Y47: 0 | Z47: 0 | AA47: 0 | AB47: 0 | AC47: 0 | AD47: 0 | AE47: 0 | AF47: 0
B48: 6341100001 | C48: Directo | D48: Mantenimiento de Activos | E48: Servicios de pintado | F48: Pasajero | G48: =+IF(F48="Pasajero",'2.2 OPEX LAP 2023'!I48*'2.1 OPEX TUUA'!$G$7,'2.2 OPEX LAP 2023'!I48*'2.1 OPEX TUUA'!$G$8) -> 237.1446612 | H48: =+IF(F48="Pasajero",'2.2 OPEX LAP 2023'!J48*'2.1 OPEX TUUA'!$H$7,'2.2 OPEX LAP 2023'!J48*'2.1 OPEX TUUA'!$H$8) -> 278.1718931 | I48: =+IF(F48="Pasajero",'2.2 OPEX LAP 2023'!K48*'2.1 OPEX TUUA'!$I$7,'2.2 OPEX LAP 2023'!K48*'2.1 OPEX TUUA'!$I$8) -> 312.7094654 | J48: =+IF(F48="Pasajero",'2.2 OPEX LAP 2023'!L48*'2.1 OPEX TUUA'!$J$7,'2.2 OPEX LAP 2023'!L48*'2.1 OPEX TUUA'!$J$8) -> 331.3207739 | K48: =+IF(F48="Pasajero",'2.2 OPEX LAP 2023'!M48*'2.1 OPEX TUUA'!$K$7,'2.2 OPEX LAP 2023'!M48*'2.1 OPEX TUUA'!$K$8) -> 344.9189518 | L48: =+IF(F48="Pasajero",'2.2 OPEX LAP 2023'!N48*'2.1 OPEX TUUA'!$L$7,'2.2 OPEX LAP 2023'!N48*'2.1 OPEX TUUA'!$L$8) -> 360.0267905 | N48: =+IF(F48="Pasajero",'2.2 OPEX LAP 2023'!I48*'2.1 OPEX TUUA'!$N$7,'2.2 OPEX LAP 2023'!I48*'2.1 OPEX TUUA'!$N$8) -> 116.9638315 | O48: =+IF(F48="Pasajero",'2.2 OPEX LAP 2023'!J48*'2.1 OPEX TUUA'!$O$7,'2.2 OPEX LAP 2023'!J48*'2.1 OPEX TUUA'!$O$8) -> 115.2085686 | P48: =+IF(F48="Pasajero",'2.2 OPEX LAP 2023'!K48*'2.1 OPEX TUUA'!$P$7,'2.2 OPEX LAP 2023'!K48*'2.1 OPEX TUUA'!$P$8) -> 114.4919026 | Q48: =+IF(F48="Pasajero",'2.2 OPEX LAP 2023'!L48*'2.1 OPEX TUUA'!$Q$7,'2.2 OPEX LAP 2023'!L48*'2.1 OPEX TUUA'!$Q$8) -> 113.7460333 | R48: =+IF(F48="Pasajero",'2.2 OPEX LAP 2023'!M48*'2.1 OPEX TUUA'!$R$7,'2.2 OPEX LAP 2023'!M48*'2.1 OPEX TUUA'!$R$8) -> 114.3563499 | S48: =+IF(F48="Pasajero",'2.2 OPEX LAP 2023'!N48*'2.1 OPEX TUUA'!$S$7,'2.2 OPEX LAP 2023'!N48*'2.1 OPEX TUUA'!$S$8) -> 114.4293455 | U48: 237.1446612 | V48: 278.1718931 | W48: 312.7094654 | X48: 331.3207739 | Y48: 344.9189518 | Z48: 360.0267905 | AA48: 0 | AB48: 0 | AC48: 0 | AD48: 0 | AE48: 0 | AF48: 0
B49: 6341100002 | C49: Directo | D49: Mantenimiento de Activos | E49: MP de zonas periféricas | F49: Pasajero | G49: =+IF(F49="Pasajero",'2.2 OPEX LAP 2023'!I49*'2.1 OPEX TUUA'!$G$7,'2.2 OPEX LAP 2023'!I49*'2.1 OPEX TUUA'!$G$8) -> 541.2609783 | H49: =+IF(F49="Pasajero",'2.2 OPEX LAP 2023'!J49*'2.1 OPEX TUUA'!$H$7,'2.2 OPEX LAP 2023'!J49*'2.1 OPEX TUUA'!$H$8) -> 634.901879 | I49: =+IF(F49="Pasajero",'2.2 OPEX LAP 2023'!K49*'2.1 OPEX TUUA'!$I$7,'2.2 OPEX LAP 2023'!K49*'2.1 OPEX TUUA'!$I$8) -> 713.7307257 | J49: =+IF(F49="Pasajero",'2.2 OPEX LAP 2023'!L49*'2.1 OPEX TUUA'!$J$7,'2.2 OPEX LAP 2023'!L49*'2.1 OPEX TUUA'!$J$8) -> 756.2093335 | K49: =+IF(F49="Pasajero",'2.2 OPEX LAP 2023'!M49*'2.1 OPEX TUUA'!$K$7,'2.2 OPEX LAP 2023'!M49*'2.1 OPEX TUUA'!$K$8) -> 787.2459297 | L49: =+IF(F49="Pasajero",'2.2 OPEX LAP 2023'!N49*'2.1 OPEX TUUA'!$L$7,'2.2 OPEX LAP 2023'!N49*'2.1 OPEX TUUA'!$L$8) -> 821.7281883 | N49: =+IF(F49="Pasajero",'2.2 OPEX LAP 2023'!I49*'2.1 OPEX TUUA'!$N$7,'2.2 OPEX LAP 2023'!I49*'2.1 OPEX TUUA'!$N$8) -> 266.9592372 | O49: =+IF(F49="Pasajero",'2.2 OPEX LAP 2023'!J49*'2.1 OPEX TUUA'!$O$7,'2.2 OPEX LAP 2023'!J49*'2.1 OPEX TUUA'!$O$8) -> 262.9530103 | P49: =+IF(F49="Pasajero",'2.2 OPEX LAP 2023'!K49*'2.1 OPEX TUUA'!$P$7,'2.2 OPEX LAP 2023'!K49*'2.1 OPEX TUUA'!$P$8) -> 261.3172858 | Q49: =+IF(F49="Pasajero",'2.2 OPEX LAP 2023'!L49*'2.1 OPEX TUUA'!$Q$7,'2.2 OPEX LAP 2023'!L49*'2.1 OPEX TUUA'!$Q$8) -> 259.6149073 | R49: =+IF(F49="Pasajero",'2.2 OPEX LAP 2023'!M49*'2.1 OPEX TUUA'!$R$7,'2.2 OPEX LAP 2023'!M49*'2.1 OPEX TUUA'!$R$8) -> 261.0078993 | S49: =+IF(F49="Pasajero",'2.2 OPEX LAP 2023'!N49*'2.1 OPEX TUUA'!$S$7,'2.2 OPEX LAP 2023'!N49*'2.1 OPEX TUUA'!$S$8) -> 261.1745049 | U49: 541.2609783 | V49: 634.901879 | W49: 713.7307257 | X49: 756.2093335 | Y49: 787.2459297 | Z49: 821.7281883 | AA49: 0 | AB49: 0 | AC49: 0 | AD49: 0 | AE49: 0 | AF49: 0
B50: 6341100003 | C50: Directo | D50: Mantenimiento de Activos | E50: MP de infra. del terminal | F50: Pasajero | G50: =+IF(F50="Pasajero",'2.2 OPEX LAP 2023'!I50*'2.1 OPEX TUUA'!$G$7,'2.2 OPEX LAP 2023'!I50*'2.1 OPEX TUUA'!$G$8) -> 4555.778678 | H50: =+IF(F50="Pasajero",'2.2 OPEX LAP 2023'!J50*'2.1 OPEX TUUA'!$H$7,'2.2 OPEX LAP 2023'!J50*'2.1 OPEX TUUA'!$H$8) -> 5343.951547 | I50: =+IF(F50="Pasajero",'2.2 OPEX LAP 2023'!K50*'2.1 OPEX TUUA'!$I$7,'2.2 OPEX LAP 2023'!K50*'2.1 OPEX TUUA'!$I$8) -> 6007.451769 | J50: =+IF(F50="Pasajero",'2.2 OPEX LAP 2023'!L50*'2.1 OPEX TUUA'!$J$7,'2.2 OPEX LAP 2023'!L50*'2.1 OPEX TUUA'!$J$8) -> 6364.993036 | K50: =+IF(F50="Pasajero",'2.2 OPEX LAP 2023'!M50*'2.1 OPEX TUUA'!$K$7,'2.2 OPEX LAP 2023'!M50*'2.1 OPEX TUUA'!$K$8) -> 6626.227207 | L50: =+IF(F50="Pasajero",'2.2 OPEX LAP 2023'!N50*'2.1 OPEX TUUA'!$L$7,'2.2 OPEX LAP 2023'!N50*'2.1 OPEX TUUA'!$L$8) -> 6916.463423 | N50: =+IF(F50="Pasajero",'2.2 OPEX LAP 2023'!I50*'2.1 OPEX TUUA'!$N$7,'2.2 OPEX LAP 2023'!I50*'2.1 OPEX TUUA'!$N$8) -> 2246.988512 | O50: =+IF(F50="Pasajero",'2.2 OPEX LAP 2023'!J50*'2.1 OPEX TUUA'!$O$7,'2.2 OPEX LAP 2023'!J50*'2.1 OPEX TUUA'!$O$8) -> 2213.268211 | P50: =+IF(F50="Pasajero",'2.2 OPEX LAP 2023'!K50*'2.1 OPEX TUUA'!$P$7,'2.2 OPEX LAP 2023'!K50*'2.1 OPEX TUUA'!$P$8) -> 2199.500364 | Q50: =+IF(F50="Pasajero",'2.2 OPEX LAP 2023'!L50*'2.1 OPEX TUUA'!$Q$7,'2.2 OPEX LAP 2023'!L50*'2.1 OPEX TUUA'!$Q$8) -> 2185.171491 | R50: =+IF(F50="Pasajero",'2.2 OPEX LAP 2023'!M50*'2.1 OPEX TUUA'!$R$7,'2.2 OPEX LAP 2023'!M50*'2.1 OPEX TUUA'!$R$8) -> 2196.896266 | S50: =+IF(F50="Pasajero",'2.2 OPEX LAP 2023'!N50*'2.1 OPEX TUUA'!$S$7,'2.2 OPEX LAP 2023'!N50*'2.1 OPEX TUUA'!$S$8) -> 2198.298581 | U50: 4555.778678 | V50: 5343.951547 | W50: 6007.451769 | X50: 6364.993036 | Y50: 6626.227207 | Z50: 6916.463423 | AA50: 0 | AB50: 0 | AC50: 0 | AD50: 0 | AE50: 0 | AF50: 0
B51: 6341100004 | C51: Directo | D51: Mantenimiento de Activos | E51: MP mobiliario del terminal | F51: Pasajero | G51: =+IF(F51="Pasajero",'2.2 OPEX LAP 2023'!I51*'2.1 OPEX TUUA'!$G$7,'2.2 OPEX LAP 2023'!I51*'2.1 OPEX TUUA'!$G$8) -> 151.2341798 | H51: =+IF(F51="Pasajero",'2.2 OPEX LAP 2023'!J51*'2.1 OPEX TUUA'!$H$7,'2.2 OPEX LAP 2023'!J51*'2.1 OPEX TUUA'!$H$8) -> 177.3984616 | I51: =+IF(F51="Pasajero",'2.2 OPEX LAP 2023'!K51*'2.1 OPEX TUUA'!$I$7,'2.2 OPEX LAP 2023'!K51*'2.1 OPEX TUUA'!$I$8) -> 199.4240952 | J51: =+IF(F51="Pasajero",'2.2 OPEX LAP 2023'!L51*'2.1 OPEX TUUA'!$J$7,'2.2 OPEX LAP 2023'!L51*'2.1 OPEX TUUA'!$J$8) -> 211.2930783 | K51: =+IF(F51="Pasajero",'2.2 OPEX LAP 2023'!M51*'2.1 OPEX TUUA'!$K$7,'2.2 OPEX LAP 2023'!M51*'2.1 OPEX TUUA'!$K$8) -> 219.9650394 | L51: =+IF(F51="Pasajero",'2.2 OPEX LAP 2023'!N51*'2.1 OPEX TUUA'!$L$7,'2.2 OPEX LAP 2023'!N51*'2.1 OPEX TUUA'!$L$8) -> 229.599756 | N51: =+IF(F51="Pasajero",'2.2 OPEX LAP 2023'!I51*'2.1 OPEX TUUA'!$N$7,'2.2 OPEX LAP 2023'!I51*'2.1 OPEX TUUA'!$N$8) -> 74.59130231 | O51: =+IF(F51="Pasajero",'2.2 OPEX LAP 2023'!J51*'2.1 OPEX TUUA'!$O$7,'2.2 OPEX LAP 2023'!J51*'2.1 OPEX TUUA'!$O$8) -> 73.47191912 | P51: =+IF(F51="Pasajero",'2.2 OPEX LAP 2023'!K51*'2.1 OPEX TUUA'!$P$7,'2.2 OPEX LAP 2023'!K51*'2.1 OPEX TUUA'!$P$8) -> 73.01488 | Q51: =+IF(F51="Pasajero",'2.2 OPEX LAP 2023'!L51*'2.1 OPEX TUUA'!$Q$7,'2.2 OPEX LAP 2023'!L51*'2.1 OPEX TUUA'!$Q$8) -> 72.539217 | R51: =+IF(F51="Pasajero",'2.2 OPEX LAP 2023'!M51*'2.1 OPEX TUUA'!$R$7,'2.2 OPEX LAP 2023'!M51*'2.1 OPEX TUUA'!$R$8) -> 72.92843404 | S51: =+IF(F51="Pasajero",'2.2 OPEX LAP 2023'!N51*'2.1 OPEX TUUA'!$S$7,'2.2 OPEX LAP 2023'!N51*'2.1 OPEX TUUA'!$S$8) -> 72.97498546 | U51: 151.2341798 | V51: 177.3984616 | W51: 199.4240952 | X51: 211.2930783 | Y51: 219.9650394 | Z51: 229.599756 | AA51: 0 | AB51: 0 | AC51: 0 | AD51: 0 | AE51: 0 | AF51: 0
B52: 6341100005 | C52: Directo | D52: Mantenimiento de Activos | E52: MP Trampa de grasa | F52: Pasajero | G52: =+IF(F52="Pasajero",'2.2 OPEX LAP 2023'!I52*'2.1 OPEX TUUA'!$G$7,'2.2 OPEX LAP 2023'!I52*'2.1 OPEX TUUA'!$G$8) -> 0 | H52: =+IF(F52="Pasajero",'2.2 OPEX LAP 2023'!J52*'2.1 OPEX TUUA'!$H$7,'2.2 OPEX LAP 2023'!J52*'2.1 OPEX TUUA'!$H$8) -> 0 | I52: =+IF(F52="Pasajero",'2.2 OPEX LAP 2023'!K52*'2.1 OPEX TUUA'!$I$7,'2.2 OPEX LAP 2023'!K52*'2.1 OPEX TUUA'!$I$8) -> 0 | J52: =+IF(F52="Pasajero",'2.2 OPEX LAP 2023'!L52*'2.1 OPEX TUUA'!$J$7,'2.2 OPEX LAP 2023'!L52*'2.1 OPEX TUUA'!$J$8) -> 0 | K52: =+IF(F52="Pasajero",'2.2 OPEX LAP 2023'!M52*'2.1 OPEX TUUA'!$K$7,'2.2 OPEX LAP 2023'!M52*'2.1 OPEX TUUA'!$K$8) -> 0 | L52: =+IF(F52="Pasajero",'2.2 OPEX LAP 2023'!N52*'2.1 OPEX TUUA'!$L$7,'2.2 OPEX LAP 2023'!N52*'2.1 OPEX TUUA'!$L$8) -> 0 | N52: =+IF(F52="Pasajero",'2.2 OPEX LAP 2023'!I52*'2.1 OPEX TUUA'!$N$7,'2.2 OPEX LAP 2023'!I52*'2.1 OPEX TUUA'!$N$8) -> 0 | O52: =+IF(F52="Pasajero",'2.2 OPEX LAP 2023'!J52*'2.1 OPEX TUUA'!$O$7,'2.2 OPEX LAP 2023'!J52*'2.1 OPEX TUUA'!$O$8) -> 0 | P52: =+IF(F52="Pasajero",'2.2 OPEX LAP 2023'!K52*'2.1 OPEX TUUA'!$P$7,'2.2 OPEX LAP 2023'!K52*'2.1 OPEX TUUA'!$P$8) -> 0 | Q52: =+IF(F52="Pasajero",'2.2 OPEX LAP 2023'!L52*'2.1 OPEX TUUA'!$Q$7,'2.2 OPEX LAP 2023'!L52*'2.1 OPEX TUUA'!$Q$8) -> 0 | R52: =+IF(F52="Pasajero",'2.2 OPEX LAP 2023'!M52*'2.1 OPEX TUUA'!$R$7,'2.2 OPEX LAP 2023'!M52*'2.1 OPEX TUUA'!$R$8) -> 0 | S52: =+IF(F52="Pasajero",'2.2 OPEX LAP 2023'!N52*'2.1 OPEX TUUA'!$S$7,'2.2 OPEX LAP 2023'!N52*'2.1 OPEX TUUA'!$S$8) -> 0 | U52: 0 | V52: 0 | W52: 0 | X52: 0 | Y52: 0 | Z52: 0 | AA52: 0 | AB52: 0 | AC52: 0 | AD52: 0 | AE52: 0 | AF52: 0
B53: 6341100007 | C53: Directo | D53: Mantenimiento de Activos | E53: MP Deodorizantes | F53: Pasajero | G53: =+IF(F53="Pasajero",'2.2 OPEX LAP 2023'!I53*'2.1 OPEX TUUA'!$G$7,'2.2 OPEX LAP 2023'!I53*'2.1 OPEX TUUA'!$G$8) -> 0 | H53: =+IF(F53="Pasajero",'2.2 OPEX LAP 2023'!J53*'2.1 OPEX TUUA'!$H$7,'2.2 OPEX LAP 2023'!J53*'2.1 OPEX TUUA'!$H$8) -> 0 | I53: =+IF(F53="Pasajero",'2.2 OPEX LAP 2023'!K53*'2.1 OPEX TUUA'!$I$7,'2.2 OPEX LAP 2023'!K53*'2.1 OPEX TUUA'!$I$8) -> 0 | J53: =+IF(F53="Pasajero",'2.2 OPEX LAP 2023'!L53*'2.1 OPEX TUUA'!$J$7,'2.2 OPEX LAP 2023'!L53*'2.1 OPEX TUUA'!$J$8) -> 0 | K53: =+IF(F53="Pasajero",'2.2 OPEX LAP 2023'!M53*'2.1 OPEX TUUA'!$K$7,'2.2 OPEX LAP 2023'!M53*'2.1 OPEX TUUA'!$K$8) -> 0 | L53: =+IF(F53="Pasajero",'2.2 OPEX LAP 2023'!N53*'2.1 OPEX TUUA'!$L$7,'2.2 OPEX LAP 2023'!N53*'2.1 OPEX TUUA'!$L$8) -> 0 | N53: =+IF(F53="Pasajero",'2.2 OPEX LAP 2023'!I53*'2.1 OPEX TUUA'!$N$7,'2.2 OPEX LAP 2023'!I53*'2.1 OPEX TUUA'!$N$8) -> 0 | O53: =+IF(F53="Pasajero",'2.2 OPEX LAP 2023'!J53*'2.1 OPEX TUUA'!$O$7,'2.2 OPEX LAP 2023'!J53*'2.1 OPEX TUUA'!$O$8) -> 0 | P53: =+IF(F53="Pasajero",'2.2 OPEX LAP 2023'!K53*'2.1 OPEX TUUA'!$P$7,'2.2 OPEX LAP 2023'!K53*'2.1 OPEX TUUA'!$P$8) -> 0 | Q53: =+IF(F53="Pasajero",'2.2 OPEX LAP 2023'!L53*'2.1 OPEX TUUA'!$Q$7,'2.2 OPEX LAP 2023'!L53*'2.1 OPEX TUUA'!$Q$8) -> 0 | R53: =+IF(F53="Pasajero",'2.2 OPEX LAP 2023'!M53*'2.1 OPEX TUUA'!$R$7,'2.2 OPEX LAP 2023'!M53*'2.1 OPEX TUUA'!$R$8) -> 0 | S53: =+IF(F53="Pasajero",'2.2 OPEX LAP 2023'!N53*'2.1 OPEX TUUA'!$S$7,'2.2 OPEX LAP 2023'!N53*'2.1 OPEX TUUA'!$S$8) -> 0 | U53: 0 | V53: 0 | W53: 0 | X53: 0 | Y53: 0 | Z53: 0 | AA53: 0 | AB53: 0 | AC53: 0 | AD53: 0 | AE53: 0 | AF53: 0
B54: 6341100008 | C54: Directo | D54: Mantenimiento de Activos | E54: MP del alcantarillado | F54: Pasajero | G54: =+IF(F54="Pasajero",'2.2 OPEX LAP 2023'!I54*'2.1 OPEX TUUA'!$G$7,'2.2 OPEX LAP 2023'!I54*'2.1 OPEX TUUA'!$G$8) -> 0 | H54: =+IF(F54="Pasajero",'2.2 OPEX LAP 2023'!J54*'2.1 OPEX TUUA'!$H$7,'2.2 OPEX LAP 2023'!J54*'2.1 OPEX TUUA'!$H$8) -> 0 | I54: =+IF(F54="Pasajero",'2.2 OPEX LAP 2023'!K54*'2.1 OPEX TUUA'!$I$7,'2.2 OPEX LAP 2023'!K54*'2.1 OPEX TUUA'!$I$8) -> 0 | J54: =+IF(F54="Pasajero",'2.2 OPEX LAP 2023'!L54*'2.1 OPEX TUUA'!$J$7,'2.2 OPEX LAP 2023'!L54*'2.1 OPEX TUUA'!$J$8) -> 0 | K54: =+IF(F54="Pasajero",'2.2 OPEX LAP 2023'!M54*'2.1 OPEX TUUA'!$K$7,'2.2 OPEX LAP 2023'!M54*'2.1 OPEX TUUA'!$K$8) -> 0 | L54: =+IF(F54="Pasajero",'2.2 OPEX LAP 2023'!N54*'2.1 OPEX TUUA'!$L$7,'2.2 OPEX LAP 2023'!N54*'2.1 OPEX TUUA'!$L$8) -> 0 | N54: =+IF(F54="Pasajero",'2.2 OPEX LAP 2023'!I54*'2.1 OPEX TUUA'!$N$7,'2.2 OPEX LAP 2023'!I54*'2.1 OPEX TUUA'!$N$8) -> 0 | O54: =+IF(F54="Pasajero",'2.2 OPEX LAP 2023'!J54*'2.1 OPEX TUUA'!$O$7,'2.2 OPEX LAP 2023'!J54*'2.1 OPEX TUUA'!$O$8) -> 0 | P54: =+IF(F54="Pasajero",'2.2 OPEX LAP 2023'!K54*'2.1 OPEX TUUA'!$P$7,'2.2 OPEX LAP 2023'!K54*'2.1 OPEX TUUA'!$P$8) -> 0 | Q54: =+IF(F54="Pasajero",'2.2 OPEX LAP 2023'!L54*'2.1 OPEX TUUA'!$Q$7,'2.2 OPEX LAP 2023'!L54*'2.1 OPEX TUUA'!$Q$8) -> 0 | R54: =+IF(F54="Pasajero",'2.2 OPEX LAP 2023'!M54*'2.1 OPEX TUUA'!$R$7,'2.2 OPEX LAP 2023'!M54*'2.1 OPEX TUUA'!$R$8) -> 0 | S54: =+IF(F54="Pasajero",'2.2 OPEX LAP 2023'!N54*'2.1 OPEX TUUA'!$S$7,'2.2 OPEX LAP 2023'!N54*'2.1 OPEX TUUA'!$S$8) -> 0 | U54: 0 | V54: 0 | W54: 0 | X54: 0 | Y54: 0 | Z54: 0 | AA54: 0 | AB54: 0 | AC54: 0 | AD54: 0 | AE54: 0 | AF54: 0
B55: 6341100009 | C55: Directo | D55: Mantenimiento de Activos | E55: Remodelaciones menores | F55: Pasajero | G55: =+IF(F55="Pasajero",'2.2 OPEX LAP 2023'!I55*'2.1 OPEX TUUA'!$G$7,'2.2 OPEX LAP 2023'!I55*'2.1 OPEX TUUA'!$G$8) -> 0 | H55: =+IF(F55="Pasajero",'2.2 OPEX LAP 2023'!J55*'2.1 OPEX TUUA'!$H$7,'2.2 OPEX LAP 2023'!J55*'2.1 OPEX TUUA'!$H$8) -> 0 | I55: =+IF(F55="Pasajero",'2.2 OPEX LAP 2023'!K55*'2.1 OPEX TUUA'!$I$7,'2.2 OPEX LAP 2023'!K55*'2.1 OPEX TUUA'!$I$8) -> 0 | J55: =+IF(F55="Pasajero",'2.2 OPEX LAP 2023'!L55*'2.1 OPEX TUUA'!$J$7,'2.2 OPEX LAP 2023'!L55*'2.1 OPEX TUUA'!$J$8) -> 0 | K55: =+IF(F55="Pasajero",'2.2 OPEX LAP 2023'!M55*'2.1 OPEX TUUA'!$K$7,'2.2 OPEX LAP 2023'!M55*'2.1 OPEX TUUA'!$K$8) -> 0 | L55: =+IF(F55="Pasajero",'2.2 OPEX LAP 2023'!N55*'2.1 OPEX TUUA'!$L$7,'2.2 OPEX LAP 2023'!N55*'2.1 OPEX TUUA'!$L$8) -> 0 | N55: =+IF(F55="Pasajero",'2.2 OPEX LAP 2023'!I55*'2.1 OPEX TUUA'!$N$7,'2.2 OPEX LAP 2023'!I55*'2.1 OPEX TUUA'!$N$8) -> 0 | O55: =+IF(F55="Pasajero",'2.2 OPEX LAP 2023'!J55*'2.1 OPEX TUUA'!$O$7,'2.2 OPEX LAP 2023'!J55*'2.1 OPEX TUUA'!$O$8) -> 0 | P55: =+IF(F55="Pasajero",'2.2 OPEX LAP 2023'!K55*'2.1 OPEX TUUA'!$P$7,'2.2 OPEX LAP 2023'!K55*'2.1 OPEX TUUA'!$P$8) -> 0 | Q55: =+IF(F55="Pasajero",'2.2 OPEX LAP 2023'!L55*'2.1 OPEX TUUA'!$Q$7,'2.2 OPEX LAP 2023'!L55*'2.1 OPEX TUUA'!$Q$8) -> 0 | R55: =+IF(F55="Pasajero",'2.2 OPEX LAP 2023'!M55*'2.1 OPEX TUUA'!$R$7,'2.2 OPEX LAP 2023'!M55*'2.1 OPEX TUUA'!$R$8) -> 0 | S55: =+IF(F55="Pasajero",'2.2 OPEX LAP 2023'!N55*'2.1 OPEX TUUA'!$S$7,'2.2 OPEX LAP 2023'!N55*'2.1 OPEX TUUA'!$S$8) -> 0 | U55: 0 | V55: 0 | W55: 0 | X55: 0 | Y55: 0 | Z55: 0 | AA55: 0 | AB55: 0 | AC55: 0 | AD55: 0 | AE55: 0 | AF55: 0
B56: 6341100010 | C56: Directo | D56: Mantenimiento de Activos | E56: MC de Infra. e Instalaciones | F56: Pasajero | G56: =+IF(F56="Pasajero",'2.2 OPEX LAP 2023'!I56*'2.1 OPEX TUUA'!$G$7,'2.2 OPEX LAP 2023'!I56*'2.1 OPEX TUUA'!$G$8) -> 3756.748966 | H56: =+IF(F56="Pasajero",'2.2 OPEX LAP 2023'!J56*'2.1 OPEX TUUA'!$H$7,'2.2 OPEX LAP 2023'!J56*'2.1 OPEX TUUA'!$H$8) -> 4406.685633 | I56: =+IF(F56="Pasajero",'2.2 OPEX LAP 2023'!K56*'2.1 OPEX TUUA'!$I$7,'2.2 OPEX LAP 2023'!K56*'2.1 OPEX TUUA'!$I$8) -> 4953.815762 | J56: =+IF(F56="Pasajero",'2.2 OPEX LAP 2023'!L56*'2.1 OPEX TUUA'!$J$7,'2.2 OPEX LAP 2023'!L56*'2.1 OPEX TUUA'!$J$8) -> 5248.648518 | K56: =+IF(F56="Pasajero",'2.2 OPEX LAP 2023'!M56*'2.1 OPEX TUUA'!$K$7,'2.2 OPEX LAP 2023'!M56*'2.1 OPEX TUUA'!$K$8) -> 5464.065304 | L56: =+IF(F56="Pasajero",'2.2 OPEX LAP 2023'!N56*'2.1 OPEX TUUA'!$L$7,'2.2 OPEX LAP 2023'!N56*'2.1 OPEX TUUA'!$L$8) -> 5703.39752 | N56: =+IF(F56="Pasajero",'2.2 OPEX LAP 2023'!I56*'2.1 OPEX TUUA'!$N$7,'2.2 OPEX LAP 2023'!I56*'2.1 OPEX TUUA'!$N$8) -> 1852.893296 | O56: =+IF(F56="Pasajero",'2.2 OPEX LAP 2023'!J56*'2.1 OPEX TUUA'!$O$7,'2.2 OPEX LAP 2023'!J56*'2.1 OPEX TUUA'!$O$8) -> 1825.087137 | P56: =+IF(F56="Pasajero",'2.2 OPEX LAP 2023'!K56*'2.1 OPEX TUUA'!$P$7,'2.2 OPEX LAP 2023'!K56*'2.1 OPEX TUUA'!$P$8) -> 1813.734008 | Q56: =+IF(F56="Pasajero",'2.2 OPEX LAP 2023'!L56*'2.1 OPEX TUUA'!$Q$7,'2.2 OPEX LAP 2023'!L56*'2.1 OPEX TUUA'!$Q$8) -> 1801.918249 | R56: =+IF(F56="Pasajero",'2.2 OPEX LAP 2023'!M56*'2.1 OPEX TUUA'!$R$7,'2.2 OPEX LAP 2023'!M56*'2.1 OPEX TUUA'!$R$8) -> 1811.586637 | S56: =+IF(F56="Pasajero",'2.2 OPEX LAP 2023'!N56*'2.1 OPEX TUUA'!$S$7,'2.2 OPEX LAP 2023'!N56*'2.1 OPEX TUUA'!$S$8) -> 1812.743003 | U56: 3756.748966 | V56: 4406.685633 | W56: 4953.815762 | X56: 5248.648518 | Y56: 5464.065304 | Z56: 5703.39752 | AA56: 0 | AB56: 0 | AC56: 0 | AD56: 0 | AE56: 0 | AF56: 0
B57: 6342000001 | C57: Directo | D57: Mantenimiento de Activos | E57: MP de vehículos | F57: Pasajero | G57: =+IF(F57="Pasajero",'2.2 OPEX LAP 2023'!I57*'2.1 OPEX TUUA'!$G$7,'2.2 OPEX LAP 2023'!I57*'2.1 OPEX TUUA'!$G$8) -> 0 | H57: =+IF(F57="Pasajero",'2.2 OPEX LAP 2023'!J57*'2.1 OPEX TUUA'!$H$7,'2.2 OPEX LAP 2023'!J57*'2.1 OPEX TUUA'!$H$8) -> 0 | I57: =+IF(F57="Pasajero",'2.2 OPEX LAP 2023'!K57*'2.1 OPEX TUUA'!$I$7,'2.2 OPEX LAP 2023'!K57*'2.1 OPEX TUUA'!$I$8) -> 0 | J57: =+IF(F57="Pasajero",'2.2 OPEX LAP 2023'!L57*'2.1 OPEX TUUA'!$J$7,'2.2 OPEX LAP 2023'!L57*'2.1 OPEX TUUA'!$J$8) -> 0 | K57: =+IF(F57="Pasajero",'2.2 OPEX LAP 2023'!M57*'2.1 OPEX TUUA'!$K$7,'2.2 OPEX LAP 2023'!M57*'2.1 OPEX TUUA'!$K$8) -> 0 | L57: =+IF(F57="Pasajero",'2.2 OPEX LAP 2023'!N57*'2.1 OPEX TUUA'!$L$7,'2.2 OPEX LAP 2023'!N57*'2.1 OPEX TUUA'!$L$8) -> 0 | N57: =+IF(F57="Pasajero",'2.2 OPEX LAP 2023'!I57*'2.1 OPEX TUUA'!$N$7,'2.2 OPEX LAP 2023'!I57*'2.1 OPEX TUUA'!$N$8) -> 0 | O57: =+IF(F57="Pasajero",'2.2 OPEX LAP 2023'!J57*'2.1 OPEX TUUA'!$O$7,'2.2 OPEX LAP 2023'!J57*'2.1 OPEX TUUA'!$O$8) -> 0 | P57: =+IF(F57="Pasajero",'2.2 OPEX LAP 2023'!K57*'2.1 OPEX TUUA'!$P$7,'2.2 OPEX LAP 2023'!K57*'2.1 OPEX TUUA'!$P$8) -> 0 | Q57: =+IF(F57="Pasajero",'2.2 OPEX LAP 2023'!L57*'2.1 OPEX TUUA'!$Q$7,'2.2 OPEX LAP 2023'!L57*'2.1 OPEX TUUA'!$Q$8) -> 0 | R57: =+IF(F57="Pasajero",'2.2 OPEX LAP 2023'!M57*'2.1 OPEX TUUA'!$R$7,'2.2 OPEX LAP 2023'!M57*'2.1 OPEX TUUA'!$R$8) -> 0 | S57: =+IF(F57="Pasajero",'2.2 OPEX LAP 2023'!N57*'2.1 OPEX TUUA'!$S$7,'2.2 OPEX LAP 2023'!N57*'2.1 OPEX TUUA'!$S$8) -> 0 | U57: 0 | V57: 0 | W57: 0 | X57: 0 | Y57: 0 | Z57: 0 | AA57: 0 | AB57: 0 | AC57: 0 | AD57: 0 | AE57: 0 | AF57: 0
B58: 6342000002 | C58: Directo | D58: Mantenimiento de Activos | E58: MC de vehículos | F58: Pasajero | G58: =+IF(F58="Pasajero",'2.2 OPEX LAP 2023'!I58*'2.1 OPEX TUUA'!$G$7,'2.2 OPEX LAP 2023'!I58*'2.1 OPEX TUUA'!$G$8) -> 0 | H58: =+IF(F58="Pasajero",'2.2 OPEX LAP 2023'!J58*'2.1 OPEX TUUA'!$H$7,'2.2 OPEX LAP 2023'!J58*'2.1 OPEX TUUA'!$H$8) -> 0 | I58: =+IF(F58="Pasajero",'2.2 OPEX LAP 2023'!K58*'2.1 OPEX TUUA'!$I$7,'2.2 OPEX LAP 2023'!K58*'2.1 OPEX TUUA'!$I$8) -> 0 | J58: =+IF(F58="Pasajero",'2.2 OPEX LAP 2023'!L58*'2.1 OPEX TUUA'!$J$7,'2.2 OPEX LAP 2023'!L58*'2.1 OPEX TUUA'!$J$8) -> 0 | K58: =+IF(F58="Pasajero",'2.2 OPEX LAP 2023'!M58*'2.1 OPEX TUUA'!$K$7,'2.2 OPEX LAP 2023'!M58*'2.1 OPEX TUUA'!$K$8) -> 0 | L58: =+IF(F58="Pasajero",'2.2 OPEX LAP 2023'!N58*'2.1 OPEX TUUA'!$L$7,'2.2 OPEX LAP 2023'!N58*'2.1 OPEX TUUA'!$L$8) -> 0 | N58: =+IF(F58="Pasajero",'2.2 OPEX LAP 2023'!I58*'2.1 OPEX TUUA'!$N$7,'2.2 OPEX LAP 2023'!I58*'2.1 OPEX TUUA'!$N$8) -> 0 | O58: =+IF(F58="Pasajero",'2.2 OPEX LAP 2023'!J58*'2.1 OPEX TUUA'!$O$7,'2.2 OPEX LAP 2023'!J58*'2.1 OPEX TUUA'!$O$8) -> 0 | P58: =+IF(F58="Pasajero",'2.2 OPEX LAP 2023'!K58*'2.1 OPEX TUUA'!$P$7,'2.2 OPEX LAP 2023'!K58*'2.1 OPEX TUUA'!$P$8) -> 0 | Q58: =+IF(F58="Pasajero",'2.2 OPEX LAP 2023'!L58*'2.1 OPEX TUUA'!$Q$7,'2.2 OPEX LAP 2023'!L58*'2.1 OPEX TUUA'!$Q$8) -> 0 | R58: =+IF(F58="Pasajero",'2.2 OPEX LAP 2023'!M58*'2.1 OPEX TUUA'!$R$7,'2.2 OPEX LAP 2023'!M58*'2.1 OPEX TUUA'!$R$8) -> 0 | S58: =+IF(F58="Pasajero",'2.2 OPEX LAP 2023'!N58*'2.1 OPEX TUUA'!$S$7,'2.2 OPEX LAP 2023'!N58*'2.1 OPEX TUUA'!$S$8) -> 0 | U58: 0 | V58: 0 | W58: 0 | X58: 0 | Y58: 0 | Z58: 0 | AA58: 0 | AB58: 0 | AC58: 0 | AD58: 0 | AE58: 0 | AF58: 0
B59: 6343000001 | C59: Directo | D59: Mantenimiento de Activos | E59: MP de equipos y sistemas | F59: Pasajero | G59: =+IF(F59="Pasajero",'2.2 OPEX LAP 2023'!I59*'2.1 OPEX TUUA'!$G$7,'2.2 OPEX LAP 2023'!I59*'2.1 OPEX TUUA'!$G$8) -> 84684.04337 | H59: =+IF(F59="Pasajero",'2.2 OPEX LAP 2023'!J59*'2.1 OPEX TUUA'!$H$7,'2.2 OPEX LAP 2023'!J59*'2.1 OPEX TUUA'!$H$8) -> 99334.81334 | I59: =+IF(F59="Pasajero",'2.2 OPEX LAP 2023'!K59*'2.1 OPEX TUUA'!$I$7,'2.2 OPEX LAP 2023'!K59*'2.1 OPEX TUUA'!$I$8) -> 111668.1345 | J59: =+IF(F59="Pasajero",'2.2 OPEX LAP 2023'!L59*'2.1 OPEX TUUA'!$J$7,'2.2 OPEX LAP 2023'!L59*'2.1 OPEX TUUA'!$J$8) -> 118314.208 | K59: =+IF(F59="Pasajero",'2.2 OPEX LAP 2023'!M59*'2.1 OPEX TUUA'!$K$7,'2.2 OPEX LAP 2023'!M59*'2.1 OPEX TUUA'!$K$8) -> 123170.0993 | L59: =+IF(F59="Pasajero",'2.2 OPEX LAP 2023'!N59*'2.1 OPEX TUUA'!$L$7,'2.2 OPEX LAP 2023'!N59*'2.1 OPEX TUUA'!$L$8) -> 128565.0884 | N59: =+IF(F59="Pasajero",'2.2 OPEX LAP 2023'!I59*'2.1 OPEX TUUA'!$N$7,'2.2 OPEX LAP 2023'!I59*'2.1 OPEX TUUA'!$N$8) -> 41767.62878 | O59: =+IF(F59="Pasajero",'2.2 OPEX LAP 2023'!J59*'2.1 OPEX TUUA'!$O$7,'2.2 OPEX LAP 2023'!J59*'2.1 OPEX TUUA'!$O$8) -> 41140.82673 | P59: =+IF(F59="Pasajero",'2.2 OPEX LAP 2023'!K59*'2.1 OPEX TUUA'!$P$7,'2.2 OPEX LAP 2023'!K59*'2.1 OPEX TUUA'!$P$8) -> 40884.90627 | Q59: =+IF(F59="Pasajero",'2.2 OPEX LAP 2023'!L59*'2.1 OPEX TUUA'!$Q$7,'2.2 OPEX LAP 2023'!L59*'2.1 OPEX TUUA'!$Q$8) -> 40618.55731 | R59: =+IF(F59="Pasajero",'2.2 OPEX LAP 2023'!M59*'2.1 OPEX TUUA'!$R$7,'2.2 OPEX LAP 2023'!M59*'2.1 OPEX TUUA'!$R$8) -> 40836.50059 | S59: =+IF(F59="Pasajero",'2.2 OPEX LAP 2023'!N59*'2.1 OPEX TUUA'!$S$7,'2.2 OPEX LAP 2023'!N59*'2.1 OPEX TUUA'!$S$8) -> 40862.5672 | U59: 84684.04337 | V59: 99334.81334 | W59: 111668.1345 | X59: 118314.208 | Y59: 123170.0993 | Z59: 128565.0884 | AA59: 0 | AB59: 0 | AC59: 0 | AD59: 0 | AE59: 0 | AF59: 0
B60: 6343000002 | C60: Directo | D60: Mantenimiento de Activos | E60: MC de equipos y sistemas | F60: Pasajero | G60: =+IF(F60="Pasajero",'2.2 OPEX LAP 2023'!I60*'2.1 OPEX TUUA'!$G$7,'2.2 OPEX LAP 2023'!I60*'2.1 OPEX TUUA'!$G$8) -> 5159.072922 | H60: =+IF(F60="Pasajero",'2.2 OPEX LAP 2023'!J60*'2.1 OPEX TUUA'!$H$7,'2.2 OPEX LAP 2023'!J60*'2.1 OPEX TUUA'!$H$8) -> 6051.618762 | I60: =+IF(F60="Pasajero",'2.2 OPEX LAP 2023'!K60*'2.1 OPEX TUUA'!$I$7,'2.2 OPEX LAP 2023'!K60*'2.1 OPEX TUUA'!$I$8) -> 6802.982309 | J60: =+IF(F60="Pasajero",'2.2 OPEX LAP 2023'!L60*'2.1 OPEX TUUA'!$J$7,'2.2 OPEX LAP 2023'!L60*'2.1 OPEX TUUA'!$J$8) -> 7207.870606 | K60: =+IF(F60="Pasajero",'2.2 OPEX LAP 2023'!M60*'2.1 OPEX TUUA'!$K$7,'2.2 OPEX LAP 2023'!M60*'2.1 OPEX TUUA'!$K$8) -> 7503.69844 | L60: =+IF(F60="Pasajero",'2.2 OPEX LAP 2023'!N60*'2.1 OPEX TUUA'!$L$7,'2.2 OPEX LAP 2023'!N60*'2.1 OPEX TUUA'!$L$8) -> 7832.368884 | N60: =+IF(F60="Pasajero",'2.2 OPEX LAP 2023'!I60*'2.1 OPEX TUUA'!$N$7,'2.2 OPEX LAP 2023'!I60*'2.1 OPEX TUUA'!$N$8) -> 2544.543624 | O60: =+IF(F60="Pasajero",'2.2 OPEX LAP 2023'!J60*'2.1 OPEX TUUA'!$O$7,'2.2 OPEX LAP 2023'!J60*'2.1 OPEX TUUA'!$O$8) -> 2506.357948 | P60: =+IF(F60="Pasajero",'2.2 OPEX LAP 2023'!K60*'2.1 OPEX TUUA'!$P$7,'2.2 OPEX LAP 2023'!K60*'2.1 OPEX TUUA'!$P$8) -> 2490.766908 | Q60: =+IF(F60="Pasajero",'2.2 OPEX LAP 2023'!L60*'2.1 OPEX TUUA'!$Q$7,'2.2 OPEX LAP 2023'!L60*'2.1 OPEX TUUA'!$Q$8) -> 2474.540549 | R60: =+IF(F60="Pasajero",'2.2 OPEX LAP 2023'!M60*'2.1 OPEX TUUA'!$R$7,'2.2 OPEX LAP 2023'!M60*'2.1 OPEX TUUA'!$R$8) -> 2487.817965 | S60: =+IF(F60="Pasajero",'2.2 OPEX LAP 2023'!N60*'2.1 OPEX TUUA'!$S$7,'2.2 OPEX LAP 2023'!N60*'2.1 OPEX TUUA'!$S$8) -> 2489.40598 | U60: 5159.072922 | V60: 6051.618762 | W60: 6802.982309 | X60: 7207.870606 | Y60: 7503.69844 | Z60: 7832.368884 | AA60: 0 | AB60: 0 | AC60: 0 | AD60: 0 | AE60: 0 | AF60: 0
B61: 6343100001 | C61: Directo | D61: Mantenimiento de Activos | E61: MP ascensores edif. central | F61: Pasajero | G61: =+IF(F61="Pasajero",'2.2 OPEX LAP 2023'!I61*'2.1 OPEX TUUA'!$G$7,'2.2 OPEX LAP 2023'!I61*'2.1 OPEX TUUA'!$G$8) -> 642.5697034 | H61: =+IF(F61="Pasajero",'2.2 OPEX LAP 2023'!J61*'2.1 OPEX TUUA'!$H$7,'2.2 OPEX LAP 2023'!J61*'2.1 OPEX TUUA'!$H$8) -> 753.7375284 | I61: =+IF(F61="Pasajero",'2.2 OPEX LAP 2023'!K61*'2.1 OPEX TUUA'!$I$7,'2.2 OPEX LAP 2023'!K61*'2.1 OPEX TUUA'!$I$8) -> 847.3209026 | J61: =+IF(F61="Pasajero",'2.2 OPEX LAP 2023'!L61*'2.1 OPEX TUUA'!$J$7,'2.2 OPEX LAP 2023'!L61*'2.1 OPEX TUUA'!$J$8) -> 897.7503027 | K61: =+IF(F61="Pasajero",'2.2 OPEX LAP 2023'!M61*'2.1 OPEX TUUA'!$K$7,'2.2 OPEX LAP 2023'!M61*'2.1 OPEX TUUA'!$K$8) -> 934.5960706 | L61: =+IF(F61="Pasajero",'2.2 OPEX LAP 2023'!N61*'2.1 OPEX TUUA'!$L$7,'2.2 OPEX LAP 2023'!N61*'2.1 OPEX TUUA'!$L$8) -> 975.5324314 | N61: =+IF(F61="Pasajero",'2.2 OPEX LAP 2023'!I61*'2.1 OPEX TUUA'!$N$7,'2.2 OPEX LAP 2023'!I61*'2.1 OPEX TUUA'!$N$8) -> 316.9264453 | O61: =+IF(F61="Pasajero",'2.2 OPEX LAP 2023'!J61*'2.1 OPEX TUUA'!$O$7,'2.2 OPEX LAP 2023'!J61*'2.1 OPEX TUUA'!$O$8) -> 312.1703662 | P61: =+IF(F61="Pasajero",'2.2 OPEX LAP 2023'!K61*'2.1 OPEX TUUA'!$P$7,'2.2 OPEX LAP 2023'!K61*'2.1 OPEX TUUA'!$P$8) -> 310.2284805 | Q61: =+IF(F61="Pasajero",'2.2 OPEX LAP 2023'!L61*'2.1 OPEX TUUA'!$Q$7,'2.2 OPEX LAP 2023'!L61*'2.1 OPEX TUUA'!$Q$8) -> 308.2074649 | R61: =+IF(F61="Pasajero",'2.2 OPEX LAP 2023'!M61*'2.1 OPEX TUUA'!$R$7,'2.2 OPEX LAP 2023'!M61*'2.1 OPEX TUUA'!$R$8) -> 309.8611855 | S61: =+IF(F61="Pasajero",'2.2 OPEX LAP 2023'!N61*'2.1 OPEX TUUA'!$S$7,'2.2 OPEX LAP 2023'!N61*'2.1 OPEX TUUA'!$S$8) -> 310.058975 | U61: 642.5697034 | V61: 753.7375284 | W61: 847.3209026 | X61: 897.7503027 | Y61: 934.5960706 | Z61: 975.5324314 | AA61: 0 | AB61: 0 | AC61: 0 | AD61: 0 | AE61: 0 | AF61: 0
B62: 6343100002 | C62: Directo | D62: Mantenimiento de Activos | E62: MP ascensores terminal | F62: Pasajero | G62: =+IF(F62="Pasajero",'2.2 OPEX LAP 2023'!I62*'2.1 OPEX TUUA'!$G$7,'2.2 OPEX LAP 2023'!I62*'2.1 OPEX TUUA'!$G$8) -> 1082.903318 | H62: =+IF(F62="Pasajero",'2.2 OPEX LAP 2023'!J62*'2.1 OPEX TUUA'!$H$7,'2.2 OPEX LAP 2023'!J62*'2.1 OPEX TUUA'!$H$8) -> 1270.251097 | I62: =+IF(F62="Pasajero",'2.2 OPEX LAP 2023'!K62*'2.1 OPEX TUUA'!$I$7,'2.2 OPEX LAP 2023'!K62*'2.1 OPEX TUUA'!$I$8) -> 1427.964331 | J62: =+IF(F62="Pasajero",'2.2 OPEX LAP 2023'!L62*'2.1 OPEX TUUA'!$J$7,'2.2 OPEX LAP 2023'!L62*'2.1 OPEX TUUA'!$J$8) -> 1512.951477 | K62: =+IF(F62="Pasajero",'2.2 OPEX LAP 2023'!M62*'2.1 OPEX TUUA'!$K$7,'2.2 OPEX LAP 2023'!M62*'2.1 OPEX TUUA'!$K$8) -> 1575.046537 | L62: =+IF(F62="Pasajero",'2.2 OPEX LAP 2023'!N62*'2.1 OPEX TUUA'!$L$7,'2.2 OPEX LAP 2023'!N62*'2.1 OPEX TUUA'!$L$8) -> 1644.035349 | N62: =+IF(F62="Pasajero",'2.2 OPEX LAP 2023'!I62*'2.1 OPEX TUUA'!$N$7,'2.2 OPEX LAP 2023'!I62*'2.1 OPEX TUUA'!$N$8) -> 534.1065683 | O62: =+IF(F62="Pasajero",'2.2 OPEX LAP 2023'!J62*'2.1 OPEX TUUA'!$O$7,'2.2 OPEX LAP 2023'!J62*'2.1 OPEX TUUA'!$O$8) -> 526.0912918 | P62: =+IF(F62="Pasajero",'2.2 OPEX LAP 2023'!K62*'2.1 OPEX TUUA'!$P$7,'2.2 OPEX LAP 2023'!K62*'2.1 OPEX TUUA'!$P$8) -> 522.8186905 | Q62: =+IF(F62="Pasajero",'2.2 OPEX LAP 2023'!L62*'2.1 OPEX TUUA'!$Q$7,'2.2 OPEX LAP 2023'!L62*'2.1 OPEX TUUA'!$Q$8) -> 519.412734 | R62: =+IF(F62="Pasajero",'2.2 OPEX LAP 2023'!M62*'2.1 OPEX TUUA'!$R$7,'2.2 OPEX LAP 2023'!M62*'2.1 OPEX TUUA'!$R$8) -> 522.1996993 | S62: =+IF(F62="Pasajero",'2.2 OPEX LAP 2023'!N62*'2.1 OPEX TUUA'!$S$7,'2.2 OPEX LAP 2023'!N62*'2.1 OPEX TUUA'!$S$8) -> 522.533028 | U62: 1082.903318 | V62: 1270.251097 | W62: 1427.964331 | X62: 1512.951477 | Y62: 1575.046537 | Z62: 1644.035349 | AA62: 0 | AB62: 0 | AC62: 0 | AD62: 0 | AE62: 0 | AF62: 0
B63: 6343100003 | C63: Directo | D63: Mantenimiento de Activos | E63: MP zonas periféricas | F63: Pasajero | G63: =+IF(F63="Pasajero",'2.2 OPEX LAP 2023'!I63*'2.1 OPEX TUUA'!$G$7,'2.2 OPEX LAP 2023'!I63*'2.1 OPEX TUUA'!$G$8) -> 0 | H63: =+IF(F63="Pasajero",'2.2 OPEX LAP 2023'!J63*'2.1 OPEX TUUA'!$H$7,'2.2 OPEX LAP 2023'!J63*'2.1 OPEX TUUA'!$H$8) -> 0 | I63: =+IF(F63="Pasajero",'2.2 OPEX LAP 2023'!K63*'2.1 OPEX TUUA'!$I$7,'2.2 OPEX LAP 2023'!K63*'2.1 OPEX TUUA'!$I$8) -> 0 | J63: =+IF(F63="Pasajero",'2.2 OPEX LAP 2023'!L63*'2.1 OPEX TUUA'!$J$7,'2.2 OPEX LAP 2023'!L63*'2.1 OPEX TUUA'!$J$8) -> 0 | K63: =+IF(F63="Pasajero",'2.2 OPEX LAP 2023'!M63*'2.1 OPEX TUUA'!$K$7,'2.2 OPEX LAP 2023'!M63*'2.1 OPEX TUUA'!$K$8) -> 0 | L63: =+IF(F63="Pasajero",'2.2 OPEX LAP 2023'!N63*'2.1 OPEX TUUA'!$L$7,'2.2 OPEX LAP 2023'!N63*'2.1 OPEX TUUA'!$L$8) -> 0 | N63: =+IF(F63="Pasajero",'2.2 OPEX LAP 2023'!I63*'2.1 OPEX TUUA'!$N$7,'2.2 OPEX LAP 2023'!I63*'2.1 OPEX TUUA'!$N$8) -> 0 | O63: =+IF(F63="Pasajero",'2.2 OPEX LAP 2023'!J63*'2.1 OPEX TUUA'!$O$7,'2.2 OPEX LAP 2023'!J63*'2.1 OPEX TUUA'!$O$8) -> 0 | P63: =+IF(F63="Pasajero",'2.2 OPEX LAP 2023'!K63*'2.1 OPEX TUUA'!$P$7,'2.2 OPEX LAP 2023'!K63*'2.1 OPEX TUUA'!$P$8) -> 0 | Q63: =+IF(F63="Pasajero",'2.2 OPEX LAP 2023'!L63*'2.1 OPEX TUUA'!$Q$7,'2.2 OPEX LAP 2023'!L63*'2.1 OPEX TUUA'!$Q$8) -> 0 | R63: =+IF(F63="Pasajero",'2.2 OPEX LAP 2023'!M63*'2.1 OPEX TUUA'!$R$7,'2.2 OPEX LAP 2023'!M63*'2.1 OPEX TUUA'!$R$8) -> 0 | S63: =+IF(F63="Pasajero",'2.2 OPEX LAP 2023'!N63*'2.1 OPEX TUUA'!$S$7,'2.2 OPEX LAP 2023'!N63*'2.1 OPEX TUUA'!$S$8) -> 0 | U63: 0 | V63: 0 | W63: 0 | X63: 0 | Y63: 0 | Z63: 0 | AA63: 0 | AB63: 0 | AC63: 0 | AD63: 0 | AE63: 0 | AF63: 0
B64: 6343100004 | C64: Directo | D64: Mantenimiento de Activos | E64: MP terminal | F64: Pasajero | G64: =+IF(F64="Pasajero",'2.2 OPEX LAP 2023'!I64*'2.1 OPEX TUUA'!$G$7,'2.2 OPEX LAP 2023'!I64*'2.1 OPEX TUUA'!$G$8) -> 0 | H64: =+IF(F64="Pasajero",'2.2 OPEX LAP 2023'!J64*'2.1 OPEX TUUA'!$H$7,'2.2 OPEX LAP 2023'!J64*'2.1 OPEX TUUA'!$H$8) -> 0 | I64: =+IF(F64="Pasajero",'2.2 OPEX LAP 2023'!K64*'2.1 OPEX TUUA'!$I$7,'2.2 OPEX LAP 2023'!K64*'2.1 OPEX TUUA'!$I$8) -> 0 | J64: =+IF(F64="Pasajero",'2.2 OPEX LAP 2023'!L64*'2.1 OPEX TUUA'!$J$7,'2.2 OPEX LAP 2023'!L64*'2.1 OPEX TUUA'!$J$8) -> 0 | K64: =+IF(F64="Pasajero",'2.2 OPEX LAP 2023'!M64*'2.1 OPEX TUUA'!$K$7,'2.2 OPEX LAP 2023'!M64*'2.1 OPEX TUUA'!$K$8) -> 0 | L64: =+IF(F64="Pasajero",'2.2 OPEX LAP 2023'!N64*'2.1 OPEX TUUA'!$L$7,'2.2 OPEX LAP 2023'!N64*'2.1 OPEX TUUA'!$L$8) -> 0 | N64: =+IF(F64="Pasajero",'2.2 OPEX LAP 2023'!I64*'2.1 OPEX TUUA'!$N$7,'2.2 OPEX LAP 2023'!I64*'2.1 OPEX TUUA'!$N$8) -> 0 | O64: =+IF(F64="Pasajero",'2.2 OPEX LAP 2023'!J64*'2.1 OPEX TUUA'!$O$7,'2.2 OPEX LAP 2023'!J64*'2.1 OPEX TUUA'!$O$8) -> 0 | P64: =+IF(F64="Pasajero",'2.2 OPEX LAP 2023'!K64*'2.1 OPEX TUUA'!$P$7,'2.2 OPEX LAP 2023'!K64*'2.1 OPEX TUUA'!$P$8) -> 0 | Q64: =+IF(F64="Pasajero",'2.2 OPEX LAP 2023'!L64*'2.1 OPEX TUUA'!$Q$7,'2.2 OPEX LAP 2023'!L64*'2.1 OPEX TUUA'!$Q$8) -> 0 | R64: =+IF(F64="Pasajero",'2.2 OPEX LAP 2023'!M64*'2.1 OPEX TUUA'!$R$7,'2.2 OPEX LAP 2023'!M64*'2.1 OPEX TUUA'!$R$8) -> 0 | S64: =+IF(F64="Pasajero",'2.2 OPEX LAP 2023'!N64*'2.1 OPEX TUUA'!$S$7,'2.2 OPEX LAP 2023'!N64*'2.1 OPEX TUUA'!$S$8) -> 0 | U64: 0 | V64: 0 | W64: 0 | X64: 0 | Y64: 0 | Z64: 0 | AA64: 0 | AB64: 0 | AC64: 0 | AD64: 0 | AE64: 0 | AF64: 0
B65: 6343100005 | C65: Directo | D65: Mantenimiento de Activos | E65: MP dispositivos CCTV | F65: Pasajero | G65: =+IF(F65="Pasajero",'2.2 OPEX LAP 2023'!I65*'2.1 OPEX TUUA'!$G$7,'2.2 OPEX LAP 2023'!I65*'2.1 OPEX TUUA'!$G$8) -> 0 | H65: =+IF(F65="Pasajero",'2.2 OPEX LAP 2023'!J65*'2.1 OPEX TUUA'!$H$7,'2.2 OPEX LAP 2023'!J65*'2.1 OPEX TUUA'!$H$8) -> 0 | I65: =+IF(F65="Pasajero",'2.2 OPEX LAP 2023'!K65*'2.1 OPEX TUUA'!$I$7,'2.2 OPEX LAP 2023'!K65*'2.1 OPEX TUUA'!$I$8) -> 0 | J65: =+IF(F65="Pasajero",'2.2 OPEX LAP 2023'!L65*'2.1 OPEX TUUA'!$J$7,'2.2 OPEX LAP 2023'!L65*'2.1 OPEX TUUA'!$J$8) -> 0 | K65: =+IF(F65="Pasajero",'2.2 OPEX LAP 2023'!M65*'2.1 OPEX TUUA'!$K$7,'2.2 OPEX LAP 2023'!M65*'2.1 OPEX TUUA'!$K$8) -> 0 | L65: =+IF(F65="Pasajero",'2.2 OPEX LAP 2023'!N65*'2.1 OPEX TUUA'!$L$7,'2.2 OPEX LAP 2023'!N65*'2.1 OPEX TUUA'!$L$8) -> 0 | N65: =+IF(F65="Pasajero",'2.2 OPEX LAP 2023'!I65*'2.1 OPEX TUUA'!$N$7,'2.2 OPEX LAP 2023'!I65*'2.1 OPEX TUUA'!$N$8) -> 0 | O65: =+IF(F65="Pasajero",'2.2 OPEX LAP 2023'!J65*'2.1 OPEX TUUA'!$O$7,'2.2 OPEX LAP 2023'!J65*'2.1 OPEX TUUA'!$O$8) -> 0 | P65: =+IF(F65="Pasajero",'2.2 OPEX LAP 2023'!K65*'2.1 OPEX TUUA'!$P$7,'2.2 OPEX LAP 2023'!K65*'2.1 OPEX TUUA'!$P$8) -> 0 | Q65: =+IF(F65="Pasajero",'2.2 OPEX LAP 2023'!L65*'2.1 OPEX TUUA'!$Q$7,'2.2 OPEX LAP 2023'!L65*'2.1 OPEX TUUA'!$Q$8) -> 0 | R65: =+IF(F65="Pasajero",'2.2 OPEX LAP 2023'!M65*'2.1 OPEX TUUA'!$R$7,'2.2 OPEX LAP 2023'!M65*'2.1 OPEX TUUA'!$R$8) -> 0 | S65: =+IF(F65="Pasajero",'2.2 OPEX LAP 2023'!N65*'2.1 OPEX TUUA'!$S$7,'2.2 OPEX LAP 2023'!N65*'2.1 OPEX TUUA'!$S$8) -> 0 | U65: 0 | V65: 0 | W65: 0 | X65: 0 | Y65: 0 | Z65: 0 | AA65: 0 | AB65: 0 | AC65: 0 | AD65: 0 | AE65: 0 | AF65: 0
B66: 6343100006 | C66: Directo | D66: Mantenimiento de Activos | E66: MP servidores CCTV | F66: Pasajero | G66: =+IF(F66="Pasajero",'2.2 OPEX LAP 2023'!I66*'2.1 OPEX TUUA'!$G$7,'2.2 OPEX LAP 2023'!I66*'2.1 OPEX TUUA'!$G$8) -> 0 | H66: =+IF(F66="Pasajero",'2.2 OPEX LAP 2023'!J66*'2.1 OPEX TUUA'!$H$7,'2.2 OPEX LAP 2023'!J66*'2.1 OPEX TUUA'!$H$8) -> 0 | I66: =+IF(F66="Pasajero",'2.2 OPEX LAP 2023'!K66*'2.1 OPEX TUUA'!$I$7,'2.2 OPEX LAP 2023'!K66*'2.1 OPEX TUUA'!$I$8) -> 0 | J66: =+IF(F66="Pasajero",'2.2 OPEX LAP 2023'!L66*'2.1 OPEX TUUA'!$J$7,'2.2 OPEX LAP 2023'!L66*'2.1 OPEX TUUA'!$J$8) -> 0 | K66: =+IF(F66="Pasajero",'2.2 OPEX LAP 2023'!M66*'2.1 OPEX TUUA'!$K$7,'2.2 OPEX LAP 2023'!M66*'2.1 OPEX TUUA'!$K$8) -> 0 | L66: =+IF(F66="Pasajero",'2.2 OPEX LAP 2023'!N66*'2.1 OPEX TUUA'!$L$7,'2.2 OPEX LAP 2023'!N66*'2.1 OPEX TUUA'!$L$8) -> 0 | N66: =+IF(F66="Pasajero",'2.2 OPEX LAP 2023'!I66*'2.1 OPEX TUUA'!$N$7,'2.2 OPEX LAP 2023'!I66*'2.1 OPEX TUUA'!$N$8) -> 0 | O66: =+IF(F66="Pasajero",'2.2 OPEX LAP 2023'!J66*'2.1 OPEX TUUA'!$O$7,'2.2 OPEX LAP 2023'!J66*'2.1 OPEX TUUA'!$O$8) -> 0 | P66: =+IF(F66="Pasajero",'2.2 OPEX LAP 2023'!K66*'2.1 OPEX TUUA'!$P$7,'2.2 OPEX LAP 2023'!K66*'2.1 OPEX TUUA'!$P$8) -> 0 | Q66: =+IF(F66="Pasajero",'2.2 OPEX LAP 2023'!L66*'2.1 OPEX TUUA'!$Q$7,'2.2 OPEX LAP 2023'!L66*'2.1 OPEX TUUA'!$Q$8) -> 0 | R66: =+IF(F66="Pasajero",'2.2 OPEX LAP 2023'!M66*'2.1 OPEX TUUA'!$R$7,'2.2 OPEX LAP 2023'!M66*'2.1 OPEX TUUA'!$R$8) -> 0 | S66: =+IF(F66="Pasajero",'2.2 OPEX LAP 2023'!N66*'2.1 OPEX TUUA'!$S$7,'2.2 OPEX LAP 2023'!N66*'2.1 OPEX TUUA'!$S$8) -> 0 | U66: 0 | V66: 0 | W66: 0 | X66: 0 | Y66: 0 | Z66: 0 | AA66: 0 | AB66: 0 | AC66: 0 | AD66: 0 | AE66: 0 | AF66: 0
B67: 6343100007 | C67: Directo | D67: Mantenimiento de Activos | E67: MP de máquinas rayos X | F67: Pasajero | G67: =+IF(F67="Pasajero",'2.2 OPEX LAP 2023'!I67*'2.1 OPEX TUUA'!$G$7,'2.2 OPEX LAP 2023'!I67*'2.1 OPEX TUUA'!$G$8) -> 6393.422862 | H67: =+IF(F67="Pasajero",'2.2 OPEX LAP 2023'!J67*'2.1 OPEX TUUA'!$H$7,'2.2 OPEX LAP 2023'!J67*'2.1 OPEX TUUA'!$H$8) -> 7499.517516 | I67: =+IF(F67="Pasajero",'2.2 OPEX LAP 2023'!K67*'2.1 OPEX TUUA'!$I$7,'2.2 OPEX LAP 2023'!K67*'2.1 OPEX TUUA'!$I$8) -> 8430.650872 | J67: =+IF(F67="Pasajero",'2.2 OPEX LAP 2023'!L67*'2.1 OPEX TUUA'!$J$7,'2.2 OPEX LAP 2023'!L67*'2.1 OPEX TUUA'!$J$8) -> 8932.411969 | K67: =+IF(F67="Pasajero",'2.2 OPEX LAP 2023'!M67*'2.1 OPEX TUUA'!$K$7,'2.2 OPEX LAP 2023'!M67*'2.1 OPEX TUUA'!$K$8) -> 9299.019006 | L67: =+IF(F67="Pasajero",'2.2 OPEX LAP 2023'!N67*'2.1 OPEX TUUA'!$L$7,'2.2 OPEX LAP 2023'!N67*'2.1 OPEX TUUA'!$L$8) -> 9706.326514 | N67: =+IF(F67="Pasajero",'2.2 OPEX LAP 2023'!I67*'2.1 OPEX TUUA'!$N$7,'2.2 OPEX LAP 2023'!I67*'2.1 OPEX TUUA'!$N$8) -> 3153.346275 | O67: =+IF(F67="Pasajero",'2.2 OPEX LAP 2023'!J67*'2.1 OPEX TUUA'!$O$7,'2.2 OPEX LAP 2023'!J67*'2.1 OPEX TUUA'!$O$8) -> 3106.024367 | P67: =+IF(F67="Pasajero",'2.2 OPEX LAP 2023'!K67*'2.1 OPEX TUUA'!$P$7,'2.2 OPEX LAP 2023'!K67*'2.1 OPEX TUUA'!$P$8) -> 3086.703044 | Q67: =+IF(F67="Pasajero",'2.2 OPEX LAP 2023'!L67*'2.1 OPEX TUUA'!$Q$7,'2.2 OPEX LAP 2023'!L67*'2.1 OPEX TUUA'!$Q$8) -> 3066.594397 | R67: =+IF(F67="Pasajero",'2.2 OPEX LAP 2023'!M67*'2.1 OPEX TUUA'!$R$7,'2.2 OPEX LAP 2023'!M67*'2.1 OPEX TUUA'!$R$8) -> 3083.048542 | S67: =+IF(F67="Pasajero",'2.2 OPEX LAP 2023'!N67*'2.1 OPEX TUUA'!$S$7,'2.2 OPEX LAP 2023'!N67*'2.1 OPEX TUUA'!$S$8) -> 3085.016503 | U67: 6393.422862 | V67: 7499.517516 | W67: 8430.650872 | X67: 8932.411969 | Y67: 9299.019006 | Z67: 9706.326514 | AA67: 0 | AB67: 0 | AC67: 0 | AD67: 0 | AE67: 0 | AF67: 0
B68: 6343100008 | C68: Directo | D68: Mantenimiento de Activos | E68: MP de equipos PDM | F68: Pasajero | G68: =+IF(F68="Pasajero",'2.2 OPEX LAP 2023'!I68*'2.1 OPEX TUUA'!$G$7,'2.2 OPEX LAP 2023'!I68*'2.1 OPEX TUUA'!$G$8) -> 1227.462878 | H68: =+IF(F68="Pasajero",'2.2 OPEX LAP 2023'!J68*'2.1 OPEX TUUA'!$H$7,'2.2 OPEX LAP 2023'!J68*'2.1 OPEX TUUA'!$H$8) -> 1439.820196 | I68: =+IF(F68="Pasajero",'2.2 OPEX LAP 2023'!K68*'2.1 OPEX TUUA'!$I$7,'2.2 OPEX LAP 2023'!K68*'2.1 OPEX TUUA'!$I$8) -> 1618.586977 | J68: =+IF(F68="Pasajero",'2.2 OPEX LAP 2023'!L68*'2.1 OPEX TUUA'!$J$7,'2.2 OPEX LAP 2023'!L68*'2.1 OPEX TUUA'!$J$8) -> 1714.919276 | K68: =+IF(F68="Pasajero",'2.2 OPEX LAP 2023'!M68*'2.1 OPEX TUUA'!$K$7,'2.2 OPEX LAP 2023'!M68*'2.1 OPEX TUUA'!$K$8) -> 1785.303566 | L68: =+IF(F68="Pasajero",'2.2 OPEX LAP 2023'!N68*'2.1 OPEX TUUA'!$L$7,'2.2 OPEX LAP 2023'!N68*'2.1 OPEX TUUA'!$L$8) -> 1863.501873 | N68: =+IF(F68="Pasajero",'2.2 OPEX LAP 2023'!I68*'2.1 OPEX TUUA'!$N$7,'2.2 OPEX LAP 2023'!I68*'2.1 OPEX TUUA'!$N$8) -> 605.4058333 | O68: =+IF(F68="Pasajero",'2.2 OPEX LAP 2023'!J68*'2.1 OPEX TUUA'!$O$7,'2.2 OPEX LAP 2023'!J68*'2.1 OPEX TUUA'!$O$8) -> 596.3205768 | P68: =+IF(F68="Pasajero",'2.2 OPEX LAP 2023'!K68*'2.1 OPEX TUUA'!$P$7,'2.2 OPEX LAP 2023'!K68*'2.1 OPEX TUUA'!$P$8) -> 592.6111075 | Q68: =+IF(F68="Pasajero",'2.2 OPEX LAP 2023'!L68*'2.1 OPEX TUUA'!$Q$7,'2.2 OPEX LAP 2023'!L68*'2.1 OPEX TUUA'!$Q$8) -> 588.750481 | R68: =+IF(F68="Pasajero",'2.2 OPEX LAP 2023'!M68*'2.1 OPEX TUUA'!$R$7,'2.2 OPEX LAP 2023'!M68*'2.1 OPEX TUUA'!$R$8) -> 591.9094856 | S68: =+IF(F68="Pasajero",'2.2 OPEX LAP 2023'!N68*'2.1 OPEX TUUA'!$S$7,'2.2 OPEX LAP 2023'!N68*'2.1 OPEX TUUA'!$S$8) -> 592.2873111 | U68: 1227.462878 | V68: 1439.820196 | W68: 1618.586977 | X68: 1714.919276 | Y68: 1785.303566 | Z68: 1863.501873 | AA68: 0 | AB68: 0 | AC68: 0 | AD68: 0 | AE68: 0 | AF68: 0
B69: 6343100009 | C69: Directo | D69: Mantenimiento de Activos | E69: MP dispositivos SDI | F69: Pasajero | G69: =+IF(F69="Pasajero",'2.2 OPEX LAP 2023'!I69*'2.1 OPEX TUUA'!$G$7,'2.2 OPEX LAP 2023'!I69*'2.1 OPEX TUUA'!$G$8) -> 0 | H69: =+IF(F69="Pasajero",'2.2 OPEX LAP 2023'!J69*'2.1 OPEX TUUA'!$H$7,'2.2 OPEX LAP 2023'!J69*'2.1 OPEX TUUA'!$H$8) -> 0 | I69: =+IF(F69="Pasajero",'2.2 OPEX LAP 2023'!K69*'2.1 OPEX TUUA'!$I$7,'2.2 OPEX LAP 2023'!K69*'2.1 OPEX TUUA'!$I$8) -> 0 | J69: =+IF(F69="Pasajero",'2.2 OPEX LAP 2023'!L69*'2.1 OPEX TUUA'!$J$7,'2.2 OPEX LAP 2023'!L69*'2.1 OPEX TUUA'!$J$8) -> 0 | K69: =+IF(F69="Pasajero",'2.2 OPEX LAP 2023'!M69*'2.1 OPEX TUUA'!$K$7,'2.2 OPEX LAP 2023'!M69*'2.1 OPEX TUUA'!$K$8) -> 0 | L69: =+IF(F69="Pasajero",'2.2 OPEX LAP 2023'!N69*'2.1 OPEX TUUA'!$L$7,'2.2 OPEX LAP 2023'!N69*'2.1 OPEX TUUA'!$L$8) -> 0 | N69: =+IF(F69="Pasajero",'2.2 OPEX LAP 2023'!I69*'2.1 OPEX TUUA'!$N$7,'2.2 OPEX LAP 2023'!I69*'2.1 OPEX TUUA'!$N$8) -> 0 | O69: =+IF(F69="Pasajero",'2.2 OPEX LAP 2023'!J69*'2.1 OPEX TUUA'!$O$7,'2.2 OPEX LAP 2023'!J69*'2.1 OPEX TUUA'!$O$8) -> 0 | P69: =+IF(F69="Pasajero",'2.2 OPEX LAP 2023'!K69*'2.1 OPEX TUUA'!$P$7,'2.2 OPEX LAP 2023'!K69*'2.1 OPEX TUUA'!$P$8) -> 0 | Q69: =+IF(F69="Pasajero",'2.2 OPEX LAP 2023'!L69*'2.1 OPEX TUUA'!$Q$7,'2.2 OPEX LAP 2023'!L69*'2.1 OPEX TUUA'!$Q$8) -> 0 | R69: =+IF(F69="Pasajero",'2.2 OPEX LAP 2023'!M69*'2.1 OPEX TUUA'!$R$7,'2.2 OPEX LAP 2023'!M69*'2.1 OPEX TUUA'!$R$8) -> 0 | S69: =+IF(F69="Pasajero",'2.2 OPEX LAP 2023'!N69*'2.1 OPEX TUUA'!$S$7,'2.2 OPEX LAP 2023'!N69*'2.1 OPEX TUUA'!$S$8) -> 0 | U69: 0 | V69: 0 | W69: 0 | X69: 0 | Y69: 0 | Z69: 0 | AA69: 0 | AB69: 0 | AC69: 0 | AD69: 0 | AE69: 0 | AF69: 0
B70: 6343100010 | C70: Directo | D70: Mantenimiento de Activos | E70: MP Paneles SDI | F70: Pasajero | G70: =+IF(F70="Pasajero",'2.2 OPEX LAP 2023'!I70*'2.1 OPEX TUUA'!$G$7,'2.2 OPEX LAP 2023'!I70*'2.1 OPEX TUUA'!$G$8) -> 0 | H70: =+IF(F70="Pasajero",'2.2 OPEX LAP 2023'!J70*'2.1 OPEX TUUA'!$H$7,'2.2 OPEX LAP 2023'!J70*'2.1 OPEX TUUA'!$H$8) -> 0 | I70: =+IF(F70="Pasajero",'2.2 OPEX LAP 2023'!K70*'2.1 OPEX TUUA'!$I$7,'2.2 OPEX LAP 2023'!K70*'2.1 OPEX TUUA'!$I$8) -> 0 | J70: =+IF(F70="Pasajero",'2.2 OPEX LAP 2023'!L70*'2.1 OPEX TUUA'!$J$7,'2.2 OPEX LAP 2023'!L70*'2.1 OPEX TUUA'!$J$8) -> 0 | K70: =+IF(F70="Pasajero",'2.2 OPEX LAP 2023'!M70*'2.1 OPEX TUUA'!$K$7,'2.2 OPEX LAP 2023'!M70*'2.1 OPEX TUUA'!$K$8) -> 0 | L70: =+IF(F70="Pasajero",'2.2 OPEX LAP 2023'!N70*'2.1 OPEX TUUA'!$L$7,'2.2 OPEX LAP 2023'!N70*'2.1 OPEX TUUA'!$L$8) -> 0 | N70: =+IF(F70="Pasajero",'2.2 OPEX LAP 2023'!I70*'2.1 OPEX TUUA'!$N$7,'2.2 OPEX LAP 2023'!I70*'2.1 OPEX TUUA'!$N$8) -> 0 | O70: =+IF(F70="Pasajero",'2.2 OPEX LAP 2023'!J70*'2.1 OPEX TUUA'!$O$7,'2.2 OPEX LAP 2023'!J70*'2.1 OPEX TUUA'!$O$8) -> 0 | P70: =+IF(F70="Pasajero",'2.2 OPEX LAP 2023'!K70*'2.1 OPEX TUUA'!$P$7,'2.2 OPEX LAP 2023'!K70*'2.1 OPEX TUUA'!$P$8) -> 0 | Q70: =+IF(F70="Pasajero",'2.2 OPEX LAP 2023'!L70*'2.1 OPEX TUUA'!$Q$7,'2.2 OPEX LAP 2023'!L70*'2.1 OPEX TUUA'!$Q$8) -> 0 | R70: =+IF(F70="Pasajero",'2.2 OPEX LAP 2023'!M70*'2.1 OPEX TUUA'!$R$7,'2.2 OPEX LAP 2023'!M70*'2.1 OPEX TUUA'!$R$8) -> 0 | S70: =+IF(F70="Pasajero",'2.2 OPEX LAP 2023'!N70*'2.1 OPEX TUUA'!$S$7,'2.2 OPEX LAP 2023'!N70*'2.1 OPEX TUUA'!$S$8) -> 0 | U70: 0 | V70: 0 | W70: 0 | X70: 0 | Y70: 0 | Z70: 0 | AA70: 0 | AB70: 0 | AC70: 0 | AD70: 0 | AE70: 0 | AF70: 0
B71: 6343100011 | C71: Directo | D71: Mantenimiento de Activos | E71: MP Ilumi Playa Estacionam. | F71: Pasajero | G71: =+IF(F71="Pasajero",'2.2 OPEX LAP 2023'!I71*'2.1 OPEX TUUA'!$G$7,'2.2 OPEX LAP 2023'!I71*'2.1 OPEX TUUA'!$G$8) -> 0 | H71: =+IF(F71="Pasajero",'2.2 OPEX LAP 2023'!J71*'2.1 OPEX TUUA'!$H$7,'2.2 OPEX LAP 2023'!J71*'2.1 OPEX TUUA'!$H$8) -> 0 | I71: =+IF(F71="Pasajero",'2.2 OPEX LAP 2023'!K71*'2.1 OPEX TUUA'!$I$7,'2.2 OPEX LAP 2023'!K71*'2.1 OPEX TUUA'!$I$8) -> 0 | J71: =+IF(F71="Pasajero",'2.2 OPEX LAP 2023'!L71*'2.1 OPEX TUUA'!$J$7,'2.2 OPEX LAP 2023'!L71*'2.1 OPEX TUUA'!$J$8) -> 0 | K71: =+IF(F71="Pasajero",'2.2 OPEX LAP 2023'!M71*'2.1 OPEX TUUA'!$K$7,'2.2 OPEX LAP 2023'!M71*'2.1 OPEX TUUA'!$K$8) -> 0 | L71: =+IF(F71="Pasajero",'2.2 OPEX LAP 2023'!N71*'2.1 OPEX TUUA'!$L$7,'2.2 OPEX LAP 2023'!N71*'2.1 OPEX TUUA'!$L$8) -> 0 | N71: =+IF(F71="Pasajero",'2.2 OPEX LAP 2023'!I71*'2.1 OPEX TUUA'!$N$7,'2.2 OPEX LAP 2023'!I71*'2.1 OPEX TUUA'!$N$8) -> 0 | O71: =+IF(F71="Pasajero",'2.2 OPEX LAP 2023'!J71*'2.1 OPEX TUUA'!$O$7,'2.2 OPEX LAP 2023'!J71*'2.1 OPEX TUUA'!$O$8) -> 0 | P71: =+IF(F71="Pasajero",'2.2 OPEX LAP 2023'!K71*'2.1 OPEX TUUA'!$P$7,'2.2 OPEX LAP 2023'!K71*'2.1 OPEX TUUA'!$P$8) -> 0 | Q71: =+IF(F71="Pasajero",'2.2 OPEX LAP 2023'!L71*'2.1 OPEX TUUA'!$Q$7,'2.2 OPEX LAP 2023'!L71*'2.1 OPEX TUUA'!$Q$8) -> 0 | R71: =+IF(F71="Pasajero",'2.2 OPEX LAP 2023'!M71*'2.1 OPEX TUUA'!$R$7,'2.2 OPEX LAP 2023'!M71*'2.1 OPEX TUUA'!$R$8) -> 0 | S71: =+IF(F71="Pasajero",'2.2 OPEX LAP 2023'!N71*'2.1 OPEX TUUA'!$S$7,'2.2 OPEX LAP 2023'!N71*'2.1 OPEX TUUA'!$S$8) -> 0 | U71: 0 | V71: 0 | W71: 0 | X71: 0 | Y71: 0 | Z71: 0 | AA71: 0 | AB71: 0 | AC71: 0 | AD71: 0 | AE71: 0 | AF71: 0
B72: 6343100012 | C72: Directo | D72: Mantenimiento de Activos | E72: MP Aire Edific Ctral | F72: Pasajero | G72: =+IF(F72="Pasajero",'2.2 OPEX LAP 2023'!I72*'2.1 OPEX TUUA'!$G$7,'2.2 OPEX LAP 2023'!I72*'2.1 OPEX TUUA'!$G$8) -> 0 | H72: =+IF(F72="Pasajero",'2.2 OPEX LAP 2023'!J72*'2.1 OPEX TUUA'!$H$7,'2.2 OPEX LAP 2023'!J72*'2.1 OPEX TUUA'!$H$8) -> 0 | I72: =+IF(F72="Pasajero",'2.2 OPEX LAP 2023'!K72*'2.1 OPEX TUUA'!$I$7,'2.2 OPEX LAP 2023'!K72*'2.1 OPEX TUUA'!$I$8) -> 0 | J72: =+IF(F72="Pasajero",'2.2 OPEX LAP 2023'!L72*'2.1 OPEX TUUA'!$J$7,'2.2 OPEX LAP 2023'!L72*'2.1 OPEX TUUA'!$J$8) -> 0 | K72: =+IF(F72="Pasajero",'2.2 OPEX LAP 2023'!M72*'2.1 OPEX TUUA'!$K$7,'2.2 OPEX LAP 2023'!M72*'2.1 OPEX TUUA'!$K$8) -> 0 | L72: =+IF(F72="Pasajero",'2.2 OPEX LAP 2023'!N72*'2.1 OPEX TUUA'!$L$7,'2.2 OPEX LAP 2023'!N72*'2.1 OPEX TUUA'!$L$8) -> 0 | N72: =+IF(F72="Pasajero",'2.2 OPEX LAP 2023'!I72*'2.1 OPEX TUUA'!$N$7,'2.2 OPEX LAP 2023'!I72*'2.1 OPEX TUUA'!$N$8) -> 0 | O72: =+IF(F72="Pasajero",'2.2 OPEX LAP 2023'!J72*'2.1 OPEX TUUA'!$O$7,'2.2 OPEX LAP 2023'!J72*'2.1 OPEX TUUA'!$O$8) -> 0 | P72: =+IF(F72="Pasajero",'2.2 OPEX LAP 2023'!K72*'2.1 OPEX TUUA'!$P$7,'2.2 OPEX LAP 2023'!K72*'2.1 OPEX TUUA'!$P$8) -> 0 | Q72: =+IF(F72="Pasajero",'2.2 OPEX LAP 2023'!L72*'2.1 OPEX TUUA'!$Q$7,'2.2 OPEX LAP 2023'!L72*'2.1 OPEX TUUA'!$Q$8) -> 0 | R72: =+IF(F72="Pasajero",'2.2 OPEX LAP 2023'!M72*'2.1 OPEX TUUA'!$R$7,'2.2 OPEX LAP 2023'!M72*'2.1 OPEX TUUA'!$R$8) -> 0 | S72: =+IF(F72="Pasajero",'2.2 OPEX LAP 2023'!N72*'2.1 OPEX TUUA'!$S$7,'2.2 OPEX LAP 2023'!N72*'2.1 OPEX TUUA'!$S$8) -> 0 | U72: 0 | V72: 0 | W72: 0 | X72: 0 | Y72: 0 | Z72: 0 | AA72: 0 | AB72: 0 | AC72: 0 | AD72: 0 | AE72: 0 | AF72: 0
B73: 6343100013 | C73: Directo | D73: Mantenimiento de Activos | E73: MP Aire Terminal | F73: Pasajero | G73: =+IF(F73="Pasajero",'2.2 OPEX LAP 2023'!I73*'2.1 OPEX TUUA'!$G$7,'2.2 OPEX LAP 2023'!I73*'2.1 OPEX TUUA'!$G$8) -> 0 | H73: =+IF(F73="Pasajero",'2.2 OPEX LAP 2023'!J73*'2.1 OPEX TUUA'!$H$7,'2.2 OPEX LAP 2023'!J73*'2.1 OPEX TUUA'!$H$8) -> 0 | I73: =+IF(F73="Pasajero",'2.2 OPEX LAP 2023'!K73*'2.1 OPEX TUUA'!$I$7,'2.2 OPEX LAP 2023'!K73*'2.1 OPEX TUUA'!$I$8) -> 0 | J73: =+IF(F73="Pasajero",'2.2 OPEX LAP 2023'!L73*'2.1 OPEX TUUA'!$J$7,'2.2 OPEX LAP 2023'!L73*'2.1 OPEX TUUA'!$J$8) -> 0 | K73: =+IF(F73="Pasajero",'2.2 OPEX LAP 2023'!M73*'2.1 OPEX TUUA'!$K$7,'2.2 OPEX LAP 2023'!M73*'2.1 OPEX TUUA'!$K$8) -> 0 | L73: =+IF(F73="Pasajero",'2.2 OPEX LAP 2023'!N73*'2.1 OPEX TUUA'!$L$7,'2.2 OPEX LAP 2023'!N73*'2.1 OPEX TUUA'!$L$8) -> 0 | N73: =+IF(F73="Pasajero",'2.2 OPEX LAP 2023'!I73*'2.1 OPEX TUUA'!$N$7,'2.2 OPEX LAP 2023'!I73*'2.1 OPEX TUUA'!$N$8) -> 0 | O73: =+IF(F73="Pasajero",'2.2 OPEX LAP 2023'!J73*'2.1 OPEX TUUA'!$O$7,'2.2 OPEX LAP 2023'!J73*'2.1 OPEX TUUA'!$O$8) -> 0 | P73: =+IF(F73="Pasajero",'2.2 OPEX LAP 2023'!K73*'2.1 OPEX TUUA'!$P$7,'2.2 OPEX LAP 2023'!K73*'2.1 OPEX TUUA'!$P$8) -> 0 | Q73: =+IF(F73="Pasajero",'2.2 OPEX LAP 2023'!L73*'2.1 OPEX TUUA'!$Q$7,'2.2 OPEX LAP 2023'!L73*'2.1 OPEX TUUA'!$Q$8) -> 0 | R73: =+IF(F73="Pasajero",'2.2 OPEX LAP 2023'!M73*'2.1 OPEX TUUA'!$R$7,'2.2 OPEX LAP 2023'!M73*'2.1 OPEX TUUA'!$R$8) -> 0 | S73: =+IF(F73="Pasajero",'2.2 OPEX LAP 2023'!N73*'2.1 OPEX TUUA'!$S$7,'2.2 OPEX LAP 2023'!N73*'2.1 OPEX TUUA'!$S$8) -> 0 | U73: 0 | V73: 0 | W73: 0 | X73: 0 | Y73: 0 | Z73: 0 | AA73: 0 | AB73: 0 | AC73: 0 | AD73: 0 | AE73: 0 | AF73: 0
B74: 6343100014 | C74: Directo | D74: Mantenimiento de Activos | E74: MP Aire Gran Techo | F74: Pasajero | G74: =+IF(F74="Pasajero",'2.2 OPEX LAP 2023'!I74*'2.1 OPEX TUUA'!$G$7,'2.2 OPEX LAP 2023'!I74*'2.1 OPEX TUUA'!$G$8) -> 0 | H74: =+IF(F74="Pasajero",'2.2 OPEX LAP 2023'!J74*'2.1 OPEX TUUA'!$H$7,'2.2 OPEX LAP 2023'!J74*'2.1 OPEX TUUA'!$H$8) -> 0 | I74: =+IF(F74="Pasajero",'2.2 OPEX LAP 2023'!K74*'2.1 OPEX TUUA'!$I$7,'2.2 OPEX LAP 2023'!K74*'2.1 OPEX TUUA'!$I$8) -> 0 | J74: =+IF(F74="Pasajero",'2.2 OPEX LAP 2023'!L74*'2.1 OPEX TUUA'!$J$7,'2.2 OPEX LAP 2023'!L74*'2.1 OPEX TUUA'!$J$8) -> 0 | K74: =+IF(F74="Pasajero",'2.2 OPEX LAP 2023'!M74*'2.1 OPEX TUUA'!$K$7,'2.2 OPEX LAP 2023'!M74*'2.1 OPEX TUUA'!$K$8) -> 0 | L74: =+IF(F74="Pasajero",'2.2 OPEX LAP 2023'!N74*'2.1 OPEX TUUA'!$L$7,'2.2 OPEX LAP 2023'!N74*'2.1 OPEX TUUA'!$L$8) -> 0 | N74: =+IF(F74="Pasajero",'2.2 OPEX LAP 2023'!I74*'2.1 OPEX TUUA'!$N$7,'2.2 OPEX LAP 2023'!I74*'2.1 OPEX TUUA'!$N$8) -> 0 | O74: =+IF(F74="Pasajero",'2.2 OPEX LAP 2023'!J74*'2.1 OPEX TUUA'!$O$7,'2.2 OPEX LAP 2023'!J74*'2.1 OPEX TUUA'!$O$8) -> 0 | P74: =+IF(F74="Pasajero",'2.2 OPEX LAP 2023'!K74*'2.1 OPEX TUUA'!$P$7,'2.2 OPEX LAP 2023'!K74*'2.1 OPEX TUUA'!$P$8) -> 0 | Q74: =+IF(F74="Pasajero",'2.2 OPEX LAP 2023'!L74*'2.1 OPEX TUUA'!$Q$7,'2.2 OPEX LAP 2023'!L74*'2.1 OPEX TUUA'!$Q$8) -> 0 | R74: =+IF(F74="Pasajero",'2.2 OPEX LAP 2023'!M74*'2.1 OPEX TUUA'!$R$7,'2.2 OPEX LAP 2023'!M74*'2.1 OPEX TUUA'!$R$8) -> 0 | S74: =+IF(F74="Pasajero",'2.2 OPEX LAP 2023'!N74*'2.1 OPEX TUUA'!$S$7,'2.2 OPEX LAP 2023'!N74*'2.1 OPEX TUUA'!$S$8) -> 0 | U74: 0 | V74: 0 | W74: 0 | X74: 0 | Y74: 0 | Z74: 0 | AA74: 0 | AB74: 0 | AC74: 0 | AD74: 0 | AE74: 0 | AF74: 0
B75: 6343100015 | C75: Directo | D75: Mantenimiento de Activos | E75: MC Ascensores | F75: Pasajero | G75: =+IF(F75="Pasajero",'2.2 OPEX LAP 2023'!I75*'2.1 OPEX TUUA'!$G$7,'2.2 OPEX LAP 2023'!I75*'2.1 OPEX TUUA'!$G$8) -> 135.9735665 | H75: =+IF(F75="Pasajero",'2.2 OPEX LAP 2023'!J75*'2.1 OPEX TUUA'!$H$7,'2.2 OPEX LAP 2023'!J75*'2.1 OPEX TUUA'!$H$8) -> 159.4976847 | I75: =+IF(F75="Pasajero",'2.2 OPEX LAP 2023'!K75*'2.1 OPEX TUUA'!$I$7,'2.2 OPEX LAP 2023'!K75*'2.1 OPEX TUUA'!$I$8) -> 179.300774 | J75: =+IF(F75="Pasajero",'2.2 OPEX LAP 2023'!L75*'2.1 OPEX TUUA'!$J$7,'2.2 OPEX LAP 2023'!L75*'2.1 OPEX TUUA'!$J$8) -> 189.9720916 | K75: =+IF(F75="Pasajero",'2.2 OPEX LAP 2023'!M75*'2.1 OPEX TUUA'!$K$7,'2.2 OPEX LAP 2023'!M75*'2.1 OPEX TUUA'!$K$8) -> 197.7689896 | L75: =+IF(F75="Pasajero",'2.2 OPEX LAP 2023'!N75*'2.1 OPEX TUUA'!$L$7,'2.2 OPEX LAP 2023'!N75*'2.1 OPEX TUUA'!$L$8) -> 206.4314942 | N75: =+IF(F75="Pasajero",'2.2 OPEX LAP 2023'!I75*'2.1 OPEX TUUA'!$N$7,'2.2 OPEX LAP 2023'!I75*'2.1 OPEX TUUA'!$N$8) -> 67.06450502 | O75: =+IF(F75="Pasajero",'2.2 OPEX LAP 2023'!J75*'2.1 OPEX TUUA'!$O$7,'2.2 OPEX LAP 2023'!J75*'2.1 OPEX TUUA'!$O$8) -> 66.05807562 | P75: =+IF(F75="Pasajero",'2.2 OPEX LAP 2023'!K75*'2.1 OPEX TUUA'!$P$7,'2.2 OPEX LAP 2023'!K75*'2.1 OPEX TUUA'!$P$8) -> 65.64715503 | Q75: =+IF(F75="Pasajero",'2.2 OPEX LAP 2023'!L75*'2.1 OPEX TUUA'!$Q$7,'2.2 OPEX LAP 2023'!L75*'2.1 OPEX TUUA'!$Q$8) -> 65.21948984 | R75: =+IF(F75="Pasajero",'2.2 OPEX LAP 2023'!M75*'2.1 OPEX TUUA'!$R$7,'2.2 OPEX LAP 2023'!M75*'2.1 OPEX TUUA'!$R$8) -> 65.56943209 | S75: =+IF(F75="Pasajero",'2.2 OPEX LAP 2023'!N75*'2.1 OPEX TUUA'!$S$7,'2.2 OPEX LAP 2023'!N75*'2.1 OPEX TUUA'!$S$8) -> 65.61128613 | U75: 135.9735665 | V75: 159.4976847 | W75: 179.300774 | X75: 189.9720916 | Y75: 197.7689896 | Z75: 206.4314942 | AA75: 0 | AB75: 0 | AC75: 0 | AD75: 0 | AE75: 0 | AF75: 0
B76: 6343100016 | C76: Directo | D76: Mantenimiento de Activos | E76: MC Aire acondicionado | F76: Pasajero | G76: =+IF(F76="Pasajero",'2.2 OPEX LAP 2023'!I76*'2.1 OPEX TUUA'!$G$7,'2.2 OPEX LAP 2023'!I76*'2.1 OPEX TUUA'!$G$8) -> 0 | H76: =+IF(F76="Pasajero",'2.2 OPEX LAP 2023'!J76*'2.1 OPEX TUUA'!$H$7,'2.2 OPEX LAP 2023'!J76*'2.1 OPEX TUUA'!$H$8) -> 0 | I76: =+IF(F76="Pasajero",'2.2 OPEX LAP 2023'!K76*'2.1 OPEX TUUA'!$I$7,'2.2 OPEX LAP 2023'!K76*'2.1 OPEX TUUA'!$I$8) -> 0 | J76: =+IF(F76="Pasajero",'2.2 OPEX LAP 2023'!L76*'2.1 OPEX TUUA'!$J$7,'2.2 OPEX LAP 2023'!L76*'2.1 OPEX TUUA'!$J$8) -> 0 | K76: =+IF(F76="Pasajero",'2.2 OPEX LAP 2023'!M76*'2.1 OPEX TUUA'!$K$7,'2.2 OPEX LAP 2023'!M76*'2.1 OPEX TUUA'!$K$8) -> 0 | L76: =+IF(F76="Pasajero",'2.2 OPEX LAP 2023'!N76*'2.1 OPEX TUUA'!$L$7,'2.2 OPEX LAP 2023'!N76*'2.1 OPEX TUUA'!$L$8) -> 0 | N76: =+IF(F76="Pasajero",'2.2 OPEX LAP 2023'!I76*'2.1 OPEX TUUA'!$N$7,'2.2 OPEX LAP 2023'!I76*'2.1 OPEX TUUA'!$N$8) -> 0 | O76: =+IF(F76="Pasajero",'2.2 OPEX LAP 2023'!J76*'2.1 OPEX TUUA'!$O$7,'2.2 OPEX LAP 2023'!J76*'2.1 OPEX TUUA'!$O$8) -> 0 | P76: =+IF(F76="Pasajero",'2.2 OPEX LAP 2023'!K76*'2.1 OPEX TUUA'!$P$7,'2.2 OPEX LAP 2023'!K76*'2.1 OPEX TUUA'!$P$8) -> 0 | Q76: =+IF(F76="Pasajero",'2.2 OPEX LAP 2023'!L76*'2.1 OPEX TUUA'!$Q$7,'2.2 OPEX LAP 2023'!L76*'2.1 OPEX TUUA'!$Q$8) -> 0 | R76: =+IF(F76="Pasajero",'2.2 OPEX LAP 2023'!M76*'2.1 OPEX TUUA'!$R$7,'2.2 OPEX LAP 2023'!M76*'2.1 OPEX TUUA'!$R$8) -> 0 | S76: =+IF(F76="Pasajero",'2.2 OPEX LAP 2023'!N76*'2.1 OPEX TUUA'!$S$7,'2.2 OPEX LAP 2023'!N76*'2.1 OPEX TUUA'!$S$8) -> 0 | U76: 0 | V76: 0 | W76: 0 | X76: 0 | Y76: 0 | Z76: 0 | AA76: 0 | AB76: 0 | AC76: 0 | AD76: 0 | AE76: 0 | AF76: 0
B77: 6343100017 | C77: Directo | D77: Mantenimiento de Activos | E77: MC Iluminacion | F77: Pasajero | G77: =+IF(F77="Pasajero",'2.2 OPEX LAP 2023'!I77*'2.1 OPEX TUUA'!$G$7,'2.2 OPEX LAP 2023'!I77*'2.1 OPEX TUUA'!$G$8) -> 0 | H77: =+IF(F77="Pasajero",'2.2 OPEX LAP 2023'!J77*'2.1 OPEX TUUA'!$H$7,'2.2 OPEX LAP 2023'!J77*'2.1 OPEX TUUA'!$H$8) -> 0 | I77: =+IF(F77="Pasajero",'2.2 OPEX LAP 2023'!K77*'2.1 OPEX TUUA'!$I$7,'2.2 OPEX LAP 2023'!K77*'2.1 OPEX TUUA'!$I$8) -> 0 | J77: =+IF(F77="Pasajero",'2.2 OPEX LAP 2023'!L77*'2.1 OPEX TUUA'!$J$7,'2.2 OPEX LAP 2023'!L77*'2.1 OPEX TUUA'!$J$8) -> 0 | K77: =+IF(F77="Pasajero",'2.2 OPEX LAP 2023'!M77*'2.1 OPEX TUUA'!$K$7,'2.2 OPEX LAP 2023'!M77*'2.1 OPEX TUUA'!$K$8) -> 0 | L77: =+IF(F77="Pasajero",'2.2 OPEX LAP 2023'!N77*'2.1 OPEX TUUA'!$L$7,'2.2 OPEX LAP 2023'!N77*'2.1 OPEX TUUA'!$L$8) -> 0 | N77: =+IF(F77="Pasajero",'2.2 OPEX LAP 2023'!I77*'2.1 OPEX TUUA'!$N$7,'2.2 OPEX LAP 2023'!I77*'2.1 OPEX TUUA'!$N$8) -> 0 | O77: =+IF(F77="Pasajero",'2.2 OPEX LAP 2023'!J77*'2.1 OPEX TUUA'!$O$7,'2.2 OPEX LAP 2023'!J77*'2.1 OPEX TUUA'!$O$8) -> 0 | P77: =+IF(F77="Pasajero",'2.2 OPEX LAP 2023'!K77*'2.1 OPEX TUUA'!$P$7,'2.2 OPEX LAP 2023'!K77*'2.1 OPEX TUUA'!$P$8) -> 0 | Q77: =+IF(F77="Pasajero",'2.2 OPEX LAP 2023'!L77*'2.1 OPEX TUUA'!$Q$7,'2.2 OPEX LAP 2023'!L77*'2.1 OPEX TUUA'!$Q$8) -> 0 | R77: =+IF(F77="Pasajero",'2.2 OPEX LAP 2023'!M77*'2.1 OPEX TUUA'!$R$7,'2.2 OPEX LAP 2023'!M77*'2.1 OPEX TUUA'!$R$8) -> 0 | S77: =+IF(F77="Pasajero",'2.2 OPEX LAP 2023'!N77*'2.1 OPEX TUUA'!$S$7,'2.2 OPEX LAP 2023'!N77*'2.1 OPEX TUUA'!$S$8) -> 0 | U77: 0 | V77: 0 | W77: 0 | X77: 0 | Y77: 0 | Z77: 0 | AA77: 0 | AB77: 0 | AC77: 0 | AD77: 0 | AE77: 0 | AF77: 0
B78: 6344000001 | C78: Directo | D78: Mantenimiento de Activos | E78: MP Pav playa estacionam. | F78: Pasajero | G78: =+IF(F78="Pasajero",'2.2 OPEX LAP 2023'!I78*'2.1 OPEX TUUA'!$G$7,'2.2 OPEX LAP 2023'!I78*'2.1 OPEX TUUA'!$G$8) -> 0 | H78: =+IF(F78="Pasajero",'2.2 OPEX LAP 2023'!J78*'2.1 OPEX TUUA'!$H$7,'2.2 OPEX LAP 2023'!J78*'2.1 OPEX TUUA'!$H$8) -> 0 | I78: =+IF(F78="Pasajero",'2.2 OPEX LAP 2023'!K78*'2.1 OPEX TUUA'!$I$7,'2.2 OPEX LAP 2023'!K78*'2.1 OPEX TUUA'!$I$8) -> 0 | J78: =+IF(F78="Pasajero",'2.2 OPEX LAP 2023'!L78*'2.1 OPEX TUUA'!$J$7,'2.2 OPEX LAP 2023'!L78*'2.1 OPEX TUUA'!$J$8) -> 0 | K78: =+IF(F78="Pasajero",'2.2 OPEX LAP 2023'!M78*'2.1 OPEX TUUA'!$K$7,'2.2 OPEX LAP 2023'!M78*'2.1 OPEX TUUA'!$K$8) -> 0 | L78: =+IF(F78="Pasajero",'2.2 OPEX LAP 2023'!N78*'2.1 OPEX TUUA'!$L$7,'2.2 OPEX LAP 2023'!N78*'2.1 OPEX TUUA'!$L$8) -> 0 | N78: =+IF(F78="Pasajero",'2.2 OPEX LAP 2023'!I78*'2.1 OPEX TUUA'!$N$7,'2.2 OPEX LAP 2023'!I78*'2.1 OPEX TUUA'!$N$8) -> 0 | O78: =+IF(F78="Pasajero",'2.2 OPEX LAP 2023'!J78*'2.1 OPEX TUUA'!$O$7,'2.2 OPEX LAP 2023'!J78*'2.1 OPEX TUUA'!$O$8) -> 0 | P78: =+IF(F78="Pasajero",'2.2 OPEX LAP 2023'!K78*'2.1 OPEX TUUA'!$P$7,'2.2 OPEX LAP 2023'!K78*'2.1 OPEX TUUA'!$P$8) -> 0 | Q78: =+IF(F78="Pasajero",'2.2 OPEX LAP 2023'!L78*'2.1 OPEX TUUA'!$Q$7,'2.2 OPEX LAP 2023'!L78*'2.1 OPEX TUUA'!$Q$8) -> 0 | R78: =+IF(F78="Pasajero",'2.2 OPEX LAP 2023'!M78*'2.1 OPEX TUUA'!$R$7,'2.2 OPEX LAP 2023'!M78*'2.1 OPEX TUUA'!$R$8) -> 0 | S78: =+IF(F78="Pasajero",'2.2 OPEX LAP 2023'!N78*'2.1 OPEX TUUA'!$S$7,'2.2 OPEX LAP 2023'!N78*'2.1 OPEX TUUA'!$S$8) -> 0 | U78: 0 | V78: 0 | W78: 0 | X78: 0 | Y78: 0 | Z78: 0 | AA78: 0 | AB78: 0 | AC78: 0 | AD78: 0 | AE78: 0 | AF78: 0
B79: 6344000002 | C79: Directo | D79: Mantenimiento de Activos | E79: MP Pav Plataforma | F79: Pasajero | G79: =+IF(F79="Pasajero",'2.2 OPEX LAP 2023'!I79*'2.1 OPEX TUUA'!$G$7,'2.2 OPEX LAP 2023'!I79*'2.1 OPEX TUUA'!$G$8) -> 0 | H79: =+IF(F79="Pasajero",'2.2 OPEX LAP 2023'!J79*'2.1 OPEX TUUA'!$H$7,'2.2 OPEX LAP 2023'!J79*'2.1 OPEX TUUA'!$H$8) -> 0 | I79: =+IF(F79="Pasajero",'2.2 OPEX LAP 2023'!K79*'2.1 OPEX TUUA'!$I$7,'2.2 OPEX LAP 2023'!K79*'2.1 OPEX TUUA'!$I$8) -> 0 | J79: =+IF(F79="Pasajero",'2.2 OPEX LAP 2023'!L79*'2.1 OPEX TUUA'!$J$7,'2.2 OPEX LAP 2023'!L79*'2.1 OPEX TUUA'!$J$8) -> 0 | K79: =+IF(F79="Pasajero",'2.2 OPEX LAP 2023'!M79*'2.1 OPEX TUUA'!$K$7,'2.2 OPEX LAP 2023'!M79*'2.1 OPEX TUUA'!$K$8) -> 0 | L79: =+IF(F79="Pasajero",'2.2 OPEX LAP 2023'!N79*'2.1 OPEX TUUA'!$L$7,'2.2 OPEX LAP 2023'!N79*'2.1 OPEX TUUA'!$L$8) -> 0 | N79: =+IF(F79="Pasajero",'2.2 OPEX LAP 2023'!I79*'2.1 OPEX TUUA'!$N$7,'2.2 OPEX LAP 2023'!I79*'2.1 OPEX TUUA'!$N$8) -> 0 | O79: =+IF(F79="Pasajero",'2.2 OPEX LAP 2023'!J79*'2.1 OPEX TUUA'!$O$7,'2.2 OPEX LAP 2023'!J79*'2.1 OPEX TUUA'!$O$8) -> 0 | P79: =+IF(F79="Pasajero",'2.2 OPEX LAP 2023'!K79*'2.1 OPEX TUUA'!$P$7,'2.2 OPEX LAP 2023'!K79*'2.1 OPEX TUUA'!$P$8) -> 0 | Q79: =+IF(F79="Pasajero",'2.2 OPEX LAP 2023'!L79*'2.1 OPEX TUUA'!$Q$7,'2.2 OPEX LAP 2023'!L79*'2.1 OPEX TUUA'!$Q$8) -> 0 | R79: =+IF(F79="Pasajero",'2.2 OPEX LAP 2023'!M79*'2.1 OPEX TUUA'!$R$7,'2.2 OPEX LAP 2023'!M79*'2.1 OPEX TUUA'!$R$8) -> 0 | S79: =+IF(F79="Pasajero",'2.2 OPEX LAP 2023'!N79*'2.1 OPEX TUUA'!$S$7,'2.2 OPEX LAP 2023'!N79*'2.1 OPEX TUUA'!$S$8) -> 0 | U79: 0 | V79: 0 | W79: 0 | X79: 0 | Y79: 0 | Z79: 0 | AA79: =+G79-U79 -> 0 | AB79: =+H79-V79 -> 0 | AC79: =+I79-W79 -> 0 | AD79: =+J79-X79 -> 0 | AE79: =+K79-Y79 -> 0 | AF79: =+L79-Z79 -> 0
B80: 6344000003 | C80: Directo | D80: Mantenimiento de Activos | E80: MC de pavimentos | F80: Pasajero | G80: =+IF(F80="Pasajero",'2.2 OPEX LAP 2023'!I80*'2.1 OPEX TUUA'!$G$7,'2.2 OPEX LAP 2023'!I80*'2.1 OPEX TUUA'!$G$8) -> 0 | H80: =+IF(F80="Pasajero",'2.2 OPEX LAP 2023'!J80*'2.1 OPEX TUUA'!$H$7,'2.2 OPEX LAP 2023'!J80*'2.1 OPEX TUUA'!$H$8) -> 0 | I80: =+IF(F80="Pasajero",'2.2 OPEX LAP 2023'!K80*'2.1 OPEX TUUA'!$I$7,'2.2 OPEX LAP 2023'!K80*'2.1 OPEX TUUA'!$I$8) -> 0 | J80: =+IF(F80="Pasajero",'2.2 OPEX LAP 2023'!L80*'2.1 OPEX TUUA'!$J$7,'2.2 OPEX LAP 2023'!L80*'2.1 OPEX TUUA'!$J$8) -> 0 | K80: =+IF(F80="Pasajero",'2.2 OPEX LAP 2023'!M80*'2.1 OPEX TUUA'!$K$7,'2.2 OPEX LAP 2023'!M80*'2.1 OPEX TUUA'!$K$8) -> 0 | L80: =+IF(F80="Pasajero",'2.2 OPEX LAP 2023'!N80*'2.1 OPEX TUUA'!$L$7,'2.2 OPEX LAP 2023'!N80*'2.1 OPEX TUUA'!$L$8) -> 0 | N80: =+IF(F80="Pasajero",'2.2 OPEX LAP 2023'!I80*'2.1 OPEX TUUA'!$N$7,'2.2 OPEX LAP 2023'!I80*'2.1 OPEX TUUA'!$N$8) -> 0 | O80: =+IF(F80="Pasajero",'2.2 OPEX LAP 2023'!J80*'2.1 OPEX TUUA'!$O$7,'2.2 OPEX LAP 2023'!J80*'2.1 OPEX TUUA'!$O$8) -> 0 | P80: =+IF(F80="Pasajero",'2.2 OPEX LAP 2023'!K80*'2.1 OPEX TUUA'!$P$7,'2.2 OPEX LAP 2023'!K80*'2.1 OPEX TUUA'!$P$8) -> 0 | Q80: =+IF(F80="Pasajero",'2.2 OPEX LAP 2023'!L80*'2.1 OPEX TUUA'!$Q$7,'2.2 OPEX LAP 2023'!L80*'2.1 OPEX TUUA'!$Q$8) -> 0 | R80: =+IF(F80="Pasajero",'2.2 OPEX LAP 2023'!M80*'2.1 OPEX TUUA'!$R$7,'2.2 OPEX LAP 2023'!M80*'2.1 OPEX TUUA'!$R$8) -> 0 | S80: =+IF(F80="Pasajero",'2.2 OPEX LAP 2023'!N80*'2.1 OPEX TUUA'!$S$7,'2.2 OPEX LAP 2023'!N80*'2.1 OPEX TUUA'!$S$8) -> 0 | U80: 0 | V80: 0 | W80: 0 | X80: 0 | Y80: 0 | Z80: 0 | AA80: 0 | AB80: 0 | AC80: 0 | AD80: 0 | AE80: 0 | AF80: 0
B81: 6345000001 | C81: Directo | D81: Mantenimiento de Activos | E81: MP de areas verdes | F81: Pasajero | G81: =+IF(F81="Pasajero",'2.2 OPEX LAP 2023'!I81*'2.1 OPEX TUUA'!$G$7,'2.2 OPEX LAP 2023'!I81*'2.1 OPEX TUUA'!$G$8) -> 0 | H81: =+IF(F81="Pasajero",'2.2 OPEX LAP 2023'!J81*'2.1 OPEX TUUA'!$H$7,'2.2 OPEX LAP 2023'!J81*'2.1 OPEX TUUA'!$H$8) -> 0 | I81: =+IF(F81="Pasajero",'2.2 OPEX LAP 2023'!K81*'2.1 OPEX TUUA'!$I$7,'2.2 OPEX LAP 2023'!K81*'2.1 OPEX TUUA'!$I$8) -> 0 | J81: =+IF(F81="Pasajero",'2.2 OPEX LAP 2023'!L81*'2.1 OPEX TUUA'!$J$7,'2.2 OPEX LAP 2023'!L81*'2.1 OPEX TUUA'!$J$8) -> 0 | K81: =+IF(F81="Pasajero",'2.2 OPEX LAP 2023'!M81*'2.1 OPEX TUUA'!$K$7,'2.2 OPEX LAP 2023'!M81*'2.1 OPEX TUUA'!$K$8) -> 0 | L81: =+IF(F81="Pasajero",'2.2 OPEX LAP 2023'!N81*'2.1 OPEX TUUA'!$L$7,'2.2 OPEX LAP 2023'!N81*'2.1 OPEX TUUA'!$L$8) -> 0 | N81: =+IF(F81="Pasajero",'2.2 OPEX LAP 2023'!I81*'2.1 OPEX TUUA'!$N$7,'2.2 OPEX LAP 2023'!I81*'2.1 OPEX TUUA'!$N$8) -> 0 | O81: =+IF(F81="Pasajero",'2.2 OPEX LAP 2023'!J81*'2.1 OPEX TUUA'!$O$7,'2.2 OPEX LAP 2023'!J81*'2.1 OPEX TUUA'!$O$8) -> 0 | P81: =+IF(F81="Pasajero",'2.2 OPEX LAP 2023'!K81*'2.1 OPEX TUUA'!$P$7,'2.2 OPEX LAP 2023'!K81*'2.1 OPEX TUUA'!$P$8) -> 0 | Q81: =+IF(F81="Pasajero",'2.2 OPEX LAP 2023'!L81*'2.1 OPEX TUUA'!$Q$7,'2.2 OPEX LAP 2023'!L81*'2.1 OPEX TUUA'!$Q$8) -> 0 | R81: =+IF(F81="Pasajero",'2.2 OPEX LAP 2023'!M81*'2.1 OPEX TUUA'!$R$7,'2.2 OPEX LAP 2023'!M81*'2.1 OPEX TUUA'!$R$8) -> 0 | S81: =+IF(F81="Pasajero",'2.2 OPEX LAP 2023'!N81*'2.1 OPEX TUUA'!$S$7,'2.2 OPEX LAP 2023'!N81*'2.1 OPEX TUUA'!$S$8) -> 0 | U81: 0 | V81: 0 | W81: 0 | X81: 0 | Y81: 0 | Z81: 0 | AA81: 0 | AB81: 0 | AC81: 0 | AD81: 0 | AE81: 0 | AF81: 0
B82: 6346000001 | C82: Directo | D82: Mantenimiento de Activos | E82: MP y MC muebles administr. | F82: Pasajero | G82: =+IF(F82="Pasajero",'2.2 OPEX LAP 2023'!I82*'2.1 OPEX TUUA'!$G$7,'2.2 OPEX LAP 2023'!I82*'2.1 OPEX TUUA'!$G$8) -> 0 | H82: =+IF(F82="Pasajero",'2.2 OPEX LAP 2023'!J82*'2.1 OPEX TUUA'!$H$7,'2.2 OPEX LAP 2023'!J82*'2.1 OPEX TUUA'!$H$8) -> 0 | I82: =+IF(F82="Pasajero",'2.2 OPEX LAP 2023'!K82*'2.1 OPEX TUUA'!$I$7,'2.2 OPEX LAP 2023'!K82*'2.1 OPEX TUUA'!$I$8) -> 0 | J82: =+IF(F82="Pasajero",'2.2 OPEX LAP 2023'!L82*'2.1 OPEX TUUA'!$J$7,'2.2 OPEX LAP 2023'!L82*'2.1 OPEX TUUA'!$J$8) -> 0 | K82: =+IF(F82="Pasajero",'2.2 OPEX LAP 2023'!M82*'2.1 OPEX TUUA'!$K$7,'2.2 OPEX LAP 2023'!M82*'2.1 OPEX TUUA'!$K$8) -> 0 | L82: =+IF(F82="Pasajero",'2.2 OPEX LAP 2023'!N82*'2.1 OPEX TUUA'!$L$7,'2.2 OPEX LAP 2023'!N82*'2.1 OPEX TUUA'!$L$8) -> 0 | N82: =+IF(F82="Pasajero",'2.2 OPEX LAP 2023'!I82*'2.1 OPEX TUUA'!$N$7,'2.2 OPEX LAP 2023'!I82*'2.1 OPEX TUUA'!$N$8) -> 0 | O82: =+IF(F82="Pasajero",'2.2 OPEX LAP 2023'!J82*'2.1 OPEX TUUA'!$O$7,'2.2 OPEX LAP 2023'!J82*'2.1 OPEX TUUA'!$O$8) -> 0 | P82: =+IF(F82="Pasajero",'2.2 OPEX LAP 2023'!K82*'2.1 OPEX TUUA'!$P$7,'2.2 OPEX LAP 2023'!K82*'2.1 OPEX TUUA'!$P$8) -> 0 | Q82: =+IF(F82="Pasajero",'2.2 OPEX LAP 2023'!L82*'2.1 OPEX TUUA'!$Q$7,'2.2 OPEX LAP 2023'!L82*'2.1 OPEX TUUA'!$Q$8) -> 0 | R82: =+IF(F82="Pasajero",'2.2 OPEX LAP 2023'!M82*'2.1 OPEX TUUA'!$R$7,'2.2 OPEX LAP 2023'!M82*'2.1 OPEX TUUA'!$R$8) -> 0 | S82: =+IF(F82="Pasajero",'2.2 OPEX LAP 2023'!N82*'2.1 OPEX TUUA'!$S$7,'2.2 OPEX LAP 2023'!N82*'2.1 OPEX TUUA'!$S$8) -> 0 | U82: 0 | V82: 0 | W82: 0 | X82: 0 | Y82: 0 | Z82: 0 | AA82: 0 | AB82: 0 | AC82: 0 | AD82: 0 | AE82: 0 | AF82: 0
B83: 6347000001 | C83: Directo | D83: Mantenimiento de Activos | E83: Mant. de equip. informáticos | F83: Pasajero | G83: =+IF(F83="Pasajero",'2.2 OPEX LAP 2023'!I83*'2.1 OPEX TUUA'!$G$7,'2.2 OPEX LAP 2023'!I83*'2.1 OPEX TUUA'!$G$8) -> 3514.38161 | H83: =+IF(F83="Pasajero",'2.2 OPEX LAP 2023'!J83*'2.1 OPEX TUUA'!$H$7,'2.2 OPEX LAP 2023'!J83*'2.1 OPEX TUUA'!$H$8) -> 4122.387493 | I83: =+IF(F83="Pasajero",'2.2 OPEX LAP 2023'!K83*'2.1 OPEX TUUA'!$I$7,'2.2 OPEX LAP 2023'!K83*'2.1 OPEX TUUA'!$I$8) -> 4634.219419 | J83: =+IF(F83="Pasajero",'2.2 OPEX LAP 2023'!L83*'2.1 OPEX TUUA'!$J$7,'2.2 OPEX LAP 2023'!L83*'2.1 OPEX TUUA'!$J$8) -> 4910.030986 | K83: =+IF(F83="Pasajero",'2.2 OPEX LAP 2023'!M83*'2.1 OPEX TUUA'!$K$7,'2.2 OPEX LAP 2023'!M83*'2.1 OPEX TUUA'!$K$8) -> 5111.550118 | L83: =+IF(F83="Pasajero",'2.2 OPEX LAP 2023'!N83*'2.1 OPEX TUUA'!$L$7,'2.2 OPEX LAP 2023'!N83*'2.1 OPEX TUUA'!$L$8) -> 5335.441772 | N83: =+IF(F83="Pasajero",'2.2 OPEX LAP 2023'!I83*'2.1 OPEX TUUA'!$N$7,'2.2 OPEX LAP 2023'!I83*'2.1 OPEX TUUA'!$N$8) -> 1733.353541 | O83: =+IF(F83="Pasajero",'2.2 OPEX LAP 2023'!J83*'2.1 OPEX TUUA'!$O$7,'2.2 OPEX LAP 2023'!J83*'2.1 OPEX TUUA'!$O$8) -> 1707.341302 | P83: =+IF(F83="Pasajero",'2.2 OPEX LAP 2023'!K83*'2.1 OPEX TUUA'!$P$7,'2.2 OPEX LAP 2023'!K83*'2.1 OPEX TUUA'!$P$8) -> 1696.720622 | Q83: =+IF(F83="Pasajero",'2.2 OPEX LAP 2023'!L83*'2.1 OPEX TUUA'!$Q$7,'2.2 OPEX LAP 2023'!L83*'2.1 OPEX TUUA'!$Q$8) -> 1685.667159 | R83: =+IF(F83="Pasajero",'2.2 OPEX LAP 2023'!M83*'2.1 OPEX TUUA'!$R$7,'2.2 OPEX LAP 2023'!M83*'2.1 OPEX TUUA'!$R$8) -> 1694.71179 | S83: =+IF(F83="Pasajero",'2.2 OPEX LAP 2023'!N83*'2.1 OPEX TUUA'!$S$7,'2.2 OPEX LAP 2023'!N83*'2.1 OPEX TUUA'!$S$8) -> 1695.793552 | U83: 3514.38161 | V83: 4122.387493 | W83: 4634.219419 | X83: 4910.030986 | Y83: 5111.550118 | Z83: 5335.441772 | AA83: 0 | AB83: 0 | AC83: 0 | AD83: 0 | AE83: 0 | AF83: 0
B84: 6348000001 | C84: Directo | D84: Mantenimiento de Activos | E84: Mant. de Control Calidad | F84: Pasajero | G84: =+IF(F84="Pasajero",'2.2 OPEX LAP 2023'!I84*'2.1 OPEX TUUA'!$G$7,'2.2 OPEX LAP 2023'!I84*'2.1 OPEX TUUA'!$G$8) -> 56.93119299 | H84: =+IF(F84="Pasajero",'2.2 OPEX LAP 2023'!J84*'2.1 OPEX TUUA'!$H$7,'2.2 OPEX LAP 2023'!J84*'2.1 OPEX TUUA'!$H$8) -> 66.78057877 | I84: =+IF(F84="Pasajero",'2.2 OPEX LAP 2023'!K84*'2.1 OPEX TUUA'!$I$7,'2.2 OPEX LAP 2023'!K84*'2.1 OPEX TUUA'!$I$8) -> 75.07199542 | J84: =+IF(F84="Pasajero",'2.2 OPEX LAP 2023'!L84*'2.1 OPEX TUUA'!$J$7,'2.2 OPEX LAP 2023'!L84*'2.1 OPEX TUUA'!$J$8) -> 79.54000238 | K84: =+IF(F84="Pasajero",'2.2 OPEX LAP 2023'!M84*'2.1 OPEX TUUA'!$K$7,'2.2 OPEX LAP 2023'!M84*'2.1 OPEX TUUA'!$K$8) -> 82.80450974 | L84: =+IF(F84="Pasajero",'2.2 OPEX LAP 2023'!N84*'2.1 OPEX TUUA'!$L$7,'2.2 OPEX LAP 2023'!N84*'2.1 OPEX TUUA'!$L$8) -> 86.43144055 | N84: =+IF(F84="Pasajero",'2.2 OPEX LAP 2023'!I84*'2.1 OPEX TUUA'!$N$7,'2.2 OPEX LAP 2023'!I84*'2.1 OPEX TUUA'!$N$8) -> 28.07944496 | O84: =+IF(F84="Pasajero",'2.2 OPEX LAP 2023'!J84*'2.1 OPEX TUUA'!$O$7,'2.2 OPEX LAP 2023'!J84*'2.1 OPEX TUUA'!$O$8) -> 27.65805993 | P84: =+IF(F84="Pasajero",'2.2 OPEX LAP 2023'!K84*'2.1 OPEX TUUA'!$P$7,'2.2 OPEX LAP 2023'!K84*'2.1 OPEX TUUA'!$P$8) -> 27.48601031 | Q84: =+IF(F84="Pasajero",'2.2 OPEX LAP 2023'!L84*'2.1 OPEX TUUA'!$Q$7,'2.2 OPEX LAP 2023'!L84*'2.1 OPEX TUUA'!$Q$8) -> 27.30694985 | R84: =+IF(F84="Pasajero",'2.2 OPEX LAP 2023'!M84*'2.1 OPEX TUUA'!$R$7,'2.2 OPEX LAP 2023'!M84*'2.1 OPEX TUUA'!$R$8) -> 27.45346825 | S84: =+IF(F84="Pasajero",'2.2 OPEX LAP 2023'!N84*'2.1 OPEX TUUA'!$S$7,'2.2 OPEX LAP 2023'!N84*'2.1 OPEX TUUA'!$S$8) -> 27.47099225 | U84: 56.93119299 | V84: 66.78057877 | W84: 75.07199542 | X84: 79.54000238 | Y84: 82.80450974 | Z84: 86.43144055 | AA84: 0 | AB84: 0 | AC84: 0 | AD84: 0 | AE84: 0 | AF84: 0
B85: 6354000001 | C85: Directo | D85: Servicios prestados por terceros | E85: Alquiler de Vehiculos | F85: Pasajero | G85: =+IF(F85="Pasajero",'2.2 OPEX LAP 2023'!I85*'2.1 OPEX TUUA'!$G$7,'2.2 OPEX LAP 2023'!I85*'2.1 OPEX TUUA'!$G$8) -> 0 | H85: =+IF(F85="Pasajero",'2.2 OPEX LAP 2023'!J85*'2.1 OPEX TUUA'!$H$7,'2.2 OPEX LAP 2023'!J85*'2.1 OPEX TUUA'!$H$8) -> 0 | I85: =+IF(F85="Pasajero",'2.2 OPEX LAP 2023'!K85*'2.1 OPEX TUUA'!$I$7,'2.2 OPEX LAP 2023'!K85*'2.1 OPEX TUUA'!$I$8) -> 0 | J85: =+IF(F85="Pasajero",'2.2 OPEX LAP 2023'!L85*'2.1 OPEX TUUA'!$J$7,'2.2 OPEX LAP 2023'!L85*'2.1 OPEX TUUA'!$J$8) -> 0 | K85: =+IF(F85="Pasajero",'2.2 OPEX LAP 2023'!M85*'2.1 OPEX TUUA'!$K$7,'2.2 OPEX LAP 2023'!M85*'2.1 OPEX TUUA'!$K$8) -> 0 | L85: =+IF(F85="Pasajero",'2.2 OPEX LAP 2023'!N85*'2.1 OPEX TUUA'!$L$7,'2.2 OPEX LAP 2023'!N85*'2.1 OPEX TUUA'!$L$8) -> 0 | N85: =+IF(F85="Pasajero",'2.2 OPEX LAP 2023'!I85*'2.1 OPEX TUUA'!$N$7,'2.2 OPEX LAP 2023'!I85*'2.1 OPEX TUUA'!$N$8) -> 0 | O85: =+IF(F85="Pasajero",'2.2 OPEX LAP 2023'!J85*'2.1 OPEX TUUA'!$O$7,'2.2 OPEX LAP 2023'!J85*'2.1 OPEX TUUA'!$O$8) -> 0 | P85: =+IF(F85="Pasajero",'2.2 OPEX LAP 2023'!K85*'2.1 OPEX TUUA'!$P$7,'2.2 OPEX LAP 2023'!K85*'2.1 OPEX TUUA'!$P$8) -> 0 | Q85: =+IF(F85="Pasajero",'2.2 OPEX LAP 2023'!L85*'2.1 OPEX TUUA'!$Q$7,'2.2 OPEX LAP 2023'!L85*'2.1 OPEX TUUA'!$Q$8) -> 0 | R85: =+IF(F85="Pasajero",'2.2 OPEX LAP 2023'!M85*'2.1 OPEX TUUA'!$R$7,'2.2 OPEX LAP 2023'!M85*'2.1 OPEX TUUA'!$R$8) -> 0 | S85: =+IF(F85="Pasajero",'2.2 OPEX LAP 2023'!N85*'2.1 OPEX TUUA'!$S$7,'2.2 OPEX LAP 2023'!N85*'2.1 OPEX TUUA'!$S$8) -> 0 | U85: 0 | V85: 0 | W85: 0 | X85: 0 | Y85: 0 | Z85: 0 | AA85: 0 | AB85: 0 | AC85: 0 | AD85: 0 | AE85: 0 | AF85: 0
B86: 6356000001 | C86: Directo | D86: Servicios prestados por terceros | E86: Alquiler de eq. de computo | F86: Pasajero | G86: =+IF(F86="Pasajero",'2.2 OPEX LAP 2023'!I86*'2.1 OPEX TUUA'!$G$7,'2.2 OPEX LAP 2023'!I86*'2.1 OPEX TUUA'!$G$8) -> 0 | H86: =+IF(F86="Pasajero",'2.2 OPEX LAP 2023'!J86*'2.1 OPEX TUUA'!$H$7,'2.2 OPEX LAP 2023'!J86*'2.1 OPEX TUUA'!$H$8) -> 0 | I86: =+IF(F86="Pasajero",'2.2 OPEX LAP 2023'!K86*'2.1 OPEX TUUA'!$I$7,'2.2 OPEX LAP 2023'!K86*'2.1 OPEX TUUA'!$I$8) -> 0 | J86: =+IF(F86="Pasajero",'2.2 OPEX LAP 2023'!L86*'2.1 OPEX TUUA'!$J$7,'2.2 OPEX LAP 2023'!L86*'2.1 OPEX TUUA'!$J$8) -> 0 | K86: =+IF(F86="Pasajero",'2.2 OPEX LAP 2023'!M86*'2.1 OPEX TUUA'!$K$7,'2.2 OPEX LAP 2023'!M86*'2.1 OPEX TUUA'!$K$8) -> 0 | L86: =+IF(F86="Pasajero",'2.2 OPEX LAP 2023'!N86*'2.1 OPEX TUUA'!$L$7,'2.2 OPEX LAP 2023'!N86*'2.1 OPEX TUUA'!$L$8) -> 0 | N86: =+IF(F86="Pasajero",'2.2 OPEX LAP 2023'!I86*'2.1 OPEX TUUA'!$N$7,'2.2 OPEX LAP 2023'!I86*'2.1 OPEX TUUA'!$N$8) -> 0 | O86: =+IF(F86="Pasajero",'2.2 OPEX LAP 2023'!J86*'2.1 OPEX TUUA'!$O$7,'2.2 OPEX LAP 2023'!J86*'2.1 OPEX TUUA'!$O$8) -> 0 | P86: =+IF(F86="Pasajero",'2.2 OPEX LAP 2023'!K86*'2.1 OPEX TUUA'!$P$7,'2.2 OPEX LAP 2023'!K86*'2.1 OPEX TUUA'!$P$8) -> 0 | Q86: =+IF(F86="Pasajero",'2.2 OPEX LAP 2023'!L86*'2.1 OPEX TUUA'!$Q$7,'2.2 OPEX LAP 2023'!L86*'2.1 OPEX TUUA'!$Q$8) -> 0 | R86: =+IF(F86="Pasajero",'2.2 OPEX LAP 2023'!M86*'2.1 OPEX TUUA'!$R$7,'2.2 OPEX LAP 2023'!M86*'2.1 OPEX TUUA'!$R$8) -> 0 | S86: =+IF(F86="Pasajero",'2.2 OPEX LAP 2023'!N86*'2.1 OPEX TUUA'!$S$7,'2.2 OPEX LAP 2023'!N86*'2.1 OPEX TUUA'!$S$8) -> 0 | U86: 0 | V86: 0 | W86: 0 | X86: 0 | Y86: 0 | Z86: 0 | AA86: 0 | AB86: 0 | AC86: 0 | AD86: 0 | AE86: 0 | AF86: 0
B87: 6356000002 | C87: Directo | D87: Servicios prestados por terceros | E87: Alquiler de maquinaria y equipo | F87: Pasajero | G87: =+IF(F87="Pasajero",'2.2 OPEX LAP 2023'!I87*'2.1 OPEX TUUA'!$G$7,'2.2 OPEX LAP 2023'!I87*'2.1 OPEX TUUA'!$G$8) -> 0 | H87: =+IF(F87="Pasajero",'2.2 OPEX LAP 2023'!J87*'2.1 OPEX TUUA'!$H$7,'2.2 OPEX LAP 2023'!J87*'2.1 OPEX TUUA'!$H$8) -> 0 | I87: =+IF(F87="Pasajero",'2.2 OPEX LAP 2023'!K87*'2.1 OPEX TUUA'!$I$7,'2.2 OPEX LAP 2023'!K87*'2.1 OPEX TUUA'!$I$8) -> 0 | J87: =+IF(F87="Pasajero",'2.2 OPEX LAP 2023'!L87*'2.1 OPEX TUUA'!$J$7,'2.2 OPEX LAP 2023'!L87*'2.1 OPEX TUUA'!$J$8) -> 0 | K87: =+IF(F87="Pasajero",'2.2 OPEX LAP 2023'!M87*'2.1 OPEX TUUA'!$K$7,'2.2 OPEX LAP 2023'!M87*'2.1 OPEX TUUA'!$K$8) -> 0 | L87: =+IF(F87="Pasajero",'2.2 OPEX LAP 2023'!N87*'2.1 OPEX TUUA'!$L$7,'2.2 OPEX LAP 2023'!N87*'2.1 OPEX TUUA'!$L$8) -> 0 | N87: =+IF(F87="Pasajero",'2.2 OPEX LAP 2023'!I87*'2.1 OPEX TUUA'!$N$7,'2.2 OPEX LAP 2023'!I87*'2.1 OPEX TUUA'!$N$8) -> 0 | O87: =+IF(F87="Pasajero",'2.2 OPEX LAP 2023'!J87*'2.1 OPEX TUUA'!$O$7,'2.2 OPEX LAP 2023'!J87*'2.1 OPEX TUUA'!$O$8) -> 0 | P87: =+IF(F87="Pasajero",'2.2 OPEX LAP 2023'!K87*'2.1 OPEX TUUA'!$P$7,'2.2 OPEX LAP 2023'!K87*'2.1 OPEX TUUA'!$P$8) -> 0 | Q87: =+IF(F87="Pasajero",'2.2 OPEX LAP 2023'!L87*'2.1 OPEX TUUA'!$Q$7,'2.2 OPEX LAP 2023'!L87*'2.1 OPEX TUUA'!$Q$8) -> 0 | R87: =+IF(F87="Pasajero",'2.2 OPEX LAP 2023'!M87*'2.1 OPEX TUUA'!$R$7,'2.2 OPEX LAP 2023'!M87*'2.1 OPEX TUUA'!$R$8) -> 0 | S87: =+IF(F87="Pasajero",'2.2 OPEX LAP 2023'!N87*'2.1 OPEX TUUA'!$S$7,'2.2 OPEX LAP 2023'!N87*'2.1 OPEX TUUA'!$S$8) -> 0 | U87: 0 | V87: 0 | W87: 0 | X87: 0 | Y87: 0 | Z87: 0 | AA87: 0 | AB87: 0 | AC87: 0 | AD87: 0 | AE87: 0 | AF87: 0
B88: 6357000001 | C88: Directo | D88: Servicios prestados por terceros | E88: Alquiler de espac.para eventos | F88: Pasajero | G88: =+IF(F88="Pasajero",'2.2 OPEX LAP 2023'!I88*'2.1 OPEX TUUA'!$G$7,'2.2 OPEX LAP 2023'!I88*'2.1 OPEX TUUA'!$G$8) -> 0 | H88: =+IF(F88="Pasajero",'2.2 OPEX LAP 2023'!J88*'2.1 OPEX TUUA'!$H$7,'2.2 OPEX LAP 2023'!J88*'2.1 OPEX TUUA'!$H$8) -> 0 | I88: =+IF(F88="Pasajero",'2.2 OPEX LAP 2023'!K88*'2.1 OPEX TUUA'!$I$7,'2.2 OPEX LAP 2023'!K88*'2.1 OPEX TUUA'!$I$8) -> 0 | J88: =+IF(F88="Pasajero",'2.2 OPEX LAP 2023'!L88*'2.1 OPEX TUUA'!$J$7,'2.2 OPEX LAP 2023'!L88*'2.1 OPEX TUUA'!$J$8) -> 0 | K88: =+IF(F88="Pasajero",'2.2 OPEX LAP 2023'!M88*'2.1 OPEX TUUA'!$K$7,'2.2 OPEX LAP 2023'!M88*'2.1 OPEX TUUA'!$K$8) -> 0 | L88: =+IF(F88="Pasajero",'2.2 OPEX LAP 2023'!N88*'2.1 OPEX TUUA'!$L$7,'2.2 OPEX LAP 2023'!N88*'2.1 OPEX TUUA'!$L$8) -> 0 | N88: =+IF(F88="Pasajero",'2.2 OPEX LAP 2023'!I88*'2.1 OPEX TUUA'!$N$7,'2.2 OPEX LAP 2023'!I88*'2.1 OPEX TUUA'!$N$8) -> 0 | O88: =+IF(F88="Pasajero",'2.2 OPEX LAP 2023'!J88*'2.1 OPEX TUUA'!$O$7,'2.2 OPEX LAP 2023'!J88*'2.1 OPEX TUUA'!$O$8) -> 0 | P88: =+IF(F88="Pasajero",'2.2 OPEX LAP 2023'!K88*'2.1 OPEX TUUA'!$P$7,'2.2 OPEX LAP 2023'!K88*'2.1 OPEX TUUA'!$P$8) -> 0 | Q88: =+IF(F88="Pasajero",'2.2 OPEX LAP 2023'!L88*'2.1 OPEX TUUA'!$Q$7,'2.2 OPEX LAP 2023'!L88*'2.1 OPEX TUUA'!$Q$8) -> 0 | R88: =+IF(F88="Pasajero",'2.2 OPEX LAP 2023'!M88*'2.1 OPEX TUUA'!$R$7,'2.2 OPEX LAP 2023'!M88*'2.1 OPEX TUUA'!$R$8) -> 0 | S88: =+IF(F88="Pasajero",'2.2 OPEX LAP 2023'!N88*'2.1 OPEX TUUA'!$S$7,'2.2 OPEX LAP 2023'!N88*'2.1 OPEX TUUA'!$S$8) -> 0 | U88: 0 | V88: 0 | W88: 0 | X88: 0 | Y88: 0 | Z88: 0 | AA88: 0 | AB88: 0 | AC88: 0 | AD88: 0 | AE88: 0 | AF88: 0
B89: 6358000001 | C89: Directo | D89: Servicios prestados por terceros | E89: alquiler de espacios para los equipos GEMS – monitoreo de ruido | F89: Pasajero | G89: =+IF(F89="Pasajero",'2.2 OPEX LAP 2023'!I89*'2.1 OPEX TUUA'!$G$7,'2.2 OPEX LAP 2023'!I89*'2.1 OPEX TUUA'!$G$8) -> 0 | H89: =+IF(F89="Pasajero",'2.2 OPEX LAP 2023'!J89*'2.1 OPEX TUUA'!$H$7,'2.2 OPEX LAP 2023'!J89*'2.1 OPEX TUUA'!$H$8) -> 0 | I89: =+IF(F89="Pasajero",'2.2 OPEX LAP 2023'!K89*'2.1 OPEX TUUA'!$I$7,'2.2 OPEX LAP 2023'!K89*'2.1 OPEX TUUA'!$I$8) -> 0 | J89: =+IF(F89="Pasajero",'2.2 OPEX LAP 2023'!L89*'2.1 OPEX TUUA'!$J$7,'2.2 OPEX LAP 2023'!L89*'2.1 OPEX TUUA'!$J$8) -> 0 | K89: =+IF(F89="Pasajero",'2.2 OPEX LAP 2023'!M89*'2.1 OPEX TUUA'!$K$7,'2.2 OPEX LAP 2023'!M89*'2.1 OPEX TUUA'!$K$8) -> 0 | L89: =+IF(F89="Pasajero",'2.2 OPEX LAP 2023'!N89*'2.1 OPEX TUUA'!$L$7,'2.2 OPEX LAP 2023'!N89*'2.1 OPEX TUUA'!$L$8) -> 0 | N89: =+IF(F89="Pasajero",'2.2 OPEX LAP 2023'!I89*'2.1 OPEX TUUA'!$N$7,'2.2 OPEX LAP 2023'!I89*'2.1 OPEX TUUA'!$N$8) -> 0 | O89: =+IF(F89="Pasajero",'2.2 OPEX LAP 2023'!J89*'2.1 OPEX TUUA'!$O$7,'2.2 OPEX LAP 2023'!J89*'2.1 OPEX TUUA'!$O$8) -> 0 | P89: =+IF(F89="Pasajero",'2.2 OPEX LAP 2023'!K89*'2.1 OPEX TUUA'!$P$7,'2.2 OPEX LAP 2023'!K89*'2.1 OPEX TUUA'!$P$8) -> 0 | Q89: =+IF(F89="Pasajero",'2.2 OPEX LAP 2023'!L89*'2.1 OPEX TUUA'!$Q$7,'2.2 OPEX LAP 2023'!L89*'2.1 OPEX TUUA'!$Q$8) -> 0 | R89: =+IF(F89="Pasajero",'2.2 OPEX LAP 2023'!M89*'2.1 OPEX TUUA'!$R$7,'2.2 OPEX LAP 2023'!M89*'2.1 OPEX TUUA'!$R$8) -> 0 | S89: =+IF(F89="Pasajero",'2.2 OPEX LAP 2023'!N89*'2.1 OPEX TUUA'!$S$7,'2.2 OPEX LAP 2023'!N89*'2.1 OPEX TUUA'!$S$8) -> 0 | U89: 0 | V89: 0 | W89: 0 | X89: 0 | Y89: 0 | Z89: 0 | AA89: 0 | AB89: 0 | AC89: 0 | AD89: 0 | AE89: 0 | AF89: 0
B90: 6360000001 | C90: Directo | D90: Servicios prestados por terceros | E90: Consumo telefónico | F90: Pasajero | G90: =+IF(F90="Pasajero",'2.2 OPEX LAP 2023'!I90*'2.1 OPEX TUUA'!$G$7,'2.2 OPEX LAP 2023'!I90*'2.1 OPEX TUUA'!$G$8) -> 509.2683668 | H90: =+IF(F90="Pasajero",'2.2 OPEX LAP 2023'!J90*'2.1 OPEX TUUA'!$H$7,'2.2 OPEX LAP 2023'!J90*'2.1 OPEX TUUA'!$H$8) -> 597.374383 | I90: =+IF(F90="Pasajero",'2.2 OPEX LAP 2023'!K90*'2.1 OPEX TUUA'!$I$7,'2.2 OPEX LAP 2023'!K90*'2.1 OPEX TUUA'!$I$8) -> 671.5438495 | J90: =+IF(F90="Pasajero",'2.2 OPEX LAP 2023'!L90*'2.1 OPEX TUUA'!$J$7,'2.2 OPEX LAP 2023'!L90*'2.1 OPEX TUUA'!$J$8) -> 711.5116508 | K90: =+IF(F90="Pasajero",'2.2 OPEX LAP 2023'!M90*'2.1 OPEX TUUA'!$K$7,'2.2 OPEX LAP 2023'!M90*'2.1 OPEX TUUA'!$K$8) -> 740.7137498 | L90: =+IF(F90="Pasajero",'2.2 OPEX LAP 2023'!N90*'2.1 OPEX TUUA'!$L$7,'2.2 OPEX LAP 2023'!N90*'2.1 OPEX TUUA'!$L$8) -> 773.1578465 | N90: =+IF(F90="Pasajero",'2.2 OPEX LAP 2023'!I90*'2.1 OPEX TUUA'!$N$7,'2.2 OPEX LAP 2023'!I90*'2.1 OPEX TUUA'!$N$8) -> 251.1799301 | O90: =+IF(F90="Pasajero",'2.2 OPEX LAP 2023'!J90*'2.1 OPEX TUUA'!$O$7,'2.2 OPEX LAP 2023'!J90*'2.1 OPEX TUUA'!$O$8) -> 247.4105015 | P90: =+IF(F90="Pasajero",'2.2 OPEX LAP 2023'!K90*'2.1 OPEX TUUA'!$P$7,'2.2 OPEX LAP 2023'!K90*'2.1 OPEX TUUA'!$P$8) -> 245.8714607 | Q90: =+IF(F90="Pasajero",'2.2 OPEX LAP 2023'!L90*'2.1 OPEX TUUA'!$Q$7,'2.2 OPEX LAP 2023'!L90*'2.1 OPEX TUUA'!$Q$8) -> 244.2697056 | R90: =+IF(F90="Pasajero",'2.2 OPEX LAP 2023'!M90*'2.1 OPEX TUUA'!$R$7,'2.2 OPEX LAP 2023'!M90*'2.1 OPEX TUUA'!$R$8) -> 245.5803612 | S90: =+IF(F90="Pasajero",'2.2 OPEX LAP 2023'!N90*'2.1 OPEX TUUA'!$S$7,'2.2 OPEX LAP 2023'!N90*'2.1 OPEX TUUA'!$S$8) -> 245.7371192 | U90: 509.2683668 | V90: 597.374383 | W90: 671.5438495 | X90: 711.5116508 | Y90: 740.7137498 | Z90: 773.1578465 | AA90: 0 | AB90: 0 | AC90: 0 | AD90: 0 | AE90: 0 | AF90: 0
B91: 6360000002 | C91: Directo | D91: Servicios prestados por terceros | E91: Consumo de electricidad | F91: m2 | G91: =+IF(F91="Pasajero",'2.2 OPEX LAP 2023'!I91*'2.1 OPEX TUUA'!$G$7,'2.2 OPEX LAP 2023'!I91*'2.1 OPEX TUUA'!$G$8) -> 133893.9923 | H91: =+IF(F91="Pasajero",'2.2 OPEX LAP 2023'!J91*'2.1 OPEX TUUA'!$H$7,'2.2 OPEX LAP 2023'!J91*'2.1 OPEX TUUA'!$H$8) -> 136913.5415 | I91: =+IF(F91="Pasajero",'2.2 OPEX LAP 2023'!K91*'2.1 OPEX TUUA'!$I$7,'2.2 OPEX LAP 2023'!K91*'2.1 OPEX TUUA'!$I$8) -> 139222.5807 | J91: =+IF(F91="Pasajero",'2.2 OPEX LAP 2023'!L91*'2.1 OPEX TUUA'!$J$7,'2.2 OPEX LAP 2023'!L91*'2.1 OPEX TUUA'!$J$8) -> 141546.83 | K91: =+IF(F91="Pasajero",'2.2 OPEX LAP 2023'!M91*'2.1 OPEX TUUA'!$K$7,'2.2 OPEX LAP 2023'!M91*'2.1 OPEX TUUA'!$K$8) -> 144132.0059 | L91: =+IF(F91="Pasajero",'2.2 OPEX LAP 2023'!N91*'2.1 OPEX TUUA'!$L$7,'2.2 OPEX LAP 2023'!N91*'2.1 OPEX TUUA'!$L$8) -> 146531.7842 | N91: =+IF(F91="Pasajero",'2.2 OPEX LAP 2023'!I91*'2.1 OPEX TUUA'!$N$7,'2.2 OPEX LAP 2023'!I91*'2.1 OPEX TUUA'!$N$8) -> 25675.28954 | O91: =+IF(F91="Pasajero",'2.2 OPEX LAP 2023'!J91*'2.1 OPEX TUUA'!$O$7,'2.2 OPEX LAP 2023'!J91*'2.1 OPEX TUUA'!$O$8) -> 26254.31328 | P91: =+IF(F91="Pasajero",'2.2 OPEX LAP 2023'!K91*'2.1 OPEX TUUA'!$P$7,'2.2 OPEX LAP 2023'!K91*'2.1 OPEX TUUA'!$P$8) -> 26697.09081 | Q91: =+IF(F91="Pasajero",'2.2 OPEX LAP 2023'!L91*'2.1 OPEX TUUA'!$Q$7,'2.2 OPEX LAP 2023'!L91*'2.1 OPEX TUUA'!$Q$8) -> 27142.78499 | R91: =+IF(F91="Pasajero",'2.2 OPEX LAP 2023'!M91*'2.1 OPEX TUUA'!$R$7,'2.2 OPEX LAP 2023'!M91*'2.1 OPEX TUUA'!$R$8) -> 27638.51403 | S91: =+IF(F91="Pasajero",'2.2 OPEX LAP 2023'!N91*'2.1 OPEX TUUA'!$S$7,'2.2 OPEX LAP 2023'!N91*'2.1 OPEX TUUA'!$S$8) -> 28098.69152 | U91: 133893.9923 | V91: 136913.5415 | W91: 139222.5807 | X91: 141546.83 | Y91: 144132.0059 | Z91: 146531.7842 | AA91: 0 | AB91: 0 | AC91: 0 | AD91: 0 | AE91: 0 | AF91: 0
B92: 6360000003 | C92: Directo | D92: Servicios prestados por terceros | E92: Consumo de agua | F92: m2 | G92: =+IF(F92="Pasajero",'2.2 OPEX LAP 2023'!I92*'2.1 OPEX TUUA'!$G$7,'2.2 OPEX LAP 2023'!I92*'2.1 OPEX TUUA'!$G$8) -> 32632.83371 | H92: =+IF(F92="Pasajero",'2.2 OPEX LAP 2023'!J92*'2.1 OPEX TUUA'!$H$7,'2.2 OPEX LAP 2023'!J92*'2.1 OPEX TUUA'!$H$8) -> 33368.76253 | I92: =+IF(F92="Pasajero",'2.2 OPEX LAP 2023'!K92*'2.1 OPEX TUUA'!$I$7,'2.2 OPEX LAP 2023'!K92*'2.1 OPEX TUUA'!$I$8) -> 33931.52485 | J92: =+IF(F92="Pasajero",'2.2 OPEX LAP 2023'!L92*'2.1 OPEX TUUA'!$J$7,'2.2 OPEX LAP 2023'!L92*'2.1 OPEX TUUA'!$J$8) -> 34497.99418 | K92: =+IF(F92="Pasajero",'2.2 OPEX LAP 2023'!M92*'2.1 OPEX TUUA'!$K$7,'2.2 OPEX LAP 2023'!M92*'2.1 OPEX TUUA'!$K$8) -> 35128.05693 | L92: =+IF(F92="Pasajero",'2.2 OPEX LAP 2023'!N92*'2.1 OPEX TUUA'!$L$7,'2.2 OPEX LAP 2023'!N92*'2.1 OPEX TUUA'!$L$8) -> 35712.93428 | N92: =+IF(F92="Pasajero",'2.2 OPEX LAP 2023'!I92*'2.1 OPEX TUUA'!$N$7,'2.2 OPEX LAP 2023'!I92*'2.1 OPEX TUUA'!$N$8) -> 6257.617984 | O92: =+IF(F92="Pasajero",'2.2 OPEX LAP 2023'!J92*'2.1 OPEX TUUA'!$O$7,'2.2 OPEX LAP 2023'!J92*'2.1 OPEX TUUA'!$O$8) -> 6398.738471 | P92: =+IF(F92="Pasajero",'2.2 OPEX LAP 2023'!K92*'2.1 OPEX TUUA'!$P$7,'2.2 OPEX LAP 2023'!K92*'2.1 OPEX TUUA'!$P$8) -> 6506.65284 | Q92: =+IF(F92="Pasajero",'2.2 OPEX LAP 2023'!L92*'2.1 OPEX TUUA'!$Q$7,'2.2 OPEX LAP 2023'!L92*'2.1 OPEX TUUA'!$Q$8) -> 6615.278057 | R92: =+IF(F92="Pasajero",'2.2 OPEX LAP 2023'!M92*'2.1 OPEX TUUA'!$R$7,'2.2 OPEX LAP 2023'!M92*'2.1 OPEX TUUA'!$R$8) -> 6736.097843 | S92: =+IF(F92="Pasajero",'2.2 OPEX LAP 2023'!N92*'2.1 OPEX TUUA'!$S$7,'2.2 OPEX LAP 2023'!N92*'2.1 OPEX TUUA'!$S$8) -> 6848.252952 | U92: 32632.83371 | V92: 33368.76253 | W92: 33931.52485 | X92: 34497.99418 | Y92: 35128.05693 | Z92: 35712.93428 | AA92: 0 | AB92: 0 | AC92: 0 | AD92: 0 | AE92: 0 | AF92: 0
B93: 6360000004 | C93: Directo | D93: Servicios prestados por terceros | E93: Gestion de residuos solidos | F93: Pasajero | G93: =+IF(F93="Pasajero",'2.2 OPEX LAP 2023'!I93*'2.1 OPEX TUUA'!$G$7,'2.2 OPEX LAP 2023'!I93*'2.1 OPEX TUUA'!$G$8) -> 0 | H93: =+IF(F93="Pasajero",'2.2 OPEX LAP 2023'!J93*'2.1 OPEX TUUA'!$H$7,'2.2 OPEX LAP 2023'!J93*'2.1 OPEX TUUA'!$H$8) -> 0 | I93: =+IF(F93="Pasajero",'2.2 OPEX LAP 2023'!K93*'2.1 OPEX TUUA'!$I$7,'2.2 OPEX LAP 2023'!K93*'2.1 OPEX TUUA'!$I$8) -> 0 | J93: =+IF(F93="Pasajero",'2.2 OPEX LAP 2023'!L93*'2.1 OPEX TUUA'!$J$7,'2.2 OPEX LAP 2023'!L93*'2.1 OPEX TUUA'!$J$8) -> 0 | K93: =+IF(F93="Pasajero",'2.2 OPEX LAP 2023'!M93*'2.1 OPEX TUUA'!$K$7,'2.2 OPEX LAP 2023'!M93*'2.1 OPEX TUUA'!$K$8) -> 0 | L93: =+IF(F93="Pasajero",'2.2 OPEX LAP 2023'!N93*'2.1 OPEX TUUA'!$L$7,'2.2 OPEX LAP 2023'!N93*'2.1 OPEX TUUA'!$L$8) -> 0 | N93: =+IF(F93="Pasajero",'2.2 OPEX LAP 2023'!I93*'2.1 OPEX TUUA'!$N$7,'2.2 OPEX LAP 2023'!I93*'2.1 OPEX TUUA'!$N$8) -> 0 | O93: =+IF(F93="Pasajero",'2.2 OPEX LAP 2023'!J93*'2.1 OPEX TUUA'!$O$7,'2.2 OPEX LAP 2023'!J93*'2.1 OPEX TUUA'!$O$8) -> 0 | P93: =+IF(F93="Pasajero",'2.2 OPEX LAP 2023'!K93*'2.1 OPEX TUUA'!$P$7,'2.2 OPEX LAP 2023'!K93*'2.1 OPEX TUUA'!$P$8) -> 0 | Q93: =+IF(F93="Pasajero",'2.2 OPEX LAP 2023'!L93*'2.1 OPEX TUUA'!$Q$7,'2.2 OPEX LAP 2023'!L93*'2.1 OPEX TUUA'!$Q$8) -> 0 | R93: =+IF(F93="Pasajero",'2.2 OPEX LAP 2023'!M93*'2.1 OPEX TUUA'!$R$7,'2.2 OPEX LAP 2023'!M93*'2.1 OPEX TUUA'!$R$8) -> 0 | S93: =+IF(F93="Pasajero",'2.2 OPEX LAP 2023'!N93*'2.1 OPEX TUUA'!$S$7,'2.2 OPEX LAP 2023'!N93*'2.1 OPEX TUUA'!$S$8) -> 0 | U93: 0 | V93: 0 | W93: 0 | X93: 0 | Y93: 0 | Z93: 0 | AA93: 0 | AB93: 0 | AC93: 0 | AD93: 0 | AE93: 0 | AF93: 0
B94: 6360000005 | C94: Directo | D94: Servicios prestados por terceros | E94: Gestion de Res. Solidos de Sanidad Aérea | F94: Pasajero | G94: =+IF(F94="Pasajero",'2.2 OPEX LAP 2023'!I94*'2.1 OPEX TUUA'!$G$7,'2.2 OPEX LAP 2023'!I94*'2.1 OPEX TUUA'!$G$8) -> 0 | H94: =+IF(F94="Pasajero",'2.2 OPEX LAP 2023'!J94*'2.1 OPEX TUUA'!$H$7,'2.2 OPEX LAP 2023'!J94*'2.1 OPEX TUUA'!$H$8) -> 0 | I94: =+IF(F94="Pasajero",'2.2 OPEX LAP 2023'!K94*'2.1 OPEX TUUA'!$I$7,'2.2 OPEX LAP 2023'!K94*'2.1 OPEX TUUA'!$I$8) -> 0 | J94: =+IF(F94="Pasajero",'2.2 OPEX LAP 2023'!L94*'2.1 OPEX TUUA'!$J$7,'2.2 OPEX LAP 2023'!L94*'2.1 OPEX TUUA'!$J$8) -> 0 | K94: =+IF(F94="Pasajero",'2.2 OPEX LAP 2023'!M94*'2.1 OPEX TUUA'!$K$7,'2.2 OPEX LAP 2023'!M94*'2.1 OPEX TUUA'!$K$8) -> 0 | L94: =+IF(F94="Pasajero",'2.2 OPEX LAP 2023'!N94*'2.1 OPEX TUUA'!$L$7,'2.2 OPEX LAP 2023'!N94*'2.1 OPEX TUUA'!$L$8) -> 0 | N94: =+IF(F94="Pasajero",'2.2 OPEX LAP 2023'!I94*'2.1 OPEX TUUA'!$N$7,'2.2 OPEX LAP 2023'!I94*'2.1 OPEX TUUA'!$N$8) -> 0 | O94: =+IF(F94="Pasajero",'2.2 OPEX LAP 2023'!J94*'2.1 OPEX TUUA'!$O$7,'2.2 OPEX LAP 2023'!J94*'2.1 OPEX TUUA'!$O$8) -> 0 | P94: =+IF(F94="Pasajero",'2.2 OPEX LAP 2023'!K94*'2.1 OPEX TUUA'!$P$7,'2.2 OPEX LAP 2023'!K94*'2.1 OPEX TUUA'!$P$8) -> 0 | Q94: =+IF(F94="Pasajero",'2.2 OPEX LAP 2023'!L94*'2.1 OPEX TUUA'!$Q$7,'2.2 OPEX LAP 2023'!L94*'2.1 OPEX TUUA'!$Q$8) -> 0 | R94: =+IF(F94="Pasajero",'2.2 OPEX LAP 2023'!M94*'2.1 OPEX TUUA'!$R$7,'2.2 OPEX LAP 2023'!M94*'2.1 OPEX TUUA'!$R$8) -> 0 | S94: =+IF(F94="Pasajero",'2.2 OPEX LAP 2023'!N94*'2.1 OPEX TUUA'!$S$7,'2.2 OPEX LAP 2023'!N94*'2.1 OPEX TUUA'!$S$8) -> 0 | U94: 0 | V94: 0 | W94: 0 | X94: 0 | Y94: 0 | Z94: 0 | AA94: 0 | AB94: 0 | AC94: 0 | AD94: 0 | AE94: 0 | AF94: 0
B95: 6370000001 | C95: Directo | D95: Servicios prestados por terceros | E95: Publicidad | F95: Pasajero | G95: =+IF(F95="Pasajero",'2.2 OPEX LAP 2023'!I95*'2.1 OPEX TUUA'!$G$7,'2.2 OPEX LAP 2023'!I95*'2.1 OPEX TUUA'!$G$8) -> 0 | H95: =+IF(F95="Pasajero",'2.2 OPEX LAP 2023'!J95*'2.1 OPEX TUUA'!$H$7,'2.2 OPEX LAP 2023'!J95*'2.1 OPEX TUUA'!$H$8) -> 0 | I95: =+IF(F95="Pasajero",'2.2 OPEX LAP 2023'!K95*'2.1 OPEX TUUA'!$I$7,'2.2 OPEX LAP 2023'!K95*'2.1 OPEX TUUA'!$I$8) -> 0 | J95: =+IF(F95="Pasajero",'2.2 OPEX LAP 2023'!L95*'2.1 OPEX TUUA'!$J$7,'2.2 OPEX LAP 2023'!L95*'2.1 OPEX TUUA'!$J$8) -> 0 | K95: =+IF(F95="Pasajero",'2.2 OPEX LAP 2023'!M95*'2.1 OPEX TUUA'!$K$7,'2.2 OPEX LAP 2023'!M95*'2.1 OPEX TUUA'!$K$8) -> 0 | L95: =+IF(F95="Pasajero",'2.2 OPEX LAP 2023'!N95*'2.1 OPEX TUUA'!$L$7,'2.2 OPEX LAP 2023'!N95*'2.1 OPEX TUUA'!$L$8) -> 0 | N95: =+IF(F95="Pasajero",'2.2 OPEX LAP 2023'!I95*'2.1 OPEX TUUA'!$N$7,'2.2 OPEX LAP 2023'!I95*'2.1 OPEX TUUA'!$N$8) -> 0 | O95: =+IF(F95="Pasajero",'2.2 OPEX LAP 2023'!J95*'2.1 OPEX TUUA'!$O$7,'2.2 OPEX LAP 2023'!J95*'2.1 OPEX TUUA'!$O$8) -> 0 | P95: =+IF(F95="Pasajero",'2.2 OPEX LAP 2023'!K95*'2.1 OPEX TUUA'!$P$7,'2.2 OPEX LAP 2023'!K95*'2.1 OPEX TUUA'!$P$8) -> 0 | Q95: =+IF(F95="Pasajero",'2.2 OPEX LAP 2023'!L95*'2.1 OPEX TUUA'!$Q$7,'2.2 OPEX LAP 2023'!L95*'2.1 OPEX TUUA'!$Q$8) -> 0 | R95: =+IF(F95="Pasajero",'2.2 OPEX LAP 2023'!M95*'2.1 OPEX TUUA'!$R$7,'2.2 OPEX LAP 2023'!M95*'2.1 OPEX TUUA'!$R$8) -> 0 | S95: =+IF(F95="Pasajero",'2.2 OPEX LAP 2023'!N95*'2.1 OPEX TUUA'!$S$7,'2.2 OPEX LAP 2023'!N95*'2.1 OPEX TUUA'!$S$8) -> 0 | U95: 0 | V95: 0 | W95: 0 | X95: 0 | Y95: 0 | Z95: 0 | AA95: 0 | AB95: 0 | AC95: 0 | AD95: 0 | AE95: 0 | AF95: 0
B96: 6370000002 | C96: Directo | D96: Servicios prestados por terceros | E96: Anuncios | F96: Pasajero | G96: =+IF(F96="Pasajero",'2.2 OPEX LAP 2023'!I96*'2.1 OPEX TUUA'!$G$7,'2.2 OPEX LAP 2023'!I96*'2.1 OPEX TUUA'!$G$8) -> 0 | H96: =+IF(F96="Pasajero",'2.2 OPEX LAP 2023'!J96*'2.1 OPEX TUUA'!$H$7,'2.2 OPEX LAP 2023'!J96*'2.1 OPEX TUUA'!$H$8) -> 0 | I96: =+IF(F96="Pasajero",'2.2 OPEX LAP 2023'!K96*'2.1 OPEX TUUA'!$I$7,'2.2 OPEX LAP 2023'!K96*'2.1 OPEX TUUA'!$I$8) -> 0 | J96: =+IF(F96="Pasajero",'2.2 OPEX LAP 2023'!L96*'2.1 OPEX TUUA'!$J$7,'2.2 OPEX LAP 2023'!L96*'2.1 OPEX TUUA'!$J$8) -> 0 | K96: =+IF(F96="Pasajero",'2.2 OPEX LAP 2023'!M96*'2.1 OPEX TUUA'!$K$7,'2.2 OPEX LAP 2023'!M96*'2.1 OPEX TUUA'!$K$8) -> 0 | L96: =+IF(F96="Pasajero",'2.2 OPEX LAP 2023'!N96*'2.1 OPEX TUUA'!$L$7,'2.2 OPEX LAP 2023'!N96*'2.1 OPEX TUUA'!$L$8) -> 0 | N96: =+IF(F96="Pasajero",'2.2 OPEX LAP 2023'!I96*'2.1 OPEX TUUA'!$N$7,'2.2 OPEX LAP 2023'!I96*'2.1 OPEX TUUA'!$N$8) -> 0 | O96: =+IF(F96="Pasajero",'2.2 OPEX LAP 2023'!J96*'2.1 OPEX TUUA'!$O$7,'2.2 OPEX LAP 2023'!J96*'2.1 OPEX TUUA'!$O$8) -> 0 | P96: =+IF(F96="Pasajero",'2.2 OPEX LAP 2023'!K96*'2.1 OPEX TUUA'!$P$7,'2.2 OPEX LAP 2023'!K96*'2.1 OPEX TUUA'!$P$8) -> 0 | Q96: =+IF(F96="Pasajero",'2.2 OPEX LAP 2023'!L96*'2.1 OPEX TUUA'!$Q$7,'2.2 OPEX LAP 2023'!L96*'2.1 OPEX TUUA'!$Q$8) -> 0 | R96: =+IF(F96="Pasajero",'2.2 OPEX LAP 2023'!M96*'2.1 OPEX TUUA'!$R$7,'2.2 OPEX LAP 2023'!M96*'2.1 OPEX TUUA'!$R$8) -> 0 | S96: =+IF(F96="Pasajero",'2.2 OPEX LAP 2023'!N96*'2.1 OPEX TUUA'!$S$7,'2.2 OPEX LAP 2023'!N96*'2.1 OPEX TUUA'!$S$8) -> 0 | U96: 0 | V96: 0 | W96: 0 | X96: 0 | Y96: 0 | Z96: 0 | AA96: 0 | AB96: 0 | AC96: 0 | AD96: 0 | AE96: 0 | AF96: 0
B97: 6370000003 | C97: Directo | D97: Servicios prestados por terceros | E97: Gastos de Representación | F97: Pasajero | G97: =+IF(F97="Pasajero",'2.2 OPEX LAP 2023'!I97*'2.1 OPEX TUUA'!$G$7,'2.2 OPEX LAP 2023'!I97*'2.1 OPEX TUUA'!$G$8) -> 0 | H97: =+IF(F97="Pasajero",'2.2 OPEX LAP 2023'!J97*'2.1 OPEX TUUA'!$H$7,'2.2 OPEX LAP 2023'!J97*'2.1 OPEX TUUA'!$H$8) -> 0 | I97: =+IF(F97="Pasajero",'2.2 OPEX LAP 2023'!K97*'2.1 OPEX TUUA'!$I$7,'2.2 OPEX LAP 2023'!K97*'2.1 OPEX TUUA'!$I$8) -> 0 | J97: =+IF(F97="Pasajero",'2.2 OPEX LAP 2023'!L97*'2.1 OPEX TUUA'!$J$7,'2.2 OPEX LAP 2023'!L97*'2.1 OPEX TUUA'!$J$8) -> 0 | K97: =+IF(F97="Pasajero",'2.2 OPEX LAP 2023'!M97*'2.1 OPEX TUUA'!$K$7,'2.2 OPEX LAP 2023'!M97*'2.1 OPEX TUUA'!$K$8) -> 0 | L97: =+IF(F97="Pasajero",'2.2 OPEX LAP 2023'!N97*'2.1 OPEX TUUA'!$L$7,'2.2 OPEX LAP 2023'!N97*'2.1 OPEX TUUA'!$L$8) -> 0 | N97: =+IF(F97="Pasajero",'2.2 OPEX LAP 2023'!I97*'2.1 OPEX TUUA'!$N$7,'2.2 OPEX LAP 2023'!I97*'2.1 OPEX TUUA'!$N$8) -> 0 | O97: =+IF(F97="Pasajero",'2.2 OPEX LAP 2023'!J97*'2.1 OPEX TUUA'!$O$7,'2.2 OPEX LAP 2023'!J97*'2.1 OPEX TUUA'!$O$8) -> 0 | P97: =+IF(F97="Pasajero",'2.2 OPEX LAP 2023'!K97*'2.1 OPEX TUUA'!$P$7,'2.2 OPEX LAP 2023'!K97*'2.1 OPEX TUUA'!$P$8) -> 0 | Q97: =+IF(F97="Pasajero",'2.2 OPEX LAP 2023'!L97*'2.1 OPEX TUUA'!$Q$7,'2.2 OPEX LAP 2023'!L97*'2.1 OPEX TUUA'!$Q$8) -> 0 | R97: =+IF(F97="Pasajero",'2.2 OPEX LAP 2023'!M97*'2.1 OPEX TUUA'!$R$7,'2.2 OPEX LAP 2023'!M97*'2.1 OPEX TUUA'!$R$8) -> 0 | S97: =+IF(F97="Pasajero",'2.2 OPEX LAP 2023'!N97*'2.1 OPEX TUUA'!$S$7,'2.2 OPEX LAP 2023'!N97*'2.1 OPEX TUUA'!$S$8) -> 0 | U97: 0 | V97: 0 | W97: 0 | X97: 0 | Y97: 0 | Z97: 0 | AA97: 0 | AB97: 0 | AC97: 0 | AD97: 0 | AE97: 0 | AF97: 0
B98: 6380000002 | C98: Directo | D98: Servicios prestados por terceros | E98: Servicio de Contratistas | F98: Pasajero | G98: =+IF(F98="Pasajero",'2.2 OPEX LAP 2023'!I98*'2.1 OPEX TUUA'!$G$7,'2.2 OPEX LAP 2023'!I98*'2.1 OPEX TUUA'!$G$8) -> 0 | H98: =+IF(F98="Pasajero",'2.2 OPEX LAP 2023'!J98*'2.1 OPEX TUUA'!$H$7,'2.2 OPEX LAP 2023'!J98*'2.1 OPEX TUUA'!$H$8) -> 0 | I98: =+IF(F98="Pasajero",'2.2 OPEX LAP 2023'!K98*'2.1 OPEX TUUA'!$I$7,'2.2 OPEX LAP 2023'!K98*'2.1 OPEX TUUA'!$I$8) -> 0 | J98: =+IF(F98="Pasajero",'2.2 OPEX LAP 2023'!L98*'2.1 OPEX TUUA'!$J$7,'2.2 OPEX LAP 2023'!L98*'2.1 OPEX TUUA'!$J$8) -> 0 | K98: =+IF(F98="Pasajero",'2.2 OPEX LAP 2023'!M98*'2.1 OPEX TUUA'!$K$7,'2.2 OPEX LAP 2023'!M98*'2.1 OPEX TUUA'!$K$8) -> 0 | L98: =+IF(F98="Pasajero",'2.2 OPEX LAP 2023'!N98*'2.1 OPEX TUUA'!$L$7,'2.2 OPEX LAP 2023'!N98*'2.1 OPEX TUUA'!$L$8) -> 0 | N98: =+IF(F98="Pasajero",'2.2 OPEX LAP 2023'!I98*'2.1 OPEX TUUA'!$N$7,'2.2 OPEX LAP 2023'!I98*'2.1 OPEX TUUA'!$N$8) -> 0 | O98: =+IF(F98="Pasajero",'2.2 OPEX LAP 2023'!J98*'2.1 OPEX TUUA'!$O$7,'2.2 OPEX LAP 2023'!J98*'2.1 OPEX TUUA'!$O$8) -> 0 | P98: =+IF(F98="Pasajero",'2.2 OPEX LAP 2023'!K98*'2.1 OPEX TUUA'!$P$7,'2.2 OPEX LAP 2023'!K98*'2.1 OPEX TUUA'!$P$8) -> 0 | Q98: =+IF(F98="Pasajero",'2.2 OPEX LAP 2023'!L98*'2.1 OPEX TUUA'!$Q$7,'2.2 OPEX LAP 2023'!L98*'2.1 OPEX TUUA'!$Q$8) -> 0 | R98: =+IF(F98="Pasajero",'2.2 OPEX LAP 2023'!M98*'2.1 OPEX TUUA'!$R$7,'2.2 OPEX LAP 2023'!M98*'2.1 OPEX TUUA'!$R$8) -> 0 | S98: =+IF(F98="Pasajero",'2.2 OPEX LAP 2023'!N98*'2.1 OPEX TUUA'!$S$7,'2.2 OPEX LAP 2023'!N98*'2.1 OPEX TUUA'!$S$8) -> 0 | U98: 0 | V98: 0 | W98: 0 | X98: 0 | Y98: 0 | Z98: 0 | AA98: 0 | AB98: 0 | AC98: 0 | AD98: 0 | AE98: 0 | AF98: 0
B99: 6380000003 | C99: Directo | D99: Otros Costos | E99: Compras de Activos | F99: Pasajero | G99: =+IF(F99="Pasajero",'2.2 OPEX LAP 2023'!I99*'2.1 OPEX TUUA'!$G$7,'2.2 OPEX LAP 2023'!I99*'2.1 OPEX TUUA'!$G$8) -> 0 | H99: =+IF(F99="Pasajero",'2.2 OPEX LAP 2023'!J99*'2.1 OPEX TUUA'!$H$7,'2.2 OPEX LAP 2023'!J99*'2.1 OPEX TUUA'!$H$8) -> 0 | I99: =+IF(F99="Pasajero",'2.2 OPEX LAP 2023'!K99*'2.1 OPEX TUUA'!$I$7,'2.2 OPEX LAP 2023'!K99*'2.1 OPEX TUUA'!$I$8) -> 0 | J99: =+IF(F99="Pasajero",'2.2 OPEX LAP 2023'!L99*'2.1 OPEX TUUA'!$J$7,'2.2 OPEX LAP 2023'!L99*'2.1 OPEX TUUA'!$J$8) -> 0 | K99: =+IF(F99="Pasajero",'2.2 OPEX LAP 2023'!M99*'2.1 OPEX TUUA'!$K$7,'2.2 OPEX LAP 2023'!M99*'2.1 OPEX TUUA'!$K$8) -> 0 | L99: =+IF(F99="Pasajero",'2.2 OPEX LAP 2023'!N99*'2.1 OPEX TUUA'!$L$7,'2.2 OPEX LAP 2023'!N99*'2.1 OPEX TUUA'!$L$8) -> 0 | N99: =+IF(F99="Pasajero",'2.2 OPEX LAP 2023'!I99*'2.1 OPEX TUUA'!$N$7,'2.2 OPEX LAP 2023'!I99*'2.1 OPEX TUUA'!$N$8) -> 0 | O99: =+IF(F99="Pasajero",'2.2 OPEX LAP 2023'!J99*'2.1 OPEX TUUA'!$O$7,'2.2 OPEX LAP 2023'!J99*'2.1 OPEX TUUA'!$O$8) -> 0 | P99: =+IF(F99="Pasajero",'2.2 OPEX LAP 2023'!K99*'2.1 OPEX TUUA'!$P$7,'2.2 OPEX LAP 2023'!K99*'2.1 OPEX TUUA'!$P$8) -> 0 | Q99: =+IF(F99="Pasajero",'2.2 OPEX LAP 2023'!L99*'2.1 OPEX TUUA'!$Q$7,'2.2 OPEX LAP 2023'!L99*'2.1 OPEX TUUA'!$Q$8) -> 0 | R99: =+IF(F99="Pasajero",'2.2 OPEX LAP 2023'!M99*'2.1 OPEX TUUA'!$R$7,'2.2 OPEX LAP 2023'!M99*'2.1 OPEX TUUA'!$R$8) -> 0 | S99: =+IF(F99="Pasajero",'2.2 OPEX LAP 2023'!N99*'2.1 OPEX TUUA'!$S$7,'2.2 OPEX LAP 2023'!N99*'2.1 OPEX TUUA'!$S$8) -> 0 | U99: 0 | V99: 0 | W99: 0 | X99: 0 | Y99: 0 | Z99: 0 | AA99: 0 | AB99: 0 | AC99: 0 | AD99: 0 | AE99: 0 | AF99: 0
B100: 6380000004 | C100: Directo | D100: Outsourcing | E100: Servicio de Limpieza | F100: m2 | G100: =+IF(F100="Pasajero",'2.2 OPEX LAP 2023'!I100*'2.1 OPEX TUUA'!$G$7,'2.2 OPEX LAP 2023'!I100*'2.1 OPEX TUUA'!$G$8) -> 214262.5102 | H100: =+IF(F100="Pasajero",'2.2 OPEX LAP 2023'!J100*'2.1 OPEX TUUA'!$H$7,'2.2 OPEX LAP 2023'!J100*'2.1 OPEX TUUA'!$H$8) -> 219094.5133 | I100: =+IF(F100="Pasajero",'2.2 OPEX LAP 2023'!K100*'2.1 OPEX TUUA'!$I$7,'2.2 OPEX LAP 2023'!K100*'2.1 OPEX TUUA'!$I$8) -> 222789.5301 | J100: =+IF(F100="Pasajero",'2.2 OPEX LAP 2023'!L100*'2.1 OPEX TUUA'!$J$7,'2.2 OPEX LAP 2023'!L100*'2.1 OPEX TUUA'!$J$8) -> 226508.8866 | K100: =+IF(F100="Pasajero",'2.2 OPEX LAP 2023'!M100*'2.1 OPEX TUUA'!$K$7,'2.2 OPEX LAP 2023'!M100*'2.1 OPEX TUUA'!$K$8) -> 230645.7883 | L100: =+IF(F100="Pasajero",'2.2 OPEX LAP 2023'!N100*'2.1 OPEX TUUA'!$L$7,'2.2 OPEX LAP 2023'!N100*'2.1 OPEX TUUA'!$L$8) -> 234486.0092 | N100: =+IF(F100="Pasajero",'2.2 OPEX LAP 2023'!I100*'2.1 OPEX TUUA'!$N$7,'2.2 OPEX LAP 2023'!I100*'2.1 OPEX TUUA'!$N$8) -> 41086.62303 | O100: =+IF(F100="Pasajero",'2.2 OPEX LAP 2023'!J100*'2.1 OPEX TUUA'!$O$7,'2.2 OPEX LAP 2023'!J100*'2.1 OPEX TUUA'!$O$8) -> 42013.19993 | P100: =+IF(F100="Pasajero",'2.2 OPEX LAP 2023'!K100*'2.1 OPEX TUUA'!$P$7,'2.2 OPEX LAP 2023'!K100*'2.1 OPEX TUUA'!$P$8) -> 42721.75021 | Q100: =+IF(F100="Pasajero",'2.2 OPEX LAP 2023'!L100*'2.1 OPEX TUUA'!$Q$7,'2.2 OPEX LAP 2023'!L100*'2.1 OPEX TUUA'!$Q$8) -> 43434.96782 | R100: =+IF(F100="Pasajero",'2.2 OPEX LAP 2023'!M100*'2.1 OPEX TUUA'!$R$7,'2.2 OPEX LAP 2023'!M100*'2.1 OPEX TUUA'!$R$8) -> 44228.25322 | S100: =+IF(F100="Pasajero",'2.2 OPEX LAP 2023'!N100*'2.1 OPEX TUUA'!$S$7,'2.2 OPEX LAP 2023'!N100*'2.1 OPEX TUUA'!$S$8) -> 44964.6476 | U100: 214262.5102 | V100: 219094.5133 | W100: 222789.5301 | X100: 226508.8866 | Y100: 230645.7883 | Z100: 234486.0092 | AA100: 0 | AB100: 0 | AC100: 0 | AD100: 0 | AE100: 0 | AF100: 0
B101: 6380000005 | C101: Directo | D101: Otros Costos | E101: Servicio de IATA | F101: Pasajero | G101: =+IF(F101="Pasajero",'2.2 OPEX LAP 2023'!I101*'2.1 OPEX TUUA'!$G$7,'2.2 OPEX LAP 2023'!I101*'2.1 OPEX TUUA'!$G$8) -> 24947.35098 | H101: =+IF(F101="Pasajero",'2.2 OPEX LAP 2023'!J101*'2.1 OPEX TUUA'!$H$7,'2.2 OPEX LAP 2023'!J101*'2.1 OPEX TUUA'!$H$8) -> 29263.36951 | I101: =+IF(F101="Pasajero",'2.2 OPEX LAP 2023'!K101*'2.1 OPEX TUUA'!$I$7,'2.2 OPEX LAP 2023'!K101*'2.1 OPEX TUUA'!$I$8) -> 32896.68317 | J101: =+IF(F101="Pasajero",'2.2 OPEX LAP 2023'!L101*'2.1 OPEX TUUA'!$J$7,'2.2 OPEX LAP 2023'!L101*'2.1 OPEX TUUA'!$J$8) -> 34854.57185 | K101: =+IF(F101="Pasajero",'2.2 OPEX LAP 2023'!M101*'2.1 OPEX TUUA'!$K$7,'2.2 OPEX LAP 2023'!M101*'2.1 OPEX TUUA'!$K$8) -> 36285.08483 | L101: =+IF(F101="Pasajero",'2.2 OPEX LAP 2023'!N101*'2.1 OPEX TUUA'!$L$7,'2.2 OPEX LAP 2023'!N101*'2.1 OPEX TUUA'!$L$8) -> 37874.41242 | N101: =+IF(F101="Pasajero",'2.2 OPEX LAP 2023'!I101*'2.1 OPEX TUUA'!$N$7,'2.2 OPEX LAP 2023'!I101*'2.1 OPEX TUUA'!$N$8) -> 12304.46319 | O101: =+IF(F101="Pasajero",'2.2 OPEX LAP 2023'!J101*'2.1 OPEX TUUA'!$O$7,'2.2 OPEX LAP 2023'!J101*'2.1 OPEX TUUA'!$O$8) -> 12119.81152 | P101: =+IF(F101="Pasajero",'2.2 OPEX LAP 2023'!K101*'2.1 OPEX TUUA'!$P$7,'2.2 OPEX LAP 2023'!K101*'2.1 OPEX TUUA'!$P$8) -> 12044.41907 | Q101: =+IF(F101="Pasajero",'2.2 OPEX LAP 2023'!L101*'2.1 OPEX TUUA'!$Q$7,'2.2 OPEX LAP 2023'!L101*'2.1 OPEX TUUA'!$Q$8) -> 11965.95445 | R101: =+IF(F101="Pasajero",'2.2 OPEX LAP 2023'!M101*'2.1 OPEX TUUA'!$R$7,'2.2 OPEX LAP 2023'!M101*'2.1 OPEX TUUA'!$R$8) -> 12030.15908 | S101: =+IF(F101="Pasajero",'2.2 OPEX LAP 2023'!N101*'2.1 OPEX TUUA'!$S$7,'2.2 OPEX LAP 2023'!N101*'2.1 OPEX TUUA'!$S$8) -> 12037.83812 | U101: 24947.35098 | V101: 29263.36951 | W101: 32896.68317 | X101: 34854.57185 | Y101: 36285.08483 | Z101: 37874.41242 | AA101: 0 | AB101: 0 | AC101: 0 | AD101: 0 | AE101: 0 | AF101: 0
B102: 6380000007 | C102: Directo | D102: Servicios prestados por terceros | E102: Mano de obra en manten. | F102: m2 | G102: =+IF(F102="Pasajero",'2.2 OPEX LAP 2023'!I102*'2.1 OPEX TUUA'!$G$7,'2.2 OPEX LAP 2023'!I102*'2.1 OPEX TUUA'!$G$8) -> 630.5105533 | H102: =+IF(F102="Pasajero",'2.2 OPEX LAP 2023'!J102*'2.1 OPEX TUUA'!$H$7,'2.2 OPEX LAP 2023'!J102*'2.1 OPEX TUUA'!$H$8) -> 644.7296949 | I102: =+IF(F102="Pasajero",'2.2 OPEX LAP 2023'!K102*'2.1 OPEX TUUA'!$I$7,'2.2 OPEX LAP 2023'!K102*'2.1 OPEX TUUA'!$I$8) -> 655.6030254 | J102: =+IF(F102="Pasajero",'2.2 OPEX LAP 2023'!L102*'2.1 OPEX TUUA'!$J$7,'2.2 OPEX LAP 2023'!L102*'2.1 OPEX TUUA'!$J$8) -> 666.5479801 | K102: =+IF(F102="Pasajero",'2.2 OPEX LAP 2023'!M102*'2.1 OPEX TUUA'!$K$7,'2.2 OPEX LAP 2023'!M102*'2.1 OPEX TUUA'!$K$8) -> 678.721646 | L102: =+IF(F102="Pasajero",'2.2 OPEX LAP 2023'!N102*'2.1 OPEX TUUA'!$L$7,'2.2 OPEX LAP 2023'!N102*'2.1 OPEX TUUA'!$L$8) -> 690.0222687 | N102: =+IF(F102="Pasajero",'2.2 OPEX LAP 2023'!I102*'2.1 OPEX TUUA'!$N$7,'2.2 OPEX LAP 2023'!I102*'2.1 OPEX TUUA'!$N$8) -> 120.9056563 | O102: =+IF(F102="Pasajero",'2.2 OPEX LAP 2023'!J102*'2.1 OPEX TUUA'!$O$7,'2.2 OPEX LAP 2023'!J102*'2.1 OPEX TUUA'!$O$8) -> 123.6322953 | P102: =+IF(F102="Pasajero",'2.2 OPEX LAP 2023'!K102*'2.1 OPEX TUUA'!$P$7,'2.2 OPEX LAP 2023'!K102*'2.1 OPEX TUUA'!$P$8) -> 125.7173471 | Q102: =+IF(F102="Pasajero",'2.2 OPEX LAP 2023'!L102*'2.1 OPEX TUUA'!$Q$7,'2.2 OPEX LAP 2023'!L102*'2.1 OPEX TUUA'!$Q$8) -> 127.8161334 | R102: =+IF(F102="Pasajero",'2.2 OPEX LAP 2023'!M102*'2.1 OPEX TUUA'!$R$7,'2.2 OPEX LAP 2023'!M102*'2.1 OPEX TUUA'!$R$8) -> 130.1505354 | S102: =+IF(F102="Pasajero",'2.2 OPEX LAP 2023'!N102*'2.1 OPEX TUUA'!$S$7,'2.2 OPEX LAP 2023'!N102*'2.1 OPEX TUUA'!$S$8) -> 132.317524 | U102: 630.5105533 | V102: 644.7296949 | W102: 655.6030254 | X102: 666.5479801 | Y102: 678.721646 | Z102: 690.0222687 | AA102: 0 | AB102: 0 | AC102: 0 | AD102: 0 | AE102: 0 | AF102: 0
B103: 6380000008 | C103: Directo | D103: Servicios prestados por terceros | E103: Servicio médico | F103: Pasajero | G103: =+IF(F103="Pasajero",'2.2 OPEX LAP 2023'!I103*'2.1 OPEX TUUA'!$G$7,'2.2 OPEX LAP 2023'!I103*'2.1 OPEX TUUA'!$G$8) -> 47932.65368 | H103: =+IF(F103="Pasajero",'2.2 OPEX LAP 2023'!J103*'2.1 OPEX TUUA'!$H$7,'2.2 OPEX LAP 2023'!J103*'2.1 OPEX TUUA'!$H$8) -> 56225.24642 | I103: =+IF(F103="Pasajero",'2.2 OPEX LAP 2023'!K103*'2.1 OPEX TUUA'!$I$7,'2.2 OPEX LAP 2023'!K103*'2.1 OPEX TUUA'!$I$8) -> 63206.12249 | J103: =+IF(F103="Pasajero",'2.2 OPEX LAP 2023'!L103*'2.1 OPEX TUUA'!$J$7,'2.2 OPEX LAP 2023'!L103*'2.1 OPEX TUUA'!$J$8) -> 66967.91667 | K103: =+IF(F103="Pasajero",'2.2 OPEX LAP 2023'!M103*'2.1 OPEX TUUA'!$K$7,'2.2 OPEX LAP 2023'!M103*'2.1 OPEX TUUA'!$K$8) -> 69716.43628 | L103: =+IF(F103="Pasajero",'2.2 OPEX LAP 2023'!N103*'2.1 OPEX TUUA'!$L$7,'2.2 OPEX LAP 2023'!N103*'2.1 OPEX TUUA'!$L$8) -> 72770.09473 | N103: =+IF(F103="Pasajero",'2.2 OPEX LAP 2023'!I103*'2.1 OPEX TUUA'!$N$7,'2.2 OPEX LAP 2023'!I103*'2.1 OPEX TUUA'!$N$8) -> 23641.21038 | O103: =+IF(F103="Pasajero",'2.2 OPEX LAP 2023'!J103*'2.1 OPEX TUUA'!$O$7,'2.2 OPEX LAP 2023'!J103*'2.1 OPEX TUUA'!$O$8) -> 23286.42943 | P103: =+IF(F103="Pasajero",'2.2 OPEX LAP 2023'!K103*'2.1 OPEX TUUA'!$P$7,'2.2 OPEX LAP 2023'!K103*'2.1 OPEX TUUA'!$P$8) -> 23141.57396 | Q103: =+IF(F103="Pasajero",'2.2 OPEX LAP 2023'!L103*'2.1 OPEX TUUA'!$Q$7,'2.2 OPEX LAP 2023'!L103*'2.1 OPEX TUUA'!$Q$8) -> 22990.81578 | R103: =+IF(F103="Pasajero",'2.2 OPEX LAP 2023'!M103*'2.1 OPEX TUUA'!$R$7,'2.2 OPEX LAP 2023'!M103*'2.1 OPEX TUUA'!$R$8) -> 23114.1755 | S103: =+IF(F103="Pasajero",'2.2 OPEX LAP 2023'!N103*'2.1 OPEX TUUA'!$S$7,'2.2 OPEX LAP 2023'!N103*'2.1 OPEX TUUA'!$S$8) -> 23128.92966 | U103: 47932.65368 | V103: 56225.24642 | W103: 63206.12249 | X103: 66967.91667 | Y103: 69716.43628 | Z103: 72770.09473 | AA103: 0 | AB103: 0 | AC103: 0 | AD103: 0 | AE103: 0 | AF103: 0
B104: 6380000009 | C104: Directo | D104: Servicios prestados por terceros | E104: Servicio de buses | F104: Pasajero | G104: =+IF(F104="Pasajero",'2.2 OPEX LAP 2023'!I104*'2.1 OPEX TUUA'!$G$7,'2.2 OPEX LAP 2023'!I104*'2.1 OPEX TUUA'!$G$8) -> 104495.3459 | H104: =+IF(F104="Pasajero",'2.2 OPEX LAP 2023'!J104*'2.1 OPEX TUUA'!$H$7,'2.2 OPEX LAP 2023'!J104*'2.1 OPEX TUUA'!$H$8) -> 122573.572 | I104: =+IF(F104="Pasajero",'2.2 OPEX LAP 2023'!K104*'2.1 OPEX TUUA'!$I$7,'2.2 OPEX LAP 2023'!K104*'2.1 OPEX TUUA'!$I$8) -> 137792.1965 | J104: =+IF(F104="Pasajero",'2.2 OPEX LAP 2023'!L104*'2.1 OPEX TUUA'!$J$7,'2.2 OPEX LAP 2023'!L104*'2.1 OPEX TUUA'!$J$8) -> 145993.0774 | K104: =+IF(F104="Pasajero",'2.2 OPEX LAP 2023'!M104*'2.1 OPEX TUUA'!$K$7,'2.2 OPEX LAP 2023'!M104*'2.1 OPEX TUUA'!$K$8) -> 151984.9741 | L104: =+IF(F104="Pasajero",'2.2 OPEX LAP 2023'!N104*'2.1 OPEX TUUA'!$L$7,'2.2 OPEX LAP 2023'!N104*'2.1 OPEX TUUA'!$L$8) -> 158642.0872 | N104: =+IF(F104="Pasajero",'2.2 OPEX LAP 2023'!I104*'2.1 OPEX TUUA'!$N$7,'2.2 OPEX LAP 2023'!I104*'2.1 OPEX TUUA'!$N$8) -> 51538.90444 | O104: =+IF(F104="Pasajero",'2.2 OPEX LAP 2023'!J104*'2.1 OPEX TUUA'!$O$7,'2.2 OPEX LAP 2023'!J104*'2.1 OPEX TUUA'!$O$8) -> 50765.46596 | P104: =+IF(F104="Pasajero",'2.2 OPEX LAP 2023'!K104*'2.1 OPEX TUUA'!$P$7,'2.2 OPEX LAP 2023'!K104*'2.1 OPEX TUUA'!$P$8) -> 50449.67452 | Q104: =+IF(F104="Pasajero",'2.2 OPEX LAP 2023'!L104*'2.1 OPEX TUUA'!$Q$7,'2.2 OPEX LAP 2023'!L104*'2.1 OPEX TUUA'!$Q$8) -> 50121.01488 | R104: =+IF(F104="Pasajero",'2.2 OPEX LAP 2023'!M104*'2.1 OPEX TUUA'!$R$7,'2.2 OPEX LAP 2023'!M104*'2.1 OPEX TUUA'!$R$8) -> 50389.94463 | S104: =+IF(F104="Pasajero",'2.2 OPEX LAP 2023'!N104*'2.1 OPEX TUUA'!$S$7,'2.2 OPEX LAP 2023'!N104*'2.1 OPEX TUUA'!$S$8) -> 50422.10935 | U104: 104495.3459 | V104: 122573.572 | W104: 137792.1965 | X104: 145993.0774 | Y104: 151984.9741 | Z104: 158642.0872 | AA104: 0 | AB104: 0 | AC104: 0 | AD104: 0 | AE104: 0 | AF104: 0
B105: 6380000010 | C105: Directo | D105: Servicios prestados por terceros | E105: Servicio de traducción | F105: Pasajero | G105: =+IF(F105="Pasajero",'2.2 OPEX LAP 2023'!I105*'2.1 OPEX TUUA'!$G$7,'2.2 OPEX LAP 2023'!I105*'2.1 OPEX TUUA'!$G$8) -> 1.063155123 | H105: =+IF(F105="Pasajero",'2.2 OPEX LAP 2023'!J105*'2.1 OPEX TUUA'!$H$7,'2.2 OPEX LAP 2023'!J105*'2.1 OPEX TUUA'!$H$8) -> 1.247086364 | I105: =+IF(F105="Pasajero",'2.2 OPEX LAP 2023'!K105*'2.1 OPEX TUUA'!$I$7,'2.2 OPEX LAP 2023'!K105*'2.1 OPEX TUUA'!$I$8) -> 1.401923486 | J105: =+IF(F105="Pasajero",'2.2 OPEX LAP 2023'!L105*'2.1 OPEX TUUA'!$J$7,'2.2 OPEX LAP 2023'!L105*'2.1 OPEX TUUA'!$J$8) -> 1.485360777 | K105: =+IF(F105="Pasajero",'2.2 OPEX LAP 2023'!M105*'2.1 OPEX TUUA'!$K$7,'2.2 OPEX LAP 2023'!M105*'2.1 OPEX TUUA'!$K$8) -> 1.54632345 | L105: =+IF(F105="Pasajero",'2.2 OPEX LAP 2023'!N105*'2.1 OPEX TUUA'!$L$7,'2.2 OPEX LAP 2023'!N105*'2.1 OPEX TUUA'!$L$8) -> 1.614054159 | N105: =+IF(F105="Pasajero",'2.2 OPEX LAP 2023'!I105*'2.1 OPEX TUUA'!$N$7,'2.2 OPEX LAP 2023'!I105*'2.1 OPEX TUUA'!$N$8) -> 0.5243664185 | O105: =+IF(F105="Pasajero",'2.2 OPEX LAP 2023'!J105*'2.1 OPEX TUUA'!$O$7,'2.2 OPEX LAP 2023'!J105*'2.1 OPEX TUUA'!$O$8) -> 0.5164973113 | P105: =+IF(F105="Pasajero",'2.2 OPEX LAP 2023'!K105*'2.1 OPEX TUUA'!$P$7,'2.2 OPEX LAP 2023'!K105*'2.1 OPEX TUUA'!$P$8) -> 0.5132843903 | Q105: =+IF(F105="Pasajero",'2.2 OPEX LAP 2023'!L105*'2.1 OPEX TUUA'!$Q$7,'2.2 OPEX LAP 2023'!L105*'2.1 OPEX TUUA'!$Q$8) -> 0.5099405459 | R105: =+IF(F105="Pasajero",'2.2 OPEX LAP 2023'!M105*'2.1 OPEX TUUA'!$R$7,'2.2 OPEX LAP 2023'!M105*'2.1 OPEX TUUA'!$R$8) -> 0.5126766872 | S105: =+IF(F105="Pasajero",'2.2 OPEX LAP 2023'!N105*'2.1 OPEX TUUA'!$S$7,'2.2 OPEX LAP 2023'!N105*'2.1 OPEX TUUA'!$S$8) -> 0.5130039372 | U105: 1.063155123 | V105: 1.247086364 | W105: 1.401923486 | X105: 1.485360777 | Y105: 1.54632345 | Z105: 1.614054159 | AA105: 0 | AB105: 0 | AC105: 0 | AD105: 0 | AE105: 0 | AF105: 0
B106: 6380000012 | C106: Directo | D106: Servicios prestados por terceros | E106: Servicios notariales | F106: Pasajero | G106: =+IF(F106="Pasajero",'2.2 OPEX LAP 2023'!I106*'2.1 OPEX TUUA'!$G$7,'2.2 OPEX LAP 2023'!I106*'2.1 OPEX TUUA'!$G$8) -> 0 | H106: =+IF(F106="Pasajero",'2.2 OPEX LAP 2023'!J106*'2.1 OPEX TUUA'!$H$7,'2.2 OPEX LAP 2023'!J106*'2.1 OPEX TUUA'!$H$8) -> 0 | I106: =+IF(F106="Pasajero",'2.2 OPEX LAP 2023'!K106*'2.1 OPEX TUUA'!$I$7,'2.2 OPEX LAP 2023'!K106*'2.1 OPEX TUUA'!$I$8) -> 0 | J106: =+IF(F106="Pasajero",'2.2 OPEX LAP 2023'!L106*'2.1 OPEX TUUA'!$J$7,'2.2 OPEX LAP 2023'!L106*'2.1 OPEX TUUA'!$J$8) -> 0 | K106: =+IF(F106="Pasajero",'2.2 OPEX LAP 2023'!M106*'2.1 OPEX TUUA'!$K$7,'2.2 OPEX LAP 2023'!M106*'2.1 OPEX TUUA'!$K$8) -> 0 | L106: =+IF(F106="Pasajero",'2.2 OPEX LAP 2023'!N106*'2.1 OPEX TUUA'!$L$7,'2.2 OPEX LAP 2023'!N106*'2.1 OPEX TUUA'!$L$8) -> 0 | N106: =+IF(F106="Pasajero",'2.2 OPEX LAP 2023'!I106*'2.1 OPEX TUUA'!$N$7,'2.2 OPEX LAP 2023'!I106*'2.1 OPEX TUUA'!$N$8) -> 0 | O106: =+IF(F106="Pasajero",'2.2 OPEX LAP 2023'!J106*'2.1 OPEX TUUA'!$O$7,'2.2 OPEX LAP 2023'!J106*'2.1 OPEX TUUA'!$O$8) -> 0 | P106: =+IF(F106="Pasajero",'2.2 OPEX LAP 2023'!K106*'2.1 OPEX TUUA'!$P$7,'2.2 OPEX LAP 2023'!K106*'2.1 OPEX TUUA'!$P$8) -> 0 | Q106: =+IF(F106="Pasajero",'2.2 OPEX LAP 2023'!L106*'2.1 OPEX TUUA'!$Q$7,'2.2 OPEX LAP 2023'!L106*'2.1 OPEX TUUA'!$Q$8) -> 0 | R106: =+IF(F106="Pasajero",'2.2 OPEX LAP 2023'!M106*'2.1 OPEX TUUA'!$R$7,'2.2 OPEX LAP 2023'!M106*'2.1 OPEX TUUA'!$R$8) -> 0 | S106: =+IF(F106="Pasajero",'2.2 OPEX LAP 2023'!N106*'2.1 OPEX TUUA'!$S$7,'2.2 OPEX LAP 2023'!N106*'2.1 OPEX TUUA'!$S$8) -> 0 | U106: 0 | V106: 0 | W106: 0 | X106: 0 | Y106: 0 | Z106: 0 | AA106: 0 | AB106: 0 | AC106: 0 | AD106: 0 | AE106: 0 | AF106: 0
B107: 6380000014 | C107: Directo | D107: Outsourcing | E107: Administracion playa de estac. | F107: Pasajero | G107: =+IF(F107="Pasajero",'2.2 OPEX LAP 2023'!I107*'2.1 OPEX TUUA'!$G$7,'2.2 OPEX LAP 2023'!I107*'2.1 OPEX TUUA'!$G$8) -> 0 | H107: =+IF(F107="Pasajero",'2.2 OPEX LAP 2023'!J107*'2.1 OPEX TUUA'!$H$7,'2.2 OPEX LAP 2023'!J107*'2.1 OPEX TUUA'!$H$8) -> 0 | I107: =+IF(F107="Pasajero",'2.2 OPEX LAP 2023'!K107*'2.1 OPEX TUUA'!$I$7,'2.2 OPEX LAP 2023'!K107*'2.1 OPEX TUUA'!$I$8) -> 0 | J107: =+IF(F107="Pasajero",'2.2 OPEX LAP 2023'!L107*'2.1 OPEX TUUA'!$J$7,'2.2 OPEX LAP 2023'!L107*'2.1 OPEX TUUA'!$J$8) -> 0 | K107: =+IF(F107="Pasajero",'2.2 OPEX LAP 2023'!M107*'2.1 OPEX TUUA'!$K$7,'2.2 OPEX LAP 2023'!M107*'2.1 OPEX TUUA'!$K$8) -> 0 | L107: =+IF(F107="Pasajero",'2.2 OPEX LAP 2023'!N107*'2.1 OPEX TUUA'!$L$7,'2.2 OPEX LAP 2023'!N107*'2.1 OPEX TUUA'!$L$8) -> 0 | N107: =+IF(F107="Pasajero",'2.2 OPEX LAP 2023'!I107*'2.1 OPEX TUUA'!$N$7,'2.2 OPEX LAP 2023'!I107*'2.1 OPEX TUUA'!$N$8) -> 0 | O107: =+IF(F107="Pasajero",'2.2 OPEX LAP 2023'!J107*'2.1 OPEX TUUA'!$O$7,'2.2 OPEX LAP 2023'!J107*'2.1 OPEX TUUA'!$O$8) -> 0 | P107: =+IF(F107="Pasajero",'2.2 OPEX LAP 2023'!K107*'2.1 OPEX TUUA'!$P$7,'2.2 OPEX LAP 2023'!K107*'2.1 OPEX TUUA'!$P$8) -> 0 | Q107: =+IF(F107="Pasajero",'2.2 OPEX LAP 2023'!L107*'2.1 OPEX TUUA'!$Q$7,'2.2 OPEX LAP 2023'!L107*'2.1 OPEX TUUA'!$Q$8) -> 0 | R107: =+IF(F107="Pasajero",'2.2 OPEX LAP 2023'!M107*'2.1 OPEX TUUA'!$R$7,'2.2 OPEX LAP 2023'!M107*'2.1 OPEX TUUA'!$R$8) -> 0 | S107: =+IF(F107="Pasajero",'2.2 OPEX LAP 2023'!N107*'2.1 OPEX TUUA'!$S$7,'2.2 OPEX LAP 2023'!N107*'2.1 OPEX TUUA'!$S$8) -> 0 | U107: 0 | V107: 0 | W107: 0 | X107: 0 | Y107: 0 | Z107: 0 | AA107: 0 | AB107: 0 | AC107: 0 | AD107: 0 | AE107: 0 | AF107: 0
B108: 6380000015 | C108: Directo | D108: Servicios prestados por terceros | E108: Administración TUUA | F108: Pasajero | G108: =+IF(F108="Pasajero",'2.2 OPEX LAP 2023'!I108*'2.1 OPEX TUUA'!$G$7,'2.2 OPEX LAP 2023'!I108*'2.1 OPEX TUUA'!$G$8) -> 3740.923354 | H108: =+IF(F108="Pasajero",'2.2 OPEX LAP 2023'!J108*'2.1 OPEX TUUA'!$H$7,'2.2 OPEX LAP 2023'!J108*'2.1 OPEX TUUA'!$H$8) -> 4388.12211 | I108: =+IF(F108="Pasajero",'2.2 OPEX LAP 2023'!K108*'2.1 OPEX TUUA'!$I$7,'2.2 OPEX LAP 2023'!K108*'2.1 OPEX TUUA'!$I$8) -> 4932.947408 | J108: =+IF(F108="Pasajero",'2.2 OPEX LAP 2023'!L108*'2.1 OPEX TUUA'!$J$7,'2.2 OPEX LAP 2023'!L108*'2.1 OPEX TUUA'!$J$8) -> 5226.538157 | K108: =+IF(F108="Pasajero",'2.2 OPEX LAP 2023'!M108*'2.1 OPEX TUUA'!$K$7,'2.2 OPEX LAP 2023'!M108*'2.1 OPEX TUUA'!$K$8) -> 5441.047482 | L108: =+IF(F108="Pasajero",'2.2 OPEX LAP 2023'!N108*'2.1 OPEX TUUA'!$L$7,'2.2 OPEX LAP 2023'!N108*'2.1 OPEX TUUA'!$L$8) -> 5679.371491 | N108: =+IF(F108="Pasajero",'2.2 OPEX LAP 2023'!I108*'2.1 OPEX TUUA'!$N$7,'2.2 OPEX LAP 2023'!I108*'2.1 OPEX TUUA'!$N$8) -> 1845.087831 | O108: =+IF(F108="Pasajero",'2.2 OPEX LAP 2023'!J108*'2.1 OPEX TUUA'!$O$7,'2.2 OPEX LAP 2023'!J108*'2.1 OPEX TUUA'!$O$8) -> 1817.398808 | P108: =+IF(F108="Pasajero",'2.2 OPEX LAP 2023'!K108*'2.1 OPEX TUUA'!$P$7,'2.2 OPEX LAP 2023'!K108*'2.1 OPEX TUUA'!$P$8) -> 1806.093505 | Q108: =+IF(F108="Pasajero",'2.2 OPEX LAP 2023'!L108*'2.1 OPEX TUUA'!$Q$7,'2.2 OPEX LAP 2023'!L108*'2.1 OPEX TUUA'!$Q$8) -> 1794.327521 | R108: =+IF(F108="Pasajero",'2.2 OPEX LAP 2023'!M108*'2.1 OPEX TUUA'!$R$7,'2.2 OPEX LAP 2023'!M108*'2.1 OPEX TUUA'!$R$8) -> 1803.95518 | S108: =+IF(F108="Pasajero",'2.2 OPEX LAP 2023'!N108*'2.1 OPEX TUUA'!$S$7,'2.2 OPEX LAP 2023'!N108*'2.1 OPEX TUUA'!$S$8) -> 1805.106675 | U108: 3740.923354 | V108: 4388.12211 | W108: 4932.947408 | X108: 5226.538157 | Y108: 5441.047482 | Z108: 5679.371491 | AA108: 0 | AB108: 0 | AC108: 0 | AD108: 0 | AE108: 0 | AF108: 0
B109: 6380000016 | C109: Directo | D109: Outsourcing | E109: Acopio carros portaequipajes | F109: Pasajero | G109: =+IF(F109="Pasajero",'2.2 OPEX LAP 2023'!I109*'2.1 OPEX TUUA'!$G$7,'2.2 OPEX LAP 2023'!I109*'2.1 OPEX TUUA'!$G$8) -> 0 | H109: =+IF(F109="Pasajero",'2.2 OPEX LAP 2023'!J109*'2.1 OPEX TUUA'!$H$7,'2.2 OPEX LAP 2023'!J109*'2.1 OPEX TUUA'!$H$8) -> 0 | I109: =+IF(F109="Pasajero",'2.2 OPEX LAP 2023'!K109*'2.1 OPEX TUUA'!$I$7,'2.2 OPEX LAP 2023'!K109*'2.1 OPEX TUUA'!$I$8) -> 0 | J109: =+IF(F109="Pasajero",'2.2 OPEX LAP 2023'!L109*'2.1 OPEX TUUA'!$J$7,'2.2 OPEX LAP 2023'!L109*'2.1 OPEX TUUA'!$J$8) -> 0 | K109: =+IF(F109="Pasajero",'2.2 OPEX LAP 2023'!M109*'2.1 OPEX TUUA'!$K$7,'2.2 OPEX LAP 2023'!M109*'2.1 OPEX TUUA'!$K$8) -> 0 | L109: =+IF(F109="Pasajero",'2.2 OPEX LAP 2023'!N109*'2.1 OPEX TUUA'!$L$7,'2.2 OPEX LAP 2023'!N109*'2.1 OPEX TUUA'!$L$8) -> 0 | N109: =+IF(F109="Pasajero",'2.2 OPEX LAP 2023'!I109*'2.1 OPEX TUUA'!$N$7,'2.2 OPEX LAP 2023'!I109*'2.1 OPEX TUUA'!$N$8) -> 0 | O109: =+IF(F109="Pasajero",'2.2 OPEX LAP 2023'!J109*'2.1 OPEX TUUA'!$O$7,'2.2 OPEX LAP 2023'!J109*'2.1 OPEX TUUA'!$O$8) -> 0 | P109: =+IF(F109="Pasajero",'2.2 OPEX LAP 2023'!K109*'2.1 OPEX TUUA'!$P$7,'2.2 OPEX LAP 2023'!K109*'2.1 OPEX TUUA'!$P$8) -> 0 | Q109: =+IF(F109="Pasajero",'2.2 OPEX LAP 2023'!L109*'2.1 OPEX TUUA'!$Q$7,'2.2 OPEX LAP 2023'!L109*'2.1 OPEX TUUA'!$Q$8) -> 0 | R109: =+IF(F109="Pasajero",'2.2 OPEX LAP 2023'!M109*'2.1 OPEX TUUA'!$R$7,'2.2 OPEX LAP 2023'!M109*'2.1 OPEX TUUA'!$R$8) -> 0 | S109: =+IF(F109="Pasajero",'2.2 OPEX LAP 2023'!N109*'2.1 OPEX TUUA'!$S$7,'2.2 OPEX LAP 2023'!N109*'2.1 OPEX TUUA'!$S$8) -> 0 | U109: 0 | V109: 0 | W109: 0 | X109: 0 | Y109: 0 | Z109: 0 | AA109: 0 | AB109: 0 | AC109: 0 | AD109: 0 | AE109: 0 | AF109: 0
B110: 6380000017 | C110: Directo | D110: Outsourcing | E110: Servicio Call Center | F110: Pasajero | G110: =+IF(F110="Pasajero",'2.2 OPEX LAP 2023'!I110*'2.1 OPEX TUUA'!$G$7,'2.2 OPEX LAP 2023'!I110*'2.1 OPEX TUUA'!$G$8) -> 0 | H110: =+IF(F110="Pasajero",'2.2 OPEX LAP 2023'!J110*'2.1 OPEX TUUA'!$H$7,'2.2 OPEX LAP 2023'!J110*'2.1 OPEX TUUA'!$H$8) -> 0 | I110: =+IF(F110="Pasajero",'2.2 OPEX LAP 2023'!K110*'2.1 OPEX TUUA'!$I$7,'2.2 OPEX LAP 2023'!K110*'2.1 OPEX TUUA'!$I$8) -> 0 | J110: =+IF(F110="Pasajero",'2.2 OPEX LAP 2023'!L110*'2.1 OPEX TUUA'!$J$7,'2.2 OPEX LAP 2023'!L110*'2.1 OPEX TUUA'!$J$8) -> 0 | K110: =+IF(F110="Pasajero",'2.2 OPEX LAP 2023'!M110*'2.1 OPEX TUUA'!$K$7,'2.2 OPEX LAP 2023'!M110*'2.1 OPEX TUUA'!$K$8) -> 0 | L110: =+IF(F110="Pasajero",'2.2 OPEX LAP 2023'!N110*'2.1 OPEX TUUA'!$L$7,'2.2 OPEX LAP 2023'!N110*'2.1 OPEX TUUA'!$L$8) -> 0 | N110: =+IF(F110="Pasajero",'2.2 OPEX LAP 2023'!I110*'2.1 OPEX TUUA'!$N$7,'2.2 OPEX LAP 2023'!I110*'2.1 OPEX TUUA'!$N$8) -> 0 | O110: =+IF(F110="Pasajero",'2.2 OPEX LAP 2023'!J110*'2.1 OPEX TUUA'!$O$7,'2.2 OPEX LAP 2023'!J110*'2.1 OPEX TUUA'!$O$8) -> 0 | P110: =+IF(F110="Pasajero",'2.2 OPEX LAP 2023'!K110*'2.1 OPEX TUUA'!$P$7,'2.2 OPEX LAP 2023'!K110*'2.1 OPEX TUUA'!$P$8) -> 0 | Q110: =+IF(F110="Pasajero",'2.2 OPEX LAP 2023'!L110*'2.1 OPEX TUUA'!$Q$7,'2.2 OPEX LAP 2023'!L110*'2.1 OPEX TUUA'!$Q$8) -> 0 | R110: =+IF(F110="Pasajero",'2.2 OPEX LAP 2023'!M110*'2.1 OPEX TUUA'!$R$7,'2.2 OPEX LAP 2023'!M110*'2.1 OPEX TUUA'!$R$8) -> 0 | S110: =+IF(F110="Pasajero",'2.2 OPEX LAP 2023'!N110*'2.1 OPEX TUUA'!$S$7,'2.2 OPEX LAP 2023'!N110*'2.1 OPEX TUUA'!$S$8) -> 0 | U110: 0 | V110: 0 | W110: 0 | X110: 0 | Y110: 0 | Z110: 0 | AA110: 0 | AB110: 0 | AC110: 0 | AD110: 0 | AE110: 0 | AF110: 0
B111: 6380000018 | C111: Directo | D111: Outsourcing | E111: Servicio de Cetreria | F111: Pasajero | G111: =+IF(F111="Pasajero",'2.2 OPEX LAP 2023'!I111*'2.1 OPEX TUUA'!$G$7,'2.2 OPEX LAP 2023'!I111*'2.1 OPEX TUUA'!$G$8) -> 0 | H111: =+IF(F111="Pasajero",'2.2 OPEX LAP 2023'!J111*'2.1 OPEX TUUA'!$H$7,'2.2 OPEX LAP 2023'!J111*'2.1 OPEX TUUA'!$H$8) -> 0 | I111: =+IF(F111="Pasajero",'2.2 OPEX LAP 2023'!K111*'2.1 OPEX TUUA'!$I$7,'2.2 OPEX LAP 2023'!K111*'2.1 OPEX TUUA'!$I$8) -> 0 | J111: =+IF(F111="Pasajero",'2.2 OPEX LAP 2023'!L111*'2.1 OPEX TUUA'!$J$7,'2.2 OPEX LAP 2023'!L111*'2.1 OPEX TUUA'!$J$8) -> 0 | K111: =+IF(F111="Pasajero",'2.2 OPEX LAP 2023'!M111*'2.1 OPEX TUUA'!$K$7,'2.2 OPEX LAP 2023'!M111*'2.1 OPEX TUUA'!$K$8) -> 0 | L111: =+IF(F111="Pasajero",'2.2 OPEX LAP 2023'!N111*'2.1 OPEX TUUA'!$L$7,'2.2 OPEX LAP 2023'!N111*'2.1 OPEX TUUA'!$L$8) -> 0 | N111: =+IF(F111="Pasajero",'2.2 OPEX LAP 2023'!I111*'2.1 OPEX TUUA'!$N$7,'2.2 OPEX LAP 2023'!I111*'2.1 OPEX TUUA'!$N$8) -> 0 | O111: =+IF(F111="Pasajero",'2.2 OPEX LAP 2023'!J111*'2.1 OPEX TUUA'!$O$7,'2.2 OPEX LAP 2023'!J111*'2.1 OPEX TUUA'!$O$8) -> 0 | P111: =+IF(F111="Pasajero",'2.2 OPEX LAP 2023'!K111*'2.1 OPEX TUUA'!$P$7,'2.2 OPEX LAP 2023'!K111*'2.1 OPEX TUUA'!$P$8) -> 0 | Q111: =+IF(F111="Pasajero",'2.2 OPEX LAP 2023'!L111*'2.1 OPEX TUUA'!$Q$7,'2.2 OPEX LAP 2023'!L111*'2.1 OPEX TUUA'!$Q$8) -> 0 | R111: =+IF(F111="Pasajero",'2.2 OPEX LAP 2023'!M111*'2.1 OPEX TUUA'!$R$7,'2.2 OPEX LAP 2023'!M111*'2.1 OPEX TUUA'!$R$8) -> 0 | S111: =+IF(F111="Pasajero",'2.2 OPEX LAP 2023'!N111*'2.1 OPEX TUUA'!$S$7,'2.2 OPEX LAP 2023'!N111*'2.1 OPEX TUUA'!$S$8) -> 0 | U111: 0 | V111: 0 | W111: 0 | X111: 0 | Y111: 0 | Z111: 0 | AA111: 0 | AB111: 0 | AC111: 0 | AD111: 0 | AE111: 0 | AF111: 0
B112: 6380000019 | C112: Directo | D112: Servicios prestados por terceros | E112: Operación red gigabit | F112: Pasajero | G112: =+IF(F112="Pasajero",'2.2 OPEX LAP 2023'!I112*'2.1 OPEX TUUA'!$G$7,'2.2 OPEX LAP 2023'!I112*'2.1 OPEX TUUA'!$G$8) -> 0 | H112: =+IF(F112="Pasajero",'2.2 OPEX LAP 2023'!J112*'2.1 OPEX TUUA'!$H$7,'2.2 OPEX LAP 2023'!J112*'2.1 OPEX TUUA'!$H$8) -> 0 | I112: =+IF(F112="Pasajero",'2.2 OPEX LAP 2023'!K112*'2.1 OPEX TUUA'!$I$7,'2.2 OPEX LAP 2023'!K112*'2.1 OPEX TUUA'!$I$8) -> 0 | J112: =+IF(F112="Pasajero",'2.2 OPEX LAP 2023'!L112*'2.1 OPEX TUUA'!$J$7,'2.2 OPEX LAP 2023'!L112*'2.1 OPEX TUUA'!$J$8) -> 0 | K112: =+IF(F112="Pasajero",'2.2 OPEX LAP 2023'!M112*'2.1 OPEX TUUA'!$K$7,'2.2 OPEX LAP 2023'!M112*'2.1 OPEX TUUA'!$K$8) -> 0 | L112: =+IF(F112="Pasajero",'2.2 OPEX LAP 2023'!N112*'2.1 OPEX TUUA'!$L$7,'2.2 OPEX LAP 2023'!N112*'2.1 OPEX TUUA'!$L$8) -> 0 | N112: =+IF(F112="Pasajero",'2.2 OPEX LAP 2023'!I112*'2.1 OPEX TUUA'!$N$7,'2.2 OPEX LAP 2023'!I112*'2.1 OPEX TUUA'!$N$8) -> 0 | O112: =+IF(F112="Pasajero",'2.2 OPEX LAP 2023'!J112*'2.1 OPEX TUUA'!$O$7,'2.2 OPEX LAP 2023'!J112*'2.1 OPEX TUUA'!$O$8) -> 0 | P112: =+IF(F112="Pasajero",'2.2 OPEX LAP 2023'!K112*'2.1 OPEX TUUA'!$P$7,'2.2 OPEX LAP 2023'!K112*'2.1 OPEX TUUA'!$P$8) -> 0 | Q112: =+IF(F112="Pasajero",'2.2 OPEX LAP 2023'!L112*'2.1 OPEX TUUA'!$Q$7,'2.2 OPEX LAP 2023'!L112*'2.1 OPEX TUUA'!$Q$8) -> 0 | R112: =+IF(F112="Pasajero",'2.2 OPEX LAP 2023'!M112*'2.1 OPEX TUUA'!$R$7,'2.2 OPEX LAP 2023'!M112*'2.1 OPEX TUUA'!$R$8) -> 0 | S112: =+IF(F112="Pasajero",'2.2 OPEX LAP 2023'!N112*'2.1 OPEX TUUA'!$S$7,'2.2 OPEX LAP 2023'!N112*'2.1 OPEX TUUA'!$S$8) -> 0 | U112: 0 | V112: 0 | W112: 0 | X112: 0 | Y112: 0 | Z112: 0 | AA112: 0 | AB112: 0 | AC112: 0 | AD112: 0 | AE112: 0 | AF112: 0
B113: 6380000020 | C113: Directo | D113: Outsourcing | E113: Servicio mozos | F113: Pasajero | G113: =+IF(F113="Pasajero",'2.2 OPEX LAP 2023'!I113*'2.1 OPEX TUUA'!$G$7,'2.2 OPEX LAP 2023'!I113*'2.1 OPEX TUUA'!$G$8) -> 1989.333163 | H113: =+IF(F113="Pasajero",'2.2 OPEX LAP 2023'!J113*'2.1 OPEX TUUA'!$H$7,'2.2 OPEX LAP 2023'!J113*'2.1 OPEX TUUA'!$H$8) -> 2333.497912 | I113: =+IF(F113="Pasajero",'2.2 OPEX LAP 2023'!K113*'2.1 OPEX TUUA'!$I$7,'2.2 OPEX LAP 2023'!K113*'2.1 OPEX TUUA'!$I$8) -> 2623.222916 | J113: =+IF(F113="Pasajero",'2.2 OPEX LAP 2023'!L113*'2.1 OPEX TUUA'!$J$7,'2.2 OPEX LAP 2023'!L113*'2.1 OPEX TUUA'!$J$8) -> 2779.347423 | K113: =+IF(F113="Pasajero",'2.2 OPEX LAP 2023'!M113*'2.1 OPEX TUUA'!$K$7,'2.2 OPEX LAP 2023'!M113*'2.1 OPEX TUUA'!$K$8) -> 2893.418329 | L113: =+IF(F113="Pasajero",'2.2 OPEX LAP 2023'!N113*'2.1 OPEX TUUA'!$L$7,'2.2 OPEX LAP 2023'!N113*'2.1 OPEX TUUA'!$L$8) -> 3020.153311 | N113: =+IF(F113="Pasajero",'2.2 OPEX LAP 2023'!I113*'2.1 OPEX TUUA'!$N$7,'2.2 OPEX LAP 2023'!I113*'2.1 OPEX TUUA'!$N$8) -> 981.1733801 | O113: =+IF(F113="Pasajero",'2.2 OPEX LAP 2023'!J113*'2.1 OPEX TUUA'!$O$7,'2.2 OPEX LAP 2023'!J113*'2.1 OPEX TUUA'!$O$8) -> 966.4490228 | P113: =+IF(F113="Pasajero",'2.2 OPEX LAP 2023'!K113*'2.1 OPEX TUUA'!$P$7,'2.2 OPEX LAP 2023'!K113*'2.1 OPEX TUUA'!$P$8) -> 960.437134 | Q113: =+IF(F113="Pasajero",'2.2 OPEX LAP 2023'!L113*'2.1 OPEX TUUA'!$Q$7,'2.2 OPEX LAP 2023'!L113*'2.1 OPEX TUUA'!$Q$8) -> 954.1802668 | R113: =+IF(F113="Pasajero",'2.2 OPEX LAP 2023'!M113*'2.1 OPEX TUUA'!$R$7,'2.2 OPEX LAP 2023'!M113*'2.1 OPEX TUUA'!$R$8) -> 959.3000245 | S113: =+IF(F113="Pasajero",'2.2 OPEX LAP 2023'!N113*'2.1 OPEX TUUA'!$S$7,'2.2 OPEX LAP 2023'!N113*'2.1 OPEX TUUA'!$S$8) -> 959.9123614 | U113: 1989.333163 | V113: 2333.497912 | W113: 2623.222916 | X113: 2779.347423 | Y113: 2893.418329 | Z113: 3020.153311 | AA113: 0 | AB113: 0 | AC113: 0 | AD113: 0 | AE113: 0 | AF113: 0
B114: 6380000021 | C114: Directo | D114: Servicios prestados por terceros | E114: Administracion en la nube | F114: Pasajero | G114: =+IF(F114="Pasajero",'2.2 OPEX LAP 2023'!I114*'2.1 OPEX TUUA'!$G$7,'2.2 OPEX LAP 2023'!I114*'2.1 OPEX TUUA'!$G$8) -> 709.7050593 | H114: =+IF(F114="Pasajero",'2.2 OPEX LAP 2023'!J114*'2.1 OPEX TUUA'!$H$7,'2.2 OPEX LAP 2023'!J114*'2.1 OPEX TUUA'!$H$8) -> 832.4876422 | I114: =+IF(F114="Pasajero",'2.2 OPEX LAP 2023'!K114*'2.1 OPEX TUUA'!$I$7,'2.2 OPEX LAP 2023'!K114*'2.1 OPEX TUUA'!$I$8) -> 935.8485598 | J114: =+IF(F114="Pasajero",'2.2 OPEX LAP 2023'!L114*'2.1 OPEX TUUA'!$J$7,'2.2 OPEX LAP 2023'!L114*'2.1 OPEX TUUA'!$J$8) -> 991.5467979 | K114: =+IF(F114="Pasajero",'2.2 OPEX LAP 2023'!M114*'2.1 OPEX TUUA'!$K$7,'2.2 OPEX LAP 2023'!M114*'2.1 OPEX TUUA'!$K$8) -> 1032.242193 | L114: =+IF(F114="Pasajero",'2.2 OPEX LAP 2023'!N114*'2.1 OPEX TUUA'!$L$7,'2.2 OPEX LAP 2023'!N114*'2.1 OPEX TUUA'!$L$8) -> 1077.455564 | N114: =+IF(F114="Pasajero",'2.2 OPEX LAP 2023'!I114*'2.1 OPEX TUUA'!$N$7,'2.2 OPEX LAP 2023'!I114*'2.1 OPEX TUUA'!$N$8) -> 350.0387592 | O114: =+IF(F114="Pasajero",'2.2 OPEX LAP 2023'!J114*'2.1 OPEX TUUA'!$O$7,'2.2 OPEX LAP 2023'!J114*'2.1 OPEX TUUA'!$O$8) -> 344.7857674 | P114: =+IF(F114="Pasajero",'2.2 OPEX LAP 2023'!K114*'2.1 OPEX TUUA'!$P$7,'2.2 OPEX LAP 2023'!K114*'2.1 OPEX TUUA'!$P$8) -> 342.6409944 | Q114: =+IF(F114="Pasajero",'2.2 OPEX LAP 2023'!L114*'2.1 OPEX TUUA'!$Q$7,'2.2 OPEX LAP 2023'!L114*'2.1 OPEX TUUA'!$Q$8) -> 340.4088242 | R114: =+IF(F114="Pasajero",'2.2 OPEX LAP 2023'!M114*'2.1 OPEX TUUA'!$R$7,'2.2 OPEX LAP 2023'!M114*'2.1 OPEX TUUA'!$R$8) -> 342.2353246 | S114: =+IF(F114="Pasajero",'2.2 OPEX LAP 2023'!N114*'2.1 OPEX TUUA'!$S$7,'2.2 OPEX LAP 2023'!N114*'2.1 OPEX TUUA'!$S$8) -> 342.4537791 | U114: 709.7050593 | V114: 832.4876422 | W114: 935.8485598 | X114: 991.5467979 | Y114: 1032.242193 | Z114: 1077.455564 | AA114: 0 | AB114: 0 | AC114: 0 | AD114: 0 | AE114: 0 | AF114: 0
B115: 6380000022 | C115: Directo | D115: Servicios prestados por terceros | E115: Gestion de energia electrica | F115: Pasajero | G115: =+IF(F115="Pasajero",'2.2 OPEX LAP 2023'!I115*'2.1 OPEX TUUA'!$G$7,'2.2 OPEX LAP 2023'!I115*'2.1 OPEX TUUA'!$G$8) -> 1592.424517 | H115: =+IF(F115="Pasajero",'2.2 OPEX LAP 2023'!J115*'2.1 OPEX TUUA'!$H$7,'2.2 OPEX LAP 2023'!J115*'2.1 OPEX TUUA'!$H$8) -> 1867.922053 | I115: =+IF(F115="Pasajero",'2.2 OPEX LAP 2023'!K115*'2.1 OPEX TUUA'!$I$7,'2.2 OPEX LAP 2023'!K115*'2.1 OPEX TUUA'!$I$8) -> 2099.841576 | J115: =+IF(F115="Pasajero",'2.2 OPEX LAP 2023'!L115*'2.1 OPEX TUUA'!$J$7,'2.2 OPEX LAP 2023'!L115*'2.1 OPEX TUUA'!$J$8) -> 2224.816365 | K115: =+IF(F115="Pasajero",'2.2 OPEX LAP 2023'!M115*'2.1 OPEX TUUA'!$K$7,'2.2 OPEX LAP 2023'!M115*'2.1 OPEX TUUA'!$K$8) -> 2316.128022 | L115: =+IF(F115="Pasajero",'2.2 OPEX LAP 2023'!N115*'2.1 OPEX TUUA'!$L$7,'2.2 OPEX LAP 2023'!N115*'2.1 OPEX TUUA'!$L$8) -> 2417.577039 | N115: =+IF(F115="Pasajero",'2.2 OPEX LAP 2023'!I115*'2.1 OPEX TUUA'!$N$7,'2.2 OPEX LAP 2023'!I115*'2.1 OPEX TUUA'!$N$8) -> 785.4111995 | O115: =+IF(F115="Pasajero",'2.2 OPEX LAP 2023'!J115*'2.1 OPEX TUUA'!$O$7,'2.2 OPEX LAP 2023'!J115*'2.1 OPEX TUUA'!$O$8) -> 773.624623 | P115: =+IF(F115="Pasajero",'2.2 OPEX LAP 2023'!K115*'2.1 OPEX TUUA'!$P$7,'2.2 OPEX LAP 2023'!K115*'2.1 OPEX TUUA'!$P$8) -> 768.8122169 | Q115: =+IF(F115="Pasajero",'2.2 OPEX LAP 2023'!L115*'2.1 OPEX TUUA'!$Q$7,'2.2 OPEX LAP 2023'!L115*'2.1 OPEX TUUA'!$Q$8) -> 763.80371 | R115: =+IF(F115="Pasajero",'2.2 OPEX LAP 2023'!M115*'2.1 OPEX TUUA'!$R$7,'2.2 OPEX LAP 2023'!M115*'2.1 OPEX TUUA'!$R$8) -> 767.9019817 | S115: =+IF(F115="Pasajero",'2.2 OPEX LAP 2023'!N115*'2.1 OPEX TUUA'!$S$7,'2.2 OPEX LAP 2023'!N115*'2.1 OPEX TUUA'!$S$8) -> 768.3921461 | U115: 1592.424517 | V115: 1867.922053 | W115: 2099.841576 | X115: 2224.816365 | Y115: 2316.128022 | Z115: 2417.577039 | AA115: 0 | AB115: 0 | AC115: 0 | AD115: 0 | AE115: 0 | AF115: 0
B116: 6380000023 | C116: Directo | D116: Outsourcing | E116: Anfitriones aeroportuarios | F116: Pasajero | G116: =+IF(F116="Pasajero",'2.2 OPEX LAP 2023'!I116*'2.1 OPEX TUUA'!$G$7,'2.2 OPEX LAP 2023'!I116*'2.1 OPEX TUUA'!$G$8) -> 3001.668907 | H116: =+IF(F116="Pasajero",'2.2 OPEX LAP 2023'!J116*'2.1 OPEX TUUA'!$H$7,'2.2 OPEX LAP 2023'!J116*'2.1 OPEX TUUA'!$H$8) -> 3520.972886 | I116: =+IF(F116="Pasajero",'2.2 OPEX LAP 2023'!K116*'2.1 OPEX TUUA'!$I$7,'2.2 OPEX LAP 2023'!K116*'2.1 OPEX TUUA'!$I$8) -> 3958.133715 | J116: =+IF(F116="Pasajero",'2.2 OPEX LAP 2023'!L116*'2.1 OPEX TUUA'!$J$7,'2.2 OPEX LAP 2023'!L116*'2.1 OPEX TUUA'!$J$8) -> 4193.707166 | K116: =+IF(F116="Pasajero",'2.2 OPEX LAP 2023'!M116*'2.1 OPEX TUUA'!$K$7,'2.2 OPEX LAP 2023'!M116*'2.1 OPEX TUUA'!$K$8) -> 4365.826697 | L116: =+IF(F116="Pasajero",'2.2 OPEX LAP 2023'!N116*'2.1 OPEX TUUA'!$L$7,'2.2 OPEX LAP 2023'!N116*'2.1 OPEX TUUA'!$L$8) -> 4557.054824 | N116: =+IF(F116="Pasajero",'2.2 OPEX LAP 2023'!I116*'2.1 OPEX TUUA'!$N$7,'2.2 OPEX LAP 2023'!I116*'2.1 OPEX TUUA'!$N$8) -> 1480.474805 | O116: =+IF(F116="Pasajero",'2.2 OPEX LAP 2023'!J116*'2.1 OPEX TUUA'!$O$7,'2.2 OPEX LAP 2023'!J116*'2.1 OPEX TUUA'!$O$8) -> 1458.257488 | P116: =+IF(F116="Pasajero",'2.2 OPEX LAP 2023'!K116*'2.1 OPEX TUUA'!$P$7,'2.2 OPEX LAP 2023'!K116*'2.1 OPEX TUUA'!$P$8) -> 1449.186258 | Q116: =+IF(F116="Pasajero",'2.2 OPEX LAP 2023'!L116*'2.1 OPEX TUUA'!$Q$7,'2.2 OPEX LAP 2023'!L116*'2.1 OPEX TUUA'!$Q$8) -> 1439.745384 | R116: =+IF(F116="Pasajero",'2.2 OPEX LAP 2023'!M116*'2.1 OPEX TUUA'!$R$7,'2.2 OPEX LAP 2023'!M116*'2.1 OPEX TUUA'!$R$8) -> 1447.470494 | S116: =+IF(F116="Pasajero",'2.2 OPEX LAP 2023'!N116*'2.1 OPEX TUUA'!$S$7,'2.2 OPEX LAP 2023'!N116*'2.1 OPEX TUUA'!$S$8) -> 1448.394438 | U116: 3001.668907 | V116: 3520.972886 | W116: 3958.133715 | X116: 4193.707166 | Y116: 4365.826697 | Z116: 4557.054824 | AA116: 0 | AB116: 0 | AC116: 0 | AD116: 0 | AE116: 0 | AF116: 0
B117: 6380000024 | C117: Directo | D117: Outsourcing | E117: Personal oficina de hallazgo | F117: Pasajero | G117: =+IF(F117="Pasajero",'2.2 OPEX LAP 2023'!I117*'2.1 OPEX TUUA'!$G$7,'2.2 OPEX LAP 2023'!I117*'2.1 OPEX TUUA'!$G$8) -> 4888.84332 | H117: =+IF(F117="Pasajero",'2.2 OPEX LAP 2023'!J117*'2.1 OPEX TUUA'!$H$7,'2.2 OPEX LAP 2023'!J117*'2.1 OPEX TUUA'!$H$8) -> 5734.638065 | I117: =+IF(F117="Pasajero",'2.2 OPEX LAP 2023'!K117*'2.1 OPEX TUUA'!$I$7,'2.2 OPEX LAP 2023'!K117*'2.1 OPEX TUUA'!$I$8) -> 6446.645574 | J117: =+IF(F117="Pasajero",'2.2 OPEX LAP 2023'!L117*'2.1 OPEX TUUA'!$J$7,'2.2 OPEX LAP 2023'!L117*'2.1 OPEX TUUA'!$J$8) -> 6830.326029 | K117: =+IF(F117="Pasajero",'2.2 OPEX LAP 2023'!M117*'2.1 OPEX TUUA'!$K$7,'2.2 OPEX LAP 2023'!M117*'2.1 OPEX TUUA'!$K$8) -> 7110.658552 | L117: =+IF(F117="Pasajero",'2.2 OPEX LAP 2023'!N117*'2.1 OPEX TUUA'!$L$7,'2.2 OPEX LAP 2023'!N117*'2.1 OPEX TUUA'!$L$8) -> 7422.113407 | N117: =+IF(F117="Pasajero",'2.2 OPEX LAP 2023'!I117*'2.1 OPEX TUUA'!$N$7,'2.2 OPEX LAP 2023'!I117*'2.1 OPEX TUUA'!$N$8) -> 2411.26173 | O117: =+IF(F117="Pasajero",'2.2 OPEX LAP 2023'!J117*'2.1 OPEX TUUA'!$O$7,'2.2 OPEX LAP 2023'!J117*'2.1 OPEX TUUA'!$O$8) -> 2375.0762 | P117: =+IF(F117="Pasajero",'2.2 OPEX LAP 2023'!K117*'2.1 OPEX TUUA'!$P$7,'2.2 OPEX LAP 2023'!K117*'2.1 OPEX TUUA'!$P$8) -> 2360.301811 | Q117: =+IF(F117="Pasajero",'2.2 OPEX LAP 2023'!L117*'2.1 OPEX TUUA'!$Q$7,'2.2 OPEX LAP 2023'!L117*'2.1 OPEX TUUA'!$Q$8) -> 2344.92538 | R117: =+IF(F117="Pasajero",'2.2 OPEX LAP 2023'!M117*'2.1 OPEX TUUA'!$R$7,'2.2 OPEX LAP 2023'!M117*'2.1 OPEX TUUA'!$R$8) -> 2357.507332 | S117: =+IF(F117="Pasajero",'2.2 OPEX LAP 2023'!N117*'2.1 OPEX TUUA'!$S$7,'2.2 OPEX LAP 2023'!N117*'2.1 OPEX TUUA'!$S$8) -> 2359.012167 | U117: 4888.84332 | V117: 5734.638065 | W117: 6446.645574 | X117: 6830.326029 | Y117: 7110.658552 | Z117: 7422.113407 | AA117: 0 | AB117: 0 | AC117: 0 | AD117: 0 | AE117: 0 | AF117: 0
B118: 6380000025 | C118: Directo | D118: Outsourcing | E118: Guías de embarque peatonal | F118: Pasajero | G118: =+IF(F118="Pasajero",'2.2 OPEX LAP 2023'!I118*'2.1 OPEX TUUA'!$G$7,'2.2 OPEX LAP 2023'!I118*'2.1 OPEX TUUA'!$G$8) -> 0 | H118: =+IF(F118="Pasajero",'2.2 OPEX LAP 2023'!J118*'2.1 OPEX TUUA'!$H$7,'2.2 OPEX LAP 2023'!J118*'2.1 OPEX TUUA'!$H$8) -> 0 | I118: =+IF(F118="Pasajero",'2.2 OPEX LAP 2023'!K118*'2.1 OPEX TUUA'!$I$7,'2.2 OPEX LAP 2023'!K118*'2.1 OPEX TUUA'!$I$8) -> 0 | J118: =+IF(F118="Pasajero",'2.2 OPEX LAP 2023'!L118*'2.1 OPEX TUUA'!$J$7,'2.2 OPEX LAP 2023'!L118*'2.1 OPEX TUUA'!$J$8) -> 0 | K118: =+IF(F118="Pasajero",'2.2 OPEX LAP 2023'!M118*'2.1 OPEX TUUA'!$K$7,'2.2 OPEX LAP 2023'!M118*'2.1 OPEX TUUA'!$K$8) -> 0 | L118: =+IF(F118="Pasajero",'2.2 OPEX LAP 2023'!N118*'2.1 OPEX TUUA'!$L$7,'2.2 OPEX LAP 2023'!N118*'2.1 OPEX TUUA'!$L$8) -> 0 | N118: =+IF(F118="Pasajero",'2.2 OPEX LAP 2023'!I118*'2.1 OPEX TUUA'!$N$7,'2.2 OPEX LAP 2023'!I118*'2.1 OPEX TUUA'!$N$8) -> 0 | O118: =+IF(F118="Pasajero",'2.2 OPEX LAP 2023'!J118*'2.1 OPEX TUUA'!$O$7,'2.2 OPEX LAP 2023'!J118*'2.1 OPEX TUUA'!$O$8) -> 0 | P118: =+IF(F118="Pasajero",'2.2 OPEX LAP 2023'!K118*'2.1 OPEX TUUA'!$P$7,'2.2 OPEX LAP 2023'!K118*'2.1 OPEX TUUA'!$P$8) -> 0 | Q118: =+IF(F118="Pasajero",'2.2 OPEX LAP 2023'!L118*'2.1 OPEX TUUA'!$Q$7,'2.2 OPEX LAP 2023'!L118*'2.1 OPEX TUUA'!$Q$8) -> 0 | R118: =+IF(F118="Pasajero",'2.2 OPEX LAP 2023'!M118*'2.1 OPEX TUUA'!$R$7,'2.2 OPEX LAP 2023'!M118*'2.1 OPEX TUUA'!$R$8) -> 0 | S118: =+IF(F118="Pasajero",'2.2 OPEX LAP 2023'!N118*'2.1 OPEX TUUA'!$S$7,'2.2 OPEX LAP 2023'!N118*'2.1 OPEX TUUA'!$S$8) -> 0 | U118: 0 | V118: 0 | W118: 0 | X118: 0 | Y118: 0 | Z118: 0 | AA118: 0 | AB118: 0 | AC118: 0 | AD118: 0 | AE118: 0 | AF118: 0
B119: 6380000026 | C119: Directo | D119: Outsourcing | E119: Señaleros vía vehicular G8 | F119: Pasajero | G119: =+IF(F119="Pasajero",'2.2 OPEX LAP 2023'!I119*'2.1 OPEX TUUA'!$G$7,'2.2 OPEX LAP 2023'!I119*'2.1 OPEX TUUA'!$G$8) -> 0 | H119: =+IF(F119="Pasajero",'2.2 OPEX LAP 2023'!J119*'2.1 OPEX TUUA'!$H$7,'2.2 OPEX LAP 2023'!J119*'2.1 OPEX TUUA'!$H$8) -> 0 | I119: =+IF(F119="Pasajero",'2.2 OPEX LAP 2023'!K119*'2.1 OPEX TUUA'!$I$7,'2.2 OPEX LAP 2023'!K119*'2.1 OPEX TUUA'!$I$8) -> 0 | J119: =+IF(F119="Pasajero",'2.2 OPEX LAP 2023'!L119*'2.1 OPEX TUUA'!$J$7,'2.2 OPEX LAP 2023'!L119*'2.1 OPEX TUUA'!$J$8) -> 0 | K119: =+IF(F119="Pasajero",'2.2 OPEX LAP 2023'!M119*'2.1 OPEX TUUA'!$K$7,'2.2 OPEX LAP 2023'!M119*'2.1 OPEX TUUA'!$K$8) -> 0 | L119: =+IF(F119="Pasajero",'2.2 OPEX LAP 2023'!N119*'2.1 OPEX TUUA'!$L$7,'2.2 OPEX LAP 2023'!N119*'2.1 OPEX TUUA'!$L$8) -> 0 | N119: =+IF(F119="Pasajero",'2.2 OPEX LAP 2023'!I119*'2.1 OPEX TUUA'!$N$7,'2.2 OPEX LAP 2023'!I119*'2.1 OPEX TUUA'!$N$8) -> 0 | O119: =+IF(F119="Pasajero",'2.2 OPEX LAP 2023'!J119*'2.1 OPEX TUUA'!$O$7,'2.2 OPEX LAP 2023'!J119*'2.1 OPEX TUUA'!$O$8) -> 0 | P119: =+IF(F119="Pasajero",'2.2 OPEX LAP 2023'!K119*'2.1 OPEX TUUA'!$P$7,'2.2 OPEX LAP 2023'!K119*'2.1 OPEX TUUA'!$P$8) -> 0 | Q119: =+IF(F119="Pasajero",'2.2 OPEX LAP 2023'!L119*'2.1 OPEX TUUA'!$Q$7,'2.2 OPEX LAP 2023'!L119*'2.1 OPEX TUUA'!$Q$8) -> 0 | R119: =+IF(F119="Pasajero",'2.2 OPEX LAP 2023'!M119*'2.1 OPEX TUUA'!$R$7,'2.2 OPEX LAP 2023'!M119*'2.1 OPEX TUUA'!$R$8) -> 0 | S119: =+IF(F119="Pasajero",'2.2 OPEX LAP 2023'!N119*'2.1 OPEX TUUA'!$S$7,'2.2 OPEX LAP 2023'!N119*'2.1 OPEX TUUA'!$S$8) -> 0 | U119: 0 | V119: 0 | W119: 0 | X119: 0 | Y119: 0 | Z119: 0 | AA119: 0 | AB119: 0 | AC119: 0 | AD119: 0 | AE119: 0 | AF119: 0
B120: 6380000027 | C120: Directo | D120: Outsourcing | E120: Direccionam. de plataforma | F120: Pasajero | G120: =+IF(F120="Pasajero",'2.2 OPEX LAP 2023'!I120*'2.1 OPEX TUUA'!$G$7,'2.2 OPEX LAP 2023'!I120*'2.1 OPEX TUUA'!$G$8) -> 0 | H120: =+IF(F120="Pasajero",'2.2 OPEX LAP 2023'!J120*'2.1 OPEX TUUA'!$H$7,'2.2 OPEX LAP 2023'!J120*'2.1 OPEX TUUA'!$H$8) -> 0 | I120: =+IF(F120="Pasajero",'2.2 OPEX LAP 2023'!K120*'2.1 OPEX TUUA'!$I$7,'2.2 OPEX LAP 2023'!K120*'2.1 OPEX TUUA'!$I$8) -> 0 | J120: =+IF(F120="Pasajero",'2.2 OPEX LAP 2023'!L120*'2.1 OPEX TUUA'!$J$7,'2.2 OPEX LAP 2023'!L120*'2.1 OPEX TUUA'!$J$8) -> 0 | K120: =+IF(F120="Pasajero",'2.2 OPEX LAP 2023'!M120*'2.1 OPEX TUUA'!$K$7,'2.2 OPEX LAP 2023'!M120*'2.1 OPEX TUUA'!$K$8) -> 0 | L120: =+IF(F120="Pasajero",'2.2 OPEX LAP 2023'!N120*'2.1 OPEX TUUA'!$L$7,'2.2 OPEX LAP 2023'!N120*'2.1 OPEX TUUA'!$L$8) -> 0 | N120: =+IF(F120="Pasajero",'2.2 OPEX LAP 2023'!I120*'2.1 OPEX TUUA'!$N$7,'2.2 OPEX LAP 2023'!I120*'2.1 OPEX TUUA'!$N$8) -> 0 | O120: =+IF(F120="Pasajero",'2.2 OPEX LAP 2023'!J120*'2.1 OPEX TUUA'!$O$7,'2.2 OPEX LAP 2023'!J120*'2.1 OPEX TUUA'!$O$8) -> 0 | P120: =+IF(F120="Pasajero",'2.2 OPEX LAP 2023'!K120*'2.1 OPEX TUUA'!$P$7,'2.2 OPEX LAP 2023'!K120*'2.1 OPEX TUUA'!$P$8) -> 0 | Q120: =+IF(F120="Pasajero",'2.2 OPEX LAP 2023'!L120*'2.1 OPEX TUUA'!$Q$7,'2.2 OPEX LAP 2023'!L120*'2.1 OPEX TUUA'!$Q$8) -> 0 | R120: =+IF(F120="Pasajero",'2.2 OPEX LAP 2023'!M120*'2.1 OPEX TUUA'!$R$7,'2.2 OPEX LAP 2023'!M120*'2.1 OPEX TUUA'!$R$8) -> 0 | S120: =+IF(F120="Pasajero",'2.2 OPEX LAP 2023'!N120*'2.1 OPEX TUUA'!$S$7,'2.2 OPEX LAP 2023'!N120*'2.1 OPEX TUUA'!$S$8) -> 0 | U120: 0 | V120: 0 | W120: 0 | X120: 0 | Y120: 0 | Z120: 0 | AA120: 0 | AB120: 0 | AC120: 0 | AD120: 0 | AE120: 0 | AF120: 0
B121: 6380000028 | C121: Directo | D121: Outsourcing | E121: Servicio de Central Telefónica | F121: Pasajero | G121: =+IF(F121="Pasajero",'2.2 OPEX LAP 2023'!I121*'2.1 OPEX TUUA'!$G$7,'2.2 OPEX LAP 2023'!I121*'2.1 OPEX TUUA'!$G$8) -> 9734.21853 | H121: =+IF(F121="Pasajero",'2.2 OPEX LAP 2023'!J121*'2.1 OPEX TUUA'!$H$7,'2.2 OPEX LAP 2023'!J121*'2.1 OPEX TUUA'!$H$8) -> 11418.28782 | I121: =+IF(F121="Pasajero",'2.2 OPEX LAP 2023'!K121*'2.1 OPEX TUUA'!$I$7,'2.2 OPEX LAP 2023'!K121*'2.1 OPEX TUUA'!$I$8) -> 12835.97217 | J121: =+IF(F121="Pasajero",'2.2 OPEX LAP 2023'!L121*'2.1 OPEX TUUA'!$J$7,'2.2 OPEX LAP 2023'!L121*'2.1 OPEX TUUA'!$J$8) -> 13599.92167 | K121: =+IF(F121="Pasajero",'2.2 OPEX LAP 2023'!M121*'2.1 OPEX TUUA'!$K$7,'2.2 OPEX LAP 2023'!M121*'2.1 OPEX TUUA'!$K$8) -> 14158.0942 | L121: =+IF(F121="Pasajero",'2.2 OPEX LAP 2023'!N121*'2.1 OPEX TUUA'!$L$7,'2.2 OPEX LAP 2023'!N121*'2.1 OPEX TUUA'!$L$8) -> 14778.23467 | N121: =+IF(F121="Pasajero",'2.2 OPEX LAP 2023'!I121*'2.1 OPEX TUUA'!$N$7,'2.2 OPEX LAP 2023'!I121*'2.1 OPEX TUUA'!$N$8) -> 4801.08424 | O121: =+IF(F121="Pasajero",'2.2 OPEX LAP 2023'!J121*'2.1 OPEX TUUA'!$O$7,'2.2 OPEX LAP 2023'!J121*'2.1 OPEX TUUA'!$O$8) -> 4729.034916 | P121: =+IF(F121="Pasajero",'2.2 OPEX LAP 2023'!K121*'2.1 OPEX TUUA'!$P$7,'2.2 OPEX LAP 2023'!K121*'2.1 OPEX TUUA'!$P$8) -> 4699.6175 | Q121: =+IF(F121="Pasajero",'2.2 OPEX LAP 2023'!L121*'2.1 OPEX TUUA'!$Q$7,'2.2 OPEX LAP 2023'!L121*'2.1 OPEX TUUA'!$Q$8) -> 4669.001355 | R121: =+IF(F121="Pasajero",'2.2 OPEX LAP 2023'!M121*'2.1 OPEX TUUA'!$R$7,'2.2 OPEX LAP 2023'!M121*'2.1 OPEX TUUA'!$R$8) -> 4694.053389 | S121: =+IF(F121="Pasajero",'2.2 OPEX LAP 2023'!N121*'2.1 OPEX TUUA'!$S$7,'2.2 OPEX LAP 2023'!N121*'2.1 OPEX TUUA'!$S$8) -> 4697.04968 | U121: 9734.21853 | V121: 11418.28782 | W121: 12835.97217 | X121: 13599.92167 | Y121: 14158.0942 | Z121: 14778.23467 | AA121: 0 | AB121: 0 | AC121: 0 | AD121: 0 | AE121: 0 | AF121: 0
B122: 6380000029 | C122: Directo | D122: Servicios prestados por terceros | E122: Serv.de marketing a recuperar | F122: Pasajero | G122: =+IF(F122="Pasajero",'2.2 OPEX LAP 2023'!I122*'2.1 OPEX TUUA'!$G$7,'2.2 OPEX LAP 2023'!I122*'2.1 OPEX TUUA'!$G$8) -> 0 | H122: =+IF(F122="Pasajero",'2.2 OPEX LAP 2023'!J122*'2.1 OPEX TUUA'!$H$7,'2.2 OPEX LAP 2023'!J122*'2.1 OPEX TUUA'!$H$8) -> 0 | I122: =+IF(F122="Pasajero",'2.2 OPEX LAP 2023'!K122*'2.1 OPEX TUUA'!$I$7,'2.2 OPEX LAP 2023'!K122*'2.1 OPEX TUUA'!$I$8) -> 0 | J122: =+IF(F122="Pasajero",'2.2 OPEX LAP 2023'!L122*'2.1 OPEX TUUA'!$J$7,'2.2 OPEX LAP 2023'!L122*'2.1 OPEX TUUA'!$J$8) -> 0 | K122: =+IF(F122="Pasajero",'2.2 OPEX LAP 2023'!M122*'2.1 OPEX TUUA'!$K$7,'2.2 OPEX LAP 2023'!M122*'2.1 OPEX TUUA'!$K$8) -> 0 | L122: =+IF(F122="Pasajero",'2.2 OPEX LAP 2023'!N122*'2.1 OPEX TUUA'!$L$7,'2.2 OPEX LAP 2023'!N122*'2.1 OPEX TUUA'!$L$8) -> 0 | N122: =+IF(F122="Pasajero",'2.2 OPEX LAP 2023'!I122*'2.1 OPEX TUUA'!$N$7,'2.2 OPEX LAP 2023'!I122*'2.1 OPEX TUUA'!$N$8) -> 0 | O122: =+IF(F122="Pasajero",'2.2 OPEX LAP 2023'!J122*'2.1 OPEX TUUA'!$O$7,'2.2 OPEX LAP 2023'!J122*'2.1 OPEX TUUA'!$O$8) -> 0 | P122: =+IF(F122="Pasajero",'2.2 OPEX LAP 2023'!K122*'2.1 OPEX TUUA'!$P$7,'2.2 OPEX LAP 2023'!K122*'2.1 OPEX TUUA'!$P$8) -> 0 | Q122: =+IF(F122="Pasajero",'2.2 OPEX LAP 2023'!L122*'2.1 OPEX TUUA'!$Q$7,'2.2 OPEX LAP 2023'!L122*'2.1 OPEX TUUA'!$Q$8) -> 0 | R122: =+IF(F122="Pasajero",'2.2 OPEX LAP 2023'!M122*'2.1 OPEX TUUA'!$R$7,'2.2 OPEX LAP 2023'!M122*'2.1 OPEX TUUA'!$R$8) -> 0 | S122: =+IF(F122="Pasajero",'2.2 OPEX LAP 2023'!N122*'2.1 OPEX TUUA'!$S$7,'2.2 OPEX LAP 2023'!N122*'2.1 OPEX TUUA'!$S$8) -> 0 | U122: 0 | V122: 0 | W122: 0 | X122: 0 | Y122: 0 | Z122: 0 | AA122: 0 | AB122: 0 | AC122: 0 | AD122: 0 | AE122: 0 | AF122: 0
B123: 6380000030 | C123: Directo | D123: Servicios prestados por terceros | E123: Servicios de terceros diversos | F123: Pasajero | G123: =+IF(F123="Pasajero",'2.2 OPEX LAP 2023'!I123*'2.1 OPEX TUUA'!$G$7,'2.2 OPEX LAP 2023'!I123*'2.1 OPEX TUUA'!$G$8) -> 26974.88278 | H123: =+IF(F123="Pasajero",'2.2 OPEX LAP 2023'!J123*'2.1 OPEX TUUA'!$H$7,'2.2 OPEX LAP 2023'!J123*'2.1 OPEX TUUA'!$H$8) -> 31641.67462 | I123: =+IF(F123="Pasajero",'2.2 OPEX LAP 2023'!K123*'2.1 OPEX TUUA'!$I$7,'2.2 OPEX LAP 2023'!K123*'2.1 OPEX TUUA'!$I$8) -> 35570.27651 | J123: =+IF(F123="Pasajero",'2.2 OPEX LAP 2023'!L123*'2.1 OPEX TUUA'!$J$7,'2.2 OPEX LAP 2023'!L123*'2.1 OPEX TUUA'!$J$8) -> 37687.28755 | K123: =+IF(F123="Pasajero",'2.2 OPEX LAP 2023'!M123*'2.1 OPEX TUUA'!$K$7,'2.2 OPEX LAP 2023'!M123*'2.1 OPEX TUUA'!$K$8) -> 39234.06179 | L123: =+IF(F123="Pasajero",'2.2 OPEX LAP 2023'!N123*'2.1 OPEX TUUA'!$L$7,'2.2 OPEX LAP 2023'!N123*'2.1 OPEX TUUA'!$L$8) -> 40952.5579 | N123: =+IF(F123="Pasajero",'2.2 OPEX LAP 2023'!I123*'2.1 OPEX TUUA'!$N$7,'2.2 OPEX LAP 2023'!I123*'2.1 OPEX TUUA'!$N$8) -> 13304.4768 | O123: =+IF(F123="Pasajero",'2.2 OPEX LAP 2023'!J123*'2.1 OPEX TUUA'!$O$7,'2.2 OPEX LAP 2023'!J123*'2.1 OPEX TUUA'!$O$8) -> 13104.81803 | P123: =+IF(F123="Pasajero",'2.2 OPEX LAP 2023'!K123*'2.1 OPEX TUUA'!$P$7,'2.2 OPEX LAP 2023'!K123*'2.1 OPEX TUUA'!$P$8) -> 13023.29825 | Q123: =+IF(F123="Pasajero",'2.2 OPEX LAP 2023'!L123*'2.1 OPEX TUUA'!$Q$7,'2.2 OPEX LAP 2023'!L123*'2.1 OPEX TUUA'!$Q$8) -> 12938.45663 | R123: =+IF(F123="Pasajero",'2.2 OPEX LAP 2023'!M123*'2.1 OPEX TUUA'!$R$7,'2.2 OPEX LAP 2023'!M123*'2.1 OPEX TUUA'!$R$8) -> 13007.87932 | S123: =+IF(F123="Pasajero",'2.2 OPEX LAP 2023'!N123*'2.1 OPEX TUUA'!$S$7,'2.2 OPEX LAP 2023'!N123*'2.1 OPEX TUUA'!$S$8) -> 13016.18246 | U123: 26974.88278 | V123: 31641.67462 | W123: 35570.27651 | X123: 37687.28755 | Y123: 39234.06179 | Z123: 40952.5579 | AA123: 0 | AB123: 0 | AC123: 0 | AD123: 0 | AE123: 0 | AF123: 0
B124: 6380000031 | C124: Directo | D124: Outsourcing | E124: Servicio de Controladores de Tránsito | F124: Pasajero | G124: =+IF(F124="Pasajero",'2.2 OPEX LAP 2023'!I124*'2.1 OPEX TUUA'!$G$7,'2.2 OPEX LAP 2023'!I124*'2.1 OPEX TUUA'!$G$8) -> 0 | H124: =+IF(F124="Pasajero",'2.2 OPEX LAP 2023'!J124*'2.1 OPEX TUUA'!$H$7,'2.2 OPEX LAP 2023'!J124*'2.1 OPEX TUUA'!$H$8) -> 0 | I124: =+IF(F124="Pasajero",'2.2 OPEX LAP 2023'!K124*'2.1 OPEX TUUA'!$I$7,'2.2 OPEX LAP 2023'!K124*'2.1 OPEX TUUA'!$I$8) -> 0 | J124: =+IF(F124="Pasajero",'2.2 OPEX LAP 2023'!L124*'2.1 OPEX TUUA'!$J$7,'2.2 OPEX LAP 2023'!L124*'2.1 OPEX TUUA'!$J$8) -> 0 | K124: =+IF(F124="Pasajero",'2.2 OPEX LAP 2023'!M124*'2.1 OPEX TUUA'!$K$7,'2.2 OPEX LAP 2023'!M124*'2.1 OPEX TUUA'!$K$8) -> 0 | L124: =+IF(F124="Pasajero",'2.2 OPEX LAP 2023'!N124*'2.1 OPEX TUUA'!$L$7,'2.2 OPEX LAP 2023'!N124*'2.1 OPEX TUUA'!$L$8) -> 0 | N124: =+IF(F124="Pasajero",'2.2 OPEX LAP 2023'!I124*'2.1 OPEX TUUA'!$N$7,'2.2 OPEX LAP 2023'!I124*'2.1 OPEX TUUA'!$N$8) -> 0 | O124: =+IF(F124="Pasajero",'2.2 OPEX LAP 2023'!J124*'2.1 OPEX TUUA'!$O$7,'2.2 OPEX LAP 2023'!J124*'2.1 OPEX TUUA'!$O$8) -> 0 | P124: =+IF(F124="Pasajero",'2.2 OPEX LAP 2023'!K124*'2.1 OPEX TUUA'!$P$7,'2.2 OPEX LAP 2023'!K124*'2.1 OPEX TUUA'!$P$8) -> 0 | Q124: =+IF(F124="Pasajero",'2.2 OPEX LAP 2023'!L124*'2.1 OPEX TUUA'!$Q$7,'2.2 OPEX LAP 2023'!L124*'2.1 OPEX TUUA'!$Q$8) -> 0 | R124: =+IF(F124="Pasajero",'2.2 OPEX LAP 2023'!M124*'2.1 OPEX TUUA'!$R$7,'2.2 OPEX LAP 2023'!M124*'2.1 OPEX TUUA'!$R$8) -> 0 | S124: =+IF(F124="Pasajero",'2.2 OPEX LAP 2023'!N124*'2.1 OPEX TUUA'!$S$7,'2.2 OPEX LAP 2023'!N124*'2.1 OPEX TUUA'!$S$8) -> 0 | U124: 0 | V124: 0 | W124: 0 | X124: 0 | Y124: 0 | Z124: 0 | AA124: 0 | AB124: 0 | AC124: 0 | AD124: 0 | AE124: 0 | AF124: 0
B125: 6381000001 | C125: Directo | D125: Outsourcing | E125: Ofic.de Seguridad Aeropor. nivel 1 | F125: Pasajero | G125: =+IF(F125="Pasajero",'2.2 OPEX LAP 2023'!I125*'2.1 OPEX TUUA'!$G$7,'2.2 OPEX LAP 2023'!I125*'2.1 OPEX TUUA'!$G$8) -> 0 | H125: =+IF(F125="Pasajero",'2.2 OPEX LAP 2023'!J125*'2.1 OPEX TUUA'!$H$7,'2.2 OPEX LAP 2023'!J125*'2.1 OPEX TUUA'!$H$8) -> 0 | I125: =+IF(F125="Pasajero",'2.2 OPEX LAP 2023'!K125*'2.1 OPEX TUUA'!$I$7,'2.2 OPEX LAP 2023'!K125*'2.1 OPEX TUUA'!$I$8) -> 0 | J125: =+IF(F125="Pasajero",'2.2 OPEX LAP 2023'!L125*'2.1 OPEX TUUA'!$J$7,'2.2 OPEX LAP 2023'!L125*'2.1 OPEX TUUA'!$J$8) -> 0 | K125: =+IF(F125="Pasajero",'2.2 OPEX LAP 2023'!M125*'2.1 OPEX TUUA'!$K$7,'2.2 OPEX LAP 2023'!M125*'2.1 OPEX TUUA'!$K$8) -> 0 | L125: =+IF(F125="Pasajero",'2.2 OPEX LAP 2023'!N125*'2.1 OPEX TUUA'!$L$7,'2.2 OPEX LAP 2023'!N125*'2.1 OPEX TUUA'!$L$8) -> 0 | N125: =+IF(F125="Pasajero",'2.2 OPEX LAP 2023'!I125*'2.1 OPEX TUUA'!$N$7,'2.2 OPEX LAP 2023'!I125*'2.1 OPEX TUUA'!$N$8) -> 0 | O125: =+IF(F125="Pasajero",'2.2 OPEX LAP 2023'!J125*'2.1 OPEX TUUA'!$O$7,'2.2 OPEX LAP 2023'!J125*'2.1 OPEX TUUA'!$O$8) -> 0 | P125: =+IF(F125="Pasajero",'2.2 OPEX LAP 2023'!K125*'2.1 OPEX TUUA'!$P$7,'2.2 OPEX LAP 2023'!K125*'2.1 OPEX TUUA'!$P$8) -> 0 | Q125: =+IF(F125="Pasajero",'2.2 OPEX LAP 2023'!L125*'2.1 OPEX TUUA'!$Q$7,'2.2 OPEX LAP 2023'!L125*'2.1 OPEX TUUA'!$Q$8) -> 0 | R125: =+IF(F125="Pasajero",'2.2 OPEX LAP 2023'!M125*'2.1 OPEX TUUA'!$R$7,'2.2 OPEX LAP 2023'!M125*'2.1 OPEX TUUA'!$R$8) -> 0 | S125: =+IF(F125="Pasajero",'2.2 OPEX LAP 2023'!N125*'2.1 OPEX TUUA'!$S$7,'2.2 OPEX LAP 2023'!N125*'2.1 OPEX TUUA'!$S$8) -> 0 | U125: 0 | V125: 0 | W125: 0 | X125: 0 | Y125: 0 | Z125: 0 | AA125: 0 | AB125: 0 | AC125: 0 | AD125: 0 | AE125: 0 | AF125: 0
B126: 6381000002 | C126: Directo | D126: Outsourcing | E126: Servicio de vigilacia 24 horas | F126: Pasajero | G126: =+IF(F126="Pasajero",'2.2 OPEX LAP 2023'!I126*'2.1 OPEX TUUA'!$G$7,'2.2 OPEX LAP 2023'!I126*'2.1 OPEX TUUA'!$G$8) -> 96157.80115 | H126: =+IF(F126="Pasajero",'2.2 OPEX LAP 2023'!J126*'2.1 OPEX TUUA'!$H$7,'2.2 OPEX LAP 2023'!J126*'2.1 OPEX TUUA'!$H$8) -> 112793.5895 | I126: =+IF(F126="Pasajero",'2.2 OPEX LAP 2023'!K126*'2.1 OPEX TUUA'!$I$7,'2.2 OPEX LAP 2023'!K126*'2.1 OPEX TUUA'!$I$8) -> 126797.9403 | J126: =+IF(F126="Pasajero",'2.2 OPEX LAP 2023'!L126*'2.1 OPEX TUUA'!$J$7,'2.2 OPEX LAP 2023'!L126*'2.1 OPEX TUUA'!$J$8) -> 134344.4838 | K126: =+IF(F126="Pasajero",'2.2 OPEX LAP 2023'!M126*'2.1 OPEX TUUA'!$K$7,'2.2 OPEX LAP 2023'!M126*'2.1 OPEX TUUA'!$K$8) -> 139858.295 | L126: =+IF(F126="Pasajero",'2.2 OPEX LAP 2023'!N126*'2.1 OPEX TUUA'!$L$7,'2.2 OPEX LAP 2023'!N126*'2.1 OPEX TUUA'!$L$8) -> 145984.2458 | N126: =+IF(F126="Pasajero",'2.2 OPEX LAP 2023'!I126*'2.1 OPEX TUUA'!$N$7,'2.2 OPEX LAP 2023'!I126*'2.1 OPEX TUUA'!$N$8) -> 47426.68374 | O126: =+IF(F126="Pasajero",'2.2 OPEX LAP 2023'!J126*'2.1 OPEX TUUA'!$O$7,'2.2 OPEX LAP 2023'!J126*'2.1 OPEX TUUA'!$O$8) -> 46714.9569 | P126: =+IF(F126="Pasajero",'2.2 OPEX LAP 2023'!K126*'2.1 OPEX TUUA'!$P$7,'2.2 OPEX LAP 2023'!K126*'2.1 OPEX TUUA'!$P$8) -> 46424.36203 | Q126: =+IF(F126="Pasajero",'2.2 OPEX LAP 2023'!L126*'2.1 OPEX TUUA'!$Q$7,'2.2 OPEX LAP 2023'!L126*'2.1 OPEX TUUA'!$Q$8) -> 46121.92571 | R126: =+IF(F126="Pasajero",'2.2 OPEX LAP 2023'!M126*'2.1 OPEX TUUA'!$R$7,'2.2 OPEX LAP 2023'!M126*'2.1 OPEX TUUA'!$R$8) -> 46369.39791 | S126: =+IF(F126="Pasajero",'2.2 OPEX LAP 2023'!N126*'2.1 OPEX TUUA'!$S$7,'2.2 OPEX LAP 2023'!N126*'2.1 OPEX TUUA'!$S$8) -> 46398.99625 | U126: 96157.80115 | V126: 112793.5895 | W126: 126797.9403 | X126: 134344.4838 | Y126: 139858.295 | Z126: 145984.2458 | AA126: 0 | AB126: 0 | AC126: 0 | AD126: 0 | AE126: 0 | AF126: 0
B127: 6381000003 | C127: Directo | D127: Outsourcing | E127: Guías caninos | F127: Pasajero | G127: =+IF(F127="Pasajero",'2.2 OPEX LAP 2023'!I127*'2.1 OPEX TUUA'!$G$7,'2.2 OPEX LAP 2023'!I127*'2.1 OPEX TUUA'!$G$8) -> 0 | H127: =+IF(F127="Pasajero",'2.2 OPEX LAP 2023'!J127*'2.1 OPEX TUUA'!$H$7,'2.2 OPEX LAP 2023'!J127*'2.1 OPEX TUUA'!$H$8) -> 0 | I127: =+IF(F127="Pasajero",'2.2 OPEX LAP 2023'!K127*'2.1 OPEX TUUA'!$I$7,'2.2 OPEX LAP 2023'!K127*'2.1 OPEX TUUA'!$I$8) -> 0 | J127: =+IF(F127="Pasajero",'2.2 OPEX LAP 2023'!L127*'2.1 OPEX TUUA'!$J$7,'2.2 OPEX LAP 2023'!L127*'2.1 OPEX TUUA'!$J$8) -> 0 | K127: =+IF(F127="Pasajero",'2.2 OPEX LAP 2023'!M127*'2.1 OPEX TUUA'!$K$7,'2.2 OPEX LAP 2023'!M127*'2.1 OPEX TUUA'!$K$8) -> 0 | L127: =+IF(F127="Pasajero",'2.2 OPEX LAP 2023'!N127*'2.1 OPEX TUUA'!$L$7,'2.2 OPEX LAP 2023'!N127*'2.1 OPEX TUUA'!$L$8) -> 0 | N127: =+IF(F127="Pasajero",'2.2 OPEX LAP 2023'!I127*'2.1 OPEX TUUA'!$N$7,'2.2 OPEX LAP 2023'!I127*'2.1 OPEX TUUA'!$N$8) -> 0 | O127: =+IF(F127="Pasajero",'2.2 OPEX LAP 2023'!J127*'2.1 OPEX TUUA'!$O$7,'2.2 OPEX LAP 2023'!J127*'2.1 OPEX TUUA'!$O$8) -> 0 | P127: =+IF(F127="Pasajero",'2.2 OPEX LAP 2023'!K127*'2.1 OPEX TUUA'!$P$7,'2.2 OPEX LAP 2023'!K127*'2.1 OPEX TUUA'!$P$8) -> 0 | Q127: =+IF(F127="Pasajero",'2.2 OPEX LAP 2023'!L127*'2.1 OPEX TUUA'!$Q$7,'2.2 OPEX LAP 2023'!L127*'2.1 OPEX TUUA'!$Q$8) -> 0 | R127: =+IF(F127="Pasajero",'2.2 OPEX LAP 2023'!M127*'2.1 OPEX TUUA'!$R$7,'2.2 OPEX LAP 2023'!M127*'2.1 OPEX TUUA'!$R$8) -> 0 | S127: =+IF(F127="Pasajero",'2.2 OPEX LAP 2023'!N127*'2.1 OPEX TUUA'!$S$7,'2.2 OPEX LAP 2023'!N127*'2.1 OPEX TUUA'!$S$8) -> 0 | U127: 0 | V127: 0 | W127: 0 | X127: 0 | Y127: 0 | Z127: 0 | AA127: 0 | AB127: 0 | AC127: 0 | AD127: 0 | AE127: 0 | AF127: 0
B128: 6381000004 | C128: Directo | D128: Servicios prestados por terceros | E128: Sistema alarma perimetral | F128: Pasajero | G128: =+IF(F128="Pasajero",'2.2 OPEX LAP 2023'!I128*'2.1 OPEX TUUA'!$G$7,'2.2 OPEX LAP 2023'!I128*'2.1 OPEX TUUA'!$G$8) -> 0 | H128: =+IF(F128="Pasajero",'2.2 OPEX LAP 2023'!J128*'2.1 OPEX TUUA'!$H$7,'2.2 OPEX LAP 2023'!J128*'2.1 OPEX TUUA'!$H$8) -> 0 | I128: =+IF(F128="Pasajero",'2.2 OPEX LAP 2023'!K128*'2.1 OPEX TUUA'!$I$7,'2.2 OPEX LAP 2023'!K128*'2.1 OPEX TUUA'!$I$8) -> 0 | J128: =+IF(F128="Pasajero",'2.2 OPEX LAP 2023'!L128*'2.1 OPEX TUUA'!$J$7,'2.2 OPEX LAP 2023'!L128*'2.1 OPEX TUUA'!$J$8) -> 0 | K128: =+IF(F128="Pasajero",'2.2 OPEX LAP 2023'!M128*'2.1 OPEX TUUA'!$K$7,'2.2 OPEX LAP 2023'!M128*'2.1 OPEX TUUA'!$K$8) -> 0 | L128: =+IF(F128="Pasajero",'2.2 OPEX LAP 2023'!N128*'2.1 OPEX TUUA'!$L$7,'2.2 OPEX LAP 2023'!N128*'2.1 OPEX TUUA'!$L$8) -> 0 | N128: =+IF(F128="Pasajero",'2.2 OPEX LAP 2023'!I128*'2.1 OPEX TUUA'!$N$7,'2.2 OPEX LAP 2023'!I128*'2.1 OPEX TUUA'!$N$8) -> 0 | O128: =+IF(F128="Pasajero",'2.2 OPEX LAP 2023'!J128*'2.1 OPEX TUUA'!$O$7,'2.2 OPEX LAP 2023'!J128*'2.1 OPEX TUUA'!$O$8) -> 0 | P128: =+IF(F128="Pasajero",'2.2 OPEX LAP 2023'!K128*'2.1 OPEX TUUA'!$P$7,'2.2 OPEX LAP 2023'!K128*'2.1 OPEX TUUA'!$P$8) -> 0 | Q128: =+IF(F128="Pasajero",'2.2 OPEX LAP 2023'!L128*'2.1 OPEX TUUA'!$Q$7,'2.2 OPEX LAP 2023'!L128*'2.1 OPEX TUUA'!$Q$8) -> 0 | R128: =+IF(F128="Pasajero",'2.2 OPEX LAP 2023'!M128*'2.1 OPEX TUUA'!$R$7,'2.2 OPEX LAP 2023'!M128*'2.1 OPEX TUUA'!$R$8) -> 0 | S128: =+IF(F128="Pasajero",'2.2 OPEX LAP 2023'!N128*'2.1 OPEX TUUA'!$S$7,'2.2 OPEX LAP 2023'!N128*'2.1 OPEX TUUA'!$S$8) -> 0 | U128: 0 | V128: 0 | W128: 0 | X128: 0 | Y128: 0 | Z128: 0 | AA128: 0 | AB128: 0 | AC128: 0 | AD128: 0 | AE128: 0 | AF128: 0
B129: 6381000005 | C129: Directo | D129: Outsourcing | E129: Convenio PNP | F129: Pasajero | G129: =+IF(F129="Pasajero",'2.2 OPEX LAP 2023'!I129*'2.1 OPEX TUUA'!$G$7,'2.2 OPEX LAP 2023'!I129*'2.1 OPEX TUUA'!$G$8) -> 0 | H129: =+IF(F129="Pasajero",'2.2 OPEX LAP 2023'!J129*'2.1 OPEX TUUA'!$H$7,'2.2 OPEX LAP 2023'!J129*'2.1 OPEX TUUA'!$H$8) -> 0 | I129: =+IF(F129="Pasajero",'2.2 OPEX LAP 2023'!K129*'2.1 OPEX TUUA'!$I$7,'2.2 OPEX LAP 2023'!K129*'2.1 OPEX TUUA'!$I$8) -> 0 | J129: =+IF(F129="Pasajero",'2.2 OPEX LAP 2023'!L129*'2.1 OPEX TUUA'!$J$7,'2.2 OPEX LAP 2023'!L129*'2.1 OPEX TUUA'!$J$8) -> 0 | K129: =+IF(F129="Pasajero",'2.2 OPEX LAP 2023'!M129*'2.1 OPEX TUUA'!$K$7,'2.2 OPEX LAP 2023'!M129*'2.1 OPEX TUUA'!$K$8) -> 0 | L129: =+IF(F129="Pasajero",'2.2 OPEX LAP 2023'!N129*'2.1 OPEX TUUA'!$L$7,'2.2 OPEX LAP 2023'!N129*'2.1 OPEX TUUA'!$L$8) -> 0 | N129: =+IF(F129="Pasajero",'2.2 OPEX LAP 2023'!I129*'2.1 OPEX TUUA'!$N$7,'2.2 OPEX LAP 2023'!I129*'2.1 OPEX TUUA'!$N$8) -> 0 | O129: =+IF(F129="Pasajero",'2.2 OPEX LAP 2023'!J129*'2.1 OPEX TUUA'!$O$7,'2.2 OPEX LAP 2023'!J129*'2.1 OPEX TUUA'!$O$8) -> 0 | P129: =+IF(F129="Pasajero",'2.2 OPEX LAP 2023'!K129*'2.1 OPEX TUUA'!$P$7,'2.2 OPEX LAP 2023'!K129*'2.1 OPEX TUUA'!$P$8) -> 0 | Q129: =+IF(F129="Pasajero",'2.2 OPEX LAP 2023'!L129*'2.1 OPEX TUUA'!$Q$7,'2.2 OPEX LAP 2023'!L129*'2.1 OPEX TUUA'!$Q$8) -> 0 | R129: =+IF(F129="Pasajero",'2.2 OPEX LAP 2023'!M129*'2.1 OPEX TUUA'!$R$7,'2.2 OPEX LAP 2023'!M129*'2.1 OPEX TUUA'!$R$8) -> 0 | S129: =+IF(F129="Pasajero",'2.2 OPEX LAP 2023'!N129*'2.1 OPEX TUUA'!$S$7,'2.2 OPEX LAP 2023'!N129*'2.1 OPEX TUUA'!$S$8) -> 0 | U129: 0 | V129: 0 | W129: 0 | X129: 0 | Y129: 0 | Z129: 0 | AA129: 0 | AB129: 0 | AC129: 0 | AD129: 0 | AE129: 0 | AF129: 0
B130: 6381000006 | C130: Directo | D130: Outsourcing | E130: Ofic.de Seguridad Aeropor. nivel 2 | F130: Pasajero | G130: =+IF(F130="Pasajero",'2.2 OPEX LAP 2023'!I130*'2.1 OPEX TUUA'!$G$7,'2.2 OPEX LAP 2023'!I130*'2.1 OPEX TUUA'!$G$8) -> 0 | H130: =+IF(F130="Pasajero",'2.2 OPEX LAP 2023'!J130*'2.1 OPEX TUUA'!$H$7,'2.2 OPEX LAP 2023'!J130*'2.1 OPEX TUUA'!$H$8) -> 0 | I130: =+IF(F130="Pasajero",'2.2 OPEX LAP 2023'!K130*'2.1 OPEX TUUA'!$I$7,'2.2 OPEX LAP 2023'!K130*'2.1 OPEX TUUA'!$I$8) -> 0 | J130: =+IF(F130="Pasajero",'2.2 OPEX LAP 2023'!L130*'2.1 OPEX TUUA'!$J$7,'2.2 OPEX LAP 2023'!L130*'2.1 OPEX TUUA'!$J$8) -> 0 | K130: =+IF(F130="Pasajero",'2.2 OPEX LAP 2023'!M130*'2.1 OPEX TUUA'!$K$7,'2.2 OPEX LAP 2023'!M130*'2.1 OPEX TUUA'!$K$8) -> 0 | L130: =+IF(F130="Pasajero",'2.2 OPEX LAP 2023'!N130*'2.1 OPEX TUUA'!$L$7,'2.2 OPEX LAP 2023'!N130*'2.1 OPEX TUUA'!$L$8) -> 0 | N130: =+IF(F130="Pasajero",'2.2 OPEX LAP 2023'!I130*'2.1 OPEX TUUA'!$N$7,'2.2 OPEX LAP 2023'!I130*'2.1 OPEX TUUA'!$N$8) -> 0 | O130: =+IF(F130="Pasajero",'2.2 OPEX LAP 2023'!J130*'2.1 OPEX TUUA'!$O$7,'2.2 OPEX LAP 2023'!J130*'2.1 OPEX TUUA'!$O$8) -> 0 | P130: =+IF(F130="Pasajero",'2.2 OPEX LAP 2023'!K130*'2.1 OPEX TUUA'!$P$7,'2.2 OPEX LAP 2023'!K130*'2.1 OPEX TUUA'!$P$8) -> 0 | Q130: =+IF(F130="Pasajero",'2.2 OPEX LAP 2023'!L130*'2.1 OPEX TUUA'!$Q$7,'2.2 OPEX LAP 2023'!L130*'2.1 OPEX TUUA'!$Q$8) -> 0 | R130: =+IF(F130="Pasajero",'2.2 OPEX LAP 2023'!M130*'2.1 OPEX TUUA'!$R$7,'2.2 OPEX LAP 2023'!M130*'2.1 OPEX TUUA'!$R$8) -> 0 | S130: =+IF(F130="Pasajero",'2.2 OPEX LAP 2023'!N130*'2.1 OPEX TUUA'!$S$7,'2.2 OPEX LAP 2023'!N130*'2.1 OPEX TUUA'!$S$8) -> 0 | U130: 0 | V130: 0 | W130: 0 | X130: 0 | Y130: 0 | Z130: 0 | AA130: 0 | AB130: 0 | AC130: 0 | AD130: 0 | AE130: 0 | AF130: 0
B131: 6382000001 | C131: Directo | D131: Servicios prestados por terceros | E131: MP planta tratamiento STP | F131: Pasajero | G131: =+IF(F131="Pasajero",'2.2 OPEX LAP 2023'!I131*'2.1 OPEX TUUA'!$G$7,'2.2 OPEX LAP 2023'!I131*'2.1 OPEX TUUA'!$G$8) -> 0 | H131: =+IF(F131="Pasajero",'2.2 OPEX LAP 2023'!J131*'2.1 OPEX TUUA'!$H$7,'2.2 OPEX LAP 2023'!J131*'2.1 OPEX TUUA'!$H$8) -> 0 | I131: =+IF(F131="Pasajero",'2.2 OPEX LAP 2023'!K131*'2.1 OPEX TUUA'!$I$7,'2.2 OPEX LAP 2023'!K131*'2.1 OPEX TUUA'!$I$8) -> 0 | J131: =+IF(F131="Pasajero",'2.2 OPEX LAP 2023'!L131*'2.1 OPEX TUUA'!$J$7,'2.2 OPEX LAP 2023'!L131*'2.1 OPEX TUUA'!$J$8) -> 0 | K131: =+IF(F131="Pasajero",'2.2 OPEX LAP 2023'!M131*'2.1 OPEX TUUA'!$K$7,'2.2 OPEX LAP 2023'!M131*'2.1 OPEX TUUA'!$K$8) -> 0 | L131: =+IF(F131="Pasajero",'2.2 OPEX LAP 2023'!N131*'2.1 OPEX TUUA'!$L$7,'2.2 OPEX LAP 2023'!N131*'2.1 OPEX TUUA'!$L$8) -> 0 | N131: =+IF(F131="Pasajero",'2.2 OPEX LAP 2023'!I131*'2.1 OPEX TUUA'!$N$7,'2.2 OPEX LAP 2023'!I131*'2.1 OPEX TUUA'!$N$8) -> 0 | O131: =+IF(F131="Pasajero",'2.2 OPEX LAP 2023'!J131*'2.1 OPEX TUUA'!$O$7,'2.2 OPEX LAP 2023'!J131*'2.1 OPEX TUUA'!$O$8) -> 0 | P131: =+IF(F131="Pasajero",'2.2 OPEX LAP 2023'!K131*'2.1 OPEX TUUA'!$P$7,'2.2 OPEX LAP 2023'!K131*'2.1 OPEX TUUA'!$P$8) -> 0 | Q131: =+IF(F131="Pasajero",'2.2 OPEX LAP 2023'!L131*'2.1 OPEX TUUA'!$Q$7,'2.2 OPEX LAP 2023'!L131*'2.1 OPEX TUUA'!$Q$8) -> 0 | R131: =+IF(F131="Pasajero",'2.2 OPEX LAP 2023'!M131*'2.1 OPEX TUUA'!$R$7,'2.2 OPEX LAP 2023'!M131*'2.1 OPEX TUUA'!$R$8) -> 0 | S131: =+IF(F131="Pasajero",'2.2 OPEX LAP 2023'!N131*'2.1 OPEX TUUA'!$S$7,'2.2 OPEX LAP 2023'!N131*'2.1 OPEX TUUA'!$S$8) -> 0 | U131: 0 | V131: 0 | W131: 0 | X131: 0 | Y131: 0 | Z131: 0 | AA131: 0 | AB131: 0 | AC131: 0 | AD131: 0 | AE131: 0 | AF131: 0
B132: 6382000002 | C132: Directo | D132: Servicios prestados por terceros | E132: MP blue water | F132: Pasajero | G132: =+IF(F132="Pasajero",'2.2 OPEX LAP 2023'!I132*'2.1 OPEX TUUA'!$G$7,'2.2 OPEX LAP 2023'!I132*'2.1 OPEX TUUA'!$G$8) -> 0 | H132: =+IF(F132="Pasajero",'2.2 OPEX LAP 2023'!J132*'2.1 OPEX TUUA'!$H$7,'2.2 OPEX LAP 2023'!J132*'2.1 OPEX TUUA'!$H$8) -> 0 | I132: =+IF(F132="Pasajero",'2.2 OPEX LAP 2023'!K132*'2.1 OPEX TUUA'!$I$7,'2.2 OPEX LAP 2023'!K132*'2.1 OPEX TUUA'!$I$8) -> 0 | J132: =+IF(F132="Pasajero",'2.2 OPEX LAP 2023'!L132*'2.1 OPEX TUUA'!$J$7,'2.2 OPEX LAP 2023'!L132*'2.1 OPEX TUUA'!$J$8) -> 0 | K132: =+IF(F132="Pasajero",'2.2 OPEX LAP 2023'!M132*'2.1 OPEX TUUA'!$K$7,'2.2 OPEX LAP 2023'!M132*'2.1 OPEX TUUA'!$K$8) -> 0 | L132: =+IF(F132="Pasajero",'2.2 OPEX LAP 2023'!N132*'2.1 OPEX TUUA'!$L$7,'2.2 OPEX LAP 2023'!N132*'2.1 OPEX TUUA'!$L$8) -> 0 | N132: =+IF(F132="Pasajero",'2.2 OPEX LAP 2023'!I132*'2.1 OPEX TUUA'!$N$7,'2.2 OPEX LAP 2023'!I132*'2.1 OPEX TUUA'!$N$8) -> 0 | O132: =+IF(F132="Pasajero",'2.2 OPEX LAP 2023'!J132*'2.1 OPEX TUUA'!$O$7,'2.2 OPEX LAP 2023'!J132*'2.1 OPEX TUUA'!$O$8) -> 0 | P132: =+IF(F132="Pasajero",'2.2 OPEX LAP 2023'!K132*'2.1 OPEX TUUA'!$P$7,'2.2 OPEX LAP 2023'!K132*'2.1 OPEX TUUA'!$P$8) -> 0 | Q132: =+IF(F132="Pasajero",'2.2 OPEX LAP 2023'!L132*'2.1 OPEX TUUA'!$Q$7,'2.2 OPEX LAP 2023'!L132*'2.1 OPEX TUUA'!$Q$8) -> 0 | R132: =+IF(F132="Pasajero",'2.2 OPEX LAP 2023'!M132*'2.1 OPEX TUUA'!$R$7,'2.2 OPEX LAP 2023'!M132*'2.1 OPEX TUUA'!$R$8) -> 0 | S132: =+IF(F132="Pasajero",'2.2 OPEX LAP 2023'!N132*'2.1 OPEX TUUA'!$S$7,'2.2 OPEX LAP 2023'!N132*'2.1 OPEX TUUA'!$S$8) -> 0 | U132: 0 | V132: 0 | W132: 0 | X132: 0 | Y132: 0 | Z132: 0 | AA132: 0 | AB132: 0 | AC132: 0 | AD132: 0 | AE132: 0 | AF132: 0
B133: 6390000001 | C133: Directo | D133: Otros Costos | E133: Gastos diversos a recuperar | F133: Pasajero | G133: =+IF(F133="Pasajero",'2.2 OPEX LAP 2023'!I133*'2.1 OPEX TUUA'!$G$7,'2.2 OPEX LAP 2023'!I133*'2.1 OPEX TUUA'!$G$8) -> 0 | H133: =+IF(F133="Pasajero",'2.2 OPEX LAP 2023'!J133*'2.1 OPEX TUUA'!$H$7,'2.2 OPEX LAP 2023'!J133*'2.1 OPEX TUUA'!$H$8) -> 0 | I133: =+IF(F133="Pasajero",'2.2 OPEX LAP 2023'!K133*'2.1 OPEX TUUA'!$I$7,'2.2 OPEX LAP 2023'!K133*'2.1 OPEX TUUA'!$I$8) -> 0 | J133: =+IF(F133="Pasajero",'2.2 OPEX LAP 2023'!L133*'2.1 OPEX TUUA'!$J$7,'2.2 OPEX LAP 2023'!L133*'2.1 OPEX TUUA'!$J$8) -> 0 | K133: =+IF(F133="Pasajero",'2.2 OPEX LAP 2023'!M133*'2.1 OPEX TUUA'!$K$7,'2.2 OPEX LAP 2023'!M133*'2.1 OPEX TUUA'!$K$8) -> 0 | L133: =+IF(F133="Pasajero",'2.2 OPEX LAP 2023'!N133*'2.1 OPEX TUUA'!$L$7,'2.2 OPEX LAP 2023'!N133*'2.1 OPEX TUUA'!$L$8) -> 0 | N133: =+IF(F133="Pasajero",'2.2 OPEX LAP 2023'!I133*'2.1 OPEX TUUA'!$N$7,'2.2 OPEX LAP 2023'!I133*'2.1 OPEX TUUA'!$N$8) -> 0 | O133: =+IF(F133="Pasajero",'2.2 OPEX LAP 2023'!J133*'2.1 OPEX TUUA'!$O$7,'2.2 OPEX LAP 2023'!J133*'2.1 OPEX TUUA'!$O$8) -> 0 | P133: =+IF(F133="Pasajero",'2.2 OPEX LAP 2023'!K133*'2.1 OPEX TUUA'!$P$7,'2.2 OPEX LAP 2023'!K133*'2.1 OPEX TUUA'!$P$8) -> 0 | Q133: =+IF(F133="Pasajero",'2.2 OPEX LAP 2023'!L133*'2.1 OPEX TUUA'!$Q$7,'2.2 OPEX LAP 2023'!L133*'2.1 OPEX TUUA'!$Q$8) -> 0 | R133: =+IF(F133="Pasajero",'2.2 OPEX LAP 2023'!M133*'2.1 OPEX TUUA'!$R$7,'2.2 OPEX LAP 2023'!M133*'2.1 OPEX TUUA'!$R$8) -> 0 | S133: =+IF(F133="Pasajero",'2.2 OPEX LAP 2023'!N133*'2.1 OPEX TUUA'!$S$7,'2.2 OPEX LAP 2023'!N133*'2.1 OPEX TUUA'!$S$8) -> 0 | U133: 0 | V133: 0 | W133: 0 | X133: 0 | Y133: 0 | Z133: 0 | AA133: 0 | AB133: 0 | AC133: 0 | AD133: 0 | AE133: 0 | AF133: 0
B134: 6391000001 | C134: Directo | D134: Otros Costos | E134: Com. mant. portes bancarios | F134: Pasajero | G134: =+IF(F134="Pasajero",'2.2 OPEX LAP 2023'!I134*'2.1 OPEX TUUA'!$G$7,'2.2 OPEX LAP 2023'!I134*'2.1 OPEX TUUA'!$G$8) -> 49.76134508 | H134: =+IF(F134="Pasajero",'2.2 OPEX LAP 2023'!J134*'2.1 OPEX TUUA'!$H$7,'2.2 OPEX LAP 2023'!J134*'2.1 OPEX TUUA'!$H$8) -> 58.37031073 | I134: =+IF(F134="Pasajero",'2.2 OPEX LAP 2023'!K134*'2.1 OPEX TUUA'!$I$7,'2.2 OPEX LAP 2023'!K134*'2.1 OPEX TUUA'!$I$8) -> 65.61751606 | J134: =+IF(F134="Pasajero",'2.2 OPEX LAP 2023'!L134*'2.1 OPEX TUUA'!$J$7,'2.2 OPEX LAP 2023'!L134*'2.1 OPEX TUUA'!$J$8) -> 69.52282745 | K134: =+IF(F134="Pasajero",'2.2 OPEX LAP 2023'!M134*'2.1 OPEX TUUA'!$K$7,'2.2 OPEX LAP 2023'!M134*'2.1 OPEX TUUA'!$K$8) -> 72.37620656 | L134: =+IF(F134="Pasajero",'2.2 OPEX LAP 2023'!N134*'2.1 OPEX TUUA'!$L$7,'2.2 OPEX LAP 2023'!N134*'2.1 OPEX TUUA'!$L$8) -> 75.54636594 | N134: =+IF(F134="Pasajero",'2.2 OPEX LAP 2023'!I134*'2.1 OPEX TUUA'!$N$7,'2.2 OPEX LAP 2023'!I134*'2.1 OPEX TUUA'!$N$8) -> 24.54315248 | O134: =+IF(F134="Pasajero",'2.2 OPEX LAP 2023'!J134*'2.1 OPEX TUUA'!$O$7,'2.2 OPEX LAP 2023'!J134*'2.1 OPEX TUUA'!$O$8) -> 24.17483618 | P134: =+IF(F134="Pasajero",'2.2 OPEX LAP 2023'!K134*'2.1 OPEX TUUA'!$P$7,'2.2 OPEX LAP 2023'!K134*'2.1 OPEX TUUA'!$P$8) -> 24.0244543 | Q134: =+IF(F134="Pasajero",'2.2 OPEX LAP 2023'!L134*'2.1 OPEX TUUA'!$Q$7,'2.2 OPEX LAP 2023'!L134*'2.1 OPEX TUUA'!$Q$8) -> 23.8679445 | R134: =+IF(F134="Pasajero",'2.2 OPEX LAP 2023'!M134*'2.1 OPEX TUUA'!$R$7,'2.2 OPEX LAP 2023'!M134*'2.1 OPEX TUUA'!$R$8) -> 23.99601055 | S134: =+IF(F134="Pasajero",'2.2 OPEX LAP 2023'!N134*'2.1 OPEX TUUA'!$S$7,'2.2 OPEX LAP 2023'!N134*'2.1 OPEX TUUA'!$S$8) -> 24.01132759 | U134: 49.76134508 | V134: 58.37031073 | W134: 65.61751606 | X134: 69.52282745 | Y134: 72.37620656 | Z134: 75.54636594 | AA134: 0 | AB134: 0 | AC134: 0 | AD134: 0 | AE134: 0 | AF134: 0
B135: 6391000003 | C135: Directo | D135: Otros Costos | E135: Comisión Garantia Corporativa | F135: Pasajero | G135: =+IF(F135="Pasajero",'2.2 OPEX LAP 2023'!I135*'2.1 OPEX TUUA'!$G$7,'2.2 OPEX LAP 2023'!I135*'2.1 OPEX TUUA'!$G$8) -> 0 | H135: =+IF(F135="Pasajero",'2.2 OPEX LAP 2023'!J135*'2.1 OPEX TUUA'!$H$7,'2.2 OPEX LAP 2023'!J135*'2.1 OPEX TUUA'!$H$8) -> 0 | I135: =+IF(F135="Pasajero",'2.2 OPEX LAP 2023'!K135*'2.1 OPEX TUUA'!$I$7,'2.2 OPEX LAP 2023'!K135*'2.1 OPEX TUUA'!$I$8) -> 0 | J135: =+IF(F135="Pasajero",'2.2 OPEX LAP 2023'!L135*'2.1 OPEX TUUA'!$J$7,'2.2 OPEX LAP 2023'!L135*'2.1 OPEX TUUA'!$J$8) -> 0 | K135: =+IF(F135="Pasajero",'2.2 OPEX LAP 2023'!M135*'2.1 OPEX TUUA'!$K$7,'2.2 OPEX LAP 2023'!M135*'2.1 OPEX TUUA'!$K$8) -> 0 | L135: =+IF(F135="Pasajero",'2.2 OPEX LAP 2023'!N135*'2.1 OPEX TUUA'!$L$7,'2.2 OPEX LAP 2023'!N135*'2.1 OPEX TUUA'!$L$8) -> 0 | N135: =+IF(F135="Pasajero",'2.2 OPEX LAP 2023'!I135*'2.1 OPEX TUUA'!$N$7,'2.2 OPEX LAP 2023'!I135*'2.1 OPEX TUUA'!$N$8) -> 0 | O135: =+IF(F135="Pasajero",'2.2 OPEX LAP 2023'!J135*'2.1 OPEX TUUA'!$O$7,'2.2 OPEX LAP 2023'!J135*'2.1 OPEX TUUA'!$O$8) -> 0 | P135: =+IF(F135="Pasajero",'2.2 OPEX LAP 2023'!K135*'2.1 OPEX TUUA'!$P$7,'2.2 OPEX LAP 2023'!K135*'2.1 OPEX TUUA'!$P$8) -> 0 | Q135: =+IF(F135="Pasajero",'2.2 OPEX LAP 2023'!L135*'2.1 OPEX TUUA'!$Q$7,'2.2 OPEX LAP 2023'!L135*'2.1 OPEX TUUA'!$Q$8) -> 0 | R135: =+IF(F135="Pasajero",'2.2 OPEX LAP 2023'!M135*'2.1 OPEX TUUA'!$R$7,'2.2 OPEX LAP 2023'!M135*'2.1 OPEX TUUA'!$R$8) -> 0 | S135: =+IF(F135="Pasajero",'2.2 OPEX LAP 2023'!N135*'2.1 OPEX TUUA'!$S$7,'2.2 OPEX LAP 2023'!N135*'2.1 OPEX TUUA'!$S$8) -> 0 | U135: 0 | V135: 0 | W135: 0 | X135: 0 | Y135: 0 | Z135: 0 | AA135: 0 | AB135: 0 | AC135: 0 | AD135: 0 | AE135: 0 | AF135: 0
B136: 6410000001 | C136: Directo | D136: Otros Costos | E136: Impuesto General a las Ventas | F136: Pasajero | G136: =+IF(F136="Pasajero",'2.2 OPEX LAP 2023'!I136*'2.1 OPEX TUUA'!$G$7,'2.2 OPEX LAP 2023'!I136*'2.1 OPEX TUUA'!$G$8) -> 0 | H136: =+IF(F136="Pasajero",'2.2 OPEX LAP 2023'!J136*'2.1 OPEX TUUA'!$H$7,'2.2 OPEX LAP 2023'!J136*'2.1 OPEX TUUA'!$H$8) -> 0 | I136: =+IF(F136="Pasajero",'2.2 OPEX LAP 2023'!K136*'2.1 OPEX TUUA'!$I$7,'2.2 OPEX LAP 2023'!K136*'2.1 OPEX TUUA'!$I$8) -> 0 | J136: =+IF(F136="Pasajero",'2.2 OPEX LAP 2023'!L136*'2.1 OPEX TUUA'!$J$7,'2.2 OPEX LAP 2023'!L136*'2.1 OPEX TUUA'!$J$8) -> 0 | K136: =+IF(F136="Pasajero",'2.2 OPEX LAP 2023'!M136*'2.1 OPEX TUUA'!$K$7,'2.2 OPEX LAP 2023'!M136*'2.1 OPEX TUUA'!$K$8) -> 0 | L136: =+IF(F136="Pasajero",'2.2 OPEX LAP 2023'!N136*'2.1 OPEX TUUA'!$L$7,'2.2 OPEX LAP 2023'!N136*'2.1 OPEX TUUA'!$L$8) -> 0 | N136: =+IF(F136="Pasajero",'2.2 OPEX LAP 2023'!I136*'2.1 OPEX TUUA'!$N$7,'2.2 OPEX LAP 2023'!I136*'2.1 OPEX TUUA'!$N$8) -> 0 | O136: =+IF(F136="Pasajero",'2.2 OPEX LAP 2023'!J136*'2.1 OPEX TUUA'!$O$7,'2.2 OPEX LAP 2023'!J136*'2.1 OPEX TUUA'!$O$8) -> 0 | P136: =+IF(F136="Pasajero",'2.2 OPEX LAP 2023'!K136*'2.1 OPEX TUUA'!$P$7,'2.2 OPEX LAP 2023'!K136*'2.1 OPEX TUUA'!$P$8) -> 0 | Q136: =+IF(F136="Pasajero",'2.2 OPEX LAP 2023'!L136*'2.1 OPEX TUUA'!$Q$7,'2.2 OPEX LAP 2023'!L136*'2.1 OPEX TUUA'!$Q$8) -> 0 | R136: =+IF(F136="Pasajero",'2.2 OPEX LAP 2023'!M136*'2.1 OPEX TUUA'!$R$7,'2.2 OPEX LAP 2023'!M136*'2.1 OPEX TUUA'!$R$8) -> 0 | S136: =+IF(F136="Pasajero",'2.2 OPEX LAP 2023'!N136*'2.1 OPEX TUUA'!$S$7,'2.2 OPEX LAP 2023'!N136*'2.1 OPEX TUUA'!$S$8) -> 0 | U136: 0 | V136: 0 | W136: 0 | X136: 0 | Y136: 0 | Z136: 0 | AA136: 0 | AB136: 0 | AC136: 0 | AD136: 0 | AE136: 0 | AF136: 0
B137: 6410000002 | C137: Directo | D137: Otros Costos | E137: Impuesto a las Transacciones Financieras (ITF) | F137: Pasajero | G137: =+IF(F137="Pasajero",'2.2 OPEX LAP 2023'!I137*'2.1 OPEX TUUA'!$G$7,'2.2 OPEX LAP 2023'!I137*'2.1 OPEX TUUA'!$G$8) -> 2993.375448 | H137: =+IF(F137="Pasajero",'2.2 OPEX LAP 2023'!J137*'2.1 OPEX TUUA'!$H$7,'2.2 OPEX LAP 2023'!J137*'2.1 OPEX TUUA'!$H$8) -> 3511.244616 | I137: =+IF(F137="Pasajero",'2.2 OPEX LAP 2023'!K137*'2.1 OPEX TUUA'!$I$7,'2.2 OPEX LAP 2023'!K137*'2.1 OPEX TUUA'!$I$8) -> 3947.197592 | J137: =+IF(F137="Pasajero",'2.2 OPEX LAP 2023'!L137*'2.1 OPEX TUUA'!$J$7,'2.2 OPEX LAP 2023'!L137*'2.1 OPEX TUUA'!$J$8) -> 4182.120165 | K137: =+IF(F137="Pasajero",'2.2 OPEX LAP 2023'!M137*'2.1 OPEX TUUA'!$K$7,'2.2 OPEX LAP 2023'!M137*'2.1 OPEX TUUA'!$K$8) -> 4353.764139 | L137: =+IF(F137="Pasajero",'2.2 OPEX LAP 2023'!N137*'2.1 OPEX TUUA'!$L$7,'2.2 OPEX LAP 2023'!N137*'2.1 OPEX TUUA'!$L$8) -> 4544.463913 | N137: =+IF(F137="Pasajero",'2.2 OPEX LAP 2023'!I137*'2.1 OPEX TUUA'!$N$7,'2.2 OPEX LAP 2023'!I137*'2.1 OPEX TUUA'!$N$8) -> 1476.384328 | O137: =+IF(F137="Pasajero",'2.2 OPEX LAP 2023'!J137*'2.1 OPEX TUUA'!$O$7,'2.2 OPEX LAP 2023'!J137*'2.1 OPEX TUUA'!$O$8) -> 1454.228397 | P137: =+IF(F137="Pasajero",'2.2 OPEX LAP 2023'!K137*'2.1 OPEX TUUA'!$P$7,'2.2 OPEX LAP 2023'!K137*'2.1 OPEX TUUA'!$P$8) -> 1445.18223 | Q137: =+IF(F137="Pasajero",'2.2 OPEX LAP 2023'!L137*'2.1 OPEX TUUA'!$Q$7,'2.2 OPEX LAP 2023'!L137*'2.1 OPEX TUUA'!$Q$8) -> 1435.76744 | R137: =+IF(F137="Pasajero",'2.2 OPEX LAP 2023'!M137*'2.1 OPEX TUUA'!$R$7,'2.2 OPEX LAP 2023'!M137*'2.1 OPEX TUUA'!$R$8) -> 1443.471206 | S137: =+IF(F137="Pasajero",'2.2 OPEX LAP 2023'!N137*'2.1 OPEX TUUA'!$S$7,'2.2 OPEX LAP 2023'!N137*'2.1 OPEX TUUA'!$S$8) -> 1444.392598 | U137: 2993.375448 | V137: 3511.244616 | W137: 3947.197592 | X137: 4182.120165 | Y137: 4353.764139 | Z137: 4544.463913 | AA137: 0 | AB137: 0 | AC137: 0 | AD137: 0 | AE137: 0 | AF137: 0
B138: 6430000001 | C138: Directo | D138: Otros Costos | E138: Impuesto Predial | F138: m2 fijo | G138: =+IF(F138="Pasajero",'2.2 OPEX LAP 2023'!I138*'2.1 OPEX TUUA'!$G$7,'2.2 OPEX LAP 2023'!I138*'2.1 OPEX TUUA'!$G$8) -> 19447.00577 | H138: =+IF(F138="Pasajero",'2.2 OPEX LAP 2023'!J138*'2.1 OPEX TUUA'!$H$7,'2.2 OPEX LAP 2023'!J138*'2.1 OPEX TUUA'!$H$8) -> 19447.00577 | I138: =+IF(F138="Pasajero",'2.2 OPEX LAP 2023'!K138*'2.1 OPEX TUUA'!$I$7,'2.2 OPEX LAP 2023'!K138*'2.1 OPEX TUUA'!$I$8) -> 19447.00577 | J138: =+IF(F138="Pasajero",'2.2 OPEX LAP 2023'!L138*'2.1 OPEX TUUA'!$J$7,'2.2 OPEX LAP 2023'!L138*'2.1 OPEX TUUA'!$J$8) -> 19447.00577 | K138: =+IF(F138="Pasajero",'2.2 OPEX LAP 2023'!M138*'2.1 OPEX TUUA'!$K$7,'2.2 OPEX LAP 2023'!M138*'2.1 OPEX TUUA'!$K$8) -> 19447.00577 | L138: =+IF(F138="Pasajero",'2.2 OPEX LAP 2023'!N138*'2.1 OPEX TUUA'!$L$7,'2.2 OPEX LAP 2023'!N138*'2.1 OPEX TUUA'!$L$8) -> 19447.00577 | N138: =+IF(F138="Pasajero",'2.2 OPEX LAP 2023'!I138*'2.1 OPEX TUUA'!$N$7,'2.2 OPEX LAP 2023'!I138*'2.1 OPEX TUUA'!$N$8) -> 3729.125521 | O138: =+IF(F138="Pasajero",'2.2 OPEX LAP 2023'!J138*'2.1 OPEX TUUA'!$O$7,'2.2 OPEX LAP 2023'!J138*'2.1 OPEX TUUA'!$O$8) -> 3729.125521 | P138: =+IF(F138="Pasajero",'2.2 OPEX LAP 2023'!K138*'2.1 OPEX TUUA'!$P$7,'2.2 OPEX LAP 2023'!K138*'2.1 OPEX TUUA'!$P$8) -> 3729.125521 | Q138: =+IF(F138="Pasajero",'2.2 OPEX LAP 2023'!L138*'2.1 OPEX TUUA'!$Q$7,'2.2 OPEX LAP 2023'!L138*'2.1 OPEX TUUA'!$Q$8) -> 3729.125521 | R138: =+IF(F138="Pasajero",'2.2 OPEX LAP 2023'!M138*'2.1 OPEX TUUA'!$R$7,'2.2 OPEX LAP 2023'!M138*'2.1 OPEX TUUA'!$R$8) -> 3729.125521 | S138: =+IF(F138="Pasajero",'2.2 OPEX LAP 2023'!N138*'2.1 OPEX TUUA'!$S$7,'2.2 OPEX LAP 2023'!N138*'2.1 OPEX TUUA'!$S$8) -> 3729.125521 | U138: 19447.00577 | V138: 19447.00577 | W138: 19447.00577 | X138: 19447.00577 | Y138: 19447.00577 | Z138: 19447.00577 | AA138: 0 | AB138: 0 | AC138: 0 | AD138: 0 | AE138: 0 | AF138: 0
B139: 6430000002 | C139: Directo | D139: Otros Costos | E139: Arbitrios | F139: m2 fijo | G139: =+IF(F139="Pasajero",'2.2 OPEX LAP 2023'!I139*'2.1 OPEX TUUA'!$G$7,'2.2 OPEX LAP 2023'!I139*'2.1 OPEX TUUA'!$G$8) -> 88.44116856 | H139: =+IF(F139="Pasajero",'2.2 OPEX LAP 2023'!J139*'2.1 OPEX TUUA'!$H$7,'2.2 OPEX LAP 2023'!J139*'2.1 OPEX TUUA'!$H$8) -> 88.44116856 | I139: =+IF(F139="Pasajero",'2.2 OPEX LAP 2023'!K139*'2.1 OPEX TUUA'!$I$7,'2.2 OPEX LAP 2023'!K139*'2.1 OPEX TUUA'!$I$8) -> 88.44116856 | J139: =+IF(F139="Pasajero",'2.2 OPEX LAP 2023'!L139*'2.1 OPEX TUUA'!$J$7,'2.2 OPEX LAP 2023'!L139*'2.1 OPEX TUUA'!$J$8) -> 88.44116856 | K139: =+IF(F139="Pasajero",'2.2 OPEX LAP 2023'!M139*'2.1 OPEX TUUA'!$K$7,'2.2 OPEX LAP 2023'!M139*'2.1 OPEX TUUA'!$K$8) -> 88.44116856 | L139: =+IF(F139="Pasajero",'2.2 OPEX LAP 2023'!N139*'2.1 OPEX TUUA'!$L$7,'2.2 OPEX LAP 2023'!N139*'2.1 OPEX TUUA'!$L$8) -> 88.44116856 | N139: =+IF(F139="Pasajero",'2.2 OPEX LAP 2023'!I139*'2.1 OPEX TUUA'!$N$7,'2.2 OPEX LAP 2023'!I139*'2.1 OPEX TUUA'!$N$8) -> 16.95933157 | O139: =+IF(F139="Pasajero",'2.2 OPEX LAP 2023'!J139*'2.1 OPEX TUUA'!$O$7,'2.2 OPEX LAP 2023'!J139*'2.1 OPEX TUUA'!$O$8) -> 16.95933157 | P139: =+IF(F139="Pasajero",'2.2 OPEX LAP 2023'!K139*'2.1 OPEX TUUA'!$P$7,'2.2 OPEX LAP 2023'!K139*'2.1 OPEX TUUA'!$P$8) -> 16.95933157 | Q139: =+IF(F139="Pasajero",'2.2 OPEX LAP 2023'!L139*'2.1 OPEX TUUA'!$Q$7,'2.2 OPEX LAP 2023'!L139*'2.1 OPEX TUUA'!$Q$8) -> 16.95933157 | R139: =+IF(F139="Pasajero",'2.2 OPEX LAP 2023'!M139*'2.1 OPEX TUUA'!$R$7,'2.2 OPEX LAP 2023'!M139*'2.1 OPEX TUUA'!$R$8) -> 16.95933157 | S139: =+IF(F139="Pasajero",'2.2 OPEX LAP 2023'!N139*'2.1 OPEX TUUA'!$S$7,'2.2 OPEX LAP 2023'!N139*'2.1 OPEX TUUA'!$S$8) -> 16.95933157 | U139: 88.44116856 | V139: 88.44116856 | W139: 88.44116856 | X139: 88.44116856 | Y139: 88.44116856 | Z139: 88.44116856 | AA139: 0 | AB139: 0 | AC139: 0 | AD139: 0 | AE139: 0 | AF139: 0
B140: 6430000003 | C140: Directo | D140: Otros Costos | E140: Impuesto Vehicular | F140: Pasajero | G140: =+IF(F140="Pasajero",'2.2 OPEX LAP 2023'!I140*'2.1 OPEX TUUA'!$G$7,'2.2 OPEX LAP 2023'!I140*'2.1 OPEX TUUA'!$G$8) -> 0 | H140: =+IF(F140="Pasajero",'2.2 OPEX LAP 2023'!J140*'2.1 OPEX TUUA'!$H$7,'2.2 OPEX LAP 2023'!J140*'2.1 OPEX TUUA'!$H$8) -> 0 | I140: =+IF(F140="Pasajero",'2.2 OPEX LAP 2023'!K140*'2.1 OPEX TUUA'!$I$7,'2.2 OPEX LAP 2023'!K140*'2.1 OPEX TUUA'!$I$8) -> 0 | J140: =+IF(F140="Pasajero",'2.2 OPEX LAP 2023'!L140*'2.1 OPEX TUUA'!$J$7,'2.2 OPEX LAP 2023'!L140*'2.1 OPEX TUUA'!$J$8) -> 0 | K140: =+IF(F140="Pasajero",'2.2 OPEX LAP 2023'!M140*'2.1 OPEX TUUA'!$K$7,'2.2 OPEX LAP 2023'!M140*'2.1 OPEX TUUA'!$K$8) -> 0 | L140: =+IF(F140="Pasajero",'2.2 OPEX LAP 2023'!N140*'2.1 OPEX TUUA'!$L$7,'2.2 OPEX LAP 2023'!N140*'2.1 OPEX TUUA'!$L$8) -> 0 | N140: =+IF(F140="Pasajero",'2.2 OPEX LAP 2023'!I140*'2.1 OPEX TUUA'!$N$7,'2.2 OPEX LAP 2023'!I140*'2.1 OPEX TUUA'!$N$8) -> 0 | O140: =+IF(F140="Pasajero",'2.2 OPEX LAP 2023'!J140*'2.1 OPEX TUUA'!$O$7,'2.2 OPEX LAP 2023'!J140*'2.1 OPEX TUUA'!$O$8) -> 0 | P140: =+IF(F140="Pasajero",'2.2 OPEX LAP 2023'!K140*'2.1 OPEX TUUA'!$P$7,'2.2 OPEX LAP 2023'!K140*'2.1 OPEX TUUA'!$P$8) -> 0 | Q140: =+IF(F140="Pasajero",'2.2 OPEX LAP 2023'!L140*'2.1 OPEX TUUA'!$Q$7,'2.2 OPEX LAP 2023'!L140*'2.1 OPEX TUUA'!$Q$8) -> 0 | R140: =+IF(F140="Pasajero",'2.2 OPEX LAP 2023'!M140*'2.1 OPEX TUUA'!$R$7,'2.2 OPEX LAP 2023'!M140*'2.1 OPEX TUUA'!$R$8) -> 0 | S140: =+IF(F140="Pasajero",'2.2 OPEX LAP 2023'!N140*'2.1 OPEX TUUA'!$S$7,'2.2 OPEX LAP 2023'!N140*'2.1 OPEX TUUA'!$S$8) -> 0 | U140: 0 | V140: 0 | W140: 0 | X140: 0 | Y140: 0 | Z140: 0 | AA140: 0 | AB140: 0 | AC140: 0 | AD140: 0 | AE140: 0 | AF140: 0
B141: 6510000001 | C141: Directo | D141: Otros Costos | E141: Seguros | F141: m2 fijo | G141: =+IF(F141="Pasajero",'2.2 OPEX LAP 2023'!I141*'2.1 OPEX TUUA'!$G$7,'2.2 OPEX LAP 2023'!I141*'2.1 OPEX TUUA'!$G$8) -> 75151.52502 | H141: =+IF(F141="Pasajero",'2.2 OPEX LAP 2023'!J141*'2.1 OPEX TUUA'!$H$7,'2.2 OPEX LAP 2023'!J141*'2.1 OPEX TUUA'!$H$8) -> 75151.52502 | I141: =+IF(F141="Pasajero",'2.2 OPEX LAP 2023'!K141*'2.1 OPEX TUUA'!$I$7,'2.2 OPEX LAP 2023'!K141*'2.1 OPEX TUUA'!$I$8) -> 75151.52502 | J141: =+IF(F141="Pasajero",'2.2 OPEX LAP 2023'!L141*'2.1 OPEX TUUA'!$J$7,'2.2 OPEX LAP 2023'!L141*'2.1 OPEX TUUA'!$J$8) -> 75151.52502 | K141: =+IF(F141="Pasajero",'2.2 OPEX LAP 2023'!M141*'2.1 OPEX TUUA'!$K$7,'2.2 OPEX LAP 2023'!M141*'2.1 OPEX TUUA'!$K$8) -> 75151.52502 | L141: =+IF(F141="Pasajero",'2.2 OPEX LAP 2023'!N141*'2.1 OPEX TUUA'!$L$7,'2.2 OPEX LAP 2023'!N141*'2.1 OPEX TUUA'!$L$8) -> 75151.52502 | N141: =+IF(F141="Pasajero",'2.2 OPEX LAP 2023'!I141*'2.1 OPEX TUUA'!$N$7,'2.2 OPEX LAP 2023'!I141*'2.1 OPEX TUUA'!$N$8) -> 14410.9316 | O141: =+IF(F141="Pasajero",'2.2 OPEX LAP 2023'!J141*'2.1 OPEX TUUA'!$O$7,'2.2 OPEX LAP 2023'!J141*'2.1 OPEX TUUA'!$O$8) -> 14410.9316 | P141: =+IF(F141="Pasajero",'2.2 OPEX LAP 2023'!K141*'2.1 OPEX TUUA'!$P$7,'2.2 OPEX LAP 2023'!K141*'2.1 OPEX TUUA'!$P$8) -> 14410.9316 | Q141: =+IF(F141="Pasajero",'2.2 OPEX LAP 2023'!L141*'2.1 OPEX TUUA'!$Q$7,'2.2 OPEX LAP 2023'!L141*'2.1 OPEX TUUA'!$Q$8) -> 14410.9316 | R141: =+IF(F141="Pasajero",'2.2 OPEX LAP 2023'!M141*'2.1 OPEX TUUA'!$R$7,'2.2 OPEX LAP 2023'!M141*'2.1 OPEX TUUA'!$R$8) -> 14410.9316 | S141: =+IF(F141="Pasajero",'2.2 OPEX LAP 2023'!N141*'2.1 OPEX TUUA'!$S$7,'2.2 OPEX LAP 2023'!N141*'2.1 OPEX TUUA'!$S$8) -> 14410.9316 | U141: 75151.52502 | V141: 75151.52502 | W141: 75151.52502 | X141: 75151.52502 | Y141: 75151.52502 | Z141: 75151.52502 | AA141: 0 | AB141: 0 | AC141: 0 | AD141: 0 | AE141: 0 | AF141: 0
B142: 6530000001 | C142: Directo | D142: Otros Costos | E142: Suscripciones | F142: Pasajero | G142: =+IF(F142="Pasajero",'2.2 OPEX LAP 2023'!I142*'2.1 OPEX TUUA'!$G$7,'2.2 OPEX LAP 2023'!I142*'2.1 OPEX TUUA'!$G$8) -> 7.513399802 | H142: =+IF(F142="Pasajero",'2.2 OPEX LAP 2023'!J142*'2.1 OPEX TUUA'!$H$7,'2.2 OPEX LAP 2023'!J142*'2.1 OPEX TUUA'!$H$8) -> 8.81325616 | I142: =+IF(F142="Pasajero",'2.2 OPEX LAP 2023'!K142*'2.1 OPEX TUUA'!$I$7,'2.2 OPEX LAP 2023'!K142*'2.1 OPEX TUUA'!$I$8) -> 9.907502125 | J142: =+IF(F142="Pasajero",'2.2 OPEX LAP 2023'!L142*'2.1 OPEX TUUA'!$J$7,'2.2 OPEX LAP 2023'!L142*'2.1 OPEX TUUA'!$J$8) -> 10.49715994 | K142: =+IF(F142="Pasajero",'2.2 OPEX LAP 2023'!M142*'2.1 OPEX TUUA'!$K$7,'2.2 OPEX LAP 2023'!M142*'2.1 OPEX TUUA'!$K$8) -> 10.92798788 | L142: =+IF(F142="Pasajero",'2.2 OPEX LAP 2023'!N142*'2.1 OPEX TUUA'!$L$7,'2.2 OPEX LAP 2023'!N142*'2.1 OPEX TUUA'!$L$8) -> 11.40664606 | N142: =+IF(F142="Pasajero",'2.2 OPEX LAP 2023'!I142*'2.1 OPEX TUUA'!$N$7,'2.2 OPEX LAP 2023'!I142*'2.1 OPEX TUUA'!$N$8) -> 3.705738192 | O142: =+IF(F142="Pasajero",'2.2 OPEX LAP 2023'!J142*'2.1 OPEX TUUA'!$O$7,'2.2 OPEX LAP 2023'!J142*'2.1 OPEX TUUA'!$O$8) -> 3.650126601 | P142: =+IF(F142="Pasajero",'2.2 OPEX LAP 2023'!K142*'2.1 OPEX TUUA'!$P$7,'2.2 OPEX LAP 2023'!K142*'2.1 OPEX TUUA'!$P$8) -> 3.627420638 | Q142: =+IF(F142="Pasajero",'2.2 OPEX LAP 2023'!L142*'2.1 OPEX TUUA'!$Q$7,'2.2 OPEX LAP 2023'!L142*'2.1 OPEX TUUA'!$Q$8) -> 3.603789431 | R142: =+IF(F142="Pasajero",'2.2 OPEX LAP 2023'!M142*'2.1 OPEX TUUA'!$R$7,'2.2 OPEX LAP 2023'!M142*'2.1 OPEX TUUA'!$R$8) -> 3.623125954 | S142: =+IF(F142="Pasajero",'2.2 OPEX LAP 2023'!N142*'2.1 OPEX TUUA'!$S$7,'2.2 OPEX LAP 2023'!N142*'2.1 OPEX TUUA'!$S$8) -> 3.625438655 | U142: 7.513399802 | V142: 8.81325616 | W142: 9.907502125 | X142: 10.49715994 | Y142: 10.92798788 | Z142: 11.40664606 | AA142: 0 | AB142: 0 | AC142: 0 | AD142: 0 | AE142: 0 | AF142: 0
B143: 6530000002 | C143: Directo | D143: Otros Costos | E143: Membresías | F143: Pasajero | G143: =+IF(F143="Pasajero",'2.2 OPEX LAP 2023'!I143*'2.1 OPEX TUUA'!$G$7,'2.2 OPEX LAP 2023'!I143*'2.1 OPEX TUUA'!$G$8) -> 52.15851759 | H143: =+IF(F143="Pasajero",'2.2 OPEX LAP 2023'!J143*'2.1 OPEX TUUA'!$H$7,'2.2 OPEX LAP 2023'!J143*'2.1 OPEX TUUA'!$H$8) -> 61.18220627 | I143: =+IF(F143="Pasajero",'2.2 OPEX LAP 2023'!K143*'2.1 OPEX TUUA'!$I$7,'2.2 OPEX LAP 2023'!K143*'2.1 OPEX TUUA'!$I$8) -> 68.77853402 | J143: =+IF(F143="Pasajero",'2.2 OPEX LAP 2023'!L143*'2.1 OPEX TUUA'!$J$7,'2.2 OPEX LAP 2023'!L143*'2.1 OPEX TUUA'!$J$8) -> 72.87197748 | K143: =+IF(F143="Pasajero",'2.2 OPEX LAP 2023'!M143*'2.1 OPEX TUUA'!$K$7,'2.2 OPEX LAP 2023'!M143*'2.1 OPEX TUUA'!$K$8) -> 75.86281354 | L143: =+IF(F143="Pasajero",'2.2 OPEX LAP 2023'!N143*'2.1 OPEX TUUA'!$L$7,'2.2 OPEX LAP 2023'!N143*'2.1 OPEX TUUA'!$L$8) -> 79.18569023 | N143: =+IF(F143="Pasajero",'2.2 OPEX LAP 2023'!I143*'2.1 OPEX TUUA'!$N$7,'2.2 OPEX LAP 2023'!I143*'2.1 OPEX TUUA'!$N$8) -> 25.72547925 | O143: =+IF(F143="Pasajero",'2.2 OPEX LAP 2023'!J143*'2.1 OPEX TUUA'!$O$7,'2.2 OPEX LAP 2023'!J143*'2.1 OPEX TUUA'!$O$8) -> 25.33941991 | P143: =+IF(F143="Pasajero",'2.2 OPEX LAP 2023'!K143*'2.1 OPEX TUUA'!$P$7,'2.2 OPEX LAP 2023'!K143*'2.1 OPEX TUUA'!$P$8) -> 25.18179362 | Q143: =+IF(F143="Pasajero",'2.2 OPEX LAP 2023'!L143*'2.1 OPEX TUUA'!$Q$7,'2.2 OPEX LAP 2023'!L143*'2.1 OPEX TUUA'!$Q$8) -> 25.01774422 | R143: =+IF(F143="Pasajero",'2.2 OPEX LAP 2023'!M143*'2.1 OPEX TUUA'!$R$7,'2.2 OPEX LAP 2023'!M143*'2.1 OPEX TUUA'!$R$8) -> 25.15197964 | S143: =+IF(F143="Pasajero",'2.2 OPEX LAP 2023'!N143*'2.1 OPEX TUUA'!$S$7,'2.2 OPEX LAP 2023'!N143*'2.1 OPEX TUUA'!$S$8) -> 25.16803456 | U143: 52.15851759 | V143: 61.18220627 | W143: 68.77853402 | X143: 72.87197748 | Y143: 75.86281354 | Z143: 79.18569023 | AA143: =+G143-U143 -> 0 | AB143: =+H143-V143 -> 0 | AC143: =+I143-W143 -> 0 | AD143: =+J143-X143 -> 0 | AE143: =+K143-Y143 -> 0 | AF143: =+L143-Z143 -> 0
B144: 6540000001 | C144: Directo | D144: Otros Costos | E144: Licenciamiento de Software | F144: Pasajero | G144: =+IF(F144="Pasajero",'2.2 OPEX LAP 2023'!I144*'2.1 OPEX TUUA'!$G$7,'2.2 OPEX LAP 2023'!I144*'2.1 OPEX TUUA'!$G$8) -> 1.361036307 | H144: =+IF(F144="Pasajero",'2.2 OPEX LAP 2023'!J144*'2.1 OPEX TUUA'!$H$7,'2.2 OPEX LAP 2023'!J144*'2.1 OPEX TUUA'!$H$8) -> 1.596502507 | I144: =+IF(F144="Pasajero",'2.2 OPEX LAP 2023'!K144*'2.1 OPEX TUUA'!$I$7,'2.2 OPEX LAP 2023'!K144*'2.1 OPEX TUUA'!$I$8) -> 1.794722823 | J144: =+IF(F144="Pasajero",'2.2 OPEX LAP 2023'!L144*'2.1 OPEX TUUA'!$J$7,'2.2 OPEX LAP 2023'!L144*'2.1 OPEX TUUA'!$J$8) -> 1.901538075 | K144: =+IF(F144="Pasajero",'2.2 OPEX LAP 2023'!M144*'2.1 OPEX TUUA'!$K$7,'2.2 OPEX LAP 2023'!M144*'2.1 OPEX TUUA'!$K$8) -> 1.979581636 | L144: =+IF(F144="Pasajero",'2.2 OPEX LAP 2023'!N144*'2.1 OPEX TUUA'!$L$7,'2.2 OPEX LAP 2023'!N144*'2.1 OPEX TUUA'!$L$8) -> 2.066289542 | N144: =+IF(F144="Pasajero",'2.2 OPEX LAP 2023'!I144*'2.1 OPEX TUUA'!$N$7,'2.2 OPEX LAP 2023'!I144*'2.1 OPEX TUUA'!$N$8) -> 0.6712865491 | O144: =+IF(F144="Pasajero",'2.2 OPEX LAP 2023'!J144*'2.1 OPEX TUUA'!$O$7,'2.2 OPEX LAP 2023'!J144*'2.1 OPEX TUUA'!$O$8) -> 0.6612126283 | P144: =+IF(F144="Pasajero",'2.2 OPEX LAP 2023'!K144*'2.1 OPEX TUUA'!$P$7,'2.2 OPEX LAP 2023'!K144*'2.1 OPEX TUUA'!$P$8) -> 0.6570994917 | Q144: =+IF(F144="Pasajero",'2.2 OPEX LAP 2023'!L144*'2.1 OPEX TUUA'!$Q$7,'2.2 OPEX LAP 2023'!L144*'2.1 OPEX TUUA'!$Q$8) -> 0.652818749 | R144: =+IF(F144="Pasajero",'2.2 OPEX LAP 2023'!M144*'2.1 OPEX TUUA'!$R$7,'2.2 OPEX LAP 2023'!M144*'2.1 OPEX TUUA'!$R$8) -> 0.6563215188 | S144: =+IF(F144="Pasajero",'2.2 OPEX LAP 2023'!N144*'2.1 OPEX TUUA'!$S$7,'2.2 OPEX LAP 2023'!N144*'2.1 OPEX TUUA'!$S$8) -> 0.6567404596 | U144: 1.361036307 | V144: 1.596502507 | W144: 1.794722823 | X144: 1.901538075 | Y144: 1.979581636 | Z144: 2.066289542 | AA144: 0 | AB144: 0 | AC144: 0 | AD144: 0 | AE144: 0 | AF144: 0
B145: 6561000001 | C145: Directo | D145: Otros Costos | E145: Con. Herramientas y Accesorios | F145: Pasajero | G145: =+IF(F145="Pasajero",'2.2 OPEX LAP 2023'!I145*'2.1 OPEX TUUA'!$G$7,'2.2 OPEX LAP 2023'!I145*'2.1 OPEX TUUA'!$G$8) -> 1138.976399 | H145: =+IF(F145="Pasajero",'2.2 OPEX LAP 2023'!J145*'2.1 OPEX TUUA'!$H$7,'2.2 OPEX LAP 2023'!J145*'2.1 OPEX TUUA'!$H$8) -> 1336.025106 | I145: =+IF(F145="Pasajero",'2.2 OPEX LAP 2023'!K145*'2.1 OPEX TUUA'!$I$7,'2.2 OPEX LAP 2023'!K145*'2.1 OPEX TUUA'!$I$8) -> 1501.904783 | J145: =+IF(F145="Pasajero",'2.2 OPEX LAP 2023'!L145*'2.1 OPEX TUUA'!$J$7,'2.2 OPEX LAP 2023'!L145*'2.1 OPEX TUUA'!$J$8) -> 1591.292589 | K145: =+IF(F145="Pasajero",'2.2 OPEX LAP 2023'!M145*'2.1 OPEX TUUA'!$K$7,'2.2 OPEX LAP 2023'!M145*'2.1 OPEX TUUA'!$K$8) -> 1656.602952 | L145: =+IF(F145="Pasajero",'2.2 OPEX LAP 2023'!N145*'2.1 OPEX TUUA'!$L$7,'2.2 OPEX LAP 2023'!N145*'2.1 OPEX TUUA'!$L$8) -> 1729.164027 | N145: =+IF(F145="Pasajero",'2.2 OPEX LAP 2023'!I145*'2.1 OPEX TUUA'!$N$7,'2.2 OPEX LAP 2023'!I145*'2.1 OPEX TUUA'!$N$8) -> 561.7627778 | O145: =+IF(F145="Pasajero",'2.2 OPEX LAP 2023'!J145*'2.1 OPEX TUUA'!$O$7,'2.2 OPEX LAP 2023'!J145*'2.1 OPEX TUUA'!$O$8) -> 553.3324677 | P145: =+IF(F145="Pasajero",'2.2 OPEX LAP 2023'!K145*'2.1 OPEX TUUA'!$P$7,'2.2 OPEX LAP 2023'!K145*'2.1 OPEX TUUA'!$P$8) -> 549.89041 | Q145: =+IF(F145="Pasajero",'2.2 OPEX LAP 2023'!L145*'2.1 OPEX TUUA'!$Q$7,'2.2 OPEX LAP 2023'!L145*'2.1 OPEX TUUA'!$Q$8) -> 546.308092 | R145: =+IF(F145="Pasajero",'2.2 OPEX LAP 2023'!M145*'2.1 OPEX TUUA'!$R$7,'2.2 OPEX LAP 2023'!M145*'2.1 OPEX TUUA'!$R$8) -> 549.2393673 | S145: =+IF(F145="Pasajero",'2.2 OPEX LAP 2023'!N145*'2.1 OPEX TUUA'!$S$7,'2.2 OPEX LAP 2023'!N145*'2.1 OPEX TUUA'!$S$8) -> 549.5899558 | U145: 1138.976399 | V145: 1336.025106 | W145: 1501.904783 | X145: 1591.292589 | Y145: 1656.602952 | Z145: 1729.164027 | AA145: 0 | AB145: 0 | AC145: 0 | AD145: 0 | AE145: 0 | AF145: 0
B146: 6561000002 | C146: Directo | D146: Otros Costos | E146: Consumo de Repuestos | F146: Pasajero | G146: =+IF(F146="Pasajero",'2.2 OPEX LAP 2023'!I146*'2.1 OPEX TUUA'!$G$7,'2.2 OPEX LAP 2023'!I146*'2.1 OPEX TUUA'!$G$8) -> 15422.44355 | H146: =+IF(F146="Pasajero",'2.2 OPEX LAP 2023'!J146*'2.1 OPEX TUUA'!$H$7,'2.2 OPEX LAP 2023'!J146*'2.1 OPEX TUUA'!$H$8) -> 18090.60468 | I146: =+IF(F146="Pasajero",'2.2 OPEX LAP 2023'!K146*'2.1 OPEX TUUA'!$I$7,'2.2 OPEX LAP 2023'!K146*'2.1 OPEX TUUA'!$I$8) -> 20336.7179 | J146: =+IF(F146="Pasajero",'2.2 OPEX LAP 2023'!L146*'2.1 OPEX TUUA'!$J$7,'2.2 OPEX LAP 2023'!L146*'2.1 OPEX TUUA'!$J$8) -> 21547.08398 | K146: =+IF(F146="Pasajero",'2.2 OPEX LAP 2023'!M146*'2.1 OPEX TUUA'!$K$7,'2.2 OPEX LAP 2023'!M146*'2.1 OPEX TUUA'!$K$8) -> 22431.4266 | L146: =+IF(F146="Pasajero",'2.2 OPEX LAP 2023'!N146*'2.1 OPEX TUUA'!$L$7,'2.2 OPEX LAP 2023'!N146*'2.1 OPEX TUUA'!$L$8) -> 23413.94836 | N146: =+IF(F146="Pasajero",'2.2 OPEX LAP 2023'!I146*'2.1 OPEX TUUA'!$N$7,'2.2 OPEX LAP 2023'!I146*'2.1 OPEX TUUA'!$N$8) -> 7606.614793 | O146: =+IF(F146="Pasajero",'2.2 OPEX LAP 2023'!J146*'2.1 OPEX TUUA'!$O$7,'2.2 OPEX LAP 2023'!J146*'2.1 OPEX TUUA'!$O$8) -> 7492.463191 | P146: =+IF(F146="Pasajero",'2.2 OPEX LAP 2023'!K146*'2.1 OPEX TUUA'!$P$7,'2.2 OPEX LAP 2023'!K146*'2.1 OPEX TUUA'!$P$8) -> 7445.855605 | Q146: =+IF(F146="Pasajero",'2.2 OPEX LAP 2023'!L146*'2.1 OPEX TUUA'!$Q$7,'2.2 OPEX LAP 2023'!L146*'2.1 OPEX TUUA'!$Q$8) -> 7397.348807 | R146: =+IF(F146="Pasajero",'2.2 OPEX LAP 2023'!M146*'2.1 OPEX TUUA'!$R$7,'2.2 OPEX LAP 2023'!M146*'2.1 OPEX TUUA'!$R$8) -> 7437.040085 | S146: =+IF(F146="Pasajero",'2.2 OPEX LAP 2023'!N146*'2.1 OPEX TUUA'!$S$7,'2.2 OPEX LAP 2023'!N146*'2.1 OPEX TUUA'!$S$8) -> 7441.787269 | U146: 15422.44355 | V146: 18090.60468 | W146: 20336.7179 | X146: 21547.08398 | Y146: 22431.4266 | Z146: 23413.94836 | AA146: 0 | AB146: 0 | AC146: 0 | AD146: 0 | AE146: 0 | AF146: 0
B147: 6561000003 | C147: Directo | D147: Otros Costos | E147: Consumo de Materiales Diversos | F147: Pasajero | G147: =+IF(F147="Pasajero",'2.2 OPEX LAP 2023'!I147*'2.1 OPEX TUUA'!$G$7,'2.2 OPEX LAP 2023'!I147*'2.1 OPEX TUUA'!$G$8) -> 1687.023738 | H147: =+IF(F147="Pasajero",'2.2 OPEX LAP 2023'!J147*'2.1 OPEX TUUA'!$H$7,'2.2 OPEX LAP 2023'!J147*'2.1 OPEX TUUA'!$H$8) -> 1978.88742 | I147: =+IF(F147="Pasajero",'2.2 OPEX LAP 2023'!K147*'2.1 OPEX TUUA'!$I$7,'2.2 OPEX LAP 2023'!K147*'2.1 OPEX TUUA'!$I$8) -> 2224.584303 | J147: =+IF(F147="Pasajero",'2.2 OPEX LAP 2023'!L147*'2.1 OPEX TUUA'!$J$7,'2.2 OPEX LAP 2023'!L147*'2.1 OPEX TUUA'!$J$8) -> 2356.983317 | K147: =+IF(F147="Pasajero",'2.2 OPEX LAP 2023'!M147*'2.1 OPEX TUUA'!$K$7,'2.2 OPEX LAP 2023'!M147*'2.1 OPEX TUUA'!$K$8) -> 2453.719414 | L147: =+IF(F147="Pasajero",'2.2 OPEX LAP 2023'!N147*'2.1 OPEX TUUA'!$L$7,'2.2 OPEX LAP 2023'!N147*'2.1 OPEX TUUA'!$L$8) -> 2561.195089 | N147: =+IF(F147="Pasajero",'2.2 OPEX LAP 2023'!I147*'2.1 OPEX TUUA'!$N$7,'2.2 OPEX LAP 2023'!I147*'2.1 OPEX TUUA'!$N$8) -> 832.0691645 | O147: =+IF(F147="Pasajero",'2.2 OPEX LAP 2023'!J147*'2.1 OPEX TUUA'!$O$7,'2.2 OPEX LAP 2023'!J147*'2.1 OPEX TUUA'!$O$8) -> 819.5823973 | P147: =+IF(F147="Pasajero",'2.2 OPEX LAP 2023'!K147*'2.1 OPEX TUUA'!$P$7,'2.2 OPEX LAP 2023'!K147*'2.1 OPEX TUUA'!$P$8) -> 814.4841064 | Q147: =+IF(F147="Pasajero",'2.2 OPEX LAP 2023'!L147*'2.1 OPEX TUUA'!$Q$7,'2.2 OPEX LAP 2023'!L147*'2.1 OPEX TUUA'!$Q$8) -> 809.1780653 | R147: =+IF(F147="Pasajero",'2.2 OPEX LAP 2023'!M147*'2.1 OPEX TUUA'!$R$7,'2.2 OPEX LAP 2023'!M147*'2.1 OPEX TUUA'!$R$8) -> 813.519798 | S147: =+IF(F147="Pasajero",'2.2 OPEX LAP 2023'!N147*'2.1 OPEX TUUA'!$S$7,'2.2 OPEX LAP 2023'!N147*'2.1 OPEX TUUA'!$S$8) -> 814.039081 | U147: 1687.023738 | V147: 1978.88742 | W147: 2224.584303 | X147: 2356.983317 | Y147: 2453.719414 | Z147: 2561.195089 | AA147: 0 | AB147: 0 | AC147: 0 | AD147: 0 | AE147: 0 | AF147: 0
B148: 6561000004 | C148: Directo | D148: Otros Costos | E148: Consumo de Combustibles | F148: Pasajero | G148: =+IF(F148="Pasajero",'2.2 OPEX LAP 2023'!I148*'2.1 OPEX TUUA'!$G$7,'2.2 OPEX LAP 2023'!I148*'2.1 OPEX TUUA'!$G$8) -> 371.2619747 | H148: =+IF(F148="Pasajero",'2.2 OPEX LAP 2023'!J148*'2.1 OPEX TUUA'!$H$7,'2.2 OPEX LAP 2023'!J148*'2.1 OPEX TUUA'!$H$8) -> 435.4921835 | I148: =+IF(F148="Pasajero",'2.2 OPEX LAP 2023'!K148*'2.1 OPEX TUUA'!$I$7,'2.2 OPEX LAP 2023'!K148*'2.1 OPEX TUUA'!$I$8) -> 489.5625017 | J148: =+IF(F148="Pasajero",'2.2 OPEX LAP 2023'!L148*'2.1 OPEX TUUA'!$J$7,'2.2 OPEX LAP 2023'!L148*'2.1 OPEX TUUA'!$J$8) -> 518.6994475 | K148: =+IF(F148="Pasajero",'2.2 OPEX LAP 2023'!M148*'2.1 OPEX TUUA'!$K$7,'2.2 OPEX LAP 2023'!M148*'2.1 OPEX TUUA'!$K$8) -> 539.9880836 | L148: =+IF(F148="Pasajero",'2.2 OPEX LAP 2023'!N148*'2.1 OPEX TUUA'!$L$7,'2.2 OPEX LAP 2023'!N148*'2.1 OPEX TUUA'!$L$8) -> 563.64017 | N148: =+IF(F148="Pasajero",'2.2 OPEX LAP 2023'!I148*'2.1 OPEX TUUA'!$N$7,'2.2 OPEX LAP 2023'!I148*'2.1 OPEX TUUA'!$N$8) -> 183.1128005 | O148: =+IF(F148="Pasajero",'2.2 OPEX LAP 2023'!J148*'2.1 OPEX TUUA'!$O$7,'2.2 OPEX LAP 2023'!J148*'2.1 OPEX TUUA'!$O$8) -> 180.3648475 | P148: =+IF(F148="Pasajero",'2.2 OPEX LAP 2023'!K148*'2.1 OPEX TUUA'!$P$7,'2.2 OPEX LAP 2023'!K148*'2.1 OPEX TUUA'!$P$8) -> 179.2428707 | Q148: =+IF(F148="Pasajero",'2.2 OPEX LAP 2023'!L148*'2.1 OPEX TUUA'!$Q$7,'2.2 OPEX LAP 2023'!L148*'2.1 OPEX TUUA'!$Q$8) -> 178.0751745 | R148: =+IF(F148="Pasajero",'2.2 OPEX LAP 2023'!M148*'2.1 OPEX TUUA'!$R$7,'2.2 OPEX LAP 2023'!M148*'2.1 OPEX TUUA'!$R$8) -> 179.0306561 | S148: =+IF(F148="Pasajero",'2.2 OPEX LAP 2023'!N148*'2.1 OPEX TUUA'!$S$7,'2.2 OPEX LAP 2023'!N148*'2.1 OPEX TUUA'!$S$8) -> 179.1449343 | U148: 371.2619747 | V148: 435.4921835 | W148: 489.5625017 | X148: 518.6994475 | Y148: 539.9880836 | Z148: 563.64017 | AA148: 0 | AB148: 0 | AC148: 0 | AD148: 0 | AE148: 0 | AF148: 0
B149: 6561000005 | C149: Directo | D149: Otros Costos | E149: Consumoe de Utiles de oficina | F149: Pasajero | G149: =+IF(F149="Pasajero",'2.2 OPEX LAP 2023'!I149*'2.1 OPEX TUUA'!$G$7,'2.2 OPEX LAP 2023'!I149*'2.1 OPEX TUUA'!$G$8) -> 2.580352223 | H149: =+IF(F149="Pasajero",'2.2 OPEX LAP 2023'!J149*'2.1 OPEX TUUA'!$H$7,'2.2 OPEX LAP 2023'!J149*'2.1 OPEX TUUA'!$H$8) -> 3.026766274 | I149: =+IF(F149="Pasajero",'2.2 OPEX LAP 2023'!K149*'2.1 OPEX TUUA'!$I$7,'2.2 OPEX LAP 2023'!K149*'2.1 OPEX TUUA'!$I$8) -> 3.402566854 | J149: =+IF(F149="Pasajero",'2.2 OPEX LAP 2023'!L149*'2.1 OPEX TUUA'!$J$7,'2.2 OPEX LAP 2023'!L149*'2.1 OPEX TUUA'!$J$8) -> 3.605075024 | K149: =+IF(F149="Pasajero",'2.2 OPEX LAP 2023'!M149*'2.1 OPEX TUUA'!$K$7,'2.2 OPEX LAP 2023'!M149*'2.1 OPEX TUUA'!$K$8) -> 3.753035718 | L149: =+IF(F149="Pasajero",'2.2 OPEX LAP 2023'!N149*'2.1 OPEX TUUA'!$L$7,'2.2 OPEX LAP 2023'!N149*'2.1 OPEX TUUA'!$L$8) -> 3.91742291 | N149: =+IF(F149="Pasajero",'2.2 OPEX LAP 2023'!I149*'2.1 OPEX TUUA'!$N$7,'2.2 OPEX LAP 2023'!I149*'2.1 OPEX TUUA'!$N$8) -> 1.27267416 | O149: =+IF(F149="Pasajero",'2.2 OPEX LAP 2023'!J149*'2.1 OPEX TUUA'!$O$7,'2.2 OPEX LAP 2023'!J149*'2.1 OPEX TUUA'!$O$8) -> 1.253575284 | P149: =+IF(F149="Pasajero",'2.2 OPEX LAP 2023'!K149*'2.1 OPEX TUUA'!$P$7,'2.2 OPEX LAP 2023'!K149*'2.1 OPEX TUUA'!$P$8) -> 1.245777298 | Q149: =+IF(F149="Pasajero",'2.2 OPEX LAP 2023'!L149*'2.1 OPEX TUUA'!$Q$7,'2.2 OPEX LAP 2023'!L149*'2.1 OPEX TUUA'!$Q$8) -> 1.237661553 | R149: =+IF(F149="Pasajero",'2.2 OPEX LAP 2023'!M149*'2.1 OPEX TUUA'!$R$7,'2.2 OPEX LAP 2023'!M149*'2.1 OPEX TUUA'!$R$8) -> 1.244302361 | S149: =+IF(F149="Pasajero",'2.2 OPEX LAP 2023'!N149*'2.1 OPEX TUUA'!$S$7,'2.2 OPEX LAP 2023'!N149*'2.1 OPEX TUUA'!$S$8) -> 1.245096619 | U149: 2.580352223 | V149: 3.026766274 | W149: 3.402566854 | X149: 3.605075024 | Y149: 3.753035718 | Z149: 3.91742291 | AA149: 0 | AB149: 0 | AC149: 0 | AD149: 0 | AE149: 0 | AF149: 0
B150: 6562000001 | C150: Directo | D150: Otros Costos | E150: Dif. de Inventario Herramientas y Accesorios | F150: Pasajero | G150: =+IF(F150="Pasajero",'2.2 OPEX LAP 2023'!I150*'2.1 OPEX TUUA'!$G$7,'2.2 OPEX LAP 2023'!I150*'2.1 OPEX TUUA'!$G$8) -> 0 | H150: =+IF(F150="Pasajero",'2.2 OPEX LAP 2023'!J150*'2.1 OPEX TUUA'!$H$7,'2.2 OPEX LAP 2023'!J150*'2.1 OPEX TUUA'!$H$8) -> 0 | I150: =+IF(F150="Pasajero",'2.2 OPEX LAP 2023'!K150*'2.1 OPEX TUUA'!$I$7,'2.2 OPEX LAP 2023'!K150*'2.1 OPEX TUUA'!$I$8) -> 0 | J150: =+IF(F150="Pasajero",'2.2 OPEX LAP 2023'!L150*'2.1 OPEX TUUA'!$J$7,'2.2 OPEX LAP 2023'!L150*'2.1 OPEX TUUA'!$J$8) -> 0 | K150: =+IF(F150="Pasajero",'2.2 OPEX LAP 2023'!M150*'2.1 OPEX TUUA'!$K$7,'2.2 OPEX LAP 2023'!M150*'2.1 OPEX TUUA'!$K$8) -> 0 | L150: =+IF(F150="Pasajero",'2.2 OPEX LAP 2023'!N150*'2.1 OPEX TUUA'!$L$7,'2.2 OPEX LAP 2023'!N150*'2.1 OPEX TUUA'!$L$8) -> 0 | N150: =+IF(F150="Pasajero",'2.2 OPEX LAP 2023'!I150*'2.1 OPEX TUUA'!$N$7,'2.2 OPEX LAP 2023'!I150*'2.1 OPEX TUUA'!$N$8) -> 0 | O150: =+IF(F150="Pasajero",'2.2 OPEX LAP 2023'!J150*'2.1 OPEX TUUA'!$O$7,'2.2 OPEX LAP 2023'!J150*'2.1 OPEX TUUA'!$O$8) -> 0 | P150: =+IF(F150="Pasajero",'2.2 OPEX LAP 2023'!K150*'2.1 OPEX TUUA'!$P$7,'2.2 OPEX LAP 2023'!K150*'2.1 OPEX TUUA'!$P$8) -> 0 | Q150: =+IF(F150="Pasajero",'2.2 OPEX LAP 2023'!L150*'2.1 OPEX TUUA'!$Q$7,'2.2 OPEX LAP 2023'!L150*'2.1 OPEX TUUA'!$Q$8) -> 0 | R150: =+IF(F150="Pasajero",'2.2 OPEX LAP 2023'!M150*'2.1 OPEX TUUA'!$R$7,'2.2 OPEX LAP 2023'!M150*'2.1 OPEX TUUA'!$R$8) -> 0 | S150: =+IF(F150="Pasajero",'2.2 OPEX LAP 2023'!N150*'2.1 OPEX TUUA'!$S$7,'2.2 OPEX LAP 2023'!N150*'2.1 OPEX TUUA'!$S$8) -> 0 | U150: 0 | V150: 0 | W150: 0 | X150: 0 | Y150: 0 | Z150: 0 | AA150: 0 | AB150: 0 | AC150: 0 | AD150: 0 | AE150: 0 | AF150: 0
B151: 6562000002 | C151: Directo | D151: Otros Costos | E151: Dif. de Inventario Repuestos | F151: Pasajero | G151: =+IF(F151="Pasajero",'2.2 OPEX LAP 2023'!I151*'2.1 OPEX TUUA'!$G$7,'2.2 OPEX LAP 2023'!I151*'2.1 OPEX TUUA'!$G$8) -> 0 | H151: =+IF(F151="Pasajero",'2.2 OPEX LAP 2023'!J151*'2.1 OPEX TUUA'!$H$7,'2.2 OPEX LAP 2023'!J151*'2.1 OPEX TUUA'!$H$8) -> 0 | I151: =+IF(F151="Pasajero",'2.2 OPEX LAP 2023'!K151*'2.1 OPEX TUUA'!$I$7,'2.2 OPEX LAP 2023'!K151*'2.1 OPEX TUUA'!$I$8) -> 0 | J151: =+IF(F151="Pasajero",'2.2 OPEX LAP 2023'!L151*'2.1 OPEX TUUA'!$J$7,'2.2 OPEX LAP 2023'!L151*'2.1 OPEX TUUA'!$J$8) -> 0 | K151: =+IF(F151="Pasajero",'2.2 OPEX LAP 2023'!M151*'2.1 OPEX TUUA'!$K$7,'2.2 OPEX LAP 2023'!M151*'2.1 OPEX TUUA'!$K$8) -> 0 | L151: =+IF(F151="Pasajero",'2.2 OPEX LAP 2023'!N151*'2.1 OPEX TUUA'!$L$7,'2.2 OPEX LAP 2023'!N151*'2.1 OPEX TUUA'!$L$8) -> 0 | N151: =+IF(F151="Pasajero",'2.2 OPEX LAP 2023'!I151*'2.1 OPEX TUUA'!$N$7,'2.2 OPEX LAP 2023'!I151*'2.1 OPEX TUUA'!$N$8) -> 0 | O151: =+IF(F151="Pasajero",'2.2 OPEX LAP 2023'!J151*'2.1 OPEX TUUA'!$O$7,'2.2 OPEX LAP 2023'!J151*'2.1 OPEX TUUA'!$O$8) -> 0 | P151: =+IF(F151="Pasajero",'2.2 OPEX LAP 2023'!K151*'2.1 OPEX TUUA'!$P$7,'2.2 OPEX LAP 2023'!K151*'2.1 OPEX TUUA'!$P$8) -> 0 | Q151: =+IF(F151="Pasajero",'2.2 OPEX LAP 2023'!L151*'2.1 OPEX TUUA'!$Q$7,'2.2 OPEX LAP 2023'!L151*'2.1 OPEX TUUA'!$Q$8) -> 0 | R151: =+IF(F151="Pasajero",'2.2 OPEX LAP 2023'!M151*'2.1 OPEX TUUA'!$R$7,'2.2 OPEX LAP 2023'!M151*'2.1 OPEX TUUA'!$R$8) -> 0 | S151: =+IF(F151="Pasajero",'2.2 OPEX LAP 2023'!N151*'2.1 OPEX TUUA'!$S$7,'2.2 OPEX LAP 2023'!N151*'2.1 OPEX TUUA'!$S$8) -> 0 | U151: 0 | V151: 0 | W151: 0 | X151: 0 | Y151: 0 | Z151: 0 | AA151: 0 | AB151: 0 | AC151: 0 | AD151: 0 | AE151: 0 | AF151: 0
B152: 6562000003 | C152: Directo | D152: Otros Costos | E152: Dif. de Inv. Materiales Diversos | F152: Pasajero | G152: =+IF(F152="Pasajero",'2.2 OPEX LAP 2023'!I152*'2.1 OPEX TUUA'!$G$7,'2.2 OPEX LAP 2023'!I152*'2.1 OPEX TUUA'!$G$8) -> 1.064467867 | H152: =+IF(F152="Pasajero",'2.2 OPEX LAP 2023'!J152*'2.1 OPEX TUUA'!$H$7,'2.2 OPEX LAP 2023'!J152*'2.1 OPEX TUUA'!$H$8) -> 1.248626219 | I152: =+IF(F152="Pasajero",'2.2 OPEX LAP 2023'!K152*'2.1 OPEX TUUA'!$I$7,'2.2 OPEX LAP 2023'!K152*'2.1 OPEX TUUA'!$I$8) -> 1.403654529 | J152: =+IF(F152="Pasajero",'2.2 OPEX LAP 2023'!L152*'2.1 OPEX TUUA'!$J$7,'2.2 OPEX LAP 2023'!L152*'2.1 OPEX TUUA'!$J$8) -> 1.487194844 | K152: =+IF(F152="Pasajero",'2.2 OPEX LAP 2023'!M152*'2.1 OPEX TUUA'!$K$7,'2.2 OPEX LAP 2023'!M152*'2.1 OPEX TUUA'!$K$8) -> 1.548232792 | L152: =+IF(F152="Pasajero",'2.2 OPEX LAP 2023'!N152*'2.1 OPEX TUUA'!$L$7,'2.2 OPEX LAP 2023'!N152*'2.1 OPEX TUUA'!$L$8) -> 1.616047133 | N152: =+IF(F152="Pasajero",'2.2 OPEX LAP 2023'!I152*'2.1 OPEX TUUA'!$N$7,'2.2 OPEX LAP 2023'!I152*'2.1 OPEX TUUA'!$N$8) -> 0.5250138865 | O152: =+IF(F152="Pasajero",'2.2 OPEX LAP 2023'!J152*'2.1 OPEX TUUA'!$O$7,'2.2 OPEX LAP 2023'!J152*'2.1 OPEX TUUA'!$O$8) -> 0.5171350628 | P152: =+IF(F152="Pasajero",'2.2 OPEX LAP 2023'!K152*'2.1 OPEX TUUA'!$P$7,'2.2 OPEX LAP 2023'!K152*'2.1 OPEX TUUA'!$P$8) -> 0.5139181746 | Q152: =+IF(F152="Pasajero",'2.2 OPEX LAP 2023'!L152*'2.1 OPEX TUUA'!$Q$7,'2.2 OPEX LAP 2023'!L152*'2.1 OPEX TUUA'!$Q$8) -> 0.5105702014 | R152: =+IF(F152="Pasajero",'2.2 OPEX LAP 2023'!M152*'2.1 OPEX TUUA'!$R$7,'2.2 OPEX LAP 2023'!M152*'2.1 OPEX TUUA'!$R$8) -> 0.5133097212 | S152: =+IF(F152="Pasajero",'2.2 OPEX LAP 2023'!N152*'2.1 OPEX TUUA'!$S$7,'2.2 OPEX LAP 2023'!N152*'2.1 OPEX TUUA'!$S$8) -> 0.5136373752 | U152: 1.064467867 | V152: 1.248626219 | W152: 1.403654529 | X152: 1.487194844 | Y152: 1.548232792 | Z152: 1.616047133 | AA152: 0 | AB152: 0 | AC152: 0 | AD152: 0 | AE152: 0 | AF152: 0
B153: 6562000004 | C153: Directo | D153: Otros Costos | E153: Dif. de Inv.Combustible | F153: Pasajero | G153: =+IF(F153="Pasajero",'2.2 OPEX LAP 2023'!I153*'2.1 OPEX TUUA'!$G$7,'2.2 OPEX LAP 2023'!I153*'2.1 OPEX TUUA'!$G$8) -> 0 | H153: =+IF(F153="Pasajero",'2.2 OPEX LAP 2023'!J153*'2.1 OPEX TUUA'!$H$7,'2.2 OPEX LAP 2023'!J153*'2.1 OPEX TUUA'!$H$8) -> 0 | I153: =+IF(F153="Pasajero",'2.2 OPEX LAP 2023'!K153*'2.1 OPEX TUUA'!$I$7,'2.2 OPEX LAP 2023'!K153*'2.1 OPEX TUUA'!$I$8) -> 0 | J153: =+IF(F153="Pasajero",'2.2 OPEX LAP 2023'!L153*'2.1 OPEX TUUA'!$J$7,'2.2 OPEX LAP 2023'!L153*'2.1 OPEX TUUA'!$J$8) -> 0 | K153: =+IF(F153="Pasajero",'2.2 OPEX LAP 2023'!M153*'2.1 OPEX TUUA'!$K$7,'2.2 OPEX LAP 2023'!M153*'2.1 OPEX TUUA'!$K$8) -> 0 | L153: =+IF(F153="Pasajero",'2.2 OPEX LAP 2023'!N153*'2.1 OPEX TUUA'!$L$7,'2.2 OPEX LAP 2023'!N153*'2.1 OPEX TUUA'!$L$8) -> 0 | N153: =+IF(F153="Pasajero",'2.2 OPEX LAP 2023'!I153*'2.1 OPEX TUUA'!$N$7,'2.2 OPEX LAP 2023'!I153*'2.1 OPEX TUUA'!$N$8) -> 0 | O153: =+IF(F153="Pasajero",'2.2 OPEX LAP 2023'!J153*'2.1 OPEX TUUA'!$O$7,'2.2 OPEX LAP 2023'!J153*'2.1 OPEX TUUA'!$O$8) -> 0 | P153: =+IF(F153="Pasajero",'2.2 OPEX LAP 2023'!K153*'2.1 OPEX TUUA'!$P$7,'2.2 OPEX LAP 2023'!K153*'2.1 OPEX TUUA'!$P$8) -> 0 | Q153: =+IF(F153="Pasajero",'2.2 OPEX LAP 2023'!L153*'2.1 OPEX TUUA'!$Q$7,'2.2 OPEX LAP 2023'!L153*'2.1 OPEX TUUA'!$Q$8) -> 0 | R153: =+IF(F153="Pasajero",'2.2 OPEX LAP 2023'!M153*'2.1 OPEX TUUA'!$R$7,'2.2 OPEX LAP 2023'!M153*'2.1 OPEX TUUA'!$R$8) -> 0 | S153: =+IF(F153="Pasajero",'2.2 OPEX LAP 2023'!N153*'2.1 OPEX TUUA'!$S$7,'2.2 OPEX LAP 2023'!N153*'2.1 OPEX TUUA'!$S$8) -> 0 | U153: 0 | V153: 0 | W153: 0 | X153: 0 | Y153: 0 | Z153: 0 | AA153: 0 | AB153: 0 | AC153: 0 | AD153: 0 | AE153: 0 | AF153: 0
B154: 6562000005 | C154: Directo | D154: Otros Costos | E154: Dif. de Utiles de Oficina | F154: Pasajero | G154: =+IF(F154="Pasajero",'2.2 OPEX LAP 2023'!I154*'2.1 OPEX TUUA'!$G$7,'2.2 OPEX LAP 2023'!I154*'2.1 OPEX TUUA'!$G$8) -> 0.0008937832057 | H154: =+IF(F154="Pasajero",'2.2 OPEX LAP 2023'!J154*'2.1 OPEX TUUA'!$H$7,'2.2 OPEX LAP 2023'!J154*'2.1 OPEX TUUA'!$H$8) -> 0.001048412244 | I154: =+IF(F154="Pasajero",'2.2 OPEX LAP 2023'!K154*'2.1 OPEX TUUA'!$I$7,'2.2 OPEX LAP 2023'!K154*'2.1 OPEX TUUA'!$I$8) -> 0.001178582166 | J154: =+IF(F154="Pasajero",'2.2 OPEX LAP 2023'!L154*'2.1 OPEX TUUA'!$J$7,'2.2 OPEX LAP 2023'!L154*'2.1 OPEX TUUA'!$J$8) -> 0.001248727009 | K154: =+IF(F154="Pasajero",'2.2 OPEX LAP 2023'!M154*'2.1 OPEX TUUA'!$K$7,'2.2 OPEX LAP 2023'!M154*'2.1 OPEX TUUA'!$K$8) -> 0.00129997768 | L154: =+IF(F154="Pasajero",'2.2 OPEX LAP 2023'!N154*'2.1 OPEX TUUA'!$L$7,'2.2 OPEX LAP 2023'!N154*'2.1 OPEX TUUA'!$L$8) -> 0.001356918167 | N154: =+IF(F154="Pasajero",'2.2 OPEX LAP 2023'!I154*'2.1 OPEX TUUA'!$N$7,'2.2 OPEX LAP 2023'!I154*'2.1 OPEX TUUA'!$N$8) -> 0.0004408292715 | O154: =+IF(F154="Pasajero",'2.2 OPEX LAP 2023'!J154*'2.1 OPEX TUUA'!$O$7,'2.2 OPEX LAP 2023'!J154*'2.1 OPEX TUUA'!$O$8) -> 0.0004342137968 | P154: =+IF(F154="Pasajero",'2.2 OPEX LAP 2023'!K154*'2.1 OPEX TUUA'!$P$7,'2.2 OPEX LAP 2023'!K154*'2.1 OPEX TUUA'!$P$8) -> 0.0004315127283 | Q154: =+IF(F154="Pasajero",'2.2 OPEX LAP 2023'!L154*'2.1 OPEX TUUA'!$Q$7,'2.2 OPEX LAP 2023'!L154*'2.1 OPEX TUUA'!$Q$8) -> 0.0004287015939 | R154: =+IF(F154="Pasajero",'2.2 OPEX LAP 2023'!M154*'2.1 OPEX TUUA'!$R$7,'2.2 OPEX LAP 2023'!M154*'2.1 OPEX TUUA'!$R$8) -> 0.0004310018388 | S154: =+IF(F154="Pasajero",'2.2 OPEX LAP 2023'!N154*'2.1 OPEX TUUA'!$S$7,'2.2 OPEX LAP 2023'!N154*'2.1 OPEX TUUA'!$S$8) -> 0.0004312769543 | U154: 0.0008937832057 | V154: 0.001048412244 | W154: 0.001178582166 | X154: 0.001248727009 | Y154: 0.00129997768 | Z154: 0.001356918167 | AA154: 0 | AB154: 0 | AC154: 0 | AD154: 0 | AE154: 0 | AF154: 0
B155: 6563000001 | C155: Directo | D155: Otros Costos | E155: Desv.de Inv. Herramientas y Accesorios | F155: Pasajero | G155: =+IF(F155="Pasajero",'2.2 OPEX LAP 2023'!I155*'2.1 OPEX TUUA'!$G$7,'2.2 OPEX LAP 2023'!I155*'2.1 OPEX TUUA'!$G$8) -> 0 | H155: =+IF(F155="Pasajero",'2.2 OPEX LAP 2023'!J155*'2.1 OPEX TUUA'!$H$7,'2.2 OPEX LAP 2023'!J155*'2.1 OPEX TUUA'!$H$8) -> 0 | I155: =+IF(F155="Pasajero",'2.2 OPEX LAP 2023'!K155*'2.1 OPEX TUUA'!$I$7,'2.2 OPEX LAP 2023'!K155*'2.1 OPEX TUUA'!$I$8) -> 0 | J155: =+IF(F155="Pasajero",'2.2 OPEX LAP 2023'!L155*'2.1 OPEX TUUA'!$J$7,'2.2 OPEX LAP 2023'!L155*'2.1 OPEX TUUA'!$J$8) -> 0 | K155: =+IF(F155="Pasajero",'2.2 OPEX LAP 2023'!M155*'2.1 OPEX TUUA'!$K$7,'2.2 OPEX LAP 2023'!M155*'2.1 OPEX TUUA'!$K$8) -> 0 | L155: =+IF(F155="Pasajero",'2.2 OPEX LAP 2023'!N155*'2.1 OPEX TUUA'!$L$7,'2.2 OPEX LAP 2023'!N155*'2.1 OPEX TUUA'!$L$8) -> 0 | N155: =+IF(F155="Pasajero",'2.2 OPEX LAP 2023'!I155*'2.1 OPEX TUUA'!$N$7,'2.2 OPEX LAP 2023'!I155*'2.1 OPEX TUUA'!$N$8) -> 0 | O155: =+IF(F155="Pasajero",'2.2 OPEX LAP 2023'!J155*'2.1 OPEX TUUA'!$O$7,'2.2 OPEX LAP 2023'!J155*'2.1 OPEX TUUA'!$O$8) -> 0 | P155: =+IF(F155="Pasajero",'2.2 OPEX LAP 2023'!K155*'2.1 OPEX TUUA'!$P$7,'2.2 OPEX LAP 2023'!K155*'2.1 OPEX TUUA'!$P$8) -> 0 | Q155: =+IF(F155="Pasajero",'2.2 OPEX LAP 2023'!L155*'2.1 OPEX TUUA'!$Q$7,'2.2 OPEX LAP 2023'!L155*'2.1 OPEX TUUA'!$Q$8) -> 0 | R155: =+IF(F155="Pasajero",'2.2 OPEX LAP 2023'!M155*'2.1 OPEX TUUA'!$R$7,'2.2 OPEX LAP 2023'!M155*'2.1 OPEX TUUA'!$R$8) -> 0 | S155: =+IF(F155="Pasajero",'2.2 OPEX LAP 2023'!N155*'2.1 OPEX TUUA'!$S$7,'2.2 OPEX LAP 2023'!N155*'2.1 OPEX TUUA'!$S$8) -> 0 | U155: 0 | V155: 0 | W155: 0 | X155: 0 | Y155: 0 | Z155: 0 | AA155: 0 | AB155: 0 | AC155: 0 | AD155: 0 | AE155: 0 | AF155: 0
B156: 6563000002 | C156: Directo | D156: Otros Costos | E156: Desv. de Repuestos | F156: Pasajero | G156: =+IF(F156="Pasajero",'2.2 OPEX LAP 2023'!I156*'2.1 OPEX TUUA'!$G$7,'2.2 OPEX LAP 2023'!I156*'2.1 OPEX TUUA'!$G$8) -> 0 | H156: =+IF(F156="Pasajero",'2.2 OPEX LAP 2023'!J156*'2.1 OPEX TUUA'!$H$7,'2.2 OPEX LAP 2023'!J156*'2.1 OPEX TUUA'!$H$8) -> 0 | I156: =+IF(F156="Pasajero",'2.2 OPEX LAP 2023'!K156*'2.1 OPEX TUUA'!$I$7,'2.2 OPEX LAP 2023'!K156*'2.1 OPEX TUUA'!$I$8) -> 0 | J156: =+IF(F156="Pasajero",'2.2 OPEX LAP 2023'!L156*'2.1 OPEX TUUA'!$J$7,'2.2 OPEX LAP 2023'!L156*'2.1 OPEX TUUA'!$J$8) -> 0 | K156: =+IF(F156="Pasajero",'2.2 OPEX LAP 2023'!M156*'2.1 OPEX TUUA'!$K$7,'2.2 OPEX LAP 2023'!M156*'2.1 OPEX TUUA'!$K$8) -> 0 | L156: =+IF(F156="Pasajero",'2.2 OPEX LAP 2023'!N156*'2.1 OPEX TUUA'!$L$7,'2.2 OPEX LAP 2023'!N156*'2.1 OPEX TUUA'!$L$8) -> 0 | N156: =+IF(F156="Pasajero",'2.2 OPEX LAP 2023'!I156*'2.1 OPEX TUUA'!$N$7,'2.2 OPEX LAP 2023'!I156*'2.1 OPEX TUUA'!$N$8) -> 0 | O156: =+IF(F156="Pasajero",'2.2 OPEX LAP 2023'!J156*'2.1 OPEX TUUA'!$O$7,'2.2 OPEX LAP 2023'!J156*'2.1 OPEX TUUA'!$O$8) -> 0 | P156: =+IF(F156="Pasajero",'2.2 OPEX LAP 2023'!K156*'2.1 OPEX TUUA'!$P$7,'2.2 OPEX LAP 2023'!K156*'2.1 OPEX TUUA'!$P$8) -> 0 | Q156: =+IF(F156="Pasajero",'2.2 OPEX LAP 2023'!L156*'2.1 OPEX TUUA'!$Q$7,'2.2 OPEX LAP 2023'!L156*'2.1 OPEX TUUA'!$Q$8) -> 0 | R156: =+IF(F156="Pasajero",'2.2 OPEX LAP 2023'!M156*'2.1 OPEX TUUA'!$R$7,'2.2 OPEX LAP 2023'!M156*'2.1 OPEX TUUA'!$R$8) -> 0 | S156: =+IF(F156="Pasajero",'2.2 OPEX LAP 2023'!N156*'2.1 OPEX TUUA'!$S$7,'2.2 OPEX LAP 2023'!N156*'2.1 OPEX TUUA'!$S$8) -> 0 | U156: 0 | V156: 0 | W156: 0 | X156: 0 | Y156: 0 | Z156: 0 | AA156: 0 | AB156: 0 | AC156: 0 | AD156: 0 | AE156: 0 | AF156: 0
B157: 6563000003 | C157: Directo | D157: Otros Costos | E157: Desv. de Materiales Diversos | F157: Pasajero | G157: =+IF(F157="Pasajero",'2.2 OPEX LAP 2023'!I157*'2.1 OPEX TUUA'!$G$7,'2.2 OPEX LAP 2023'!I157*'2.1 OPEX TUUA'!$G$8) -> 0 | H157: =+IF(F157="Pasajero",'2.2 OPEX LAP 2023'!J157*'2.1 OPEX TUUA'!$H$7,'2.2 OPEX LAP 2023'!J157*'2.1 OPEX TUUA'!$H$8) -> 0 | I157: =+IF(F157="Pasajero",'2.2 OPEX LAP 2023'!K157*'2.1 OPEX TUUA'!$I$7,'2.2 OPEX LAP 2023'!K157*'2.1 OPEX TUUA'!$I$8) -> 0 | J157: =+IF(F157="Pasajero",'2.2 OPEX LAP 2023'!L157*'2.1 OPEX TUUA'!$J$7,'2.2 OPEX LAP 2023'!L157*'2.1 OPEX TUUA'!$J$8) -> 0 | K157: =+IF(F157="Pasajero",'2.2 OPEX LAP 2023'!M157*'2.1 OPEX TUUA'!$K$7,'2.2 OPEX LAP 2023'!M157*'2.1 OPEX TUUA'!$K$8) -> 0 | L157: =+IF(F157="Pasajero",'2.2 OPEX LAP 2023'!N157*'2.1 OPEX TUUA'!$L$7,'2.2 OPEX LAP 2023'!N157*'2.1 OPEX TUUA'!$L$8) -> 0 | N157: =+IF(F157="Pasajero",'2.2 OPEX LAP 2023'!I157*'2.1 OPEX TUUA'!$N$7,'2.2 OPEX LAP 2023'!I157*'2.1 OPEX TUUA'!$N$8) -> 0 | O157: =+IF(F157="Pasajero",'2.2 OPEX LAP 2023'!J157*'2.1 OPEX TUUA'!$O$7,'2.2 OPEX LAP 2023'!J157*'2.1 OPEX TUUA'!$O$8) -> 0 | P157: =+IF(F157="Pasajero",'2.2 OPEX LAP 2023'!K157*'2.1 OPEX TUUA'!$P$7,'2.2 OPEX LAP 2023'!K157*'2.1 OPEX TUUA'!$P$8) -> 0 | Q157: =+IF(F157="Pasajero",'2.2 OPEX LAP 2023'!L157*'2.1 OPEX TUUA'!$Q$7,'2.2 OPEX LAP 2023'!L157*'2.1 OPEX TUUA'!$Q$8) -> 0 | R157: =+IF(F157="Pasajero",'2.2 OPEX LAP 2023'!M157*'2.1 OPEX TUUA'!$R$7,'2.2 OPEX LAP 2023'!M157*'2.1 OPEX TUUA'!$R$8) -> 0 | S157: =+IF(F157="Pasajero",'2.2 OPEX LAP 2023'!N157*'2.1 OPEX TUUA'!$S$7,'2.2 OPEX LAP 2023'!N157*'2.1 OPEX TUUA'!$S$8) -> 0 | U157: 0 | V157: 0 | W157: 0 | X157: 0 | Y157: 0 | Z157: 0 | AA157: 0 | AB157: 0 | AC157: 0 | AD157: 0 | AE157: 0 | AF157: 0
B158: 6563000004 | C158: Directo | D158: Otros Costos | E158: Desv. de Combustible | F158: Pasajero | G158: =+IF(F158="Pasajero",'2.2 OPEX LAP 2023'!I158*'2.1 OPEX TUUA'!$G$7,'2.2 OPEX LAP 2023'!I158*'2.1 OPEX TUUA'!$G$8) -> 0 | H158: =+IF(F158="Pasajero",'2.2 OPEX LAP 2023'!J158*'2.1 OPEX TUUA'!$H$7,'2.2 OPEX LAP 2023'!J158*'2.1 OPEX TUUA'!$H$8) -> 0 | I158: =+IF(F158="Pasajero",'2.2 OPEX LAP 2023'!K158*'2.1 OPEX TUUA'!$I$7,'2.2 OPEX LAP 2023'!K158*'2.1 OPEX TUUA'!$I$8) -> 0 | J158: =+IF(F158="Pasajero",'2.2 OPEX LAP 2023'!L158*'2.1 OPEX TUUA'!$J$7,'2.2 OPEX LAP 2023'!L158*'2.1 OPEX TUUA'!$J$8) -> 0 | K158: =+IF(F158="Pasajero",'2.2 OPEX LAP 2023'!M158*'2.1 OPEX TUUA'!$K$7,'2.2 OPEX LAP 2023'!M158*'2.1 OPEX TUUA'!$K$8) -> 0 | L158: =+IF(F158="Pasajero",'2.2 OPEX LAP 2023'!N158*'2.1 OPEX TUUA'!$L$7,'2.2 OPEX LAP 2023'!N158*'2.1 OPEX TUUA'!$L$8) -> 0 | N158: =+IF(F158="Pasajero",'2.2 OPEX LAP 2023'!I158*'2.1 OPEX TUUA'!$N$7,'2.2 OPEX LAP 2023'!I158*'2.1 OPEX TUUA'!$N$8) -> 0 | O158: =+IF(F158="Pasajero",'2.2 OPEX LAP 2023'!J158*'2.1 OPEX TUUA'!$O$7,'2.2 OPEX LAP 2023'!J158*'2.1 OPEX TUUA'!$O$8) -> 0 | P158: =+IF(F158="Pasajero",'2.2 OPEX LAP 2023'!K158*'2.1 OPEX TUUA'!$P$7,'2.2 OPEX LAP 2023'!K158*'2.1 OPEX TUUA'!$P$8) -> 0 | Q158: =+IF(F158="Pasajero",'2.2 OPEX LAP 2023'!L158*'2.1 OPEX TUUA'!$Q$7,'2.2 OPEX LAP 2023'!L158*'2.1 OPEX TUUA'!$Q$8) -> 0 | R158: =+IF(F158="Pasajero",'2.2 OPEX LAP 2023'!M158*'2.1 OPEX TUUA'!$R$7,'2.2 OPEX LAP 2023'!M158*'2.1 OPEX TUUA'!$R$8) -> 0 | S158: =+IF(F158="Pasajero",'2.2 OPEX LAP 2023'!N158*'2.1 OPEX TUUA'!$S$7,'2.2 OPEX LAP 2023'!N158*'2.1 OPEX TUUA'!$S$8) -> 0 | U158: 0 | V158: 0 | W158: 0 | X158: 0 | Y158: 0 | Z158: 0 | AA158: 0 | AB158: 0 | AC158: 0 | AD158: 0 | AE158: 0 | AF158: 0
B159: 6563000005 | C159: Directo | D159: Otros Costos | E159: Desv. De Utiles de oficina | F159: Pasajero | G159: =+IF(F159="Pasajero",'2.2 OPEX LAP 2023'!I159*'2.1 OPEX TUUA'!$G$7,'2.2 OPEX LAP 2023'!I159*'2.1 OPEX TUUA'!$G$8) -> 0 | H159: =+IF(F159="Pasajero",'2.2 OPEX LAP 2023'!J159*'2.1 OPEX TUUA'!$H$7,'2.2 OPEX LAP 2023'!J159*'2.1 OPEX TUUA'!$H$8) -> 0 | I159: =+IF(F159="Pasajero",'2.2 OPEX LAP 2023'!K159*'2.1 OPEX TUUA'!$I$7,'2.2 OPEX LAP 2023'!K159*'2.1 OPEX TUUA'!$I$8) -> 0 | J159: =+IF(F159="Pasajero",'2.2 OPEX LAP 2023'!L159*'2.1 OPEX TUUA'!$J$7,'2.2 OPEX LAP 2023'!L159*'2.1 OPEX TUUA'!$J$8) -> 0 | K159: =+IF(F159="Pasajero",'2.2 OPEX LAP 2023'!M159*'2.1 OPEX TUUA'!$K$7,'2.2 OPEX LAP 2023'!M159*'2.1 OPEX TUUA'!$K$8) -> 0 | L159: =+IF(F159="Pasajero",'2.2 OPEX LAP 2023'!N159*'2.1 OPEX TUUA'!$L$7,'2.2 OPEX LAP 2023'!N159*'2.1 OPEX TUUA'!$L$8) -> 0 | N159: =+IF(F159="Pasajero",'2.2 OPEX LAP 2023'!I159*'2.1 OPEX TUUA'!$N$7,'2.2 OPEX LAP 2023'!I159*'2.1 OPEX TUUA'!$N$8) -> 0 | O159: =+IF(F159="Pasajero",'2.2 OPEX LAP 2023'!J159*'2.1 OPEX TUUA'!$O$7,'2.2 OPEX LAP 2023'!J159*'2.1 OPEX TUUA'!$O$8) -> 0 | P159: =+IF(F159="Pasajero",'2.2 OPEX LAP 2023'!K159*'2.1 OPEX TUUA'!$P$7,'2.2 OPEX LAP 2023'!K159*'2.1 OPEX TUUA'!$P$8) -> 0 | Q159: =+IF(F159="Pasajero",'2.2 OPEX LAP 2023'!L159*'2.1 OPEX TUUA'!$Q$7,'2.2 OPEX LAP 2023'!L159*'2.1 OPEX TUUA'!$Q$8) -> 0 | R159: =+IF(F159="Pasajero",'2.2 OPEX LAP 2023'!M159*'2.1 OPEX TUUA'!$R$7,'2.2 OPEX LAP 2023'!M159*'2.1 OPEX TUUA'!$R$8) -> 0 | S159: =+IF(F159="Pasajero",'2.2 OPEX LAP 2023'!N159*'2.1 OPEX TUUA'!$S$7,'2.2 OPEX LAP 2023'!N159*'2.1 OPEX TUUA'!$S$8) -> 0 | U159: 0 | V159: 0 | W159: 0 | X159: 0 | Y159: 0 | Z159: 0 | AA159: 0 | AB159: 0 | AC159: 0 | AD159: 0 | AE159: 0 | AF159: 0
B160: 6590000001 | C160: Directo | D160: Otros Costos | E160: Premios y obsequios | F160: Pasajero | G160: =+IF(F160="Pasajero",'2.2 OPEX LAP 2023'!I160*'2.1 OPEX TUUA'!$G$7,'2.2 OPEX LAP 2023'!I160*'2.1 OPEX TUUA'!$G$8) -> 0 | H160: =+IF(F160="Pasajero",'2.2 OPEX LAP 2023'!J160*'2.1 OPEX TUUA'!$H$7,'2.2 OPEX LAP 2023'!J160*'2.1 OPEX TUUA'!$H$8) -> 0 | I160: =+IF(F160="Pasajero",'2.2 OPEX LAP 2023'!K160*'2.1 OPEX TUUA'!$I$7,'2.2 OPEX LAP 2023'!K160*'2.1 OPEX TUUA'!$I$8) -> 0 | J160: =+IF(F160="Pasajero",'2.2 OPEX LAP 2023'!L160*'2.1 OPEX TUUA'!$J$7,'2.2 OPEX LAP 2023'!L160*'2.1 OPEX TUUA'!$J$8) -> 0 | K160: =+IF(F160="Pasajero",'2.2 OPEX LAP 2023'!M160*'2.1 OPEX TUUA'!$K$7,'2.2 OPEX LAP 2023'!M160*'2.1 OPEX TUUA'!$K$8) -> 0 | L160: =+IF(F160="Pasajero",'2.2 OPEX LAP 2023'!N160*'2.1 OPEX TUUA'!$L$7,'2.2 OPEX LAP 2023'!N160*'2.1 OPEX TUUA'!$L$8) -> 0 | N160: =+IF(F160="Pasajero",'2.2 OPEX LAP 2023'!I160*'2.1 OPEX TUUA'!$N$7,'2.2 OPEX LAP 2023'!I160*'2.1 OPEX TUUA'!$N$8) -> 0 | O160: =+IF(F160="Pasajero",'2.2 OPEX LAP 2023'!J160*'2.1 OPEX TUUA'!$O$7,'2.2 OPEX LAP 2023'!J160*'2.1 OPEX TUUA'!$O$8) -> 0 | P160: =+IF(F160="Pasajero",'2.2 OPEX LAP 2023'!K160*'2.1 OPEX TUUA'!$P$7,'2.2 OPEX LAP 2023'!K160*'2.1 OPEX TUUA'!$P$8) -> 0 | Q160: =+IF(F160="Pasajero",'2.2 OPEX LAP 2023'!L160*'2.1 OPEX TUUA'!$Q$7,'2.2 OPEX LAP 2023'!L160*'2.1 OPEX TUUA'!$Q$8) -> 0 | R160: =+IF(F160="Pasajero",'2.2 OPEX LAP 2023'!M160*'2.1 OPEX TUUA'!$R$7,'2.2 OPEX LAP 2023'!M160*'2.1 OPEX TUUA'!$R$8) -> 0 | S160: =+IF(F160="Pasajero",'2.2 OPEX LAP 2023'!N160*'2.1 OPEX TUUA'!$S$7,'2.2 OPEX LAP 2023'!N160*'2.1 OPEX TUUA'!$S$8) -> 0 | U160: 0 | V160: 0 | W160: 0 | X160: 0 | Y160: 0 | Z160: 0 | AA160: 0 | AB160: 0 | AC160: 0 | AD160: 0 | AE160: 0 | AF160: 0
B161: 6590000002 | C161: Directo | D161: Otros Costos | E161: Eventos protocolares | F161: Pasajero | G161: =+IF(F161="Pasajero",'2.2 OPEX LAP 2023'!I161*'2.1 OPEX TUUA'!$G$7,'2.2 OPEX LAP 2023'!I161*'2.1 OPEX TUUA'!$G$8) -> 127.7463744 | H161: =+IF(F161="Pasajero",'2.2 OPEX LAP 2023'!J161*'2.1 OPEX TUUA'!$H$7,'2.2 OPEX LAP 2023'!J161*'2.1 OPEX TUUA'!$H$8) -> 149.8471466 | I161: =+IF(F161="Pasajero",'2.2 OPEX LAP 2023'!K161*'2.1 OPEX TUUA'!$I$7,'2.2 OPEX LAP 2023'!K161*'2.1 OPEX TUUA'!$I$8) -> 168.4520337 | J161: =+IF(F161="Pasajero",'2.2 OPEX LAP 2023'!L161*'2.1 OPEX TUUA'!$J$7,'2.2 OPEX LAP 2023'!L161*'2.1 OPEX TUUA'!$J$8) -> 178.4776744 | K161: =+IF(F161="Pasajero",'2.2 OPEX LAP 2023'!M161*'2.1 OPEX TUUA'!$K$7,'2.2 OPEX LAP 2023'!M161*'2.1 OPEX TUUA'!$K$8) -> 185.8028148 | L161: =+IF(F161="Pasajero",'2.2 OPEX LAP 2023'!N161*'2.1 OPEX TUUA'!$L$7,'2.2 OPEX LAP 2023'!N161*'2.1 OPEX TUUA'!$L$8) -> 193.9411874 | N161: =+IF(F161="Pasajero",'2.2 OPEX LAP 2023'!I161*'2.1 OPEX TUUA'!$N$7,'2.2 OPEX LAP 2023'!I161*'2.1 OPEX TUUA'!$N$8) -> 63.00671217 | O161: =+IF(F161="Pasajero",'2.2 OPEX LAP 2023'!J161*'2.1 OPEX TUUA'!$O$7,'2.2 OPEX LAP 2023'!J161*'2.1 OPEX TUUA'!$O$8) -> 62.06117761 | P161: =+IF(F161="Pasajero",'2.2 OPEX LAP 2023'!K161*'2.1 OPEX TUUA'!$P$7,'2.2 OPEX LAP 2023'!K161*'2.1 OPEX TUUA'!$P$8) -> 61.6751201 | Q161: =+IF(F161="Pasajero",'2.2 OPEX LAP 2023'!L161*'2.1 OPEX TUUA'!$Q$7,'2.2 OPEX LAP 2023'!L161*'2.1 OPEX TUUA'!$Q$8) -> 61.27333114 | R161: =+IF(F161="Pasajero",'2.2 OPEX LAP 2023'!M161*'2.1 OPEX TUUA'!$R$7,'2.2 OPEX LAP 2023'!M161*'2.1 OPEX TUUA'!$R$8) -> 61.60209985 | S161: =+IF(F161="Pasajero",'2.2 OPEX LAP 2023'!N161*'2.1 OPEX TUUA'!$S$7,'2.2 OPEX LAP 2023'!N161*'2.1 OPEX TUUA'!$S$8) -> 61.64142148 | U161: 127.7463744 | V161: 149.8471466 | W161: 168.4520337 | X161: 178.4776744 | Y161: 185.8028148 | Z161: 193.9411874 | AA161: 0 | AB161: 0 | AC161: 0 | AD161: 0 | AE161: 0 | AF161: 0
B162: 6590000003 | C162: Directo | D162: Otros Costos | E162: Sanciones Administrativas | F162: Pasajero | G162: =+IF(F162="Pasajero",'2.2 OPEX LAP 2023'!I162*'2.1 OPEX TUUA'!$G$7,'2.2 OPEX LAP 2023'!I162*'2.1 OPEX TUUA'!$G$8) -> 0 | H162: =+IF(F162="Pasajero",'2.2 OPEX LAP 2023'!J162*'2.1 OPEX TUUA'!$H$7,'2.2 OPEX LAP 2023'!J162*'2.1 OPEX TUUA'!$H$8) -> 0 | I162: =+IF(F162="Pasajero",'2.2 OPEX LAP 2023'!K162*'2.1 OPEX TUUA'!$I$7,'2.2 OPEX LAP 2023'!K162*'2.1 OPEX TUUA'!$I$8) -> 0 | J162: =+IF(F162="Pasajero",'2.2 OPEX LAP 2023'!L162*'2.1 OPEX TUUA'!$J$7,'2.2 OPEX LAP 2023'!L162*'2.1 OPEX TUUA'!$J$8) -> 0 | K162: =+IF(F162="Pasajero",'2.2 OPEX LAP 2023'!M162*'2.1 OPEX TUUA'!$K$7,'2.2 OPEX LAP 2023'!M162*'2.1 OPEX TUUA'!$K$8) -> 0 | L162: =+IF(F162="Pasajero",'2.2 OPEX LAP 2023'!N162*'2.1 OPEX TUUA'!$L$7,'2.2 OPEX LAP 2023'!N162*'2.1 OPEX TUUA'!$L$8) -> 0 | N162: =+IF(F162="Pasajero",'2.2 OPEX LAP 2023'!I162*'2.1 OPEX TUUA'!$N$7,'2.2 OPEX LAP 2023'!I162*'2.1 OPEX TUUA'!$N$8) -> 0 | O162: =+IF(F162="Pasajero",'2.2 OPEX LAP 2023'!J162*'2.1 OPEX TUUA'!$O$7,'2.2 OPEX LAP 2023'!J162*'2.1 OPEX TUUA'!$O$8) -> 0 | P162: =+IF(F162="Pasajero",'2.2 OPEX LAP 2023'!K162*'2.1 OPEX TUUA'!$P$7,'2.2 OPEX LAP 2023'!K162*'2.1 OPEX TUUA'!$P$8) -> 0 | Q162: =+IF(F162="Pasajero",'2.2 OPEX LAP 2023'!L162*'2.1 OPEX TUUA'!$Q$7,'2.2 OPEX LAP 2023'!L162*'2.1 OPEX TUUA'!$Q$8) -> 0 | R162: =+IF(F162="Pasajero",'2.2 OPEX LAP 2023'!M162*'2.1 OPEX TUUA'!$R$7,'2.2 OPEX LAP 2023'!M162*'2.1 OPEX TUUA'!$R$8) -> 0 | S162: =+IF(F162="Pasajero",'2.2 OPEX LAP 2023'!N162*'2.1 OPEX TUUA'!$S$7,'2.2 OPEX LAP 2023'!N162*'2.1 OPEX TUUA'!$S$8) -> 0 | U162: 0 | V162: 0 | W162: 0 | X162: 0 | Y162: 0 | Z162: 0 | AA162: 0 | AB162: 0 | AC162: 0 | AD162: 0 | AE162: 0 | AF162: 0
B163: 6590000004 | C163: Directo | D163: Otros Costos | E163: Fotostáticas e Impresiones | F163: Pasajero | G163: =+IF(F163="Pasajero",'2.2 OPEX LAP 2023'!I163*'2.1 OPEX TUUA'!$G$7,'2.2 OPEX LAP 2023'!I163*'2.1 OPEX TUUA'!$G$8) -> 0 | H163: =+IF(F163="Pasajero",'2.2 OPEX LAP 2023'!J163*'2.1 OPEX TUUA'!$H$7,'2.2 OPEX LAP 2023'!J163*'2.1 OPEX TUUA'!$H$8) -> 0 | I163: =+IF(F163="Pasajero",'2.2 OPEX LAP 2023'!K163*'2.1 OPEX TUUA'!$I$7,'2.2 OPEX LAP 2023'!K163*'2.1 OPEX TUUA'!$I$8) -> 0 | J163: =+IF(F163="Pasajero",'2.2 OPEX LAP 2023'!L163*'2.1 OPEX TUUA'!$J$7,'2.2 OPEX LAP 2023'!L163*'2.1 OPEX TUUA'!$J$8) -> 0 | K163: =+IF(F163="Pasajero",'2.2 OPEX LAP 2023'!M163*'2.1 OPEX TUUA'!$K$7,'2.2 OPEX LAP 2023'!M163*'2.1 OPEX TUUA'!$K$8) -> 0 | L163: =+IF(F163="Pasajero",'2.2 OPEX LAP 2023'!N163*'2.1 OPEX TUUA'!$L$7,'2.2 OPEX LAP 2023'!N163*'2.1 OPEX TUUA'!$L$8) -> 0 | N163: =+IF(F163="Pasajero",'2.2 OPEX LAP 2023'!I163*'2.1 OPEX TUUA'!$N$7,'2.2 OPEX LAP 2023'!I163*'2.1 OPEX TUUA'!$N$8) -> 0 | O163: =+IF(F163="Pasajero",'2.2 OPEX LAP 2023'!J163*'2.1 OPEX TUUA'!$O$7,'2.2 OPEX LAP 2023'!J163*'2.1 OPEX TUUA'!$O$8) -> 0 | P163: =+IF(F163="Pasajero",'2.2 OPEX LAP 2023'!K163*'2.1 OPEX TUUA'!$P$7,'2.2 OPEX LAP 2023'!K163*'2.1 OPEX TUUA'!$P$8) -> 0 | Q163: =+IF(F163="Pasajero",'2.2 OPEX LAP 2023'!L163*'2.1 OPEX TUUA'!$Q$7,'2.2 OPEX LAP 2023'!L163*'2.1 OPEX TUUA'!$Q$8) -> 0 | R163: =+IF(F163="Pasajero",'2.2 OPEX LAP 2023'!M163*'2.1 OPEX TUUA'!$R$7,'2.2 OPEX LAP 2023'!M163*'2.1 OPEX TUUA'!$R$8) -> 0 | S163: =+IF(F163="Pasajero",'2.2 OPEX LAP 2023'!N163*'2.1 OPEX TUUA'!$S$7,'2.2 OPEX LAP 2023'!N163*'2.1 OPEX TUUA'!$S$8) -> 0 | U163: 0 | V163: 0 | W163: 0 | X163: 0 | Y163: 0 | Z163: 0 | AA163: 0 | AB163: 0 | AC163: 0 | AD163: 0 | AE163: 0 | AF163: 0
B164: 6590000005 | C164: Directo | D164: Otros Costos | E164: Donaciones | F164: Pasajero | G164: =+IF(F164="Pasajero",'2.2 OPEX LAP 2023'!I164*'2.1 OPEX TUUA'!$G$7,'2.2 OPEX LAP 2023'!I164*'2.1 OPEX TUUA'!$G$8) -> 0 | H164: =+IF(F164="Pasajero",'2.2 OPEX LAP 2023'!J164*'2.1 OPEX TUUA'!$H$7,'2.2 OPEX LAP 2023'!J164*'2.1 OPEX TUUA'!$H$8) -> 0 | I164: =+IF(F164="Pasajero",'2.2 OPEX LAP 2023'!K164*'2.1 OPEX TUUA'!$I$7,'2.2 OPEX LAP 2023'!K164*'2.1 OPEX TUUA'!$I$8) -> 0 | J164: =+IF(F164="Pasajero",'2.2 OPEX LAP 2023'!L164*'2.1 OPEX TUUA'!$J$7,'2.2 OPEX LAP 2023'!L164*'2.1 OPEX TUUA'!$J$8) -> 0 | K164: =+IF(F164="Pasajero",'2.2 OPEX LAP 2023'!M164*'2.1 OPEX TUUA'!$K$7,'2.2 OPEX LAP 2023'!M164*'2.1 OPEX TUUA'!$K$8) -> 0 | L164: =+IF(F164="Pasajero",'2.2 OPEX LAP 2023'!N164*'2.1 OPEX TUUA'!$L$7,'2.2 OPEX LAP 2023'!N164*'2.1 OPEX TUUA'!$L$8) -> 0 | N164: =+IF(F164="Pasajero",'2.2 OPEX LAP 2023'!I164*'2.1 OPEX TUUA'!$N$7,'2.2 OPEX LAP 2023'!I164*'2.1 OPEX TUUA'!$N$8) -> 0 | O164: =+IF(F164="Pasajero",'2.2 OPEX LAP 2023'!J164*'2.1 OPEX TUUA'!$O$7,'2.2 OPEX LAP 2023'!J164*'2.1 OPEX TUUA'!$O$8) -> 0 | P164: =+IF(F164="Pasajero",'2.2 OPEX LAP 2023'!K164*'2.1 OPEX TUUA'!$P$7,'2.2 OPEX LAP 2023'!K164*'2.1 OPEX TUUA'!$P$8) -> 0 | Q164: =+IF(F164="Pasajero",'2.2 OPEX LAP 2023'!L164*'2.1 OPEX TUUA'!$Q$7,'2.2 OPEX LAP 2023'!L164*'2.1 OPEX TUUA'!$Q$8) -> 0 | R164: =+IF(F164="Pasajero",'2.2 OPEX LAP 2023'!M164*'2.1 OPEX TUUA'!$R$7,'2.2 OPEX LAP 2023'!M164*'2.1 OPEX TUUA'!$R$8) -> 0 | S164: =+IF(F164="Pasajero",'2.2 OPEX LAP 2023'!N164*'2.1 OPEX TUUA'!$S$7,'2.2 OPEX LAP 2023'!N164*'2.1 OPEX TUUA'!$S$8) -> 0 | U164: 0 | V164: 0 | W164: 0 | X164: 0 | Y164: 0 | Z164: 0 | AA164: 0 | AB164: 0 | AC164: 0 | AD164: 0 | AE164: 0 | AF164: 0
B165: 6590000006 | C165: Directo | D165: Otros Costos | E165: Programas de Gestión Social | F165: Pasajero | G165: =+IF(F165="Pasajero",'2.2 OPEX LAP 2023'!I165*'2.1 OPEX TUUA'!$G$7,'2.2 OPEX LAP 2023'!I165*'2.1 OPEX TUUA'!$G$8) -> 0 | H165: =+IF(F165="Pasajero",'2.2 OPEX LAP 2023'!J165*'2.1 OPEX TUUA'!$H$7,'2.2 OPEX LAP 2023'!J165*'2.1 OPEX TUUA'!$H$8) -> 0 | I165: =+IF(F165="Pasajero",'2.2 OPEX LAP 2023'!K165*'2.1 OPEX TUUA'!$I$7,'2.2 OPEX LAP 2023'!K165*'2.1 OPEX TUUA'!$I$8) -> 0 | J165: =+IF(F165="Pasajero",'2.2 OPEX LAP 2023'!L165*'2.1 OPEX TUUA'!$J$7,'2.2 OPEX LAP 2023'!L165*'2.1 OPEX TUUA'!$J$8) -> 0 | K165: =+IF(F165="Pasajero",'2.2 OPEX LAP 2023'!M165*'2.1 OPEX TUUA'!$K$7,'2.2 OPEX LAP 2023'!M165*'2.1 OPEX TUUA'!$K$8) -> 0 | L165: =+IF(F165="Pasajero",'2.2 OPEX LAP 2023'!N165*'2.1 OPEX TUUA'!$L$7,'2.2 OPEX LAP 2023'!N165*'2.1 OPEX TUUA'!$L$8) -> 0 | N165: =+IF(F165="Pasajero",'2.2 OPEX LAP 2023'!I165*'2.1 OPEX TUUA'!$N$7,'2.2 OPEX LAP 2023'!I165*'2.1 OPEX TUUA'!$N$8) -> 0 | O165: =+IF(F165="Pasajero",'2.2 OPEX LAP 2023'!J165*'2.1 OPEX TUUA'!$O$7,'2.2 OPEX LAP 2023'!J165*'2.1 OPEX TUUA'!$O$8) -> 0 | P165: =+IF(F165="Pasajero",'2.2 OPEX LAP 2023'!K165*'2.1 OPEX TUUA'!$P$7,'2.2 OPEX LAP 2023'!K165*'2.1 OPEX TUUA'!$P$8) -> 0 | Q165: =+IF(F165="Pasajero",'2.2 OPEX LAP 2023'!L165*'2.1 OPEX TUUA'!$Q$7,'2.2 OPEX LAP 2023'!L165*'2.1 OPEX TUUA'!$Q$8) -> 0 | R165: =+IF(F165="Pasajero",'2.2 OPEX LAP 2023'!M165*'2.1 OPEX TUUA'!$R$7,'2.2 OPEX LAP 2023'!M165*'2.1 OPEX TUUA'!$R$8) -> 0 | S165: =+IF(F165="Pasajero",'2.2 OPEX LAP 2023'!N165*'2.1 OPEX TUUA'!$S$7,'2.2 OPEX LAP 2023'!N165*'2.1 OPEX TUUA'!$S$8) -> 0 | U165: 0 | V165: 0 | W165: 0 | X165: 0 | Y165: 0 | Z165: 0 | AA165: 0 | AB165: 0 | AC165: 0 | AD165: 0 | AE165: 0 | AF165: 0
